Workbook

Sheet PI vs x
A1: Measurement | B1: Hall
A2: Type | B2: Off-axis
A4: PS type | B4: SXR
A5: PS serial no | B5: 16334
A7: Measurement date | B7: ='DF raw data'!B2 -> 6. feb 2017
C11: Nominal gap [mm] | D11: Encoder [counts] | E11: Encoder [mm] | F11: PI [T^2mm^3] | G11: x [mm] | H11: Encoder offset
C12: 10 | D12: =' 10 x=-2'!B3 -> 390610 | E12: =(D12-$H$12)*0.00005+10 -> 9.99695 | F12: =' 10 x=-2'!Q3 -> 4520.166871 | G12: -2 | H12: 390671
C13: 10 | D13: ='10 x=-1'!B3 -> 390610 | E13: =(D13-$H$12)*0.00005+10 -> 9.99695 | F13: ='10 x=-1'!Q3 -> 4523.071249 | G13: -1
C14: 10 | D14: ='10 x=0'!B3 -> 390620 | E14: 9.99745 | F14: ='10 x=0'!Q3 -> 4522.756413 | G14: 0
C15: 10 | D15: ='10 x=1'!B3 -> 390620 | E15: 9.99745 | F15: ='10 x=1'!Q3 -> 4522.379378 | G15: 1
C16: 10 | D16: ='10 x=2'!B3 -> 390620 | E16: 9.99745 | F16: ='10 x=2'!Q3 -> 4520.46665 | G16: 2
C17: 30 | D17: ='30 x=-2'!B3 -> 791830 | E17: 30.05795 | F17: ='30 x=-2'!Q3 -> 838.0198747 | G17: -2
C18: 30 | D18: ='30 x=-1'!B3 -> 791830 | E18: 30.05795 | F18: ='30 x=-1'!Q3 -> 839.2031565 | G18: -1
C19: 30 | D19: ='30 x=0'!B3 -> 791830 | E19: 30.05795 | F19: ='30 x=0'!Q3 -> 839.8116288 | G19: 0
C20: 30 | D20: ='30 x=1'!B3 -> 791830 | E20: 30.05795 | F20: ='30 x=1'!Q3 -> 839.4830587 | G20: 1
C21: 30 | D21: ='30 x=2'!B3 -> 791830 | E21: 30.05795 | F21: ='30 x=2'!Q3 -> 838.5232403 | G21: 2
A42: Reference magnet
A43: Tref | B43: 20.67 | C43: degC
A44: Hall ref field | B44: 0.50549 | C44: T
A45: NMR ref field | B45: 0.506615 | C45: T

Sheet 10 x=-2
A1: dz | B1: ='DF raw data'!B7 -> 0.5004 | C1: mm | F1: T_coeff | G1: -0.0008 | H1: /degC | L1: Hallref | M1: ='PI vs x'!B44 -> 0.50549 | N1: T | P1: IBy total | Q1: =P1203*1000 -> -3.799579937 | R1: muTm
A2: Tref | B2: ='DF raw data'!B8 -> 20.8 | C2: degC | F2: Tcorr | G2: 20 | H2: degC | L2: NMRref | M2: ='PI vs x'!B45 -> 0.506615 | N2: T | P2: JBy total | Q2: =Q1203 -> -5.958801749 | R2: muTm^2
A3: Encoder | B3: ='DF raw data'!B9 -> 390610 | P3: PI total | Q3: =R1203 -> 4520.166871 | R3: T^2mm^3
J4: SXR-rotation
A5: z [mm] | B5: Bx | C5: By | D5: Bz | F5: Bx_corr | G5: By_corr | H5: Bz_corr | J5: Bx_rot | K5: By_rot | L5: Bz_rot | N5: Ix | O5: Jx | P5: Iy | Q5: Jy | R5: PI
A6: 0 | B6: ='DF raw data'!A11 -> 5.9379058e-06 | C6: ='DF raw data'!B11 -> 5.4919687e-06 | D6: ='DF raw data'!C11 -> -3.0448407e-06 | F6: =(1-$G$1*($B$2-$G$2))*B6 -> 5.94170606e-06 | G6: =(1-$G$1*($B$2-$G$2))*C6*$M$2/$M$1 -> 5.507714107e-06 | H6: =(1-$G$1*($B$2-$G$2))*D6 -> -3.046789398e-06 | J6: =-CELL("contents", INDEX($F$6:$F$1203,1204-CELL("row",F6))) -> -5.684222576e-06 | K6: =CELL("contents", INDEX($G$6:$G$1203,1204-CELL("row",G6))) -> -4.367306419e-06 | L6: =-CELL("contents", INDEX($H$6:$H$1203,1204-CELL("row",H6))) -> 1.104191831e-05 | N6: =J6*$B$1 -> -2.844384977e-06 | O6: =N6*$B$1 -> -1.423330242e-06 | P6: =K6*$B$1 -> -2.185400132e-06 | Q6: =P6*$B$1 -> -1.093574226e-06 | R6: =(N6^2+P6)^2*$B$1 -> 2.389879563e-12
A7: =A6+$B$1 -> 0.5004 | B7: ='DF raw data'!A12 -> 6.2536978e-06 | C7: ='DF raw data'!B12 -> -3.1629174e-06 | D7: ='DF raw data'!C12 -> -3.571017e-06 | F7: =(1-$G$1*($B$2-$G$2))*B7 -> 6.257700167e-06 | G7: =(1-$G$1*($B$2-$G$2))*C7*$M$2/$M$1 -> -3.171985445e-06 | H7: =(1-$G$1*($B$2-$G$2))*D7 -> -3.573302451e-06 | J7: =-CELL("contents", INDEX($F$6:$F$1203,1204-CELL("row",F7))) -> -8.281836085e-06 | K7: =CELL("contents", INDEX($G$6:$G$1203,1204-CELL("row",G7))) -> -5.969545286e-06 | L7: =-CELL("contents", INDEX($H$6:$H$1203,1204-CELL("row",H7))) -> 1.068975507e-05 | N7: =J7*$B$1+N6 -> -6.988615754e-06 | O7: =N7*$B$1+O6 -> -4.920433566e-06 | P7: =K7*$B$1+P6 -> -5.172560593e-06 | Q7: =P7*$B$1+Q6 -> -3.681923547e-06 | R7: =(N7^2+P7^2)*$B$1+R6 -> 4.021818464e-11
A8: =A7+$B$1 -> 1.0008 | B8: ='DF raw data'!A13 -> 6.3695747e-06 | C8: ='DF raw data'!B13 -> -5.8509399e-06 | D8: ='DF raw data'!C13 -> -1.3713386e-06 | F8: 6.373651228e-06 | G8: -5.867714473e-06 | H8: -1.372216257e-06 | J8: -1.159305781e-05 | K8: -1.160453896e-05 | L8: 9.903316269e-06 | N8: =J8*$B$1+N7 -> -1.278978188e-05 | O8: =N8*$B$1+O7 -> -1.132044042e-05 | P8: =K8*$B$1+P7 -> -1.097947189e-05 | Q8: =P8*$B$1+Q7 -> -9.176051279e-06 | R8: =(N8^2+P8^2)*$B$1+R7 -> 1.823954973e-10
A9: 1.5012 | B9: ='DF raw data'!A14 -> 6.4605542e-06 | C9: ='DF raw data'!B14 -> -7.1950858e-06 | D9: ='DF raw data'!C14 -> 5.0165208e-06 | F9: 6.464688955e-06 | G9: -7.215714022e-06 | H9: 5.019731373e-06 | J9: -1.175028637e-05 | K9: -3.244778546e-06 | L9: 9.750010215e-06 | N9: -1.866962518e-05 | O9: -2.066272086e-05 | P9: -1.260315907e-05 | Q9: -1.548267208e-05 | R9: 4.362957167e-10
A10: 2.0016 | B10: ='DF raw data'!A15 -> 6.2015665e-06 | C10: ='DF raw data'!B15 -> -1.3320283e-06 | D10: ='DF raw data'!C15 -> -2.1614021e-06 | F10: 6.205535503e-06 | G10: -1.335847209e-06 | H10: -2.162785397e-06 | J10: -1.024773035e-05 | K10: 2.911407908e-06 | L10: 1.048470392e-05 | N10: -2.379758945e-05 | O10: -3.257103462e-05 | P10: -1.114629055e-05 | Q10: -2.106027587e-05 | R10: 7.818544711e-10
A11: 2.502 | B11: ='DF raw data'!A16 -> 6.4235751e-06 | C11: ='DF raw data'!B16 -> -7.6599472e-06 | D11: ='DF raw data'!C16 -> -3.8990629e-06 | F11: =(1-$G$1*($B$2-$G$2))*B11 -> 6.427686188e-06 | G11: -7.681908174e-06 | H11: =(1-$G$1*($B$2-$G$2))*D11 -> -3.9015583e-06 | J11: -6.840193924e-06 | K11: -9.447526409e-06 | L11: 1.078052612e-05 | N11: -2.722042249e-05 | O11: -4.619213404e-05 | P11: -1.587383277e-05 | Q11: -2.900354179e-05 | R11: 1.278716627e-09
A12: 3.0024 | B12: ='DF raw data'!A17 -> 6.4975334e-06 | C12: ='DF raw data'!B17 -> -9.538734e-06 | D12: ='DF raw data'!C17 -> -3.5541786e-06 | F12: 6.501691821e-06 | G12: -9.566081433e-06 | H12: -3.556453274e-06 | J12: -7.38014157e-06 | K12: -8.403008851e-06 | L12: 1.03891388e-05 | N12: -3.091344533e-05 | O12: -6.166122208e-05 | P12: -2.00786984e-05 | Q12: -3.905092247e-05 | R12: 1.958657761e-09
A13: 3.5028 | B13: ='DF raw data'!A18 -> 6.0471079e-06 | C13: ='DF raw data'!B18 -> 3.1133636e-06 | D13: ='DF raw data'!C18 -> -1.705507e-06 | F13: 6.050978049e-06 | G13: 3.122289575e-06 | H13: -1.706598524e-06 | J13: -9.201831806e-06 | K13: -2.059490755e-06 | L13: 1.030869034e-05 | N13: -3.551804197e-05 | O13: -7.943445029e-05 | P13: -2.110926757e-05 | Q13: -4.961399996e-05 | R13: 2.812906855e-09
A14: 4.0032 | B14: ='DF raw data'!A19 -> 6.1702608e-06 | C14: ='DF raw data'!B19 -> -4.1525035e-07 | D14: ='DF raw data'!C19 -> -2.4995632e-06 | F14: 6.174209767e-06 | G14: -4.164408676e-07 | H14: -2.50116292e-06 | J14: -5.916324926e-06 | K14: -8.369556618e-06 | L14: 1.068569247e-05 | N14: -3.847857096e-05 | O14: -9.868912719e-05 | P14: -2.52973937e-05 | Q14: -6.227281577e-05 | R14: 3.874034354e-09
A15: 4.5036 | B15: ='DF raw data'!A20 -> 5.7144284e-06 | C15: ='DF raw data'!B20 -> 1.2179206e-05 | D15: ='DF raw data'!C20 -> -1.0163392e-06 | F15: 5.718085634e-06 | G15: 1.221412363e-05 | H15: -1.016989657e-06 | J15: 1.082022852e-06 | K15: -5.003705651e-06 | L15: 1.085371694e-05 | N15: -3.793712673e-05 | O15: -0.0001176728654 | P15: -2.780124801e-05 | Q15: -7.618456027e-05 | R15: 4.980986696e-09
A16: 5.004 | B16: ='DF raw data'!A21 -> 6.1998976e-06 | C16: ='DF raw data'!B21 -> -4.6248223e-07 | D16: ='DF raw data'!C21 -> 2.9200012e-06 | F16: 6.203865534e-06 | G16: -4.638081609e-07 | H16: 2.921870001e-06 | J16: 9.482381142e-07 | K16: -1.43385399e-05 | L16: 1.022917248e-05 | N16: -3.746262837e-05 | O16: -0.0001364191646 | P16: -3.497625338e-05 | Q16: -9.368667746e-05 | R16: 6.295430823e-09
A17: 5.5044 | B17: ='DF raw data'!A22 -> 6.0382304e-06 | C17: ='DF raw data'!B22 -> 4.2392235e-06 | D17: ='DF raw data'!C22 -> 4.7204881e-06 | F17: 6.042094867e-06 | G17: 4.251377302e-06 | H17: 4.723509212e-06 | J17: -3.758070327e-06 | K17: -9.837581495e-06 | L17: 9.394983744e-06 | N17: -3.934316677e-05 | O17: -0.0001561064853 | P17: -3.989897916e-05 | Q17: -0.0001136521266 | R17: 7.866593403e-09
A18: 6.0048 | B18: ='DF raw data'!A23 -> 6.0849547e-06 | C18: ='DF raw data'!B23 -> 3.1248378e-06 | D18: ='DF raw data'!C23 -> 5.73018e-06 | F18: 6.088849071e-06 | G18: 3.133796671e-06 | H18: 5.733847315e-06 | J18: -8.922306324e-06 | K18: -1.123090281e-06 | L18: 9.105155272e-06 | N18: -4.380788885e-05 | O18: -0.0001780279529 | P18: -4.046097353e-05 | Q18: -0.0001338987978 | R18: 9.646126644e-09
A19: 6.5052 | B19: ='DF raw data'!A24 -> 6.3060957e-06 | C19: ='DF raw data'!B24 -> -3.5658672e-06 | D19: ='DF raw data'!C24 -> 1.9459824e-06 | F19: 6.310131601e-06 | G19: -3.576090497e-06 | H19: 1.947227829e-06 | J19: -1.076523534e-05 | K19: -3.745092138e-06 | L19: 9.376136089e-06 | N19: -4.919481262e-05 | O19: -0.0002026450371 | P19: -4.233501764e-05 | Q19: -0.0001550832406 | R19: 1.175400325e-08
A20: 7.0056 | B20: ='DF raw data'!A25 -> 6.0648631e-06 | C20: ='DF raw data'!B25 -> 2.3625685e-06 | D20: ='DF raw data'!C25 -> -1.7586833e-06 | F20: 6.068744612e-06 | G20: 2.369341955e-06 | H20: -1.759808857e-06 | J20: -1.023463898e-05 | K20: 6.961692628e-06 | L20: 9.837051786e-06 | N20: -5.431622596e-05 | O20: -0.0002298248766 | P20: -3.885138665e-05 | Q20: -0.0001745244745 | R20: 1.398562845e-08
A21: 7.506 | B21: ='DF raw data'!A26 -> 6.5532026e-06 | C21: ='DF raw data'!B26 -> -1.0266846e-05 | D21: ='DF raw data'!C26 -> 2.3146915e-06 | F21: 6.55739665e-06 | G21: -1.029628092e-05 | H21: 2.316172903e-06 | J21: -6.959151008e-06 | K21: -2.182730371e-06 | L21: 9.968381284e-06 | N21: -5.779858513e-05 | O21: -0.0002587472886 | P21: -3.994362492e-05 | Q21: -0.0001945122644 | R21: 1.645568772e-08
A22: 8.0064 | B22: ='DF raw data'!A27 -> 3.7691505e-06 | C22: ='DF raw data'!B27 -> -1.0135821e-05 | D22: ='DF raw data'!C27 -> 3.2662158e-06 | F22: 3.771562756e-06 | G22: -1.016488027e-05 | H22: 3.268306178e-06 | J22: 1.389844331e-07 | K22: 5.452050376e-06 | L22: 1.023077051e-05 | N22: -5.772903732e-05 | O22: -0.0002876348989 | P22: -3.721541892e-05 | Q22: -0.00021313486 | R22: 1.881638935e-08
A23: 8.5068 | B23: ='DF raw data'!A28 -> 6.2638696e-07 | C23: ='DF raw data'!B28 -> -8.0639629e-06 | D23: ='DF raw data'!C28 -> 3.7293651e-06 | F23: 6.267878477e-07 | G23: -8.087082182e-06 | H23: 3.731751894e-06 | J23: 7.224897477e-06 | K23: 6.702502357e-06 | L23: 7.356060468e-06 | N23: -5.411369862e-05 | O23: -0.0003147133936 | P23: -3.386148674e-05 | Q23: -0.000230079148 | R23: 2.085546564e-08
A24: 9.0072 | B24: ='DF raw data'!A29 -> 4.1521585e-06 | C24: ='DF raw data'!B29 -> -6.3850498e-06 | D24: ='DF raw data'!C29 -> 7.1453192e-06 | F24: 4.154815881e-06 | G24: -6.403355659e-06 | H24: 7.149892204e-06 | J24: 7.937837066e-06 | K24: -1.398202169e-06 | L24: -1.491639739e-06 | N24: -5.014160495e-05 | O24: -0.0003398042528 | P24: -3.45611471e-05 | Q24: -0.000247373546 | R24: 2.271127582e-08
A25: 9.5076 | B25: ='DF raw data'!A30 -> 2.5708644e-06 | C25: ='DF raw data'!B30 -> -2.6349448e-06 | D25: ='DF raw data'!C30 -> 1.0569127e-05 | F25: 2.572509753e-06 | G25: -2.642499154e-06 | H25: 1.057589124e-05 | J25: 4.83413897e-06 | K25: -2.523677869e-06 | L25: -1.779936631e-06 | N25: -4.772260181e-05 | O25: -0.0003636846427 | P25: -3.582399551e-05 | Q25: -0.0002652998734 | R25: 2.449310283e-08
A26: 10.008 | B26: ='DF raw data'!A31 -> -4.0239797e-06 | C26: ='DF raw data'!B31 -> 1.2319064e-06 | D26: ='DF raw data'!C31 -> 1.0606997e-05 | F26: -4.026555047e-06 | G26: 1.23543826e-06 | H26: 1.061378548e-05 | J26: 5.389849597e-06 | K26: 3.38134486e-06 | L26: -4.285571712e-07 | N26: -4.502552107e-05 | O26: -0.0003862154134 | P26: -3.413197054e-05 | Q26: -0.0002823795114 | R26: 2.609052423e-08
A27: 10.5084 | B27: ='DF raw data'!A32 -> -4.3243522e-06 | C27: ='DF raw data'!B32 -> -5.3489862e-06 | D27: ='DF raw data'!C32 -> 7.7600125e-06 | F27: -4.327119785e-06 | G27: -5.364321678e-06 | H27: 7.764978908e-06 | J27: 2.405175528e-06 | K27: 6.672663855e-06 | L27: 4.426938328e-06 | N27: -4.382197124e-05 | O27: -0.0004081439279 | P27: -3.079296955e-05 | Q27: -0.0002977883134 | R27: 2.752595772e-08
A28: 11.0088 | B28: ='DF raw data'!A33 -> -1.2593516e-06 | C28: ='DF raw data'!B33 -> -1.4159529e-06 | D28: ='DF raw data'!C33 -> 1.1897945e-05 | F28: -1.260157585e-06 | G28: -1.42001242e-06 | H28: 1.190555968e-05 | J28: -3.280773752e-06 | K28: 1.337706324e-05 | L28: 1.357598908e-05 | N28: -4.546367042e-05 | O28: -0.0004308939485 | P28: -2.40990871e-05 | Q28: -0.0003098474966 | R28: 2.885087247e-08
A29: 11.5092 | B29: ='DF raw data'!A34 -> -3.6931026e-06 | C29: ='DF raw data'!B34 -> -1.8134348e-06 | D29: ='DF raw data'!C34 -> 5.1260022e-06 | F29: -3.695466186e-06 | G29: -1.818633895e-06 | H29: 5.129282841e-06 | J29: -1.149961505e-05 | K29: 1.048195773e-05 | L29: 1.548424858e-05 | N29: -5.121807779e-05 | O29: -0.0004565234747 | P29: -1.885391545e-05 | Q29: -0.0003192819959 | R29: 3.034144479e-08
A30: 12.0096 | B30: ='DF raw data'!A35 -> -4.3632003e-06 | C30: ='DF raw data'!B35 -> -1.480684e-05 | D30: ='DF raw data'!C35 -> -1.8906601e-06 | F30: -4.365992748e-06 | G30: -1.484929103e-05 | H30: -1.891870122e-06 | J30: -1.476775532e-05 | K30: -8.957782232e-06 | L30: 1.279127918e-05 | N30: -5.860786255e-05 | O30: -0.0004858508491 | P30: -2.333638968e-05 | Q30: -0.0003309595253 | R30: 3.233277089e-08
A31: 12.51 | B31: ='DF raw data'!A36 -> 3.9670622e-06 | C31: ='DF raw data'!B36 -> 2.1382798e-06 | D31: ='DF raw data'!C36 -> -8.4910271e-06 | F31: 3.96960112e-06 | G31: 2.144410222e-06 | H31: -8.496461357e-06 | J31: -1.296550362e-05 | K31: -3.204365112e-06 | L31: 1.151848411e-05 | N31: -6.509580056e-05 | O31: -0.0005184247877 | P31: -2.493985399e-05 | Q31: -0.0003434394282 | R31: 3.476444446e-08
A32: 13.0104 | B32: ='DF raw data'!A37 -> 9.5860969e-06 | C32: ='DF raw data'!B37 -> -2.395287e-07 | D32: ='DF raw data'!C37 -> -5.0753334e-07 | F32: 9.592232002e-06 | G32: -2.402154258e-07 | H32: -5.078581613e-07 | J32: -8.66114879e-06 | K32: -4.77997425e-06 | L32: 9.341838953e-06 | N32: -6.942983942e-05 | O32: -0.0005531674793 | P32: -2.73317531e-05 | Q32: -0.0003571162374 | R32: 3.755043514e-08
A33: 13.5108 | B33: ='DF raw data'!A38 -> 4.1435474e-06 | C33: ='DF raw data'!B38 -> 3.561679e-06 | D33: ='DF raw data'!C38 -> -1.1405289e-06 | F33: 4.14619927e-06 | G33: 3.57189029e-06 | H33: -1.141258838e-06 | J33: -5.552307904e-06 | K33: 6.471680285e-06 | L33: 5.120942907e-06 | N33: -7.220821429e-05 | O33: -0.0005893004698 | P33: -2.409332429e-05 | Q33: -0.0003691725369 | R33: 4.045001018e-08
A34: 14.0112 | B34: ='DF raw data'!A39 -> 2.0419655e-07 | C34: ='DF raw data'!B39 -> 5.5211926e-06 | D34: ='DF raw data'!C39 -> -2.3886839e-06 | F34: 2.043272358e-07 | G34: 5.537021791e-06 | H34: -2.390212658e-06 | J34: -4.031918177e-06 | K34: 8.295105377e-06 | L34: 1.230831328e-06 | N34: -7.422578615e-05 | O34: -0.0006264430532 | P34: -1.994245356e-05 | Q34: -0.0003791517407 | R34: 4.340595744e-08
A35: 14.5116 | B35: ='DF raw data'!A40 -> 1.4189698e-06 | C35: ='DF raw data'!B40 -> 1.0136971e-05 | D35: ='DF raw data'!C40 -> 2.0810205e-06 | F35: 1.419877941e-06 | G35: 1.016603357e-05 | H35: 2.082352353e-06 | J35: -4.473547439e-06 | K35: -7.780524698e-06 | L35: 6.854653672e-06 | N35: -7.646434929e-05 | O35: -0.0006647058135 | P35: -2.383582811e-05 | Q35: -0.0003910791891 | R35: 4.661599513e-08
A36: 15.012 | B36: ='DF raw data'!A41 -> 5.6971635e-07 | C36: ='DF raw data'!B41 -> 5.6923777e-06 | D36: ='DF raw data'!C41 -> 8.6059817e-06 | F36: 5.700809685e-07 | G36: 5.708697677e-06 | H36: 8.611489528e-06 | J36: -5.953861934e-06 | K36: 1.642487529e-06 | L36: 5.043624555e-06 | N36: -7.94436618e-05 | O36: -0.0007044594219 | P36: -2.301392735e-05 | Q36: -0.0004025953583 | R36: 5.003919963e-08
A37: 15.5124 | B37: ='DF raw data'!A42 -> -8.0890239e-08 | C37: ='DF raw data'!B42 -> -3.3359228e-07 | D37: ='DF raw data'!C42 -> 1.3277744e-05 | F37: -8.094200875e-08 | G37: -3.34548685e-07 | H37: 1.328624176e-05 | J37: -9.766092201e-06 | K37: -4.877521718e-06 | L37: 1.181437336e-05 | N37: -8.433061434e-05 | O37: -0.0007466584613 | P37: -2.545463922e-05 | Q37: -0.0004153328598 | R37: 5.392209905e-08
A38: 16.0128 | B38: ='DF raw data'!A43 -> -2.0390941e-07 | C38: ='DF raw data'!B43 -> 1.1298053e-05 | D38: ='DF raw data'!C43 -> 7.3616197e-06 | F38: -2.04039912e-07 | G38: 1.133044438e-05 | H38: 7.366331137e-06 | J38: -1.451267617e-05 | K38: -7.923166481e-06 | L38: 1.102999868e-05 | N38: -9.159275749e-05 | O38: -0.0007924914772 | P38: -2.941939173e-05 | Q38: -0.0004300543234 | R38: 5.855316786e-08
A39: 16.5132 | B39: ='DF raw data'!A44 -> 2.1749736e-06 | C39: ='DF raw data'!B44 -> 1.2887037e-05 | D39: ='DF raw data'!C44 -> -9.2509327e-07 | F39: 2.176365583e-06 | G39: 1.292398398e-05 | H39: -9.256853297e-07 | J39: -1.346043217e-05 | K39: -1.296444665e-05 | L39: 6.144466143e-06 | N39: -9.832835775e-05 | O39: -0.0008416949874 | P39: -3.590680083e-05 | Q39: -0.0004480220865 | R39: 6.403643311e-08
A40: 17.0136 | B40: ='DF raw data'!A45 -> 6.0854886e-06 | C40: ='DF raw data'!B45 -> -1.1863273e-06 | D40: ='DF raw data'!C45 -> -4.1753292e-06 | F40: 6.089383313e-06 | G40: -1.189728486e-06 | H40: -4.178001411e-06 | J40: -4.536733152e-06 | K40: -5.121167149e-07 | L40: 4.916890898e-06 | N40: -0.000100598539 | O40: -0.0008920344963 | P40: -3.616306404e-05 | Q40: -0.0004661180838 | R40: 6.975492087e-08
A41: 17.514 | B41: ='DF raw data'!A46 -> 7.3778251e-06 | C41: ='DF raw data'!B46 -> 2.827564e-06 | D41: ='DF raw data'!C46 -> -2.2321437e-07 | F41: 7.382546908e-06 | G41: 2.835670591e-06 | H41: -2.233572272e-07 | J41: -1.241098895e-07 | K41: -2.797450729e-06 | L41: 1.554824051e-06 | N41: -0.0001006606436 | O41: -0.0009424050824 | P41: -3.756290838e-05 | Q41: -0.0004849145631 | R41: 7.553130691e-08
A42: 18.0144 | B42: ='DF raw data'!A47 -> 6.983269e-06 | C42: ='DF raw data'!B47 -> -6.7993392e-06 | D42: ='DF raw data'!C47 -> 3.6731938e-06 | F42: 6.987738292e-06 | G42: -6.818832822e-06 | H42: 3.675544644e-06 | J42: -2.586202311e-06 | K42: -6.960941982e-06 | L42: -3.862281179e-06 | N42: -0.0001019547792 | O42: -0.0009934232539 | P42: -4.104616375e-05 | Q42: -0.0005054540635 | R42: 8.157592102e-08
A43: 18.5148 | B43: ='DF raw data'!A48 -> 7.4200775e-06 | C43: ='DF raw data'!B48 -> -4.8940024e-06 | D43: ='DF raw data'!C48 -> -3.2519572e-06 | F43: 7.42482635e-06 | G43: -4.908033445e-06 | H43: -3.254038453e-06 | J43: -1.012075814e-05 | K43: -1.278032629e-05 | L43: -1.76681784e-06 | N43: -0.0001070192066 | O43: -0.001046975665 | P43: -4.744143902e-05 | Q43: -0.0005291937596 | R43: 8.84333029e-08
A44: 19.0152 | B44: ='DF raw data'!A49 -> 5.3076578e-06 | C44: ='DF raw data'!B49 -> 3.215569e-06 | D44: ='DF raw data'!C49 -> -2.2526472e-06 | F44: 5.311054701e-06 | G44: 3.224787997e-06 | H44: -2.254088894e-06 | J44: -1.093141463e-05 | K44: -1.415462813e-06 | L44: 4.898243471e-06 | N44: -0.0001124892865 | O44: -0.001103265304 | P44: -4.814973662e-05 | Q44: -0.0005532878878 | R44: 9.592541016e-08
A45: 19.5156 | B45: ='DF raw data'!A50 -> 4.2172392e-06 | C45: ='DF raw data'!B50 -> 2.6326265e-06 | D45: ='DF raw data'!C50 -> 2.5890279e-06 | F45: 4.219938233e-06 | G45: 2.640174208e-06 | H45: 2.590684878e-06 | J45: -1.047996689e-05 | K45: -9.088114425e-06 | L45: 7.964887268e-06 | N45: -0.0001177334619 | O45: -0.001162179128 | P45: -5.269742907e-05 | Q45: -0.0005796576813 | R45: 1.04251159e-07
A46: 20.016 | B46: ='DF raw data'!A51 -> 1.3265883e-06 | C46: ='DF raw data'!B51 -> 7.3145852e-06 | D46: ='DF raw data'!C51 -> -7.665024e-06 | F46: 1.327437317e-06 | G46: 7.335556026e-06 | H46: -7.669929615e-06 | J46: -6.679692769e-06 | K46: 1.307563652e-06 | L46: 6.815627812e-06 | N46: -0.0001210759802 | O46: -0.001222765549 | P46: -5.204312422e-05 | Q46: -0.0006057000606 | R46: 1.12942046e-07
A47: 20.5164 | B47: ='DF raw data'!A52 -> 1.647453e-06 | C47: ='DF raw data'!B52 -> -6.4973942e-06 | D47: ='DF raw data'!C52 -> -5.0138433e-06 | F47: 1.64850737e-06 | G47: -6.516022149e-06 | H47: -5.01705216e-06 | J47: 1.638311249e-07 | K47: -1.082897779e-05 | L47: 6.560096476e-06 | N47: -0.0001209939991 | O47: -0.001283310946 | P47: -5.746194471e-05 | Q47: -0.0006344540178 | R47: 1.21919934e-07
A48: 21.0168 | B48: ='DF raw data'!A53 -> 9.9157273e-07 | C48: ='DF raw data'!B53 -> 7.541052e-07 | D48: ='DF raw data'!C53 -> -1.0541423e-06 | F48: 9.922073365e-07 | G48: 7.562672103e-07 | H48: -1.054816951e-06 | J48: -7.892260916e-07 | K48: -6.902174478e-07 | L48: 1.041004917e-05 | N48: -0.0001213889278 | O48: -0.001344053965 | P48: -5.780732952e-05 | Q48: -0.0006633808055 | R48: 1.309656444e-07
A49: 21.5172 | B49: ='DF raw data'!A54 -> 3.1622646e-06 | C49: ='DF raw data'!B54 -> 2.0239308e-06 | D49: ='DF raw data'!C54 -> 3.9690931e-06 | F49: 3.164288449e-06 | G49: 2.029733385e-06 | H49: 3.97163332e-06 | J49: -2.971726689e-06 | K49: -5.243760017e-06 | L49: 1.038181311e-05 | N49: -0.0001228759799 | O49: -0.001405541106 | P49: -6.043130703e-05 | Q49: -0.0006936206315 | R49: 1.403483692e-07
A50: 22.0176 | B50: ='DF raw data'!A55 -> 9.2745768e-06 | C50: ='DF raw data'!B55 -> 3.5464686e-06 | D50: ='DF raw data'!C55 -> 8.4012609e-06 | F50: 9.280512529e-06 | G50: 3.556636282e-06 | H50: 8.406637707e-06 | J50: 9.951930762e-07 | K50: 2.835134258e-06 | L50: 1.014020058e-05 | N50: -0.0001223779853 | O50: -0.001466779049 | P50: -5.901260585e-05 | Q50: -0.0007231505395 | R50: 1.495851822e-07
A51: 22.518 | B51: ='DF raw data'!A56 -> 1.1299021e-05 | C51: ='DF raw data'!B56 -> -3.3639353e-07 | D51: ='DF raw data'!C56 -> 9.2998744e-06 | F51: 1.130625237e-05 | G51: -3.373579661e-07 | H51: 9.30582632e-06 | J51: -1.006701177e-06 | K51: -4.958611336e-06 | L51: 3.472875519e-06 | N51: -0.0001228817385 | O51: -0.001528269071 | P51: -6.149389496e-05 | Q51: -0.0007539220845 | R51: 1.590334452e-07
A52: 23.0184 | B52: ='DF raw data'!A57 -> 1.0944781e-05 | C52: ='DF raw data'!B57 -> 3.798646e-06 | D52: ='DF raw data'!C57 -> 4.1954431e-06 | F52: 1.095178566e-05 | G52: 3.809536671e-06 | H52: 4.198128184e-06 | J52: -5.338306031e-06 | K52: -4.148795843e-06 | L52: 3.242450441e-06 | N52: -0.0001255530269 | O52: -0.001591095806 | P52: -6.35699524e-05 | Q52: -0.0007857324887 | R52: 1.689437178e-07
A53: 23.5188 | B53: ='DF raw data'!A58 -> 7.6831375e-06 | C53: ='DF raw data'!B58 -> 1.6155484e-07 | D53: ='DF raw data'!C58 -> -6.110854e-06 | F53: 7.688054708e-06 | G53: 1.620180157e-07 | H53: -6.114764947e-06 | J53: 1.043016203e-06 | K53: 8.665088682e-06 | L53: 1.297668577e-05 | N53: -0.0001250311016 | O53: -0.001653661369 | P53: -5.923394203e-05 | Q53: -0.0008153731533 | R53: 1.785220925e-07
A54: 24.0192 | B54: ='DF raw data'!A59 -> 1.3805886e-06 | C54: ='DF raw data'!B59 -> -4.0894342e-06 | D54: ='DF raw data'!C59 -> -5.8291962e-06 | F54: 1.381472177e-06 | G54: -4.101158557e-06 | H54: -5.832926886e-06 | J54: 4.607646808e-06 | K54: 3.682820215e-06 | L54: 1.22074938e-05 | N54: -0.0001227254351 | O54: -0.001715073177 | P54: -5.739105879e-05 | Q54: -0.0008440916391 | R54: 1.877070676e-07
A55: 24.5196 | B55: ='DF raw data'!A60 -> -1.734741e-06 | C55: ='DF raw data'!B60 -> 6.9924931e-06 | D55: ='DF raw data'!C60 -> 5.5118162e-06 | F55: -1.735851234e-06 | G55: 7.012540492e-06 | H55: 5.515343762e-06 | J55: -4.873254088e-07 | K55: 3.306143876e-06 | L55: 3.077823047e-06 | N55: -0.0001229692927 | O55: -0.001776607011 | P55: -5.573666439e-05 | Q55: -0.000871982266 | R55: 1.968283702e-07
A56: 25.02 | B56: ='DF raw data'!A61 -> 3.0726867e-06 | C56: ='DF raw data'!B61 -> -2.17569e-06 | D56: ='DF raw data'!C61 -> 8.183496e-06 | F56: 3.074653219e-06 | G56: -2.181927676e-06 | H56: 8.188733437e-06 | J56: -3.324055235e-06 | K56: 1.123972202e-05 | L56: 6.344790469e-06 | N56: -0.00012463265 | O56: -0.001838973189 | P56: -5.011230749e-05 | Q56: -0.0008970584646 | R56: 2.058578584e-07
A57: 25.5204 | B57: ='DF raw data'!A62 -> 3.7594305e-07 | C57: ='DF raw data'!B62 -> -1.1123714e-05 | D57: ='DF raw data'!C62 -> 1.504862e-06 | F57: 3.761836536e-07 | G57: -1.115560555e-05 | H57: 1.505825112e-06 | J57: -5.673201627e-06 | K57: 1.40109213e-05 | L57: 4.875800917e-06 | N57: -0.0001274715201 | O57: -0.001902759938 | P57: -4.310124247e-05 | Q57: -0.0009186263264 | R57: 2.149184538e-07
A58: 26.0208 | B58: ='DF raw data'!A63 -> -6.6238035e-06 | C58: ='DF raw data'!B63 -> 9.7409584e-06 | D58: ='DF raw data'!C63 -> 1.4690561e-06 | F58: -6.628042734e-06 | G58: 9.768885608e-06 | H58: 1.469996296e-06 | J58: -5.957736212e-06 | K58: -3.468104889e-06 | L58: 8.82711404e-06 | N58: -0.0001304527713 | O58: -0.001968038505 | P58: -4.483668216e-05 | Q58: -0.0009410626021 | R58: 2.244401919e-07
A59: 26.5212 | B59: ='DF raw data'!A64 -> -5.3792601e-06 | C59: ='DF raw data'!B64 -> 1.1464036e-05 | D59: ='DF raw data'!C64 -> 3.3588587e-06 | F59: -5.382702826e-06 | G59: 1.149690325e-05 | H59: 3.36100837e-06 | J59: -2.566164695e-06 | K59: 1.704039895e-06 | L59: 1.570921247e-05 | N59: -0.0001317368801 | O59: -0.002033959639 | P59: -4.39839806e-05 | Q59: -0.000963072186 | R59: 2.340925057e-07
A60: 27.0216 | B60: ='DF raw data'!A65 -> -2.8408458e-06 | C60: ='DF raw data'!B65 -> 4.0524242e-06 | D60: ='DF raw data'!C65 -> 9.5316154e-06 | F60: -2.842663941e-06 | G60: 4.06404245e-06 | H60: 9.537715634e-06 | J60: -3.174641071e-06 | K60: -1.923806462e-06 | L60: 1.18117767e-05 | N60: -0.0001333254705 | O60: -0.002100675705 | P60: -4.494665335e-05 | Q60: -0.0009855634913 | R60: 2.439983654e-07
A61: 27.522 | B61: ='DF raw data'!A66 -> -1.5942334e-06 | C61: ='DF raw data'!B66 -> -2.5059203e-06 | D61: ='DF raw data'!C66 -> 1.938861e-06 | F61: -1.595253709e-06 | G61: -2.513104743e-06 | H61: 1.940101871e-06 | J61: -3.774434493e-06 | K61: -2.079953855e-05 | L61: 1.090606242e-05 | N61: -0.0001352141975 | O61: -0.002168336889 | P61: -5.535474244e-05 | Q61: -0.001013263004 | R61: 2.546804175e-07
A62: 28.0224 | B62: ='DF raw data'!A67 -> -3.3431354e-06 | C62: ='DF raw data'!B67 -> -3.8702133e-06 | D62: ='DF raw data'!C67 -> -8.3153236e-06 | F62: -3.345275007e-06 | G62: -3.881309154e-06 | H62: -8.320645407e-06 | J62: 1.643653365e-07 | K62: -1.514353922e-05 | L62: 9.192795626e-06 | N62: -0.0001351319491 | O62: -0.002235956916 | P62: -6.293256947e-05 | Q62: -0.001044754462 | R62: 2.65799882e-07
A63: 28.5228 | B63: ='DF raw data'!A68 -> -1.0307438e-05 | C63: ='DF raw data'!B68 -> 6.1788537e-06 | D63: ='DF raw data'!C68 -> -3.208497e-06 | F63: -1.031403476e-05 | G63: 6.196568397e-06 | H63: -3.210550438e-06 | J63: 7.558767817e-07 | K63: -1.632079575e-05 | L63: 3.596411131e-06 | N63: -0.0001347537083 | O63: -0.002303387672 | P63: -7.109949566e-05 | Q63: -0.00108033265 | R63: 2.774160175e-07
A64: 29.0232 | B64: ='DF raw data'!A69 -> -1.5756061e-05 | C64: ='DF raw data'!B69 -> 7.8177391e-06 | D64: ='DF raw data'!C69 -> -5.7305633e-06 | F64: -1.576614488e-05 | G64: 7.840152462e-06 | H64: -5.734230861e-06 | J64: -5.0408802e-06 | K64: -1.565463534e-06 | L64: 6.607047306e-06 | N64: -0.0001372761648 | O64: -0.002372080665 | P64: -7.188285361e-05 | Q64: -0.00111630283 | R64: 2.894315673e-07
A65: 29.5236 | B65: ='DF raw data'!A70 -> -1.5251769e-05 | C65: ='DF raw data'!B70 -> 5.2604732e-06 | D65: ='DF raw data'!C70 -> -6.4467522e-06 | F65: -1.526153013e-05 | G65: 5.275554912e-06 | H65: -6.450878121e-06 | J65: -8.902736007e-06 | K65: -9.313447405e-06 | L65: 5.752279504e-06 | N65: -0.0001417310939 | O65: -0.002443002904 | P65: -7.654330269e-05 | Q65: -0.001154605098 | R65: 3.02415236e-07
A66: 30.024 | B66: ='DF raw data'!A71 -> -7.4572372e-06 | C66: ='DF raw data'!B71 -> 4.3067371e-06 | D66: ='DF raw data'!C71 -> -2.8173588e-06 | F66: -7.462009832e-06 | G66: 4.319084462e-06 | H66: -2.81916191e-06 | J66: -6.917539594e-06 | K66: 4.236254569e-06 | L66: 8.101810142e-06 | N66: -0.0001451926307 | O66: -0.002515657297 | P66: -7.442348091e-05 | Q66: -0.001191846608 | R66: 3.157357612e-07
A67: 30.5244 | B67: ='DF raw data'!A72 -> -2.3636542e-06 | C67: ='DF raw data'!B72 -> -6.8544473e-06 | D67: ='DF raw data'!C72 -> -4.0104695e-07 | F67: -2.365166939e-06 | G67: -6.874098916e-06 | H67: -4.0130362e-07 | J67: -8.245702374e-06 | K67: 1.281605242e-06 | L67: 4.570521163e-06 | N67: -0.0001493187802 | O67: -0.002590376414 | P67: -7.378216564e-05 | Q67: -0.001228767204 | R67: 3.296168102e-07
A68: 31.0248 | B68: ='DF raw data'!A73 -> -5.6776303e-06 | C68: ='DF raw data'!B73 -> -7.7361337e-06 | D68: ='DF raw data'!C73 -> -1.7190839e-06 | F68: -5.681263983e-06 | G68: -7.7583131e-06 | H68: -1.720184114e-06 | J68: -6.797246555e-06 | K68: -1.626884423e-06 | L68: 3.758974505e-06 | N68: -0.0001527201223 | O68: -0.002666797564 | P68: -7.459625861e-05 | Q68: -0.001266095172 | R68: 3.440723842e-07
A69: 31.5252 | B69: ='DF raw data'!A74 -> -8.1866083e-06 | C69: ='DF raw data'!B74 -> 3.7428722e-06 | D69: ='DF raw data'!C74 -> -6.7996216e-06 | F69: -8.191847729e-06 | G69: 3.753602968e-06 | H69: -6.803973358e-06 | J69: 9.105006477e-07 | K69: 3.290222159e-06 | L69: 8.551004042e-06 | N69: -0.0001522645078 | O69: -0.002742990723 | P69: -7.294983144e-05 | Q69: -0.001302599267 | R69: 3.583368658e-07
A70: 32.0256 | B70: ='DF raw data'!A75 -> -6.8090999e-06 | C70: ='DF raw data'!B75 -> 8.165317e-06 | D70: ='DF raw data'!C75 -> -6.5874411e-07 | F70: -6.813457724e-06 | G70: 8.188726863e-06 | H70: -6.591657062e-07 | J70: -1.749229691e-06 | K70: 3.379739571e-06 | L70: 7.522151298e-06 | N70: -0.0001531398223 | O70: -0.00281962189 | P70: -7.125860976e-05 | Q70: -0.001338257076 | R70: 3.72613075e-07
A71: 32.526 | B71: ='DF raw data'!A76 -> -4.0980049e-06 | C71: ='DF raw data'!B76 -> 8.6738459e-07 | D71: ='DF raw data'!C76 -> 2.7361168e-07 | F71: -4.100627623e-06 | G71: =(1-$G$1*($B$2-$G$2))*C71*$M$2/$M$1 -> 8.698713709e-07 | H71: 2.737867915e-07 | J71: =-CELL("contents", INDEX($F$6:$F$1203,1204-CELL("row",F71))) -> -5.584234324e-06 | K71: =CELL("contents", INDEX($G$6:$G$1203,1204-CELL("row",G71))) -> -1.327863284e-05 | L71: =-CELL("contents", INDEX($H$6:$H$1203,1204-CELL("row",H71))) -> 1.044874192e-05 | N71: -0.0001559341732 | O71: -0.002897651351 | P71: -7.790323763e-05 | Q71: -0.001377239856 | R71: 3.878174191e-07
A72: =A71+$B$1 -> 33.0264 | B72: ='DF raw data'!A77 -> -3.4899174e-06 | C72: ='DF raw data'!B77 -> -5.9606177e-06 | D72: ='DF raw data'!C77 -> -2.2533793e-06 | F72: -3.492150947e-06 | G72: -5.977706717e-06 | H72: -2.254821463e-06 | J72: -2.68318464e-06 | K72: 1.675052225e-07 | L72: 8.105605169e-06 | N72: =J72*$B$1+N71 -> -0.0001572768388 | O72: =N72*$B$1+O71 -> -0.002976352681 | P72: =K72*$B$1+P71 -> -7.781941802e-05 | Q72: =P72*$B$1+Q71 -> -0.001416180693 | R72: =(N72^2+P72^2)*$B$1+R71 -> 4.032256688e-07
A73: 33.5268 | B73: ='DF raw data'!A78 -> -6.9892567e-06 | C73: ='DF raw data'!B78 -> -5.9656891e-06 | D73: ='DF raw data'!C78 -> 2.3198165e-06 | F73: -6.993729824e-06 | G73: -5.982792657e-06 | H73: 2.321301183e-06 | J73: -1.913872595e-06 | K73: -1.078937156e-05 | L73: 1.062755328e-05 | N73: -0.0001582345406 | O73: -0.003055533245 | P73: -8.321841955e-05 | Q73: -0.00145782319 | R73: 4.192201918e-07
A74: 34.0272 | B74: ='DF raw data'!A79 -> -8.2886008e-06 | C74: ='DF raw data'!B79 -> -2.2951067e-06 | D74: ='DF raw data'!C79 -> -1.4920606e-07 | F74: -8.293905505e-06 | G74: -2.301686743e-06 | H74: -1.493015519e-07 | J74: -4.532392176e-06 | K74: -1.305383219e-05 | L74: 1.553839021e-05 | N74: -0.0001605025497 | O74: -0.003135848721 | P74: -8.975055718e-05 | Q74: -0.001502734369 | R74: 4.361418337e-07
A75: 34.5276 | B75: ='DF raw data'!A80 -> -9.9810995e-06 | C75: ='DF raw data'!B80 -> 1.0548726e-05 | D75: ='DF raw data'!C80 -> -7.0620454e-06 | F75: =(1-$G$1*($B$2-$G$2))*B75 -> -9.987487404e-06 | G75: 1.057896907e-05 | H75: =(1-$G$1*($B$2-$G$2))*D75 -> -7.066565109e-06 | J75: -8.797471981e-06 | K75: -1.04842553e-06 | L75: 1.036383161e-05 | N75: -0.0001649048047 | O75: -0.003218367085 | P75: -9.027518931e-05 | Q75: -0.001547908073 | R75: 4.538275732e-07
A76: 35.028 | B76: ='DF raw data'!A81 -> -1.1087004e-05 | C76: ='DF raw data'!B81 -> -2.1866294e-06 | D76: ='DF raw data'!C81 -> -4.693452e-06 | F76: -1.109409968e-05 | G76: -2.19289844e-06 | H76: -4.696455809e-06 | J76: -9.982364627e-06 | K76: 2.157387622e-06 | L76: 5.348236382e-06 | N76: -0.0001698999799 | O76: -0.003303385035 | P76: -8.919563255e-05 | Q76: -0.001592541568 | R76: 4.72253234e-07
A77: 35.5284 | B77: ='DF raw data'!A82 -> -6.1512842e-06 | C77: ='DF raw data'!B82 -> -1.7200369e-06 | D77: ='DF raw data'!C82 -> 9.9385966e-07 | F77: -6.155221022e-06 | G77: -1.724968225e-06 | H77: 9.944957302e-07 | J77: -1.161610055e-05 | K77: -4.421233485e-06 | L77: 8.997467696e-06 | N77: -0.0001757126766 | O77: -0.003391311658 | P77: -9.140801778e-05 | Q77: -0.00163828214 | R77: 4.918841114e-07
A78: 36.0288 | B78: ='DF raw data'!A83 -> 7.8424932e-07 | C78: ='DF raw data'!B83 -> 8.3687928e-06 | D78: ='DF raw data'!C83 -> 3.2811951e-07 | F78: 7.847512396e-07 | G78: 8.392786026e-06 | H78: 3.283295065e-07 | J78: -1.655437803e-05 | K78: 7.112362763e-06 | L78: 1.655172633e-05 | N78: -0.0001839964874 | O78: -0.003483383501 | P78: -8.784899146e-05 | Q78: -0.001682241775 | R78: 5.126868166e-07
A79: 36.5292 | B79: ='DF raw data'!A84 -> 7.2651515e-06 | C79: ='DF raw data'!B84 -> -4.7767176e-06 | D79: ='DF raw data'!C84 -> 9.8041642e-07 | F79: 7.269801197e-06 | G79: -4.79041239e-06 | H79: 9.810438865e-07 | J79: -1.432732762e-05 | K79: -1.302131422e-05 | L79: 1.482627475e-05 | N79: -0.0001911658821 | O79: -0.003579042908 | P79: -9.436485709e-05 | Q79: -0.00172946195 | R79: 5.354295566e-07
A80: 37.0296 | B80: ='DF raw data'!A85 -> 8.1758144e-06 | C80: ='DF raw data'!B85 -> -8.9316391e-06 | D80: ='DF raw data'!C85 -> 2.1179578e-06 | F80: 8.181046921e-06 | G80: -8.957245999e-06 | H80: 2.119313293e-06 | J80: -9.938682789e-06 | K80: 4.702316944e-06 | L80: 1.844087261e-05 | N80: -0.000196139199 | O80: -0.003677190963 | P80: -9.20118177e-05 | Q80: -0.001775504663 | R80: 5.589167113e-07
A81: 37.53 | B81: ='DF raw data'!A86 -> 1.3432089e-06 | C81: ='DF raw data'!B86 -> 3.3599846e-08 | D81: ='DF raw data'!C86 -> 5.2452563e-08 | F81: 1.344068554e-06 | G81: 3.369617634e-08 | H81: 5.248613264e-08 | J81: -1.685908491e-05 | K81: -9.18258259e-06 | L81: 9.987094252e-06 | N81: -0.0002045754851 | O81: -0.003779560536 | P81: -9.660678202e-05 | Q81: -0.001823846697 | R81: 5.845291846e-07
A82: 38.0304 | B82: ='DF raw data'!A87 -> -1.2427308e-06 | C82: ='DF raw data'!B87 -> -2.01384e-06 | D82: ='DF raw data'!C87 -> 6.1257774e-06 | F82: -1.243526148e-06 | G82: -2.019613654e-06 | H82: 6.129697898e-06 | J82: -2.034970848e-05 | K82: 1.420766475e-06 | L82: 3.50037981e-06 | N82: -0.0002147584792 | O82: -0.003887025679 | P82: -9.589583048e-05 | Q82: -0.001871832971 | R82: 6.122099189e-07
A83: 38.5308 | B83: ='DF raw data'!A88 -> 1.1120558e-06 | C83: ='DF raw data'!B88 -> 6.1117403e-06 | D83: ='DF raw data'!C88 -> 5.0191165e-06 | F83: 1.112767516e-06 | G83: 6.129262584e-06 | H83: 5.022328735e-06 | J83: -1.884227734e-05 | K83: -4.658876256e-06 | L83: 1.797901921e-06 | N83: -0.0002241871548 | O83: -0.003999208931 | P83: -9.822713216e-05 | Q83: -0.001920985828 | R83: 6.421881072e-07
A84: 39.0312 | B84: ='DF raw data'!A89 -> -1.0285319e-06 | C84: ='DF raw data'!B89 -> 5.7696338e-06 | D84: ='DF raw data'!C89 -> -5.0094496e-07 | F84: -1.02919016e-06 | G84: 5.786175269e-06 | H84: -5.012655648e-07 | J84: -1.216406402e-05 | K84: 1.012779526e-06 | L84: 1.0930429e-06 | N84: -0.0002302740525 | O84: -0.004114438067 | P84: -9.772033728e-05 | Q84: -0.001969885084 | R84: 6.735008391e-07
A85: 39.5316 | B85: ='DF raw data'!A90 -> -6.5617933e-06 | C85: ='DF raw data'!B90 -> -8.254633e-06 | D85: ='DF raw data'!C90 -> -2.6850491e-06 | F85: -6.565992848e-06 | G85: -8.278298931e-06 | H85: -2.686767531e-06 | J85: -6.05198009e-06 | K85: -9.714878212e-06 | L85: 1.247834203e-05 | N85: -0.0002333024633 | O85: -0.00423118262 | P85: -0.0001025816623 | Q85: -0.002021216948 | R85: 7.060033387e-07
A86: 40.032 | B86: ='DF raw data'!A91 -> -8.4201638e-06 | C86: ='DF raw data'!B91 -> 1.532502e-05 | D86: ='DF raw data'!C91 -> -2.7670437e-06 | F86: -8.425552705e-06 | G86: 1.536895664e-05 | H86: -2.768814608e-06 | J86: 1.29883022e-06 | K86: -1.596633442e-05 | L86: 1.338026089e-05 | N86: -0.0002326525286 | O86: -0.004347601945 | P86: -0.0001105712161 | Q86: -0.002076546785 | R86: 7.392064765e-07
A87: 40.5324 | B87: ='DF raw data'!A92 -> -7.520649e-06 | C87: ='DF raw data'!B92 -> 1.9306676e-06 | D87: ='DF raw data'!C92 -> -3.0061726e-06 | F87: -7.525462215e-06 | G87: 1.9362028e-06 | H87: -3.00809655e-06 | J87: 4.624211102e-06 | K87: 7.530919228e-06 | L87: 7.397017563e-06 | N87: -0.0002303385734 | O87: -0.004462863367 | P87: -0.0001068027441 | Q87: -0.002129990878 | R87: 7.714636038e-07
A88: 41.0328 | B88: ='DF raw data'!A93 -> -6.7777278e-06 | C88: ='DF raw data'!B93 -> -8.6667869e-06 | D88: ='DF raw data'!C93 -> -1.5719995e-06 | F88: -6.782065546e-06 | G88: -8.691634471e-06 | H88: -1.57300558e-06 | J88: 6.031321777e-06 | K88: 4.416365569e-06 | L88: 1.018787907e-06 | N88: -0.0002273205 | O88: -0.004576614545 | P88: -0.0001045927948 | Q88: -0.002182329112 | R88: 8.027957807e-07
A89: 41.5332 | B89: ='DF raw data'!A94 -> -1.2859846e-06 | C89: ='DF raw data'!B94 -> -2.9475636e-06 | D89: ='DF raw data'!C94 -> 6.0623515e-06 | F89: -1.28680763e-06 | G89: -2.956014229e-06 | H89: 6.066231405e-06 | J89: 5.604786969e-06 | K89: 1.234913861e-05 | L89: 4.133447715e-06 | N89: -0.0002245158646 | O89: -0.004688962284 | P89: -9.841328581e-05 | Q89: -0.002231575121 | R89: 8.328660919e-07
A90: 42.0336 | B90: ='DF raw data'!A95 -> 7.5222038e-06 | C90: ='DF raw data'!B95 -> -2.9795888e-06 | D90: ='DF raw data'!C95 -> 5.5312498e-06 | F90: 7.52701801e-06 | G90: -2.988131244e-06 | H90: 5.5347898e-06 | J90: -5.227255804e-07 | K90: -5.081179633e-06 | L90: 9.199588471e-06 | N90: -0.0002247774365 | O90: -0.004801440913 | P90: -0.0001009559081 | Q90: -0.002282093457 | R90: 8.632488744e-07
A91: 42.534 | B91: ='DF raw data'!A96 -> 7.7350014e-06 | C91: ='DF raw data'!B96 -> 5.581634e-06 | D91: ='DF raw data'!C96 -> -4.0034856e-06 | F91: 7.739951801e-06 | G91: 5.597636476e-06 | H91: -4.006047831e-06 | J91: -5.63446235e-06 | K91: -3.082464524e-06 | L91: 1.209487977e-05 | N91: -0.0002275969214 | O91: -0.004915330413 | P91: -0.0001024983733 | Q91: -0.002333383643 | R91: 8.944269345e-07
A92: 43.0344 | B92: ='DF raw data'!A97 -> 6.0471743e-06 | C92: ='DF raw data'!B97 -> -3.017482e-06 | D92: ='DF raw data'!C97 -> -1.3305415e-05 | F92: 6.051044492e-06 | G92: -3.026133084e-06 | H92: -1.331393047e-05 | J92: 3.527860286e-07 | K92: 4.317209201e-06 | L92: 9.542095835e-06 | N92: -0.0002274203873 | O92: -0.005029131575 | P92: -0.0001003380419 | Q92: -0.002383592799 | R92: 9.253455272e-07
A93: 43.5348 | B93: ='DF raw data'!A98 -> 6.7950355e-06 | C93: ='DF raw data'!B98 -> -3.3453111e-06 | D93: ='DF raw data'!C98 -> -1.2014732e-05 | F93: 6.799384323e-06 | G93: -3.354902066e-06 | H93: -1.202242143e-05 | J93: 3.967978482e-06 | K93: 1.103325277e-05 | L93: 1.172267071e-05 | N93: -0.0002254348109 | O93: -0.005141939154 | P93: -9.481700218e-05 | Q93: -0.002431039227 | R93: 9.552750105e-07
A94: 44.0352 | B94: ='DF raw data'!A99 -> 6.3999455e-06 | C94: ='DF raw data'!B99 -> -5.3552581e-06 | D94: ='DF raw data'!C99 -> -6.3721445e-06 | F94: 6.404041465e-06 | G94: -5.370611559e-06 | H94: -6.376222672e-06 | J94: 6.235772342e-06 | K94: -2.38692452e-06 | L94: 6.423040717e-06 | N94: -0.0002223144304 | O94: -0.005253185295 | P94: -9.601141921e-05 | Q94: -0.002479083341 | R94: 9.846194166e-07
A95: 44.5356 | B95: ='DF raw data'!A100 -> 5.6930025e-06 | C95: ='DF raw data'!B100 -> 7.5130396e-07 | D95: ='DF raw data'!C100 -> -6.3555735e-06 | F95: 5.696646022e-06 | G95: 7.534579392e-07 | H95: -6.359641067e-06 | J95: 9.17522849e-06 | K95: -1.216573731e-05 | L95: 4.352949106e-06 | N95: -0.0002177231461 | O95: -0.005362133957 | P95: -0.0001020991542 | Q95: -0.002530173758 | R95: 1.01355635e-06
A96: 45.036 | B96: ='DF raw data'!A101 -> 4.8151137e-06 | C96: ='DF raw data'!B101 -> 8.9366595e-06 | D96: ='DF raw data'!C101 -> -5.1213947e-06 | F96: 4.818195373e-06 | G96: 8.962280793e-06 | H96: -5.124672393e-06 | J96: 7.644485642e-06 | K96: -1.600926014e-06 | L96: 1.174724443e-05 | N96: -0.0002138978454 | O96: -0.005469168439 | P96: -0.0001029002575 | Q96: -0.002581665047 | R96: 1.041749262e-06
A97: 45.5364 | B97: ='DF raw data'!A102 -> 7.268422e-06 | C97: ='DF raw data'!B102 -> -1.8756949e-05 | D97: ='DF raw data'!C102 -> -7.632013e-06 | F97: 7.27307379e-06 | G97: -1.881072494e-05 | H97: -7.636897488e-06 | J97: 4.594422049e-06 | K97: -8.834812688e-06 | L97: 9.283566683e-06 | N97: -0.0002115987966 | O97: -0.005575052477 | P97: -0.0001073211978 | Q97: -0.002635368574 | R97: 1.069917724e-06
A98: 46.0368 | B98: ='DF raw data'!A103 -> 7.3785591e-06 | C98: ='DF raw data'!B103 -> -1.0879809e-05 | D98: ='DF raw data'!C103 -> -8.2772558e-06 | F98: 7.383281378e-06 | G98: -1.091100128e-05 | H98: -8.282553244e-06 | J98: 1.247734139e-06 | K98: 5.585326785e-06 | L98: 1.096480098e-05 | N98: -0.0002109744305 | O98: -0.005680624082 | P98: -0.0001045263003 | Q98: -0.002687673535 | R98: 1.097657878e-06
A99: 46.5372 | B99: ='DF raw data'!A104 -> 5.2179462e-06 | C99: ='DF raw data'!B104 -> 4.9299738e-06 | D99: ='DF raw data'!C104 -> -9.8113173e-07 | F99: 5.221285686e-06 | G99: 4.944107974e-06 | H99: -9.817596543e-07 | J99: -4.506609685e-06 | K99: 9.923082625e-07 | L99: 7.812580454e-06 | N99: -0.000213229538 | O99: -0.005787324143 | P99: -0.0001040297492 | Q99: -0.002739730021 | R99: 1.125824905e-06
A100: 47.0376 | B100: ='DF raw data'!A105 -> 3.3171898e-06 | C100: ='DF raw data'!B105 -> -1.1424062e-05 | D100: ='DF raw data'!C105 -> 3.7965849e-06 | F100: 3.319312801e-06 | G100: -1.145681464e-05 | H100: 3.799014714e-06 | J100: -4.526247245e-06 | K100: 6.619942536e-06 | L100: 7.676589575e-06 | N100: -0.0002154944721 | O100: -0.005895157577 | P100: -0.00010071713 | Q100: -0.002790128873 | R100: 1.154138442e-06
A101: 47.538 | B101: ='DF raw data'!A106 -> 6.4267374e-07 | C101: ='DF raw data'!B106 -> -4.4734375e-06 | D101: ='DF raw data'!C106 -> 3.4210864e-06 | F101: 6.430850512e-07 | G101: -4.48626279e-06 | H101: 3.423275895e-06 | J101: -3.628761222e-06 | K101: 1.796235162e-06 | L101: 9.59663862e-06 | N101: -0.0002173103042 | O101: -0.006003899653 | P101: -9.98182939e-05 | Q101: -0.002840077948 | R101: 1.182755047e-06
A102: 48.0384 | B102: ='DF raw data'!A107 -> -2.6088864e-08 | C102: ='DF raw data'!B107 -> 2.9843391e-06 | D102: ='DF raw data'!C107 -> 4.3350069e-06 | F102: -2.610556087e-08 | G102: 2.992895163e-06 | H102: 4.337781304e-06 | J102: -1.287428928e-06 | K102: 2.163542517e-06 | L102: 1.035470677e-05 | N102: -0.0002179545336 | O102: -0.006112964101 | P102: -9.873565723e-05 | Q102: -0.00288948527 | R102: 1.211404403e-06
A103: 48.5388 | B103: ='DF raw data'!A108 -> -1.6508369e-06 | C103: ='DF raw data'!B108 -> -6.9164894e-06 | D103: ='DF raw data'!C108 -> 1.7778078e-08 | F103: -1.651893436e-06 | G103: -6.93631889e-06 | H103: 1.778945597e-08 | J103: -1.816178611e-07 | K103: 1.054702073e-08 | L103: 1.00015463e-05 | N103: -0.0002180454152 | O103: -0.006222074027 | P103: -9.87303795e-05 | Q103: -0.002938889952 | R103: 1.240073065e-06
A104: 49.0392 | B104: ='DF raw data'!A109 -> -2.2296213e-06 | C104: ='DF raw data'!B109 -> -8.7616545e-06 | D104: ='DF raw data'!C109 -> -4.815779e-06 | F104: -2.231048258e-06 | G104: -8.786774055e-06 | H104: -4.818861099e-06 | J104: -6.82069105e-06 | K104: -5.692824398e-06 | L104: 8.596289506e-06 | N104: -0.000221458489 | O104: -0.006332891855 | P104: -0.0001015790688 | Q104: -0.002989720118 | R104: 1.269777894e-06
A105: 49.5396 | B105: ='DF raw data'!A110 -> -4.5982251e-06 | C105: ='DF raw data'!B110 -> 6.9775483e-06 | D105: ='DF raw data'!C110 -> -8.3541245e-06 | F105: -4.601167964e-06 | G105: 6.997552845e-06 | H105: -8.35947114e-06 | J105: -1.349850452e-05 | K105: -4.718958218e-06 | L105: 8.107003063e-06 | N105: -0.0002282131407 | O105: -0.006447089711 | P105: -0.0001039404355 | Q105: -0.003041731912 | R105: 1.301245474e-06
A106: 50.04 | B106: ='DF raw data'!A111 -> -9.5897476e-06 | C106: ='DF raw data'!B111 -> 3.517514e-06 | D106: ='DF raw data'!C111 -> -5.3036865e-06 | F106: -9.595885038e-06 | G106: 3.527598669e-06 | H106: -5.307080859e-06 | J106: -1.206013555e-05 | K106: -2.973278584e-06 | L106: 1.379755479e-05 | N106: -0.0002342480325 | O106: -0.006564307426 | P106: -0.0001054282641 | Q106: -0.003094488216 | R106: 1.334265499e-06
A107: 50.5404 | B107: ='DF raw data'!A112 -> -1.0958645e-05 | C107: ='DF raw data'!B112 -> 1.0016352e-05 | D107: ='DF raw data'!C112 -> 2.2615878e-07 | F107: -1.096565853e-05 | G107: 1.004506876e-05 | H107: 2.263035216e-07 | J107: -7.350019004e-06 | K107: -2.80374061e-06 | L107: 1.686759436e-05 | N107: -0.000237925982 | O107: -0.006683365588 | P107: -0.0001068312559 | Q107: -0.003147946576 | R107: 1.368303553e-06
A108: 51.0408 | B108: ='DF raw data'!A113 -> -6.7824667e-06 | C108: ='DF raw data'!B113 -> 1.1790799e-05 | D108: ='DF raw data'!C113 -> 1.1434823e-07 | F108: -6.786807479e-06 | G108: 1.182460308e-05 | H108: 1.144214129e-07 | J108: -7.760656944e-06 | K108: -8.178073507e-06 | L108: 1.390211166e-05 | N108: -0.0002418094148 | O108: -0.006804367019 | P108: -0.0001109235639 | Q108: -0.003203452727 | R108: 1.403719778e-06
A109: 51.5412 | B109: ='DF raw data'!A114 -> -3.2359117e-07 | C109: ='DF raw data'!B114 -> -2.077752e-06 | D109: ='DF raw data'!C114 -> 1.3695574e-06 | F109: -3.237982683e-07 | G109: -2.083708889e-06 | H109: 1.370433917e-06 | J109: -9.306761818e-06 | K109: 1.376073407e-06 | L109: 7.005229579e-06 | N109: -0.0002464665184 | O109: -0.006927698865 | P109: -0.0001102349768 | Q109: -0.00325861431 | R109: 1.440197684e-06
A110: 52.0416 | B110: ='DF raw data'!A115 -> 4.7480303e-06 | C110: ='DF raw data'!B115 -> -9.9226027e-06 | D110: ='DF raw data'!C115 -> -1.2258513e-06 | F110: 4.751069039e-06 | G110: -9.95105068e-06 | H110: -1.226635845e-06 | J110: -5.916191141e-06 | K110: 1.14177259e-06 | L110: 8.725620525e-06 | N110: -0.0002494269804 | O110: -0.007052512126 | P110: -0.0001096636338 | Q110: -0.003313489992 | R110: 1.477347346e-06
A111: 52.542 | B111: ='DF raw data'!A116 -> 4.4194899e-06 | C111: ='DF raw data'!B116 -> -6.9064532e-07 | D111: ='DF raw data'!C116 -> -7.0743563e-06 | F111: 4.422318374e-06 | G111: -6.926253916e-07 | H111: -7.078883888e-06 | J111: -3.284380859e-06 | K111: 1.002727138e-05 | L111: 1.466118115e-05 | N111: -0.0002510704846 | O111: -0.007178147796 | P111: -0.0001046459872 | Q111: -0.003365854844 | R111: 1.514370526e-06
A112: 53.0424 | B112: ='DF raw data'!A117 -> 2.7982799e-06 | C112: ='DF raw data'!B117 -> 6.0116686e-06 | D112: ='DF raw data'!C117 -> 4.0092245e-06 | F112: 2.800070799e-06 | G112: 6.02890398e-06 | H112: 4.011790404e-06 | J112: -3.92859079e-06 | K112: 8.464641445e-06 | L112: 1.700038929e-05 | N112: -0.0002530363514 | O112: -0.007304767186 | P112: -0.0001004102806 | Q112: -0.003416100149 | R112: 1.55145498e-06
A113: 53.5428 | B113: ='DF raw data'!A118 -> 1.1842787e-06 | C113: ='DF raw data'!B118 -> -2.1993042e-06 | D113: ='DF raw data'!C118 -> 1.5951953e-05 | F113: 1.185036638e-06 | G113: -2.205609578e-06 | H113: 1.596216225e-05 | J113: -8.266741531e-06 | K113: -1.58807999e-06 | L113: 1.30972909e-05 | N113: -0.0002571730289 | O113: -0.00743345657 | P113: -0.0001012049558 | Q113: -0.003466743108 | R113: 1.589675737e-06
A114: 54.0432 | B114: ='DF raw data'!A119 -> 1.1342165e-06 | C114: ='DF raw data'!B119 -> 1.1965987e-07 | D114: ='DF raw data'!C119 -> 1.5558086e-05 | F114: 1.134942399e-06 | G114: 1.200029334e-07 | H114: 1.556804318e-05 | J114: -1.530175786e-05 | K114: 4.344641525e-06 | L114: 3.886840587e-06 | N114: -0.0002648300285 | O114: -0.007565977516 | P114: -9.90308972e-05 | Q114: -0.003516298169 | R114: 1.629678745e-06
A115: 54.5436 | B115: ='DF raw data'!A120 -> 4.3280429e-06 | C115: ='DF raw data'!B120 -> -2.1042957e-05 | D115: ='DF raw data'!C120 -> 5.7574007e-06 | F115: 4.330812847e-06 | G115: -2.11032869e-05 | H115: 5.761085436e-06 | J115: -1.792308344e-05 | K115: -1.682281893e-06 | L115: 6.064350302e-06 | N115: -0.0002737987395 | O115: -0.007702986405 | P115: -9.987271106e-05 | Q115: -0.003566274474 | R115: 1.672182875e-06
A116: 55.044 | B116: ='DF raw data'!A121 -> 2.2375846e-06 | C116: ='DF raw data'!B121 -> -1.2980059e-06 | D116: ='DF raw data'!C121 -> 1.4751124e-06 | F116: 2.239016654e-06 | G116: -1.301727267e-06 | H116: 1.476056472e-06 | J116: -1.488403969e-05 | K116: -1.472735544e-06 | L116: 1.289410495e-05 | N116: -0.0002812467129 | O116: -0.007843722261 | P116: -0.0001006096679 | Q116: -0.003616619552 | R116: 1.716829574e-06
A117: 55.5444 | B117: ='DF raw data'!A122 -> -6.0901175e-07 | C117: ='DF raw data'!B122 -> 3.740071e-06 | D117: ='DF raw data'!C122 -> -3.7666857e-06 | F117: -6.094015175e-07 | G117: 3.750793737e-06 | H117: -3.769096379e-06 | J117: -9.764422133e-06 | K117: -2.588150182e-07 | L117: 1.158168554e-05 | N117: -0.0002861328298 | O117: -0.007986903129 | P117: -0.000100739179 | Q117: -0.003667029437 | R117: 1.762876571e-06
A118: 56.0448 | B118: ='DF raw data'!A123 -> -9.3501603e-07 | C118: ='DF raw data'!B123 -> -4.7489671e-06 | D118: ='DF raw data'!C123 -> -6.3816615e-06 | F118: -9.356144403e-07 | G118: -4.76258233e-06 | H118: -6.385745763e-06 | J118: -9.938081204e-06 | K118: 1.760641306e-06 | L118: 2.011743592e-06 | N118: -0.0002911058456 | O118: -0.008132572494 | P118: -9.985815405e-05 | Q118: -0.003716998457 | R118: 1.810271589e-06
A119: 56.5452 | B119: ='DF raw data'!A124 -> 4.6059881e-06 | C119: ='DF raw data'!B124 -> 9.585159e-07 | D119: ='DF raw data'!C124 -> -5.3322293e-07 | F119: 4.608935932e-06 | G119: 9.612639533e-07 | H119: -5.335641927e-07 | J119: -1.028019111e-05 | K119: 1.09564843e-07 | L119: 4.426006432e-06 | N119: -0.0002962500532 | O119: -0.00828081602 | P119: -9.98033278e-05 | Q119: -0.003766940043 | R119: 1.859173078e-06
A120: 57.0456 | B120: ='DF raw data'!A125 -> 1.0073768e-05 | C120: ='DF raw data'!B125 -> -2.9455628e-06 | D120: ='DF raw data'!C125 -> -1.2883454e-06 | F120: 1.008021521e-05 | G120: -2.954007692e-06 | H120: -1.289169941e-06 | J120: -1.160641535e-05 | K120: -4.024618646e-06 | L120: 1.103246126e-05 | N120: -0.0003020579035 | O120: -0.008431965795 | P120: -0.000101817247 | Q120: -0.003817889393 | R120: 1.910016585e-06
A121: 57.546 | B121: ='DF raw data'!A126 -> 4.8209881e-06 | C121: ='DF raw data'!B126 -> -7.7813255e-08 | D121: ='DF raw data'!C126 -> -5.5059436e-06 | F121: 4.824073532e-06 | G121: -7.803634464e-08 | H121: -5.509467404e-06 | J121: -1.89629035e-05 | K121: -4.575112493e-06 | L121: 4.388578594e-06 | N121: -0.0003115469404 | O121: -0.008587863884 | P121: -0.0001041066333 | Q121: -0.003869984352 | R121: 1.964009588e-06
A122: 58.0464 | B122: ='DF raw data'!A127 -> -6.2129357e-07 | C122: ='DF raw data'!B127 -> 3.9171314e-06 | D122: ='DF raw data'!C127 -> -1.9470979e-06 | F122: -6.216911979e-07 | G122: 3.928361767e-06 | H122: -1.948344043e-06 | J122: -1.958500539e-05 | K122: -9.681386967e-07 | L122: 2.287121021e-06 | N122: -0.0003213472771 | O122: -0.008748666062 | P122: -0.0001045910899 | Q122: -0.003922321734 | R122: 2.021156954e-06
A123: 58.5468 | B123: ='DF raw data'!A128 -> -1.3668182e-06 | C123: ='DF raw data'!B128 -> -7.4029635e-06 | D123: ='DF raw data'!C128 -> 1.3758802e-06 | F123: -1.367692964e-06 | G123: -7.424187705e-06 | H123: 1.376760763e-06 | J123: -1.356489498e-05 | K123: -7.945111718e-06 | L123: 1.497025584e-05 | N123: -0.0003281351505 | O123: -0.008912864891 | P123: -0.0001085668238 | Q123: -0.003976648572 | R123: 2.080934453e-06
A124: 59.0472 | B124: ='DF raw data'!A129 -> -1.3622123e-06 | C124: ='DF raw data'!B129 -> -3.6872848e-06 | D124: ='DF raw data'!C129 -> -1.4654458e-06 | F124: -1.363084116e-06 | G124: -3.6978562e-06 | H124: -1.466383685e-06 | J124: -6.586918632e-06 | K124: -1.522208577e-05 | L124: 1.553999023e-05 | N124: -0.0003314312446 | O124: -0.009078713086 | P124: -0.0001161839555 | Q124: -0.004034787024 | R124: 2.142656482e-06
A125: 59.5476 | B125: ='DF raw data'!A130 -> -3.2275254e-06 | C125: ='DF raw data'!B130 -> 2.0973162e-06 | D125: ='DF raw data'!C130 -> 5.8746691e-06 | F125: -3.229591016e-06 | G125: 2.10332918e-06 | H125: 5.878428888e-06 | J125: -7.624400695e-06 | K125: -4.054593939e-06 | L125: 1.309469524e-05 | N125: -0.0003352464947 | O125: -0.009246470432 | P125: -0.0001182128743 | Q125: -0.004093940746 | R125: 2.205889276e-06
A126: 60.048 | B126: ='DF raw data'!A131 -> -2.6341897e-06 | C126: ='DF raw data'!B131 -> 1.0987568e-05 | D126: ='DF raw data'!C131 -> -5.1658463e-07 | F126: -2.635875581e-06 | G126: 1.101906922e-05 | H126: -5.169152442e-07 | J126: -8.637171054e-06 | K126: -1.495483375e-06 | L126: 7.310507532e-06 | N126: -0.0003395685351 | O126: -0.009416390527 | P126: -0.0001189612142 | Q126: -0.004153468937 | R126: 2.27067034e-06
A127: 60.5484 | B127: ='DF raw data'!A132 -> 3.3295623e-07 | C127: ='DF raw data'!B132 -> 3.8197281e-06 | D127: ='DF raw data'!C132 -> -7.2230387e-06 | F127: 3.33169322e-07 | G127: 3.830679213e-06 | H127: -7.227661445e-06 | J127: -4.445027498e-06 | K127: 2.415022345e-07 | L127: 7.095001297e-06 | N127: -0.0003417928269 | O127: -0.009587423657 | P127: -0.0001188403665 | Q127: -0.004212936657 | R127: 2.336195403e-06
A128: 61.0488 | B128: ='DF raw data'!A133 -> 1.6937768e-06 | C128: ='DF raw data'!B133 -> 1.2656632e-06 | D128: ='DF raw data'!C133 -> -7.2187131e-06 | F128: 1.694860817e-06 | G128: 1.269291841e-06 | H128: -7.223333076e-06 | J128: -6.813276608e-06 | K128: 2.025595455e-05 | L128: 7.688176686e-06 | N128: -0.0003452021905 | O128: -0.009760162834 | P128: -0.0001087042868 | Q128: -0.004267332282 | R128: 2.401738382e-06
A129: 61.5492 | B129: ='DF raw data'!A134 -> 6.4404626e-06 | C129: ='DF raw data'!B134 -> 1.4160866e-05 | D129: ='DF raw data'!C134 -> -5.6837098e-06 | F129: 6.444584496e-06 | G129: 1.420146503e-05 | H129: -5.687347374e-06 | J129: -1.419026996e-05 | K129: 4.882690595e-06 | L129: 9.441135562e-06 | N129: -0.0003523030016 | O129: -0.009936455256 | P129: -0.0001062609884 | Q129: -0.004320505281 | R129: 2.469496947e-06
A130: 62.0496 | B130: ='DF raw data'!A135 -> 1.2350925e-05 | C130: ='DF raw data'!B135 -> 2.8162208e-06 | D130: ='DF raw data'!C135 -> 5.1849693e-06 | F130: 1.235882959e-05 | G130: 2.82429487e-06 | H130: 5.18828768e-06 | J130: -1.420356147e-05 | K130: 2.30270736e-06 | L130: 1.72035072e-05 | N130: -0.0003594104638 | O130: -0.01011630425 | P130: -0.0001051087137 | Q130: -0.004373101681 | R130: 2.539664898e-06
A131: 62.55 | B131: ='DF raw data'!A136 -> 9.9410036e-06 | C131: ='DF raw data'!B136 -> 9.592587e-06 | D131: ='DF raw data'!C136 -> 6.0412535e-06 | F131: 9.947365842e-06 | G131: 9.620088829e-06 | H131: 6.045119902e-06 | J131: -1.550567529e-05 | K131: 7.729915216e-07 | L131: 1.989794254e-05 | N131: -0.0003671695037 | O131: -0.01030003587 | P131: -0.0001047219087 | Q131: -0.004425504524 | R131: 2.612613271e-06
A132: 63.0504 | B132: ='DF raw data'!A137 -> 2.0757172e-06 | C132: ='DF raw data'!B137 -> 1.8605193e-05 | D132: ='DF raw data'!C137 -> 3.4333327e-06 | F132: 2.077045659e-06 | G132: 1.865853386e-05 | H132: 3.435530033e-06 | J132: -1.705031022e-05 | K132: -3.29749806e-06 | L132: 1.428584209e-05 | N132: -0.0003757014789 | O132: -0.01048803689 | P132: -0.0001063719767 | Q132: -0.004478733061 | R132: 2.688907557e-06
A133: 63.5508 | B133: ='DF raw data'!A138 -> -2.2547192e-06 | C133: ='DF raw data'!B138 -> 6.3664515e-06 | D133: ='DF raw data'!C138 -> 1.5652934e-06 | F133: -2.25616222e-06 | G133: 6.384704038e-06 | H133: 1.566295188e-06 | J133: -1.313916269e-05 | K133: -6.273826161e-06 | L133: 1.221755023e-05 | N133: -0.0003822763159 | O133: -0.01067932796 | P133: -0.0001095113994 | Q133: -0.004533532565 | R133: 2.768034773e-06
A134: 64.0512 | B134: ='DF raw data'!A139 -> -3.207901e-06 | C134: ='DF raw data'!B139 -> 1.2801512e-05 | D134: ='DF raw data'!C139 -> -3.1589141e-06 | F134: -3.209954057e-06 | G134: 1.283821378e-05 | H134: -3.160935805e-06 | J134: -9.215724091e-06 | K134: -1.602320199e-05 | L134: 1.300458861e-05 | N134: -0.0003868878642 | O134: -0.01087292665 | P134: -0.0001175294096 | Q134: -0.004592344282 | R134: 2.849847862e-06
A135: 64.5516 | B135: ='DF raw data'!A140 -> 1.47584e-06 | C135: ='DF raw data'!B140 -> 1.4106829e-05 | D135: ='DF raw data'!C140 -> -5.4222191e-06 | F135: 1.476784538e-06 | G135: =(1-$G$1*($B$2-$G$2))*C135*$M$2/$M$1 -> 1.41472731e-05 | H135: -5.42568932e-06 | J135: =-CELL("contents", INDEX($F$6:$F$1203,1204-CELL("row",F135))) -> -8.692674754e-06 | K135: =CELL("contents", INDEX($G$6:$G$1203,1204-CELL("row",G135))) -> -1.747446084e-06 | L135: =-CELL("contents", INDEX($H$6:$H$1203,1204-CELL("row",H135))) -> 7.358390258e-06 | N135: -0.0003912376787 | O135: -0.01106870198 | P135: -0.0001184038316 | Q135: -0.004651593559 | R135: 2.93345789e-06
A136: =A135+$B$1 -> 65.052 | B136: ='DF raw data'!A141 -> 6.3137718e-06 | C136: ='DF raw data'!B141 -> 4.7423778e-06 | D136: ='DF raw data'!C141 -> -3.115854e-06 | F136: 6.317812614e-06 | G136: 4.755974139e-06 | H136: -3.117848147e-06 | J136: -1.20097063e-05 | K136: -1.07532162e-06 | L136: 6.804639484e-06 | N136: =J136*$B$1+N135 -> -0.0003972473357 | O136: =N136*$B$1+O135 -> -0.01126748455 | P136: =K136*$B$1+P135 -> -0.0001189419226 | Q136: =P136*$B$1+Q135 -> -0.004711112097 | R136: =(N136^2+P136^2)*$B$1+R135 -> 3.019502985e-06
A137: 65.5524 | B137: ='DF raw data'!A142 -> 8.4160456e-06 | C137: ='DF raw data'!B142 -> -9.2957644e-06 | D137: ='DF raw data'!C142 -> -2.4511116e-06 | F137: 8.421431869e-06 | G137: -9.322415242e-06 | H137: -2.452680311e-06 | J137: -1.341588267e-05 | K137: 2.933750782e-06 | L137: 1.315609452e-06 | N137: -0.0004039606434 | O137: -0.01146962645 | P137: -0.0001174738737 | Q137: -0.004769896024 | R137: 3.108065935e-06
A138: 66.0528 | B138: ='DF raw data'!A143 -> 7.0785204e-06 | C138: ='DF raw data'!B143 -> -2.7262108e-06 | D138: ='DF raw data'!C143 -> -4.4916605e-06 | F138: 7.083050653e-06 | G138: -2.734026813e-06 | H138: -4.494535163e-06 | J138: -1.231047166e-05 | K138: 5.930688803e-06 | L138: 6.219355242e-08 | N138: -0.0004101208034 | O138: -0.0116748509 | P138: -0.000114506157 | Q138: -0.004827194905 | R138: 3.198793826e-06
A139: 66.5532 | B139: ='DF raw data'!A144 -> 6.6185498e-06 | C139: ='DF raw data'!B144 -> -5.9639538e-06 | D139: ='DF raw data'!C144 -> -9.8130577e-06 | F139: =(1-$G$1*($B$2-$G$2))*B139 -> 6.622785672e-06 | G139: -5.981052382e-06 | H139: =(1-$G$1*($B$2-$G$2))*D139 -> -9.819338057e-06 | J139: -5.929816855e-06 | K139: 1.308950717e-05 | L139: 4.528494583e-07 | N139: -0.0004130880838 | O139: -0.01188156018 | P139: -0.0001079561676 | Q139: -0.004881216171 | R139: 3.290014894e-06
A140: 67.0536 | B140: ='DF raw data'!A145 -> 7.4429058e-06 | C140: ='DF raw data'!B145 -> 1.7996665e-07 | D140: ='DF raw data'!C145 -> -9.150378e-06 | F140: 7.44766926e-06 | G140: 1.804826122e-07 | H140: -9.156234242e-06 | J140: -4.729653042e-07 | K140: 1.265814901e-06 | L140: 6.343125004e-06 | N140: -0.0004133247556 | O140: -0.01208838789 | P140: -0.0001073227539 | Q140: -0.004934920477 | R140: 3.3812656e-06
A141: 67.554 | B141: ='DF raw data'!A146 -> 5.9780227e-06 | C141: ='DF raw data'!B146 -> -4.2586221e-06 | D141: ='DF raw data'!C146 -> -3.3429367e-06 | F141: 5.981848635e-06 | G141: -4.270831517e-06 | H141: -3.345076179e-06 | J141: 6.724532248e-07 | K141: 3.517164139e-06 | L141: 1.640921018e-05 | N141: -0.00041298826 | O141: -0.01229504721 | P141: -0.0001055627649 | Q141: -0.004987744085 | R141: 3.472189681e-06
A142: 68.0544 | B142: ='DF raw data'!A147 -> 4.656918e-06 | C142: ='DF raw data'!B147 -> 1.0146844e-05 | D142: ='DF raw data'!C147 -> -1.7184846e-06 | F142: 4.659898428e-06 | G142: 1.017593488e-05 | H142: -1.71958443e-06 | J142: -8.445300936e-07 | K142: 6.698087837e-06 | L142: 2.068937773e-05 | N142: -0.0004134108629 | O142: -0.01250191801 | P142: -0.0001022110418 | Q142: -0.00503889049 | R142: 3.562940042e-06
A143: 68.5548 | B143: ='DF raw data'!A148 -> 5.5238593e-06 | C143: ='DF raw data'!B148 -> 6.3851326e-06 | D143: ='DF raw data'!C148 -> -6.6135372e-06 | F143: 5.52739457e-06 | G143: 6.403438696e-06 | H143: -6.617769864e-06 | J143: -8.123361226e-07 | K143: 3.144771045e-06 | L143: 1.237445158e-05 | N143: -0.0004138173559 | O143: -0.01270899222 | P143: -0.0001006373983 | Q143: -0.005089249444 | R143: 3.653698937e-06
A144: 69.0552 | B144: ='DF raw data'!A149 -> 5.419864e-06 | C144: ='DF raw data'!B149 -> 1.2931517e-06 | D144: ='DF raw data'!C149 -> -2.3928103e-06 | F144: 5.423332713e-06 | G144: 1.29685915e-06 | H144: -2.394341699e-06 | J144: 1.107938127e-06 | K144: 4.613999964e-06 | L144: 9.825996115e-06 | N144: -0.0004132629436 | O144: -0.01291578899 | P144: -9.832855275e-05 | Q144: -0.005138453052 | R144: 3.743998501e-06
A145: 69.5556 | B145: ='DF raw data'!A150 -> 4.0356808e-06 | C145: ='DF raw data'!B150 -> 1.0292012e-05 | D145: ='DF raw data'!C150 -> 8.9788881e-07 | F145: 4.038263636e-06 | G145: 1.032151907e-05 | H145: 8.984634588e-07 | J145: -3.398929023e-06 | K145: 1.163316479e-06 | L145: 1.384324101e-05 | N145: -0.0004149637677 | O145: -0.01312343686 | P145: -9.774642919e-05 | Q145: -0.005187365365 | R145: 3.834945847e-06
A146: 70.056 | B146: ='DF raw data'!A151 -> 3.8369008e-06 | C146: ='DF raw data'!B151 -> -1.5806041e-06 | D146: ='DF raw data'!C151 -> 7.2765638e-06 | F146: 3.839356417e-06 | G146: -1.585135672e-06 | H146: 7.281220801e-06 | J146: -1.047903129e-05 | K146: -4.761509664e-06 | L146: 1.330201084e-05 | N146: -0.000420207475 | O146: -0.01333370868 | P146: -0.0001001290886 | Q146: -0.005237469961 | R146: 3.928320565e-06
A147: 70.5564 | B147: ='DF raw data'!A152 -> 7.9746565e-07 | C147: ='DF raw data'!B152 -> 4.7658609e-06 | D147: ='DF raw data'!C152 -> 1.1609966e-05 | F147: 7.97976028e-07 | G147: 4.779524564e-06 | H147: 1.161739638e-05 | J147: -8.600768871e-06 | K147: 4.047048167e-06 | L147: 1.188190355e-05 | N147: -0.0004245112997 | O147: -0.01354613414 | P147: -9.810394572e-05 | Q147: -0.005286561175 | R147: 4.023313613e-06
A148: 71.0568 | B148: ='DF raw data'!A153 -> -2.359983e-06 | C148: ='DF raw data'!B153 -> -2.9629086e-06 | D148: ='DF raw data'!C153 -> 3.4205543e-06 | F148: -2.361493389e-06 | G148: -2.971403222e-06 | H148: 3.422743455e-06 | J148: -8.467051247e-06 | K148: -1.049833355e-05 | L148: 1.017722726e-05 | N148: -0.0004287482122 | O148: -0.01376067974 | P148: -0.0001033573118 | Q148: -0.005338281174 | R148: 4.120645298e-06
A149: 71.5572 | B149: ='DF raw data'!A154 -> -7.5752928e-07 | C149: ='DF raw data'!B154 -> -6.5075369e-06 | D149: ='DF raw data'!C154 -> -8.0542331e-06 | F149: -7.580140987e-07 | G149: -6.526193928e-06 | H149: -8.059387809e-06 | J149: -1.079602704e-05 | K149: -3.350487546e-06 | L149: 7.365783787e-06 | N149: -0.0004341505441 | O149: -0.01397792867 | P149: -0.0001050338958 | Q149: -0.005390840136 | R149: 4.220484512e-06
A150: 72.0576 | B150: ='DF raw data'!A155 -> -7.5232288e-07 | C150: ='DF raw data'!B155 -> 9.1270604e-06 | D150: ='DF raw data'!C155 -> -3.7646903e-06 | F150: -7.528043666e-07 | G150: 9.15322757e-06 | H150: -3.767099702e-06 | J150: -1.0355065e-05 | K150: 1.367776989e-06 | L150: 3.992795355e-06 | N150: -0.0004393322186 | O150: -0.01419777052 | P150: -0.0001043494602 | Q150: -0.005443056606 | R150: 4.322516877e-06
A151: 72.558 | B151: ='DF raw data'!A156 -> -1.759772e-06 | C151: ='DF raw data'!B156 -> -3.0184133e-06 | D151: ='DF raw data'!C156 -> -5.4061076e-07 | F151: -1.760898254e-06 | G151: -3.027067054e-06 | H151: -5.409567509e-07 | J151: -1.098711926e-05 | K151: 1.664432766e-06 | L151: 1.524322843e-06 | N151: -0.0004448301731 | O151: -0.01442036353 | P151: -0.000103516578 | Q151: -0.005494856301 | R151: 4.426895095e-06
A152: 73.0584 | B152: ='DF raw data'!A157 -> 1.2242615e-06 | C152: ='DF raw data'!B157 -> 8.297543e-06 | D152: ='DF raw data'!C157 -> -8.6958772e-07 | F152: 1.225045027e-06 | G152: 8.321331954e-06 | H152: -8.701442561e-07 | J152: -1.378156956e-05 | K152: 9.258402042e-06 | L152: 8.333832441e-06 | N152: -0.0004517264705 | O152: -0.01464640746 | P152: -9.888367365e-05 | Q152: -0.005544337692 | R152: 4.533898022e-06
A153: 73.5588 | B153: ='DF raw data'!A158 -> 6.2007653e-06 | C153: ='DF raw data'!B158 -> 8.3526493e-06 | D153: ='DF raw data'!C158 -> -3.2737151e-07 | F153: 6.20473379e-06 | G153: 8.376596243e-06 | H153: -3.275810278e-07 | J153: -1.328784178e-05 | K153: -8.349972531e-07 | L153: 1.172433478e-05 | N153: -0.0004583757065 | O153: -0.01487577866 | P153: -9.930150628e-05 | Q153: -0.005594028165 | R153: 4.643970548e-06
A154: 74.0592 | B154: ='DF raw data'!A159 -> 6.6425132e-06 | C154: ='DF raw data'!B159 -> 1.9142531e-06 | D154: ='DF raw data'!C159 -> -4.9098189e-06 | F154: 6.646764408e-06 | G154: 1.91974124e-06 | H154: -4.912961184e-06 | J154: -1.107915813e-05 | K154: -7.795647331e-06 | L154: 8.662086189e-06 | N154: -0.0004639197173 | O154: -0.01510792409 | P154: -0.0001032024482 | Q154: -0.00564567067 | R154: 4.756997022e-06
A155: 74.5596 | B155: ='DF raw data'!A160 -> 1.9594397e-06 | C155: ='DF raw data'!B160 -> 4.0134651e-06 | D155: ='DF raw data'!C160 -> -4.0199911e-06 | F155: 1.960693741e-06 | G155: 4.024971655e-06 | H155: -4.022563894e-06 | J155: -1.385857982e-05 | K155: -3.860837931e-06 | L155: 4.99141166e-06 | N155: -0.0004708545506 | O155: -0.01534353971 | P155: -0.0001051344115 | Q155: -0.00569827993 | R155: 4.873468751e-06
A156: 75.06 | B156: ='DF raw data'!A161 -> -2.8561983e-06 | C156: ='DF raw data'!B161 -> 6.3021412e-06 | D156: ='DF raw data'!C161 -> -5.3016157e-07 | F156: -2.858026267e-06 | G156: 6.320209361e-06 | H156: -5.305008734e-07 | J156: -1.196662674e-05 | K156: 1.575984311e-06 | L156: 2.039781225e-06 | N156: -0.0004768426506 | O156: -0.01558215177 | P156: -0.000104345789 | Q156: -0.005750494563 | R156: 4.992697536e-06
A157: 75.5604 | B157: ='DF raw data'!A162 -> -5.8115961e-06 | C157: ='DF raw data'!B162 -> 4.8898141e-06 | D157: ='DF raw data'!C162 -> 2.9315818e-06 | F157: -5.815315522e-06 | G157: 4.903833137e-06 | H157: 2.933458012e-06 | J157: -6.9839979e-06 | K157: 5.155394599e-06 | L157: 2.249294528e-06 | N157: -0.0004803374432 | O157: -0.01582251263 | P157: -0.0001017660295 | Q157: -0.005801418284 | R157: 5.11333416e-06
A158: 76.0608 | B158: ='DF raw data'!A163 -> 6.1704191e-07 | C158: ='DF raw data'!B163 -> -5.5352507e-06 | D158: ='DF raw data'!C163 -> 1.5398693e-06 | F158: 6.174368168e-07 | G158: -5.551120196e-06 | H158: 1.540854816e-06 | J158: -7.458288952e-06 | K158: 8.385560369e-06 | L158: 3.459688484e-06 | N158: -0.000484069571 | O158: -0.01606474104 | P158: -9.756989509e-05 | Q158: -0.005850242259 | R158: 5.235353315e-06
A159: 76.5612 | B159: ='DF raw data'!A164 -> 8.1788185e-06 | C159: ='DF raw data'!B164 -> -6.5870595e-06 | D159: ='DF raw data'!C164 -> -3.4903539e-06 | F159: 8.184052944e-06 | G159: -6.605944518e-06 | H159: -3.492587726e-06 | J159: -9.121747785e-06 | K159: 2.29668384e-06 | L159: 8.329636958e-06 | N159: -0.0004886340936 | O159: -0.01630925354 | P159: -9.642063449e-05 | Q159: -0.005898491145 | R159: 5.359482647e-06
A160: 77.0616 | B160: ='DF raw data'!A165 -> 5.6719095e-06 | C160: ='DF raw data'!B165 -> 7.0934962e-06 | D160: ='DF raw data'!C165 -> -7.6900478e-06 | F160: 5.675539522e-06 | G160: 7.113833166e-06 | H160: -7.694969431e-06 | J160: -1.083850621e-05 | K160: 7.332478628e-06 | L160: 9.558544556e-06 | N160: -0.0004940576821 | O160: -0.01655648 | P160: -9.275146219e-05 | Q160: -0.005944903976 | R160: 5.485931639e-06
A161: 77.562 | B161: ='DF raw data'!A166 -> -3.5580686e-06 | C161: ='DF raw data'!B166 -> 1.7944061e-05 | D161: ='DF raw data'!C166 -> -7.7878167e-06 | F161: -3.560345764e-06 | G161: 1.79955064e-05 | H161: -7.792800903e-06 | J161: -1.155999567e-05 | K161: 9.951175336e-07 | L161: 1.02474872e-05 | N161: -0.0004998423039 | O161: -0.01680660109 | P161: -9.225350537e-05 | Q161: -0.005991067631 | R161: 5.615211499e-06
A162: 78.0624 | B162: ='DF raw data'!A167 -> -3.3674087e-07 | C162: ='DF raw data'!B167 -> 1.1958652e-05 | D162: ='DF raw data'!C167 -> -9.388842e-06 | F162: -3.369563842e-07 | G162: 1.199293731e-05 | H162: -9.394850859e-06 | J162: -8.329459545e-06 | K162: -3.783896572e-06 | L162: 3.791540734e-06 | N162: -0.0005040103655 | O162: -0.01705880788 | P162: -9.414696722e-05 | Q162: -0.006038178773 | R162: 5.746761705e-06
A163: 78.5628 | B163: ='DF raw data'!A168 -> 1.2041541e-05 | C163: ='DF raw data'!B168 -> 3.6062866e-07 | D163: ='DF raw data'!C168 -> -7.7844898e-06 | F163: 1.204924759e-05 | G163: 3.616625779e-07 | H163: -7.789471873e-06 | J163: -5.181611811e-06 | K163: -3.056459882e-07 | L163: 1.076526837e-06 | N163: -0.000506603244 | O163: -0.01731231214 | P163: -9.429991247e-05 | Q163: -0.006085366449 | R163: 5.879637581e-06
A164: 79.0632 | B164: ='DF raw data'!A169 -> 8.832696e-06 | C164: ='DF raw data'!B169 -> 1.3231546e-05 | D164: ='DF raw data'!C169 -> -1.6185866e-06 | F164: 8.838348925e-06 | G164: 1.326948068e-05 | H164: -1.619622495e-06 | J164: -8.444274779e-06 | K164: -1.535990677e-05 | L164: 6.632687805e-06 | N164: -0.0005108287591 | O164: -0.01756793085 | P164: -0.0001019860098 | Q164: -0.006136400248 | R164: 6.015419703e-06
A165: 79.5636 | B165: ='DF raw data'!A170 -> 2.563055e-06 | C165: ='DF raw data'!B170 -> 1.8248142e-05 | D165: ='DF raw data'!C170 -> 6.4165945e-08 | F165: 2.564695355e-06 | G165: 1.83004592e-05 | H165: 6.42070112e-08 | J165: -1.001970151e-05 | K165: -8.59007373e-06 | L165: 8.210695384e-06 | N165: -0.0005158426177 | O165: -0.0178260585 | P165: -0.0001062844827 | Q165: -0.006189585004 | R165: 6.154225658e-06
A166: 80.064 | B166: ='DF raw data'!A171 -> 2.9549408e-06 | C166: ='DF raw data'!B171 -> 4.8480501e-06 | D166: ='DF raw data'!C171 -> -1.4501391e-06 | F166: 2.956831962e-06 | G166: 4.8619494e-06 | H166: -1.451067189e-06 | J166: -1.024973363e-05 | K166: -6.893632458e-06 | L166: 6.0432402e-06 | N166: -0.0005209715844 | O166: -0.01808675268 | P166: -0.0001097340564 | Q166: -0.006244495925 | R166: 6.296065517e-06
A167: 80.5644 | B167: ='DF raw data'!A172 -> 1.3305932e-06 | C167: ='DF raw data'!B172 -> 4.2603056e-06 | D167: ='DF raw data'!C172 -> -8.2078395e-06 | F167: 1.33144478e-06 | G167: 4.272519844e-06 | H167: -8.213092517e-06 | J167: -1.198973552e-05 | K167: -3.764629391e-06 | L167: -2.14116677e-07 | N167: -0.0005269712481 | O167: -0.01835044909 | P167: -0.0001116178769 | Q167: -0.006300349511 | R167: 6.441260203e-06
A168: 81.0648 | B168: ='DF raw data'!A173 -> 1.7511145e-06 | C168: ='DF raw data'!B173 -> 8.0198815e-06 | D168: ='DF raw data'!C173 -> -1.304612e-05 | F168: 1.752235213e-06 | G168: 8.042874401e-06 | H168: -1.305446952e-05 | J168: -8.715451321e-06 | K168: 3.698610456e-06 | L168: 1.048117466e-05 | N168: -0.0005313324599 | O168: -0.01861632786 | P168: -0.0001097670923 | Q168: -0.006355276964 | R168: 6.588559447e-06
A169: 81.5652 | B169: ='DF raw data'!A174 -> 5.2462487e-06 | C169: ='DF raw data'!B174 -> 1.1022393e-05 | D169: ='DF raw data'!C174 -> -1.1940058e-05 | F169: 5.249606299e-06 | G169: 1.105399406e-05 | H169: -1.194769964e-05 | J169: -9.877768629e-06 | K169: 1.710329676e-06 | L169: 1.886482677e-05 | N169: -0.0005362752954 | O169: -0.01888468001 | P169: -0.0001089112433 | Q169: -0.00640977615 | R169: 6.738405654e-06
A170: 82.0656 | B170: ='DF raw data'!A175 -> 5.112282e-06 | C170: ='DF raw data'!B175 -> 1.4918066e-05 | D170: ='DF raw data'!C175 -> -3.1342231e-06 | F170: 5.11555386e-06 | G170: 1.496083591e-05 | H170: -3.136229003e-06 | J170: -1.230038621e-05 | K170: -5.417176178e-06 | L170: 2.692036001e-05 | N170: -0.0005424304086 | O170: -0.01915611219 | P170: -0.0001116219983 | Q170: -0.006465631798 | R170: 6.891873439e-06
A171: 82.566 | B171: ='DF raw data'!A176 -> 4.2717734e-06 | C171: ='DF raw data'!B176 -> 1.0202751e-05 | D171: ='DF raw data'!C176 -> 6.9536526e-07 | F171: 4.274507335e-06 | G171: 1.023200216e-05 | H171: 6.958102938e-07 | J171: -1.212331996e-05 | K171: -1.787188199e-06 | L171: 2.202038003e-05 | N171: -0.0005484969179 | O171: -0.01943058005 | P171: -0.0001125163072 | Q171: -0.006521934958 | R171: 7.048753237e-06
A172: 83.0664 | B172: ='DF raw data'!A177 -> 7.825447e-06 | C172: ='DF raw data'!B177 -> 2.6303564e-06 | D172: ='DF raw data'!C177 -> -4.072335e-08 | F172: 7.830455286e-06 | G172: 2.637897599e-06 | H172: -4.074941294e-08 | J172: -1.419841918e-05 | K172: -5.268915732e-06 | L172: 1.682463888e-05 | N172: -0.0005556018069 | O172: -0.01970860319 | P172: -0.0001151528727 | Q172: -0.006579557456 | R172: 7.209858794e-06
A173: 83.5668 | B173: ='DF raw data'!A178 -> 8.8651359e-06 | C173: ='DF raw data'!B178 -> 1.1762671e-06 | D173: ='DF raw data'!C178 -> -5.1581983e-06 | F173: 8.870809587e-06 | G173: 1.179639443e-06 | H173: -5.161499547e-06 | J173: -1.486941334e-05 | K173: -1.110757023e-05 | L173: 1.557774938e-05 | N173: -0.0005630424613 | O173: -0.01999034964 | P173: -0.0001207111008 | Q173: -0.006639961291 | R173: 7.375785421e-06
A174: 84.0672 | B174: ='DF raw data'!A179 -> 6.6724838e-06 | C174: ='DF raw data'!B179 -> 1.336444e-05 | D174: ='DF raw data'!C179 -> -4.3140271e-06 | F174: 6.67675419e-06 | G174: 1.340275568e-05 | H174: -4.316788077e-06 | J174: -1.471064879e-05 | K174: -1.096921169e-05 | L174: 1.327983366e-05 | N174: -0.00057040367 | O174: -0.02027577964 | P174: -0.0001262000943 | Q174: -0.006703111818 | R174: 7.546565341e-06
A175: 84.5676 | B175: ='DF raw data'!A180 -> 8.496012e-06 | C175: ='DF raw data'!B180 -> 1.3680662e-05 | D175: ='DF raw data'!C180 -> -1.7981499e-06 | F175: 8.501449448e-06 | G175: 1.371988429e-05 | H175: -1.799300716e-06 | J175: -1.660293608e-05 | K175: 2.790039943e-06 | L175: 1.20653769e-05 | N175: -0.0005787117792 | O175: -0.02056536701 | P175: -0.0001248039584 | Q175: -0.006765563719 | R175: 7.72194721e-06
A176: 85.068 | B176: ='DF raw data'!A181 -> 1.0123029e-05 | C176: ='DF raw data'!B181 -> -1.834917e-06 | D176: ='DF raw data'!C181 -> -5.4529673e-06 | F176: 1.012950774e-05 | G176: -1.840177684e-06 | H176: -5.456457199e-06 | J176: -1.808779278e-05 | K176: 7.612809536e-06 | L176: 7.989461185e-06 | N176: -0.0005877629107 | O176: -0.02085948357 | P176: -0.0001209945085 | Q176: -0.006826109371 | R176: 7.902143707e-06
A177: 85.5684 | B177: ='DF raw data'!A182 -> 1.0056747e-05 | C177: ='DF raw data'!B182 -> -1.5814045e-06 | D177: ='DF raw data'!C182 -> -5.2289461e-06 | F177: 1.006318332e-05 | G177: -1.585938367e-06 | H177: -5.232292626e-06 | J177: -1.297498668e-05 | K177: -6.495817288e-06 | L177: 1.276590595e-05 | N177: -0.000594255594 | O177: -0.02115684907 | P177: -0.0001242450154 | Q177: -0.006888281576 | R177: 8.086579405e-06
A178: 86.0688 | B178: ='DF raw data'!A183 -> 7.5533758e-06 | C178: ='DF raw data'!B183 -> 1.0981564e-05 | D178: ='DF raw data'!C183 -> -8.0077107e-06 | F178: 7.558209961e-06 | G178: 1.101304801e-05 | H178: -8.012835635e-06 | J178: -6.778611737e-06 | K178: -2.047906638e-05 | L178: 1.450035029e-05 | N178: -0.0005976476114 | O178: -0.02145591194 | P178: -0.0001344927402 | Q178: -0.006955581744 | R178: 8.274364996e-06
A179: 86.5692 | B179: ='DF raw data'!A184 -> -2.595742e-06 | C179: ='DF raw data'!B184 -> 8.6351147e-06 | D179: ='DF raw data'!C184 -> -8.0132349e-06 | F179: -2.597403275e-06 | G179: 8.659871467e-06 | H179: -8.01836337e-06 | J179: -1.527747033e-06 | K179: -9.575716879e-06 | L179: 1.408298935e-05 | N179: -0.000598412096 | O179: -0.02175535735 | P179: -0.000139284429 | Q179: -0.007025279672 | R179: 8.463264589e-06
A180: 87.0696 | B180: ='DF raw data'!A185 -> -9.3983108e-06 | C180: ='DF raw data'!B185 -> 1.737246e-05 | D180: ='DF raw data'!C185 -> -7.6485858e-06 | F180: -9.404325719e-06 | G180: 1.742226663e-05 | H180: -7.653480895e-06 | J180: -4.565120308e-06 | K180: -8.449172222e-06 | L180: 5.01885051e-06 | N180: -0.0006006964822 | O180: -0.02205594587 | P180: -0.0001435123948 | Q180: -0.007097093274 | R180: 8.654133197e-06
A181: 87.57 | B181: ='DF raw data'!A186 -> -4.6617706e-06 | C181: ='DF raw data'!B186 -> 5.8607634e-06 | D181: ='DF raw data'!C186 -> -4.8804695e-06 | F181: -4.664754133e-06 | G181: 5.877566136e-06 | H181: -4.883593e-06 | J181: -1.292923542e-05 | K181: -1.153402237e-05 | L181: 8.550137688e-06 | N181: -0.0006071662716 | O181: -0.02235977187 | P181: -0.0001492840195 | Q181: -0.007171794997 | R181: 8.849757872e-06
A182: 88.0704 | B182: ='DF raw data'!A187 -> -1.1217141e-06 | C182: ='DF raw data'!B187 -> 3.4613436e-06 | D182: ='DF raw data'!C187 -> -2.5937368e-06 | F182: -1.122431997e-06 | G182: 3.471267229e-06 | H182: -2.595396792e-06 | J182: -1.377448903e-05 | K182: -8.150509809e-06 | L182: 1.647733875e-05 | N182: -0.0006140590259 | O182: -0.02266704701 | P182: -0.0001533625347 | Q182: -0.00724853761 | R182: 9.050212385e-06
A183: 88.5708 | B183: ='DF raw data'!A188 -> -1.0627077e-06 | C183: ='DF raw data'!B188 -> 8.5214333e-06 | D183: ='DF raw data'!C188 -> -7.6643582e-06 | F183: -1.063387833e-06 | G183: 8.545864144e-06 | H183: -7.669263389e-06 | J183: -1.084759002e-05 | K183: 3.85008148e-06 | L183: 1.535831403e-05 | N183: -0.0006194871599 | O183: -0.02297703838 | P183: -0.0001514359539 | Q183: -0.007324316161 | R183: 9.253723658e-06
A184: 89.0712 | B184: ='DF raw data'!A189 -> -2.5884663e-06 | C184: ='DF raw data'!B189 -> 1.2668216e-05 | D184: ='DF raw data'!C189 -> -6.7260798e-06 | F184: -2.590122918e-06 | G184: 1.270453562e-05 | H184: -6.730384491e-06 | J184: -1.231174047e-05 | K184: -3.340184391e-06 | L184: -2.154481186e-07 | N184: -0.0006256479549 | O184: -0.02329011262 | P184: -0.0001531073822 | Q184: -0.007400931095 | R184: 9.461328226e-06
A185: 89.5716 | B185: ='DF raw data'!A190 -> -5.7168122e-06 | C185: ='DF raw data'!B190 -> 1.8833887e-05 | D185: ='DF raw data'!C190 -> -3.3420044e-06 | F185: -5.72047096e-06 | G185: 1.888788352e-05 | H185: -3.344143283e-06 | J185: -1.533495409e-05 | K185: -7.757215562e-07 | L185: -2.919009571e-07 | N185: -0.0006333215659 | O185: -0.02360702673 | P185: -0.0001534955532 | Q185: -0.00747774027 | R185: 9.673826634e-06
A186: 90.072 | B186: ='DF raw data'!A191 -> -2.6765088e-06 | C186: ='DF raw data'!B191 -> 1.6019108e-05 | D186: ='DF raw data'!C191 -> -4.6773448e-06 | F186: -2.678221766e-06 | G186: 1.606503459e-05 | H186: -4.680338301e-06 | J186: -1.813815399e-05 | K186: -1.112603501e-05 | L186: 7.566572209e-06 | N186: -0.0006423978982 | O186: -0.02392848264 | P186: -0.0001590630211 | Q186: -0.007557335406 | R186: 9.892989877e-06
A187: 90.5724 | B187: ='DF raw data'!A192 -> 4.989864e-06 | C187: ='DF raw data'!B192 -> 6.3956736e-06 | D187: ='DF raw data'!C192 -> -8.0695992e-07 | F187: 4.993057513e-06 | G187: 6.414009917e-06 | H187: -8.074763743e-07 | J187: -1.92788976e-05 | K187: -1.319122897e-06 | L187: 1.130411e-05 | N187: -0.0006520450585 | O187: -0.02425476599 | P187: -0.0001597231102 | Q187: -0.00763726085 | R187: 1.011850726e-05
A188: 91.0728 | B188: ='DF raw data'!A193 -> 4.9592923e-06 | C188: ='DF raw data'!B193 -> 1.0775552e-05 | D188: ='DF raw data'!C193 -> -2.4253557e-06 | F188: 4.962466247e-06 | G188: 1.080644537e-05 | H188: -2.426907928e-06 | J188: -1.444074116e-05 | K188: -7.41897049e-06 | L188: 1.146367606e-05 | N188: -0.0006592712054 | O188: -0.0245846653 | P188: -0.0001634355631 | Q188: -0.007719044006 | R188: 1.034936665e-05
A189: 91.5732 | B189: ='DF raw data'!A194 -> 6.2737222e-06 | C189: ='DF raw data'!B194 -> 9.7173424e-06 | D189: ='DF raw data'!C194 -> -2.6072473e-06 | F189: 6.277737382e-06 | G189: 9.745201901e-06 | H189: -2.608915938e-06 | J189: -8.797672209e-06 | K189: 4.969132414e-06 | L189: 5.002800344e-06 | N189: -0.0006636735606 | O189: -0.02491676755 | P189: -0.0001609490092 | Q189: -0.00779958289 | R189: 1.058273679e-05
A190: 92.0736 | B190: ='DF raw data'!A195 -> 1.0630191e-05 | C190: ='DF raw data'!B195 -> 1.6117043e-05 | D190: ='DF raw data'!C195 -> -8.2007119e-07 | F190: 1.063699432e-05 | G190: 1.616325036e-05 | H190: -8.205960356e-07 | J190: -9.83729204e-06 | K190: -5.325385868e-06 | L190: 7.394019846e-06 | N190: -0.0006685961415 | O190: -0.02525133306 | P190: -0.0001636138323 | Q190: -0.007881455252 | R190: 1.081982145e-05
A191: 92.574 | B191: ='DF raw data'!A196 -> 9.1438815e-06 | C191: ='DF raw data'!B196 -> 5.7678985e-06 | D191: ='DF raw data'!C196 -> -3.2797104e-06 | F191: 9.149733584e-06 | G191: 5.784434994e-06 | H191: -3.281809415e-06 | J191: -1.071507426e-05 | K191: -3.306462186e-06 | L191: 9.354958644e-06 | N191: -0.0006739579647 | O191: -0.02558858162 | P191: -0.000165268386 | Q191: -0.007964155552 | R191: 1.106078055e-05
A192: 93.0744 | B192: ='DF raw data'!A197 -> 4.6037853e-06 | C192: ='DF raw data'!B197 -> 9.6749127e-06 | D192: ='DF raw data'!C197 -> -1.058748e-05 | F192: 4.606731723e-06 | G192: 9.702650555e-06 | H192: -1.059425599e-05 | J192: -1.668916423e-05 | K192: -8.50684259e-06 | L192: 1.559213458e-05 | N192: -0.0006823092224 | O192: -0.02593000916 | P192: -0.00016952521 | Q192: -0.008048985967 | R192: 1.13081206e-05
A193: 93.5748 | B193: ='DF raw data'!A198 -> -2.4211922e-06 | C193: ='DF raw data'!B198 -> 2.3615117e-05 | D193: ='DF raw data'!C198 -> -4.4404796e-06 | F193: -2.422741763e-06 | G193: 2.368282125e-05 | H193: -4.443321507e-06 | J193: -1.752754045e-05 | K193: -7.599614213e-06 | L193: 1.605345064e-05 | N193: -0.0006910800037 | O193: -0.02627582559 | P193: -0.000173328057 | Q193: -0.008135719327 | R193: 1.156214075e-05
A194: 94.0752 | B194: ='DF raw data'!A199 -> -6.2371905e-06 | C194: ='DF raw data'!B199 -> 1.3726028e-05 | D194: ='DF raw data'!C199 -> 9.4337147e-06 | F194: -6.241182302e-06 | G194: 1.376538035e-05 | H194: 9.439752277e-06 | J194: -9.863741557e-06 | K194: -1.880136017e-05 | L194: 1.31418444e-05 | N194: -0.00069601582 | O194: -0.02662411191 | P194: -0.0001827362576 | Q194: -0.00822716055 | R194: 1.182126316e-05
A195: 94.5756 | B195: ='DF raw data'!A200 -> -4.6584332e-06 | C195: ='DF raw data'!B200 -> 5.9800473e-06 | D195: ='DF raw data'!C200 -> 9.0827753e-06 | F195: -4.661414597e-06 | G195: 5.997192022e-06 | H195: 9.088588276e-06 | J195: -7.455750729e-06 | K195: -2.421102026e-05 | L195: 9.779513085e-06 | N195: -0.0006997466776 | O195: -0.02697426514 | P195: -0.0001948514521 | Q195: -0.008324664217 | R195: 1.208528046e-05
A196: 95.076 | B196: ='DF raw data'!A201 -> -1.3158215e-06 | C196: ='DF raw data'!B201 -> 3.7065797e-06 | D196: ='DF raw data'!C201 -> -2.8320671e-06 | F196: -1.316663626e-06 | G196: 3.717206418e-06 | H196: -2.833879623e-06 | J196: -1.048497509e-05 | K196: -2.346864196e-05 | L196: 1.171261428e-05 | N196: -0.0007049933592 | O196: -0.02732704382 | P196: -0.0002065951606 | Q196: -0.008428044435 | R196: 1.235534493e-05
A197: 95.5764 | B197: ='DF raw data'!A202 -> 1.3183114e-06 | C197: ='DF raw data'!B202 -> 9.7983329e-06 | D197: ='DF raw data'!C202 -> -5.8802443e-06 | F197: 1.319155119e-06 | G197: 9.8264246e-06 | H197: -5.884007656e-06 | J197: -1.321897773e-05 | K197: -1.459679219e-05 | L197: 1.568557034e-05 | N197: -0.0007116081356 | O197: -0.02768313253 | P197: -0.0002138993954 | Q197: -0.008535079693 | R197: 1.263163534e-05
A198: 96.0768 | B198: ='DF raw data'!A203 -> 1.6941774e-06 | C198: ='DF raw data'!B203 -> 6.3862003e-06 | D198: ='DF raw data'!C203 -> -2.4039916e-06 | F198: 1.695261674e-06 | G198: 6.404509458e-06 | H198: -2.405530155e-06 | J198: -1.72679184e-05 | K198: -9.953060927e-06 | L198: 6.508884622e-06 | N198: -0.000720249002 | O198: -0.02804354513 | P198: -0.0002188799071 | Q198: -0.008644607198 | R198: 1.291519552e-05
A199: 96.5772 | B199: ='DF raw data'!A204 -> -9.8311837e-08 | C199: ='DF raw data'!B204 -> 1.2293286e-05 | D199: ='DF raw data'!C204 -> -5.7060724e-06 | F199: -9.837475658e-08 | G199: =(1-$G$1*($B$2-$G$2))*C199*$M$2/$M$1 -> 1.23285307e-05 | H199: -5.709724286e-06 | J199: =-CELL("contents", INDEX($F$6:$F$1203,1204-CELL("row",F199))) -> -1.937187207e-05 | K199: =CELL("contents", INDEX($G$6:$G$1203,1204-CELL("row",G199))) -> 2.220012553e-06 | L199: =-CELL("contents", INDEX($H$6:$H$1203,1204-CELL("row",H199))) -> 7.076686983e-06 | N199: -0.0007299426868 | O199: -0.02840880845 | P199: -0.0002177690128 | Q199: -0.008753578812 | R199: 1.320554745e-05
A200: =A199+$B$1 -> 97.0776 | B200: ='DF raw data'!A205 -> -2.0494647e-06 | C200: ='DF raw data'!B205 -> 9.0261883e-06 | D200: ='DF raw data'!C205 -> -1.2790885e-05 | F200: -2.050776357e-06 | G200: 9.052066271e-06 | H200: -1.279907117e-05 | J200: -1.19876662e-05 | K200: -4.420832138e-06 | L200: 8.606212953e-06 | N200: =J200*$B$1+N199 -> -0.0007359413149 | O200: =N200*$B$1+O199 -> -0.02877707349 | P200: =K200*$B$1+P199 -> -0.0002199811972 | Q200: =P200*$B$1+Q199 -> -0.008863657403 | R200: =(N200^2+P200^2)*$B$1+R199 -> 1.350078413e-05
... 1003 more rows

Sheet 10 x=-1
A1: dz | B1: ='DF raw data'!E7 -> 0.50024 | C1: mm | F1: T_coeff | G1: -0.0008 | H1: /degC | L1: Hallref | M1: ='PI vs x'!B44 -> 0.50549 | N1: T | P1: IBy total | Q1: =P1203*1000 -> -12.44335884 | R1: muTm
A2: Tref | B2: ='DF raw data'!E8 -> 20.8 | C2: degC | F2: Tcorr | G2: 20 | H2: degC | L2: NMRref | M2: ='PI vs x'!B45 -> 0.506615 | N2: T | P2: JBy total | Q2: =Q1203 -> -8.437773779 | R2: muTm^2
A3: Encoder | B3: ='DF raw data'!E9 -> 390610 | P3: PI total | Q3: =R1203 -> 4523.071249 | R3: T^2mm^3
J4: SXR-rotation
A5: z [mm] | B5: Bx | C5: By | D5: Bz | F5: Bx_corr | G5: By_corr | H5: Bz_corr | J5: Bx_rot | K5: By_rot | L5: Bz_rot | N5: Ix | O5: Jx | P5: Iy | Q5: Jy | R5: PI
A6: 0 | B6: ='DF raw data'!D11 -> 4.0993964e-06 | C6: ='DF raw data'!E11 -> 1.0222467e-06 | D6: ='DF raw data'!F11 -> -1.0899671e-06 | F6: =(1-$G$1*($B$2-$G$2))*B6 -> 4.102020014e-06 | G6: =(1-$G$1*($B$2-$G$2))*C6*$M$2/$M$1 -> 1.025177469e-06 | H6: =(1-$G$1*($B$2-$G$2))*D6 -> -1.090664679e-06 | J6: =-CELL("contents", INDEX($F$6:$F$1203,1204-CELL("row",F6))) -> -8.881733274e-06 | K6: =CELL("contents", INDEX($G$6:$G$1203,1204-CELL("row",G6))) -> 7.772263782e-06 | L6: =-CELL("contents", INDEX($H$6:$H$1203,1204-CELL("row",H6))) -> 9.621363534e-06 | N6: =J6*$B$1 -> -4.442998253e-06 | O6: =N6*$B$1 -> -2.222565446e-06 | P6: =K6*$B$1 -> 3.887997234e-06 | Q6: =P6*$B$1 -> 1.944931737e-06 | R6: =(N6^2+P6)^2*$B$1 -> 7.561966e-12
A7: =A6+$B$1 -> 0.50024 | B7: ='DF raw data'!D12 -> 3.9424685e-06 | C7: ='DF raw data'!E12 -> 4.6147725e-06 | D7: ='DF raw data'!F12 -> -4.7873123e-06 | F7: =(1-$G$1*($B$2-$G$2))*B7 -> 3.94499168e-06 | G7: =(1-$G$1*($B$2-$G$2))*C7*$M$2/$M$1 -> 4.628002996e-06 | H7: -4.79037618e-06 | J7: =-CELL("contents", INDEX($F$6:$F$1203,1204-CELL("row",F7))) -> -1.236274009e-05 | K7: =CELL("contents", INDEX($G$6:$G$1203,1204-CELL("row",G7))) -> 6.57453312e-06 | L7: =-CELL("contents", INDEX($H$6:$H$1203,1204-CELL("row",H7))) -> 9.737642205e-06 | N7: =J7*$B$1+N6 -> -1.062733536e-05 | O7: =N7*$B$1+O6 -> -7.538783685e-06 | P7: =K7*$B$1+P6 -> 7.176841682e-06 | Q7: =P7*$B$1+Q6 -> 5.53507502e-06 | R7: =(N7^2+P7^2)*$B$1+R6 -> 8.982509002e-11
A8: =A7+$B$1 -> 1.00048 | B8: ='DF raw data'!D13 -> 3.8480848e-06 | C8: ='DF raw data'!E13 -> 7.9787387e-06 | D8: ='DF raw data'!F13 -> 8.0842125e-07 | F8: 3.850547574e-06 | G8: 8.001613646e-06 | H8: 8.089386396e-07 | J8: -9.825906958e-06 | K8: 3.613457923e-07 | L8: 9.913456354e-06 | N8: =J8*$B$1+N7 -> -1.554264705e-05 | O8: =N8*$B$1+O7 -> -1.531383745e-05 | P8: =K8*$B$1+P7 -> 7.357601301e-06 | Q8: =P8*$B$1+Q7 -> 9.215641495e-06 | R8: =(N8^2+P8^2)*$B$1+R7 -> 2.377501472e-10
A9: 1.50072 | B9: ='DF raw data'!D14 -> 4.3400282e-06 | C9: ='DF raw data'!E14 -> -5.2272153e-06 | D9: ='DF raw data'!F14 -> 2.4083142e-06 | F9: 4.342805818e-06 | G9: -5.242201662e-06 | H9: 2.409855521e-06 | J9: -9.336854465e-06 | K9: -2.056863444e-06 | L9: 9.92897498e-06 | N9: -2.021331513e-05 | O9: -2.542534621e-05 | P9: 6.328675932e-06 | Q9: 1.238149834e-05 | R9: 4.621729422e-10
A10: 2.00096 | B10: ='DF raw data'!D15 -> 4.6020864e-06 | C10: ='DF raw data'!E15 -> -1.2230543e-05 | D10: ='DF raw data'!F15 -> 2.5814875e-06 | F10: 4.605031735e-06 | G10: -1.226560782e-05 | H10: 2.583139652e-06 | J10: -1.283983524e-05 | K10: -6.438861563e-06 | L10: 9.451676104e-06 | N10: -2.663631431e-05 | O10: -3.874989608e-05 | P10: 3.107699824e-06 | Q10: 1.39360941e-05 | R10: 8.219210576e-10
A11: 2.5012 | B11: ='DF raw data'!D16 -> 4.5207189e-06 | C11: ='DF raw data'!E16 -> -9.6552649e-06 | D11: ='DF raw data'!F16 -> 3.9493739e-06 | F11: 4.52361216e-06 | G11: -9.682946425e-06 | H11: 3.951901499e-06 | J11: -1.283990328e-05 | K11: -1.367636387e-05 | L11: 8.513729102e-06 | N11: -3.305934753e-05 | O11: -5.528750409e-05 | P11: -3.73376444e-06 | Q11: 1.206831578e-05 | R11: 1.375617432e-09
A12: 3.00144 | B12: ='DF raw data'!D17 -> 4.0543405e-06 | C12: ='DF raw data'!E17 -> 2.5821428e-06 | D12: ='DF raw data'!F17 -> 1.1570314e-06 | F12: 4.056935278e-06 | G12: 2.589545772e-06 | H12: 1.1577719e-06 | J12: -7.70452164e-06 | K12: -2.386300135e-06 | L12: 8.017183916e-06 | N12: -3.691345743e-05 | O12: -7.375309203e-05 | P12: -4.92748722e-06 | Q12: 9.603389572e-06 | R12: 2.069392019e-09
A13: 3.50168 | B13: ='DF raw data'!D18 -> 4.3149303e-06 | C13: ='DF raw data'!E18 -> -6.438735e-06 | D13: ='DF raw data'!F18 -> -9.8066857e-06 | F13: 4.317691855e-06 | G13: -6.457194774e-06 | H13: -9.812961979e-06 | J13: -6.955046583e-06 | K13: -4.859104166e-06 | L13: 8.187870686e-06 | N13: -4.039264994e-05 | O13: -9.395911124e-05 | P13: -7.358205488e-06 | Q13: 5.922520859e-06 | R13: 2.912651268e-09
A14: 4.00192 | B14: ='DF raw data'!D19 -> 4.3758728e-06 | C14: ='DF raw data'!E19 -> -6.7177316e-06 | D14: ='DF raw data'!F19 -> -1.3784788e-06 | F14: 4.378673359e-06 | G14: -6.736991254e-06 | H14: -1.379361026e-06 | J14: -1.001873589e-05 | K14: -1.014618784e-06 | L14: 8.312873336e-06 | N14: -4.540442238e-05 | O14: -0.0001166722195 | P14: -7.865758388e-06 | Q14: 1.987753883e-06 | R14: 3.974876755e-09
A15: 4.50216 | B15: ='DF raw data'!D20 -> 4.3610544e-06 | C15: ='DF raw data'!E20 -> -4.6820314e-06 | D15: ='DF raw data'!F20 -> 8.2665365e-06 | F15: 4.363845475e-06 | G15: -4.695454726e-06 | H15: 8.271827083e-06 | J15: -1.027648674e-05 | K15: -6.815402816e-06 | L15: 7.90563407e-06 | N15: -5.054513211e-05 | O15: -0.0001419569164 | P15: -1.127509549e-05 | Q15: -3.652499886e-06 | R15: 5.316489499e-09
A16: 5.0024 | B16: ='DF raw data'!D21 -> 4.656888e-06 | C16: ='DF raw data'!E21 -> -1.2727556e-05 | D16: ='DF raw data'!F21 -> 7.9315705e-06 | F16: 4.659868408e-06 | G16: -1.276404575e-05 | H16: 7.936646705e-06 | J16: -8.866371148e-06 | K16: 2.498689432e-06 | L16: 7.964505123e-06 | N16: -5.498044561e-05 | O16: -0.0001694603345 | P16: -1.002515109e-05 | Q16: -8.667481468e-06 | R16: 6.878915631e-09
A17: 5.50264 | B17: ='DF raw data'!D22 -> 4.4759299e-06 | C17: ='DF raw data'!E22 -> -8.4081184e-06 | D17: ='DF raw data'!F22 -> 3.7169007e-06 | F17: 4.478794495e-06 | G17: -8.432224372e-06 | H17: 3.719279516e-06 | J17: -9.094132422e-06 | K17: 9.319371541e-06 | L17: 8.646321807e-06 | N17: -5.952969441e-05 | O17: -0.0001992394688 | P17: -5.363228672e-06 | Q17: -1.135038298e-05 | R17: 8.666047412e-09
A18: 6.00288 | B18: ='DF raw data'!D23 -> 3.9759771e-06 | C18: ='DF raw data'!E23 -> 4.8590773e-06 | D18: ='DF raw data'!F23 -> 1.6822091e-06 | F18: 3.978521725e-06 | G18: 4.873008215e-06 | H18: 1.683285714e-06 | J18: -9.248088291e-06 | K18: -6.814063888e-06 | L18: 8.871818832e-06 | N18: -6.41559581e-05 | O18: -0.0002313328453 | P18: -8.771895991e-06 | Q18: -1.573843623e-05 | R18: 1.076352028e-08
A19: 6.50312 | B19: ='DF raw data'!D24 -> 4.1678813e-06 | C19: ='DF raw data'!E24 -> -6.8815638e-07 | D19: ='DF raw data'!F24 -> 5.6443383e-07 | F19: 4.170548744e-06 | G19: -6.901293159e-07 | H19: 5.647950677e-07 | J19: -7.023041071e-06 | K19: 5.871362502e-06 | L19: 8.904718175e-06 | N19: -6.766916417e-05 | O19: -0.000265183668 | P19: -5.834805613e-06 | Q19: -1.865723939e-05 | R19: 1.30712078e-08
A20: 7.00336 | B20: ='DF raw data'!D25 -> 4.1320368e-06 | C20: ='DF raw data'!E25 -> 4.0274253e-07 | D20: ='DF raw data'!F25 -> 1.454528e-06 | F20: 4.134681304e-06 | G20: 4.038971879e-07 | H20: 1.455458898e-06 | J20: -5.665023196e-06 | K20: -4.464630047e-07 | L20: 9.043970839e-06 | N20: -7.050303537e-05 | O20: -0.0003004521064 | P20: -6.058144267e-06 | Q20: -2.168776548e-05 | R20: 1.557609913e-08
A21: 7.5036 | B21: ='DF raw data'!D26 -> 4.6208429e-06 | C21: ='DF raw data'!E26 -> -1.1780492e-05 | D21: ='DF raw data'!F26 -> 7.5570701e-06 | F21: 4.623800239e-06 | G21: -1.181426653e-05 | H21: 7.561906625e-06 | J21: -7.63552501e-06 | K21: -2.153071984e-06 | L21: 8.813280892e-06 | N21: -7.43226304e-05 | O21: -0.000337631259 | P21: -7.135196996e-06 | Q21: -2.525707642e-05 | R21: 1.836481928e-08
A22: 8.00384 | B22: ='DF raw data'!D27 -> 4.293237e-06 | C22: ='DF raw data'!E27 -> -1.0163893e-06 | D22: ='DF raw data'!F27 -> 9.3294381e-07 | F22: 4.295984672e-06 | G22: -1.019303276e-06 | H22: 9.33540894e-07 | J22: -1.052221491e-05 | K22: -5.350453632e-06 | L22: 8.125470375e-06 | N22: -7.958626319e-05 | O22: -0.0003774434913 | P22: -9.811707921e-06 | Q22: -3.016528519e-05 | R22: 2.158148399e-08
A23: 8.50408 | B23: ='DF raw data'!D28 -> 4.1324374e-06 | C23: ='DF raw data'!E28 -> 1.5201151e-05 | D23: ='DF raw data'!F28 -> -9.4161845e-07 | F23: =(1-$G$1*($B$2-$G$2))*B23 -> 4.13508216e-06 | G23: 1.524473251e-05 | H23: -9.422210858e-07 | J23: -7.442162438e-06 | K23: 5.343081958e-06 | L23: 9.485773012e-06 | N23: -8.330913053e-05 | O23: -0.0004191180508 | P23: -7.138884602e-06 | Q23: -3.373644083e-05 | R23: 2.507884937e-08
A24: 9.00432 | B24: ='DF raw data'!D29 -> 2.669824e-06 | C24: ='DF raw data'!E29 -> 5.2791056e-06 | D24: ='DF raw data'!F29 -> 4.0280406e-06 | F24: 2.671532687e-06 | G24: 5.294240731e-06 | H24: 4.030618546e-06 | J24: -1.944500084e-06 | K24: 3.258729629e-06 | L24: 1.495462484e-05 | N24: -8.428184725e-05 | O24: -0.000461279202 | P24: -5.508737693e-06 | Q24: -3.649213177e-05 | R24: 2.864744946e-08
A25: 9.50456 | B25: ='DF raw data'!D30 -> -1.7270949e-06 | C25: ='DF raw data'!E30 -> -1.5971963e-06 | D25: ='DF raw data'!F30 -> 3.3729489e-06 | F25: -1.728200241e-06 | G25: -1.601775442e-06 | H25: 3.375107587e-06 | J25: -1.612676553e-06 | K25: 2.376387497e-06 | L25: 1.592540474e-05 | N25: -8.508857257e-05 | O25: -0.0005038439096 | P25: -4.319973611e-06 | Q25: -3.865315537e-05 | R25: 3.227855523e-08
A26: 10.0048 | B26: ='DF raw data'!D31 -> -3.094457e-06 | C26: ='DF raw data'!E31 -> -9.8249791e-07 | D26: ='DF raw data'!F31 -> 4.5793745e-06 | F26: -3.096437452e-06 | G26: -9.853147194e-07 | H26: 4.5823053e-06 | J26: -2.270379013e-06 | K26: 6.168018279e-06 | L26: 1.043650609e-05 | N26: -8.622430696e-05 | O26: -0.0005469767569 | P26: -1.234484148e-06 | Q26: -3.927069372e-05 | R26: 3.599841744e-08
A27: 10.50504 | B27: ='DF raw data'!D32 -> -5.6961499e-06 | C27: ='DF raw data'!E32 -> -6.9903217e-06 | D27: ='DF raw data'!F32 -> 7.4729122e-08 | F27: -5.699795436e-06 | G27: -7.010362866e-06 | H27: 7.477694864e-08 | J27: -3.051713547e-06 | K27: -3.350399494e-06 | L27: -1.538104858e-06 | N27: -8.775089615e-05 | O27: -0.0005908732652 | P27: -2.910487991e-06 | Q27: -4.072663623e-05 | R27: 3.985461289e-08
A28: 11.00528 | B28: ='DF raw data'!D33 -> -8.6602258e-06 | C28: ='DF raw data'!E33 -> 8.1585384e-08 | D28: ='DF raw data'!F33 -> -7.0251258e-06 | F28: -8.665768345e-06 | G28: 8.181928829e-08 | H28: -7.029621881e-06 | J28: -7.866024736e-06 | K28: 1.157516198e-06 | L28: -1.047171461e-05 | N28: -9.168579636e-05 | O28: -0.000636738168 | P28: -2.331452088e-06 | Q28: -4.189292182e-05 | R28: 4.406249216e-08
A29: 11.50552 | B29: ='DF raw data'!D34 -> -4.1738622e-06 | C29: ='DF raw data'!E34 -> -4.6468085e-06 | D29: ='DF raw data'!F34 -> 1.7642336e-07 | F29: -4.176533472e-06 | G29: -4.660130843e-06 | H29: 1.76536271e-07 | J29: -9.518863476e-06 | K29: -4.431849935e-06 | L29: -8.097676598e-06 | N29: -9.644751263e-05 | O29: -0.0006849850717 | P29: -4.548440699e-06 | Q29: -4.41682338e-05 | R29: 4.872613514e-08
A30: 12.00576 | B30: ='DF raw data'!D35 -> -7.422737e-07 | C30: ='DF raw data'!E35 -> -4.4697517e-06 | D30: ='DF raw data'!F35 -> 3.8924695e-06 | F30: -7.427487552e-07 | G30: -4.482566423e-06 | H30: 3.89496068e-06 | J30: -9.526610931e-06 | K30: -1.908734273e-06 | L30: -4.441186942e-06 | N30: -0.0001012131045 | O30: -0.0007356159151 | P30: -5.503265932e-06 | Q30: -4.692118755e-05 | R30: 5.386579022e-08
A31: 12.506 | B31: ='DF raw data'!D36 -> 1.242187e-06 | C31: ='DF raw data'!E36 -> 9.2102709e-06 | D31: ='DF raw data'!F36 -> 3.9279435e-06 | F31: 1.242982e-06 | G31: 9.236676633e-06 | H31: 3.930457384e-06 | J31: -1.502300457e-05 | K31: 1.050333284e-06 | L31: 1.221460935e-06 | N31: -0.0001087282123 | O31: -0.000790006116 | P31: -4.97784721e-06 | Q31: -4.941130584e-05 | R31: 5.979193496e-08
A32: 13.00624 | B32: ='DF raw data'!D37 -> 1.2034056e-06 | C32: ='DF raw data'!E37 -> -3.6589117e-06 | D32: ='DF raw data'!F37 -> 1.5738592e-06 | F32: 1.20417578e-06 | G32: -3.669401755e-06 | H32: 1.57486647e-06 | J32: -2.016506639e-05 | K32: 3.852843777e-06 | L32: 6.862730138e-06 | N32: -0.0001188155851 | O32: -0.0008494424243 | P32: -3.050500639e-06 | Q32: -5.093728828e-05 | R32: 6.685854971e-08
A33: 13.50648 | B33: ='DF raw data'!D38 -> -2.8376053e-06 | C33: ='DF raw data'!E38 -> -1.5091354e-06 | D33: ='DF raw data'!F38 -> 1.61865e-06 | F33: -2.839421367e-06 | G33: -1.513462073e-06 | H33: 1.619685936e-06 | J33: -2.157765287e-05 | K33: -3.098436785e-06 | L33: 8.973179562e-06 | N33: -0.0001296095902 | O33: -0.0009142783257 | P33: -4.600462657e-06 | Q33: -5.323862372e-05 | R33: 7.527249153e-08
A34: 14.00672 | B34: ='DF raw data'!D39 -> -1.8316244e-06 | C34: ='DF raw data'!E39 -> 4.7973008e-06 | D34: ='DF raw data'!F39 -> -2.4413154e-07 | F34: -1.83279664e-06 | G34: 4.811054602e-06 | H34: -2.442877842e-07 | J34: -1.41654591e-05 | K34: 1.614742111e-06 | L34: 5.622501199e-06 | N34: -0.0001366957194 | O34: -0.0009826589923 | P34: -3.792704063e-06 | Q34: -5.5135886e-05 | R34: 8.462703171e-08
A35: 14.50696 | B35: ='DF raw data'!D40 -> 2.3373646e-07 | C35: ='DF raw data'!E40 -> -6.4280612e-06 | D35: ='DF raw data'!F40 -> 5.2574273e-06 | F35: 2.338860513e-07 | G35: -6.446490372e-06 | H35: 5.260792053e-06 | J35: -5.127747059e-06 | K35: -1.311540822e-06 | L35: 9.347452243e-06 | N35: -0.0001392608236 | O35: -0.001052322827 | P35: -4.448789244e-06 | Q35: -5.736134833e-05 | R35: 9.433837528e-08
A36: 15.0072 | B36: ='DF raw data'!D41 -> -3.5030303e-06 | C36: ='DF raw data'!E41 -> 5.2789728e-06 | D36: ='DF raw data'!F41 -> 4.9811611e-06 | F36: -3.505272239e-06 | G36: 5.29410755e-06 | H36: 4.984349043e-06 | J36: -1.992523499e-06 | K36: -1.340205368e-05 | L36: 9.2026045e-06 | N36: -0.0001402575636 | O36: -0.00112248527 | P36: -1.115303258e-05 | Q36: -6.294054134e-05 | R36: 1.042414136e-07
A37: 15.50744 | B37: ='DF raw data'!D42 -> -4.1942208e-06 | C37: ='DF raw data'!E42 -> 1.731678e-06 | D37: ='DF raw data'!F42 -> 1.4918646e-06 | F37: -4.196905101e-06 | G37: 1.736642699e-06 | H37: 1.492819393e-06 | J37: -1.568193102e-06 | K37: 5.705839606e-06 | L37: 2.327499047e-06 | N37: -0.0001410420365 | O37: -0.001193040139 | P37: -8.298743371e-06 | Q37: -6.709190473e-05 | R37: 1.14227067e-07
A38: 16.00768 | B38: ='DF raw data'!D43 -> 2.8743443e-06 | C38: ='DF raw data'!E43 -> 1.1644917e-05 | D38: ='DF raw data'!F43 -> 3.4920145e-06 | F38: 2.87618388e-06 | G38: 1.167830283e-05 | H38: 3.494249389e-06 | J38: -6.925190587e-06 | K38: -8.223141548e-08 | L38: 2.704835087e-06 | N38: -0.0001445062938 | O38: -0.001265327967 | P38: -8.339878814e-06 | Q38: -7.126384571e-05 | R38: 1.247079067e-07
A39: 16.50792 | B39: ='DF raw data'!D44 -> 8.0040381e-06 | C39: ='DF raw data'!E44 -> -2.990444e-06 | D39: ='DF raw data'!F44 -> 5.1848833e-06 | F39: 8.009160684e-06 | G39: -2.999017566e-06 | H39: 5.188201625e-06 | J39: -1.242565733e-05 | K39: 2.066484348e-06 | L39: 1.243903389e-06 | N39: -0.0001507221047 | O39: -0.001340725193 | P39: -7.306140684e-06 | Q39: -7.491866952e-05 | R39: 1.360986378e-07
A40: 17.00816 | B40: ='DF raw data'!D45 -> 7.6373826e-06 | C40: ='DF raw data'!E45 -> 9.2072023e-06 | D40: ='DF raw data'!F45 -> -9.6677604e-07 | F40: 7.642270525e-06 | G40: 9.233599236e-06 | H40: -9.673947767e-07 | J40: -1.169261349e-05 | K40: -4.339523293e-06 | L40: -6.643804816e-06 | N40: -0.0001565712176 | O40: -0.001419048379 | P40: -9.476943816e-06 | Q40: -7.96594159e-05 | R40: 1.484067222e-07
A41: 17.5084 | B41: ='DF raw data'!D46 -> 3.4087402e-06 | C41: ='DF raw data'!E46 -> -5.4048069e-06 | D41: ='DF raw data'!F46 -> -4.3807336e-06 | F41: 3.410921794e-06 | G41: -5.420302415e-06 | H41: -4.38353727e-06 | J41: -6.092092646e-06 | K41: -5.912188113e-06 | L41: -3.632903171e-06 | N41: -0.000159618726 | O41: -0.00149889605 | P41: -1.24344568e-05 | Q41: -8.587962856e-05 | R41: 1.612292508e-07
A42: 18.00864 | B42: ='DF raw data'!D47 -> -2.9291186e-06 | C42: ='DF raw data'!E47 -> 1.6570922e-06 | D42: ='DF raw data'!F47 -> -3.6559591e-06 | F42: -2.930993236e-06 | G42: 1.661843063e-06 | H42: -3.658298914e-06 | J42: -4.483737156e-06 | K42: -3.205083365e-06 | L42: 1.12456226e-06 | N42: -0.0001618616707 | O42: -0.001579865732 | P42: -1.40377677e-05 | Q42: -9.290188148e-05 | R42: 1.744337156e-07
A43: 18.50888 | B43: ='DF raw data'!D48 -> 1.6691165e-06 | C43: ='DF raw data'!E48 -> -6.4929081e-06 | D43: ='DF raw data'!F48 -> -1.1105326e-06 | F43: 1.670184735e-06 | G43: -6.511523187e-06 | H43: -1.111243341e-06 | J43: -6.906155413e-06 | K43: 3.237853448e-06 | L43: 2.232996704e-06 | N43: -0.0001653164059 | O43: -0.001662563611 | P43: -1.241806389e-05 | Q43: -9.911389376e-05 | R43: 1.881821729e-07
A44: 19.00912 | B44: ='DF raw data'!D49 -> 8.5282209e-06 | C44: ='DF raw data'!E49 -> -1.3484358e-05 | D44: ='DF raw data'!F49 -> 3.3741756e-07 | F44: 8.533678961e-06 | G44: -1.352301749e-05 | H44: 3.376335072e-07 | J44: -8.028730101e-06 | K44: 1.625180151e-06 | L44: 4.345443205e-06 | N44: -0.0001693326979 | O44: -0.0017472706 | P44: -1.160508377e-05 | Q44: -0.0001049192209 | R44: 2.025932071e-07
A45: 19.50936 | B45: ='DF raw data'!D50 -> 5.6021931e-06 | C45: ='DF raw data'!E50 -> -1.3808851e-05 | D45: ='DF raw data'!F50 -> -8.6143709e-06 | F45: 5.605778504e-06 | G45: -1.384844081e-05 | H45: -8.619884097e-06 | J45: -7.185679994e-06 | K45: 4.52470188e-06 | L45: 6.985202871e-06 | N45: -0.0001729272624 | O45: -0.001833775734 | P45: -9.341646904e-06 | Q45: -0.0001095922863 | R45: 2.175959572e-07
A46: 20.0096 | B46: ='DF raw data'!D51 -> 2.1938531e-07 | C46: ='DF raw data'!E51 -> -1.0610736e-05 | D46: ='DF raw data'!F51 -> -1.5282689e-05 | F46: 2.195257166e-07 | G46: -1.064115685e-05 | H46: -1.529246992e-05 | J46: -4.995030975e-06 | K46: 4.691027369e-06 | L46: 2.792941439e-06 | N46: -0.0001754259767 | O46: -0.001921530824 | P46: -6.995007373e-06 | Q46: -0.0001130914688 | R46: 2.330149565e-07
A47: 20.50984 | B47: ='DF raw data'!D52 -> 9.5516452e-07 | C47: ='DF raw data'!E52 -> -4.9447517e-06 | D47: ='DF raw data'!F52 -> -8.9512005e-06 | F47: 9.557758253e-07 | G47: -4.958928242e-06 | H47: -8.956929268e-06 | J47: 3.705828413e-07 | K47: 3.295257454e-06 | L47: 1.59910017e-07 | N47: -0.0001752405963 | O47: -0.00200919318 | P47: -5.346587784e-06 | Q47: -0.0001157660459 | R47: 2.483912599e-07
A48: 21.01008 | B48: ='DF raw data'!D53 -> 5.201096e-06 | C48: ='DF raw data'!E53 -> 3.0504707e-06 | D48: ='DF raw data'!F53 -> -8.4225343e-07 | F48: 5.204424701e-06 | G48: 3.059216362e-06 | H48: -8.427924722e-07 | J48: 7.693875531e-06 | K48: 4.440406296e-07 | L48: -1.281175628e-06 | N48: -0.000171391812 | O48: -0.00209493022 | P48: -5.1244609e-06 | Q48: -0.0001183295062 | R48: 2.630990229e-07
A49: 21.51032 | B49: ='DF raw data'!D54 -> 6.9413868e-06 | C49: ='DF raw data'!E54 -> -2.5809568e-06 | D49: ='DF raw data'!F54 -> 6.888135e-06 | F49: 6.945829288e-06 | G49: -2.588356371e-06 | H49: 6.892543406e-06 | J49: 4.964547578e-06 | K49: 1.598295694e-07 | L49: 2.995530013e-06 | N49: -0.0001689083468 | O49: -0.002179424932 | P49: -5.044507756e-06 | Q49: -0.0001208529708 | R49: 2.773836145e-07
A50: 22.01056 | B50: ='DF raw data'!D55 -> 5.2255928e-06 | C50: ='DF raw data'!E55 -> -3.6819947e-06 | D50: ='DF raw data'!F55 -> 2.1805658e-06 | F50: 5.228937179e-06 | G50: -3.692550933e-06 | H50: 2.181961362e-06 | J50: -3.447123248e-06 | K50: 1.167937189e-05 | L50: 8.92129978e-06 | N50: -0.0001706327357 | O50: -0.002264782251 | P50: 7.979812383e-07 | Q50: -0.0001204537886 | R50: 2.91948686e-07
A51: 22.5108 | B51: ='DF raw data'!D56 -> 4.4945532e-06 | C51: ='DF raw data'!E56 -> 6.3640018e-06 | D51: ='DF raw data'!F56 -> 2.3575335e-06 | F51: 4.497429714e-06 | G51: 6.382247315e-06 | H51: 2.359042321e-06 | J51: -8.966091028e-06 | K51: 3.125719581e-06 | L51: 3.074113274e-06 | N51: -0.0001751179331 | O51: -0.002352383246 | P51: 2.361591201e-06 | Q51: -0.0001192724262 | R51: 3.072919811e-07
A52: 23.01104 | B52: ='DF raw data'!D57 -> 6.4728733e-06 | C52: ='DF raw data'!E57 -> 3.2422067e-06 | D52: ='DF raw data'!F57 -> -1.5821067e-07 | F52: 6.477015939e-06 | G52: 3.251502067e-06 | H52: -1.583119248e-07 | J52: -1.16374442e-05 | K52: -2.489871223e-06 | L52: -1.776684051e-07 | N52: -0.0001809394482 | O52: -0.002442896396 | P52: 1.116058021e-06 | Q52: -0.0001187141294 | R52: 3.236700035e-07
A53: 23.51128 | B53: ='DF raw data'!D58 -> 8.9390642e-06 | C53: ='DF raw data'!E58 -> -8.2014412e-06 | D53: ='DF raw data'!F58 -> -1.4903567e-06 | F53: 8.944785201e-06 | G53: -8.224954631e-06 | H53: -1.491310528e-06 | J53: -9.186304975e-06 | K53: 1.400150639e-05 | L53: 4.539906682e-06 | N53: -0.0001855348054 | O53: -0.002535708327 | P53: 8.120171576e-06 | Q53: -0.0001146520947 | R53: 3.409228315e-07
A54: 24.01152 | B54: ='DF raw data'!D59 -> 7.8680023e-06 | C54: ='DF raw data'!E59 -> -2.5638765e-06 | D54: ='DF raw data'!F59 -> 7.6035249e-06 | F54: 7.873037821e-06 | G54: -2.571227102e-06 | H54: 7.608391156e-06 | J54: -4.149509187e-06 | K54: -1.931215944e-06 | L54: 7.85302252e-06 | N54: -0.0001876105558 | O54: -0.002629558631 | P54: 7.154100113e-06 | Q54: -0.0001110733277 | R54: 3.585557421e-07
A55: 24.51176 | B55: ='DF raw data'!D60 -> 3.3783026e-06 | C55: ='DF raw data'!E60 -> 1.1791564e-06 | D55: ='DF raw data'!F60 -> 4.6105883e-06 | F55: 3.380464714e-06 | G55: 1.182537027e-06 | H55: 4.613539077e-06 | J55: -3.45380232e-06 | K55: -7.745247247e-06 | L55: 5.424177253e-06 | N55: -0.0001893382859 | O55: -0.002724273215 | P55: 3.27961763e-06 | Q55: -0.0001094327318 | R55: 3.764942197e-07
A56: 25.012 | B56: ='DF raw data'!D61 -> -4.8529041e-06 | C56: ='DF raw data'!E61 -> -8.3830346e-06 | D56: ='DF raw data'!F61 -> 3.1718887e-06 | F56: -4.856009959e-06 | G56: -8.407068657e-06 | H56: 3.173918709e-06 | J56: -1.959461553e-06 | K56: -3.355084086e-06 | L56: 1.332943538e-06 | N56: -0.000190318487 | O56: -0.002819478135 | P56: 1.601270366e-06 | Q56: -0.0001086317123 | R56: 3.946147586e-07
A57: 25.51224 | B57: ='DF raw data'!D62 -> -9.9924109e-06 | C57: ='DF raw data'!E62 -> -5.3617114e-06 | D57: ='DF raw data'!F62 -> 1.4429475e-06 | F57: -9.998806043e-06 | G57: -5.377083361e-06 | H57: 1.443870986e-06 | J57: 2.187262653e-06 | K57: -7.662016107e-06 | L57: 4.452930553e-06 | N57: -0.0001892243307 | O57: -0.002914135715 | P57: -2.231576571e-06 | Q57: -0.0001097480362 | R57: 4.125287669e-07
A58: 26.01248 | B58: ='DF raw data'!D63 -> -4.9513596e-06 | C58: ='DF raw data'!E63 -> -7.2450348e-06 | D58: ='DF raw data'!F63 -> -5.1232105e-06 | F58: -4.95452847e-06 | G58: -7.265806225e-06 | H58: -5.126489355e-06 | J58: 1.997038587e-06 | K58: -5.464192788e-06 | L58: 4.310479943e-06 | N58: -0.0001882253321 | O58: -0.003008293555 | P58: -4.964984371e-06 | Q58: -0.0001122317199 | R58: 4.30263989e-07
A59: 26.51272 | B59: ='DF raw data'!D64 -> -3.6461411e-06 | C59: ='DF raw data'!E64 -> -3.1370801e-06 | D59: ='DF raw data'!F64 -> -3.8062385e-06 | F59: -3.64847463e-06 | G59: -3.14607407e-06 | H59: -3.808674493e-06 | J59: -1.041269786e-06 | K59: 5.623949299e-06 | L59: 5.502760614e-06 | N59: -0.0001887462169 | O59: -0.003102711962 | P59: -2.151659974e-06 | Q59: -0.0001133080663 | R59: 4.480874222e-07
A60: 27.01296 | B60: ='DF raw data'!D65 -> -7.2016833e-06 | C60: ='DF raw data'!E65 -> -7.6166289e-06 | D60: ='DF raw data'!F65 -> -1.4894918e-06 | F60: -7.206292377e-06 | G60: -7.638465681e-06 | H60: -1.490445075e-06 | J60: -1.204576536e-06 | K60: -3.78083893e-08 | L60: 5.023397618e-06 | N60: -0.0001893487943 | O60: -0.003197431803 | P60: -2.170573243e-06 | Q60: -0.0001143938739 | R60: 4.660248667e-07
A61: 27.5132 | B61: ='DF raw data'!D66 -> -6.1037217e-06 | C61: ='DF raw data'!E66 -> -4.5004381e-06 | D61: ='DF raw data'!F66 -> -8.1249318e-06 | F61: -6.107628082e-06 | G61: -4.513340801e-06 | H61: -8.130131756e-06 | J61: 4.382432963e-07 | K61: -3.167884221e-06 | L61: -1.26865472e-06 | N61: -0.0001891295674 | O61: -0.003292041978 | P61: -3.755275645e-06 | Q61: -0.000116272413 | R61: 4.839255026e-07
A62: 28.01344 | B62: ='DF raw data'!D67 -> -3.7451305e-06 | C62: ='DF raw data'!E67 -> -1.1256525e-05 | D62: ='DF raw data'!F67 -> -1.2248954e-05 | F62: -3.747527384e-06 | G62: -1.128879732e-05 | H62: -1.225679333e-05 | J62: -3.696745204e-07 | K62: 5.351669106e-07 | L62: -4.684297433e-07 | N62: -0.0001893144934 | O62: -0.00338674466 | P62: -3.48756375e-06 | Q62: -0.0001180170319 | R62: 5.018601773e-07
A63: 28.51368 | B63: ='DF raw data'!D68 -> -1.8953702e-06 | C63: ='DF raw data'!E68 -> 5.0708337e-07 | D63: ='DF raw data'!F68 -> -1.1712661e-05 | F63: -1.896583237e-06 | G63: 5.085371718e-07 | H63: -1.17201571e-05 | J63: -5.228670009e-06 | K63: -5.288233658e-06 | L63: 4.144188885e-06 | N63: -0.0001919300833 | O63: -0.003482755765 | P63: -6.132949755e-06 | Q63: -0.0001210849786 | R63: 5.203064123e-07
A64: 29.01392 | B64: ='DF raw data'!D69 -> -4.0718692e-06 | C64: ='DF raw data'!E69 -> -4.6525456e-06 | D64: ='DF raw data'!F69 -> -5.6044623e-06 | F64: -4.074475196e-06 | G64: -4.665884391e-06 | H64: -5.608049156e-06 | J64: -8.397489556e-06 | K64: 2.464434505e-06 | L64: 7.207866684e-07 | N64: -0.0001961308435 | O64: -0.003580868258 | P64: -4.900141038e-06 | Q64: -0.0001235362252 | R64: 5.395613097e-07
A65: 29.51416 | B65: ='DF raw data'!D70 -> -7.1223849e-06 | C65: ='DF raw data'!E70 -> -1.3011224e-05 | D65: ='DF raw data'!F70 -> -3.9725578e-06 | F65: -7.126943226e-06 | G65: -1.304852702e-05 | H65: -3.975100237e-06 | J65: -7.970286821e-06 | K65: 3.602486358e-06 | L65: 5.913901276e-07 | N65: -0.0002001178998 | O65: -0.003680975236 | P65: -3.098033263e-06 | Q65: -0.0001250859854 | R65: 5.595993092e-07
A66: 30.0144 | B66: ='DF raw data'!D71 -> -7.5740118e-06 | C66: ='DF raw data'!E71 -> -7.8905578e-06 | D66: ='DF raw data'!F71 -> -7.5408529e-06 | F66: -7.578859168e-06 | G66: -7.913179932e-06 | H66: -7.545679046e-06 | J66: -5.205760656e-06 | K66: -2.418548426e-06 | L66: 4.826870221e-06 | N66: -0.0002027220295 | O66: -0.003782384904 | P66: -4.307887927e-06 | Q66: -0.0001272409632 | R66: 5.801665663e-07
A67: 30.51464 | B67: ='DF raw data'!D72 -> -4.8035095e-06 | C67: ='DF raw data'!E72 -> -1.0207787e-05 | D67: ='DF raw data'!F72 -> -7.8493313e-06 | F67: -4.806583746e-06 | G67: -1.02370526e-05 | H67: -7.854354872e-06 | J67: -5.216848147e-06 | K67: -1.270182587e-05 | L67: 2.339619499e-06 | N67: -0.0002053317056 | O67: -0.003885100037 | P67: -1.06618493e-05 | Q67: -0.0001325744467 | R67: 6.013141044e-07
A68: 31.01488 | B68: ='DF raw data'!D73 -> -3.8554008e-06 | C68: ='DF raw data'!E73 -> -3.250494e-06 | D68: ='DF raw data'!F73 -> -3.4069139e-06 | F68: -3.857868257e-06 | G68: -3.259813126e-06 | H68: -3.409094325e-06 | J68: -4.285832278e-06 | K68: -5.666245314e-06 | L68: 2.351139267e-06 | N68: -0.0002074756503 | O68: -0.003988887656 | P68: -1.349633186e-05 | Q68: -0.0001393258518 | R68: 6.229386274e-07
A69: 31.51512 | B69: ='DF raw data'!D74 -> -2.3692244e-06 | C69: ='DF raw data'!E74 -> 2.1765227e-06 | D69: ='DF raw data'!F74 -> 2.1631954e-06 | F69: -2.370740704e-06 | G69: 2.182762764e-06 | H69: 2.164579845e-06 | J69: -3.596537011e-06 | K69: 5.761773409e-06 | L69: 2.417203521e-06 | N69: -0.000209274782 | O69: -0.004093575273 | P69: -1.061406233e-05 | Q69: -0.0001446354303 | R69: 6.449034619e-07
A70: 32.01536 | B70: ='DF raw data'!D75 -> 2.8122004e-06 | C70: ='DF raw data'!E75 -> -4.7303329e-06 | D70: ='DF raw data'!F75 -> 5.4244779e-06 | F70: 2.814000208e-06 | G70: -4.743894706e-06 | H70: 5.427949566e-06 | J70: -4.972655864e-06 | K70: 1.131206484e-05 | L70: 7.587569939e-06 | N70: -0.0002117623034 | O70: -0.004199507248 | P70: -4.955315014e-06 | Q70: -0.0001471142771 | R70: 6.673481443e-07
A71: 32.5156 | B71: ='DF raw data'!D76 -> 6.2502636e-06 | C71: ='DF raw data'!E76 -> 4.5048291e-06 | D71: ='DF raw data'!F76 -> 1.7998768e-06 | F71: 6.254263769e-06 | G71: =(1-$G$1*($B$2-$G$2))*C71*$M$2/$M$1 -> 4.51774439e-06 | H71: 1.801028721e-06 | J71: =-CELL("contents", INDEX($F$6:$F$1203,1204-CELL("row",F71))) -> -5.85003773e-06 | K71: =CELL("contents", INDEX($G$6:$G$1203,1204-CELL("row",G71))) -> -7.246805306e-06 | L71: =-CELL("contents", INDEX($H$6:$H$1203,1204-CELL("row",H71))) -> 4.905988625e-06 | N71: -0.0002146887263 | O71: -0.004306903136 | P71: -8.5804569e-06 | Q71: -0.0001514065648 | R71: 6.904416606e-07
A72: =A71+$B$1 -> 33.01584 | B72: ='DF raw data'!D77 -> 5.7975021e-06 | C72: ='DF raw data'!E77 -> 1.1238364e-05 | D72: ='DF raw data'!F77 -> 2.3264524e-06 | F72: 5.801212501e-06 | G72: 1.127058425e-05 | H72: 2.32794133e-06 | J72: -2.37737995e-06 | K72: -4.607809066e-06 | L72: -3.238717954e-06 | N72: =J72*$B$1+N71 -> -0.0002158779868 | O72: =N72*$B$1+O71 -> -0.00441489394 | P72: =K72*$B$1+P71 -> -1.088546731e-05 | Q72: =P72*$B$1+Q71 -> -0.000156851911 | R72: =(N72^2+P72^2)*$B$1+R71 -> 7.138137731e-07
A73: 33.51608 | B73: ='DF raw data'!D78 -> 2.6016728e-06 | C73: ='DF raw data'!E78 -> 4.3988875e-06 | D73: ='DF raw data'!F78 -> 5.5794826e-06 | F73: 2.603337871e-06 | G73: 4.411499056e-06 | H73: 5.583053469e-06 | J73: -3.968769788e-06 | K73: 3.579468554e-06 | L73: -6.396265292e-06 | N73: -0.0002178633242 | O73: -0.004523877889 | P73: -9.094873958e-06 | Q73: -0.0001614015308 | R73: 7.375987568e-07
A74: 34.01632 | B74: ='DF raw data'!D79 -> 1.3021947e-06 | C74: ='DF raw data'!E79 -> -1.1432112e-05 | D74: ='DF raw data'!F79 -> 1.5638093e-06 | F74: 1.303028105e-06 | G74: -1.146488772e-05 | H74: 1.564810138e-06 | J74: -9.776480646e-06 | K74: -4.045811732e-06 | L74: -3.811182697e-06 | N74: -0.0002227539109 | O74: -0.004635308306 | P74: -1.111875082e-05 | Q74: -0.0001669635747 | R74: 7.624821608e-07
A75: 34.51656 | B75: ='DF raw data'!D80 -> 2.8472441e-06 | C75: ='DF raw data'!E80 -> -6.0670063e-06 | D75: ='DF raw data'!F80 -> -3.3397605e-06 | F75: 2.849066336e-06 | G75: -6.084400332e-06 | H75: -3.341897947e-06 | J75: -4.018730242e-06 | K75: -5.521998142e-06 | L75: 5.519646915e-07 | N75: -0.0002247642405 | O75: -0.00474774437 | P75: -1.388107517e-05 | Q75: -0.0001739074437 | R75: 7.878501556e-07
A76: 35.0168 | B76: ='DF raw data'!D81 -> 4.514111e-06 | C76: ='DF raw data'!E81 -> 2.0134758e-06 | D76: ='DF raw data'!F81 -> -2.0841521e-06 | F76: 4.517000031e-06 | G76: 2.01924841e-06 | H76: -2.085485957e-06 | J76: 9.585541823e-07 | K76: -9.357654283e-06 | L76: 3.242868809e-06 | N76: -0.0002242847333 | O76: -0.004859940565 | P76: -1.856214815e-05 | Q76: -0.0001831929727 | R76: 8.131864087e-07
A77: 35.51704 | B77: ='DF raw data'!D82 -> 4.1899089e-06 | C77: ='DF raw data'!E82 -> -3.4674449e-06 | D77: ='DF raw data'!F82 -> -3.9467656e-07 | F77: 4.192590442e-06 | G77: -3.477386022e-06 | H77: -3.94929153e-07 | J77: -5.832337609e-06 | K77: -3.30811812e-06 | L77: 1.871044603e-06 | N77: -0.0002272023019 | O77: -0.004973596244 | P77: -2.021700116e-05 | Q77: -0.0001933063254 | R77: 8.392137023e-07
A78: 36.01728 | B78: ='DF raw data'!D83 -> 2.9033135e-06 | C78: ='DF raw data'!E83 -> 3.4279365e-06 | D78: ='DF raw data'!F83 -> 6.6679382e-07 | F78: 2.905171621e-06 | G78: 3.437764352e-06 | H78: 6.67220568e-07 | J78: -1.314647836e-05 | K78: 4.980324309e-06 | L78: -3.905882566e-06 | N78: -0.0002337786963 | O78: -0.005090541699 | P78: -1.772564372e-05 | Q78: -0.0002021734014 | R78: 8.66710233e-07
A79: 36.51752 | B79: ='DF raw data'!D84 -> 1.2194255e-06 | C79: ='DF raw data'!E84 -> -5.7892103e-06 | D79: ='DF raw data'!F84 -> 2.1269902e-06 | F79: 1.220205932e-06 | G79: -5.805807895e-06 | H79: 2.128351474e-06 | J79: -1.417267371e-05 | K79: -7.991839002e-07 | L79: -4.439921933e-06 | N79: -0.0002408684345 | O79: -0.005211033725 | P79: -1.812542748e-05 | Q79: -0.0002112404652 | R79: 8.95897303e-07
A80: 37.01776 | B80: ='DF raw data'!D85 -> 2.6464156e-07 | C80: ='DF raw data'!E85 -> -1.3206007e-06 | D80: ='DF raw data'!F85 -> 2.7646443e-06 | F80: 2.648109306e-07 | G80: -1.324386846e-06 | H80: 2.766413672e-06 | J80: -9.365909548e-06 | K80: 6.019891014e-06 | L80: 1.00772313e-07 | N80: -0.0002455536371 | O80: -0.005333869476 | P80: -1.51140372e-05 | Q80: -0.0002188011112 | R80: 9.261743404e-07
A81: 37.518 | B81: ='DF raw data'!D86 -> -1.6698239e-06 | C81: ='DF raw data'!E86 -> -1.8252248e-06 | D81: ='DF raw data'!F86 -> -2.2492054e-06 | F81: -1.670892587e-06 | G81: -1.830457697e-06 | H81: -2.250644891e-06 | J81: -4.48774472e-06 | K81: -7.202359846e-07 | L81: 1.094344132e-05 | N81: -0.0002477985866 | O81: -0.005457828241 | P81: -1.547432805e-05 | Q81: -0.000226541989 | R81: 9.57010932e-07
A82: 38.01824 | B82: ='DF raw data'!D87 -> -1.3272657e-06 | C82: ='DF raw data'!E87 -> -6.182021e-06 | D82: ='DF raw data'!F87 -> -7.2757025e-06 | F82: -1.32811515e-06 | G82: -6.199744778e-06 | H82: -7.28035895e-06 | J82: -4.736679336e-06 | K82: -4.964411819e-06 | L82: 1.152729375e-05 | N82: -0.000250168063 | O82: -0.005582972313 | P82: -1.795772541e-05 | Q82: -0.0002355251616 | R82: 9.884792994e-07
A83: 38.51848 | B83: ='DF raw data'!D88 -> 2.566162e-06 | C83: ='DF raw data'!E88 -> -1.2254292e-05 | D83: ='DF raw data'!F88 -> -3.8683334e-06 | F83: 2.567804344e-06 | G83: -1.22894249e-05 | H83: -3.870809133e-06 | J83: -7.054366907e-06 | K83: -6.473652724e-06 | L83: 3.026896675e-06 | N83: -0.0002536969395 | O83: -0.00570988167 | P83: -2.119610545e-05 | Q83: -0.0002461283014 | R83: 1.02090056e-06
A84: 39.01872 | B84: ='DF raw data'!D89 -> 8.9490939e-08 | C84: ='DF raw data'!E89 -> -1.0816748e-05 | D84: ='DF raw data'!F89 -> -3.6665776e-07 | F84: 8.95482132e-08 | G84: -1.084775948e-05 | H84: -3.66892421e-07 | J84: -6.858331825e-06 | K84: -6.661388922e-06 | L84: -1.190137901e-06 | N84: -0.0002571277514 | O84: -0.005838507256 | P84: -2.452839865e-05 | Q84: -0.0002583983875 | R84: 1.054274734e-06
A85: 39.51896 | B85: ='DF raw data'!D90 -> -4.7718704e-06 | C85: ='DF raw data'!E90 -> -1.0971657e-05 | D85: ='DF raw data'!F90 -> -2.5998138e-06 | F85: -4.774924397e-06 | G85: -1.100311261e-05 | H85: -2.601477681e-06 | J85: -3.507436324e-06 | K85: 1.283829802e-05 | L85: 4.863233279e-06 | N85: -0.0002588823114 | O85: -0.005968010544 | P85: -1.810616845e-05 | Q85: -0.0002674558172 | R85: 1.087964839e-06
A86: 40.0192 | B86: ='DF raw data'!D91 -> -2.6296141e-06 | C86: ='DF raw data'!E91 -> 1.5260259e-05 | D86: ='DF raw data'!F91 -> -4.399702e-06 | F86: -2.631297053e-06 | G86: 1.530400997e-05 | H86: -4.402517809e-06 | J86: -3.785559008e-06 | K86: -5.642829774e-06 | L86: 8.529378811e-06 | N86: -0.0002607759994 | O86: -0.00609846113 | P86: -2.092893761e-05 | Q86: -0.000277925309 | R86: 1.122202337e-06
A87: 40.51944 | B87: ='DF raw data'!D92 -> 2.4119709e-06 | C87: ='DF raw data'!E92 -> 8.1700728e-06 | D87: ='DF raw data'!F92 -> -3.17078e-06 | F87: =(1-$G$1*($B$2-$G$2))*B87 -> 2.413514561e-06 | G87: 8.193496298e-06 | H87: -3.172809299e-06 | J87: -4.397708934e-06 | K87: -8.004838866e-06 | L87: 7.942395682e-06 | N87: -0.0002629759093 | O87: -0.006230012199 | P87: -2.493327821e-05 | Q87: -0.0002903979321 | R87: 1.157108082e-06
A88: 41.01968 | B88: ='DF raw data'!D93 -> 1.8994884e-07 | C88: ='DF raw data'!E93 -> -3.2150019e-06 | D88: ='DF raw data'!F93 -> -1.4155498e-06 | F88: 1.900704073e-07 | G88: -3.224219271e-06 | H88: -1.416455752e-06 | J88: -5.493901848e-06 | K88: -7.817504014e-06 | L88: 2.668406588e-06 | N88: -0.0002657241788 | O88: -0.006362938062 | P88: -2.884390642e-05 | Q88: -0.0003048268078 | R88: 1.192845883e-06
A89: 41.51992 | B89: ='DF raw data'!D94 -> -3.9613988e-06 | C89: ='DF raw data'!E94 -> 1.1066377e-05 | D89: ='DF raw data'!F94 -> -4.9099704e-06 | F89: -3.963934095e-06 | G89: 1.109810417e-05 | H89: -4.913112781e-06 | J89: -9.711158066e-06 | K89: -1.4948624e-06 | L89: -4.281554943e-06 | N89: -0.0002705820885 | O89: -0.006498294046 | P89: -2.959169638e-05 | Q89: -0.000319629758 | R89: 1.229908832e-06
A90: 42.02016 | B90: ='DF raw data'!D95 -> -1.1542512e-06 | C90: ='DF raw data'!E95 -> 1.1185393e-05 | D90: ='DF raw data'!F95 -> -4.7031203e-06 | F90: -1.154989921e-06 | G90: 1.121746138e-05 | H90: -4.706130297e-06 | J90: -1.451458239e-05 | K90: -8.135703681e-06 | L90: -2.792453627e-06 | N90: -0.0002778428632 | O90: -0.00663728216 | P90: -3.366150079e-05 | Q90: -0.0003364685872 | R90: 1.269092508e-06
A91: 42.5204 | B91: ='DF raw data'!D96 -> 4.7648218e-06 | C91: ='DF raw data'!E96 -> 1.7682361e-06 | D91: ='DF raw data'!F96 -> 2.551405e-06 | F91: 4.767871286e-06 | G91: 1.773305611e-06 | H91: 2.553037899e-06 | J91: -1.328794485e-05 | K91: -7.414602904e-06 | L91: 1.678047363e-06 | N91: -0.0002844900247 | O91: -0.00677959545 | P91: -3.737058175e-05 | Q91: -0.000355162847 | R91: 1.310277835e-06
A92: 43.02064 | B92: ='DF raw data'!D97 -> 6.7218484e-06 | C92: ='DF raw data'!E97 -> 4.0150189e-06 | D92: ='DF raw data'!F97 -> 7.9108049e-06 | F92: 6.726150383e-06 | G92: 4.02652991e-06 | H92: 7.915867815e-06 | J92: -9.054591432e-06 | K92: -7.175084872e-06 | L92: -5.707888412e-07 | N92: -0.0002890194936 | O92: -0.006924174561 | P92: -4.095984621e-05 | Q92: -0.0003756526005 | R92: 1.352903273e-06
A93: 43.52088 | B93: ='DF raw data'!D98 -> 1.3579972e-06 | C93: ='DF raw data'!E98 -> -5.240694e-06 | D93: ='DF raw data'!F98 -> 3.0467677e-06 | F93: 1.358866318e-06 | G93: -5.255719005e-06 | H93: 3.048717631e-06 | J93: -5.547201939e-06 | K93: -3.350800841e-06 | L93: -8.686724748e-06 | N93: -0.0002917944259 | O93: -0.007070141805 | P93: -4.263605082e-05 | Q93: -0.0003969808585 | R93: 1.396405054e-06
A94: 44.02112 | B94: ='DF raw data'!D99 -> -1.0133432e-06 | C94: ='DF raw data'!E99 -> 9.9406516e-06 | D94: ='DF raw data'!F99 -> -5.9427242e-07 | F94: -1.01399174e-06 | G94: 9.969151326e-06 | H94: -5.946527543e-07 | J94: -2.952193095e-06 | K94: -4.643804268e-06 | L94: -7.452887697e-06 | N94: -0.0002932712309 | O94: -0.007216847805 | P94: -4.495906747e-05 | Q94: -0.0004194711824 | R94: 1.440440847e-06
A95: 44.52136 | B95: ='DF raw data'!D100 -> 3.564066e-06 | C95: ='DF raw data'!E100 -> 3.0482695e-08 | D95: ='DF raw data'!F100 -> -1.9474871e-07 | F95: 3.566347002e-06 | G95: 3.057008851e-08 | H95: -1.948733492e-07 | J95: -4.541111553e-06 | K95: 3.324430955e-07 | L95: -2.060356085e-06 | N95: -0.0002955428766 | O95: -0.007364690174 | P95: -4.479276613e-05 | Q95: -0.0004418783158 | R95: 1.485138284e-06
A96: 45.0216 | B96: ='DF raw data'!D101 -> 4.7678254e-06 | C96: ='DF raw data'!E101 -> -6.6199282e-06 | D96: ='DF raw data'!F101 -> 8.0109982e-07 | F96: 4.770876808e-06 | G96: -6.638907453e-06 | H96: 8.016125239e-07 | J96: -1.318909162e-05 | K96: -5.301612304e-06 | L96: -3.402412551e-06 | N96: -0.0003021405878 | O96: -0.007515832982 | P96: -4.744484467e-05 | Q96: -0.0004656121249 | R96: 1.531930707e-06
A97: 45.52184 | B97: ='DF raw data'!D102 -> 4.4960884e-06 | C97: ='DF raw data'!E102 -> 4.4197004e-06 | D97: ='DF raw data'!F102 -> 3.9383253e-06 | F97: 4.498965897e-06 | G97: 4.432371627e-06 | H97: 3.940845828e-06 | J97: -1.298343909e-05 | K97: 1.356223159e-06 | L97: 2.545136646e-06 | N97: -0.0003086354233 | O97: -0.007670224766 | P97: -4.67664076e-05 | Q97: -0.0004890065526 | R97: 1.580675554e-06
A98: 46.02208 | B98: ='DF raw data'!D103 -> 5.787644e-07 | C98: ='DF raw data'!E103 -> 2.5602603e-06 | D98: ='DF raw data'!F103 -> 6.4086798e-06 | F98: 5.791348092e-07 | G98: 2.567600535e-06 | H98: 6.412781355e-06 | J98: -4.700544725e-06 | K98: 9.184624828e-06 | L98: 8.692207955e-06 | N98: -0.0003109868238 | O98: -0.007825792814 | P98: -4.217189087e-05 | Q98: -0.0005101026193 | R98: 1.629944829e-06
A99: 46.52232 | B99: ='DF raw data'!D104 -> -3.4577074e-06 | C99: ='DF raw data'!E104 -> -4.657617e-06 | D99: ='DF raw data'!F104 -> 1.4231805e-06 | F99: -3.459920333e-06 | G99: -4.670970331e-06 | H99: 1.424091336e-06 | J99: -5.221657023e-06 | K99: -1.71671854e-06 | L99: 1.166208496e-05 | N99: -0.0003135989055 | O99: -0.007982667531 | P99: -4.303066216e-05 | Q99: -0.0005316282777 | R99: 1.680066832e-06
A100: 47.02256 | B100: ='DF raw data'!D105 -> -5.2567384e-06 | C100: ='DF raw data'!E105 -> 1.532204e-06 | D100: ='DF raw data'!F105 -> -1.0632125e-06 | F100: -5.260102713e-06 | G100: 1.53659681e-06 | H100: -1.063892956e-06 | J100: -1.0839745e-05 | K100: -4.422484461e-06 | L100: 9.420109214e-06 | N100: -0.0003190213796 | O100: -0.008142254786 | P100: -4.524296578e-05 | Q100: -0.0005542606189 | R100: 1.732002532e-06
A101: 47.5228 | B101: ='DF raw data'!D106 -> -6.9990988e-06 | C101: ='DF raw data'!E106 -> -3.8555845e-06 | D101: ='DF raw data'!F106 -> -1.1187853e-06 | F101: -7.003578223e-06 | G101: -3.866638413e-06 | H101: -1.119501323e-06 | J101: -9.032950691e-06 | K101: -1.051805292e-05 | L101: 4.261532336e-06 | N101: -0.0003235400228 | O101: -0.008304102447 | P101: -5.050451658e-05 | Q101: -0.0005795249983 | R101: 1.785642693e-06
A102: 48.02304 | B102: ='DF raw data'!D107 -> -6.2739327e-06 | C102: ='DF raw data'!E107 -> -3.5683152e-06 | D102: ='DF raw data'!F107 -> -5.2531245e-06 | F102: -6.277948017e-06 | G102: -3.578545516e-06 | H102: -5.2564865e-06 | J102: -2.753086048e-06 | K102: -8.107202301e-06 | L102: 9.945660351e-07 | N102: -0.0003249172266 | O102: -0.00846663904 | P102: -5.456006346e-05 | Q102: -0.0006068181244 | R102: 1.839942747e-06
A103: 48.52328 | B103: ='DF raw data'!D108 -> -4.6069995e-06 | C103: ='DF raw data'!E108 -> -1.9115505e-06 | D103: ='DF raw data'!F108 -> -1.1154575e-06 | F103: -4.60994798e-06 | G103: -1.917030892e-06 | H103: -1.116171393e-06 | J103: -1.876104839e-06 | K103: -1.543529028e-05 | L103: 5.928447179e-06 | N103: -0.0003258557293 | O103: -0.00862964511 | P103: -6.228141306e-05 | Q103: -0.0006379737785 | R103: 1.894999627e-06
A104: 49.02352 | B104: ='DF raw data'!D109 -> -5.7869288e-06 | C104: ='DF raw data'!E109 -> 5.1308689e-06 | D104: ='DF raw data'!F109 -> 6.4374976e-06 | F104: -5.790632434e-06 | G104: 5.145579038e-06 | H104: 6.441617598e-06 | J104: -3.254427702e-06 | K104: -1.848548415e-05 | L104: 1.759311539e-08 | N104: -0.0003274837242 | O104: -0.008793465569 | P104: -7.152859165e-05 | Q104: -0.0006737552412 | R104: 1.951207558e-06
A105: 49.52376 | B105: ='DF raw data'!D110 -> -7.4129453e-06 | C105: ='DF raw data'!E110 -> 3.8886427e-08 | D105: ='DF raw data'!F110 -> 6.2551394e-06 | F105: -7.417689585e-06 | G105: 3.899791391e-08 | H105: 6.259142689e-06 | J105: -3.123782142e-06 | K105: -3.747014433e-06 | L105: -4.531158987e-06 | N105: -0.000329046365 | O105: -0.008958067722 | P105: -7.340299815e-05 | Q105: -0.000710474357 | R105: 2.008064592e-06
A106: 50.024 | B106: ='DF raw data'!D111 -> -6.5227082e-06 | C106: ='DF raw data'!E111 -> 1.4604194e-06 | D106: ='DF raw data'!F111 -> -6.5869648e-07 | F106: -6.526882733e-06 | G106: 1.464606404e-06 | H106: -6.591180457e-07 | J106: -3.150632615e-06 | K106: -6.59341179e-06 | L106: -2.124355318e-06 | N106: -0.0003306224374 | O106: -0.00912345829 | P106: -7.670128647e-05 | Q106: -0.0007488434085 | R106: 2.06568938e-06
A107: 50.52424 | B107: ='DF raw data'!D112 -> 5.6761718e-07 | C107: ='DF raw data'!E112 -> -1.8535101e-06 | D107: ='DF raw data'!F112 -> 1.293201e-06 | F107: 5.67980455e-07 | G107: -1.858824091e-06 | H107: 1.294028649e-06 | J107: -5.061756452e-06 | K107: 8.282880429e-06 | L107: 3.486946018e-06 | N107: -0.0003331545305 | O107: -0.009290115513 | P107: -7.255785836e-05 | Q107: -0.0007851397516 | R107: 2.123845574e-06
A108: 51.02448 | B108: ='DF raw data'!D113 -> 8.7598419e-06 | C108: ='DF raw data'!E113 -> -2.4045657e-06 | D108: ='DF raw data'!F113 -> 1.5183527e-06 | F108: 8.765448199e-06 | G108: -2.41145956e-06 | H108: 1.519324446e-06 | J108: -1.090206186e-05 | K108: 5.802852646e-06 | L108: 4.996359325e-06 | N108: -0.0003386081779 | O108: -0.009459500867 | P108: -6.965503935e-05 | Q108: -0.0008199839885 | R108: 2.183627917e-06
A109: 51.52472 | B109: ='DF raw data'!D114 -> 9.436013e-06 | C109: ='DF raw data'!E114 -> 6.5241147e-06 | D109: ='DF raw data'!F114 -> 2.6918347e-06 | F109: 9.442052048e-06 | G109: 6.542819256e-06 | H109: 2.693557474e-06 | J109: -1.209550417e-05 | K109: -7.503426532e-07 | L109: 8.164561777e-06 | N109: -0.0003446588329 | O109: -0.009631913002 | P109: -7.003039076e-05 | Q109: -0.0008550159912 | R109: 2.245504587e-06
A110: 52.02496 | B110: ='DF raw data'!D115 -> 6.440499e-06 | C110: ='DF raw data'!E115 -> 9.5902724e-06 | D110: ='DF raw data'!F115 -> 5.7684297e-06 | F110: 6.444620919e-06 | G110: 9.617767593e-06 | H110: 5.772121495e-06 | J110: -8.310994034e-06 | K110: -2.377336008e-06 | L110: 1.222988912e-05 | N110: -0.0003488163246 | O110: -0.00980640488 | P110: -7.121962933e-05 | Q110: -0.0008906428985 | R110: 2.308907538e-06
A111: 52.5252 | B111: ='DF raw data'!D116 -> 6.0860598e-06 | C111: ='DF raw data'!E116 -> 6.2776744e-06 | D111: ='DF raw data'!F116 -> 5.9693562e-06 | F111: 6.089954878e-06 | G111: 6.295672415e-06 | H111: 5.973176588e-06 | J111: -4.742022353e-06 | K111: 5.207155572e-07 | L111: 8.52218561e-06 | N111: -0.0003511884738 | O111: -0.009982083402 | P111: -7.095914658e-05 | Q111: -0.000926139502 | R111: 2.373122618e-06
A112: 53.02544 | B112: ='DF raw data'!D117 -> 4.4362141e-06 | C112: ='DF raw data'!E117 -> 6.7406672e-06 | D112: ='DF raw data'!F117 -> 7.8498415e-06 | F112: 4.439053277e-06 | G112: 6.75999261e-06 | H112: 7.854865399e-06 | J112: -1.023169109e-06 | K112: -5.230026957e-06 | L112: 3.085967956e-06 | N112: -0.0003517003039 | O112: -0.01015801796 | P112: -7.357541526e-05 | Q112: -0.0009629448678 | R112: 2.437706827e-06
A113: 53.52568 | B113: ='DF raw data'!D118 -> -6.5803596e-07 | C113: ='DF raw data'!E118 -> 7.4390246e-06 | D113: ='DF raw data'!F118 -> 4.1697344e-06 | F113: -6.58457103e-07 | G113: 7.460352192e-06 | H113: 4.17240303e-06 | J113: 3.190614487e-06 | K113: -9.495345213e-06 | L113: 4.68515308e-06 | N113: -0.000350104231 | O113: -0.0103331541 | P113: -7.832536675e-05 | Q113: -0.001002126349 | R113: 2.502091634e-06
A114: 54.02592 | B114: ='DF raw data'!D119 -> -3.4217962e-06 | C114: ='DF raw data'!E119 -> 2.441644e-06 | D114: ='DF raw data'!F119 -> -1.1505313e-06 | F114: -3.42398615e-06 | G114: 2.448644163e-06 | H114: -1.15126764e-06 | J114: 5.576830789e-06 | K114: -4.35290204e-06 | L114: 3.103348573e-06 | N114: -0.0003473144771 | O114: -0.0105068947 | P114: -8.050286247e-05 | Q114: -0.001042397101 | R114: 2.565676169e-06
A115: 54.52616 | B115: ='DF raw data'!D120 -> -7.0682978e-07 | C115: ='DF raw data'!E120 -> 3.5792436e-06 | D115: ='DF raw data'!F120 -> -7.9074056e-07 | F115: -7.072821511e-07 | G115: 3.589505247e-06 | H115: -7.91246634e-07 | J115: -1.364543649e-06 | K115: -1.024066392e-05 | L115: -3.887133875e-07 | N115: -0.0003479970764 | O115: -0.01068097675 | P115: -8.562565219e-05 | Q115: -0.001085230477 | R115: 2.629923852e-06
A116: 55.0264 | B116: ='DF raw data'!D121 -> 3.4021318e-06 | C116: ='DF raw data'!E121 -> 9.2364226e-06 | D116: ='DF raw data'!F121 -> 3.8814219e-06 | F116: 3.404309164e-06 | G116: 9.26290331e-06 | H116: 3.88390601e-06 | J116: -1.151761856e-05 | K116: -1.069749892e-06 | L116: 9.006876114e-06 | N116: -0.0003537586499 | O116: -0.01085794098 | P116: -8.616078387e-05 | Q116: -0.001128331548 | R116: 2.6962401e-06
A117: 55.52664 | B117: ='DF raw data'!D122 -> 7.6965898e-06 | C117: ='DF raw data'!E122 -> 2.2385684e-06 | D117: ='DF raw data'!F122 -> 2.9790149e-06 | F117: 7.701515617e-06 | G117: 2.244986348e-06 | H117: 2.98092147e-06 | J117: -1.340276028e-05 | K117: 4.251060295e-06 | L117: 1.700287388e-05 | N117: -0.0003604632467 | O117: -0.01103825912 | P117: -8.403423347e-05 | Q117: -0.001170368833 | R117: 2.764770731e-06
A118: 56.02688 | B118: ='DF raw data'!D123 -> 8.2151664e-06 | C118: ='DF raw data'!E123 -> 1.1093462e-05 | D118: ='DF raw data'!F123 -> 3.7594286e-06 | F118: 8.220424106e-06 | G118: 1.112526682e-05 | H118: 3.761834634e-06 | J118: -6.378163414e-06 | K118: -1.290454641e-05 | L118: 1.533928787e-05 | N118: -0.0003636538592 | O118: -0.01122017332 | P118: -9.048960377e-05 | Q118: -0.001215635352 | R118: 2.835020684e-06
A119: 56.52712 | B119: ='DF raw data'!D124 -> 3.3011402e-06 | C119: ='DF raw data'!E124 -> 3.4603735e-07 | D119: ='DF raw data'!F124 -> 1.1333547e-05 | F119: 3.30325293e-06 | G119: 3.470294348e-07 | H119: 1.134080047e-05 | J119: -1.975291178e-06 | K119: -3.619090225e-06 | L119: 1.169764871e-05 | N119: -0.0003646419789 | O119: -0.01140258183 | P119: -9.230001746e-05 | Q119: -0.001261807513 | R119: 2.905796173e-06
A120: 57.02736 | B120: ='DF raw data'!D125 -> -1.703866e-06 | C120: ='DF raw data'!E125 -> 6.4712785e-06 | D120: ='DF raw data'!F125 -> 2.8178215e-06 | F120: -1.704956474e-06 | G120: 6.489831576e-06 | H120: 2.819624906e-06 | J120: -4.578114819e-06 | K120: -3.665774385e-07 | L120: 5.927913838e-06 | N120: -0.000366932135 | O120: -0.01158613596 | P120: -9.248339416e-05 | Q120: -0.001308071406 | R120: 2.977426724e-06
A121: 57.5276 | B121: ='DF raw data'!D126 -> -3.5431467e-06 | C121: ='DF raw data'!E126 -> 1.5516573e-05 | D121: ='DF raw data'!F126 -> -4.8523357e-06 | F121: -3.545414314e-06 | G121: 1.556105882e-05 | H121: -4.855441195e-06 | J121: -8.394617419e-06 | K121: -5.164191347e-06 | L121: 4.797036039e-06 | N121: -0.0003711314584 | O121: -0.01177179076 | P121: -9.506672924e-05 | Q121: -0.001355627587 | R121: 3.050850071e-06
A122: 58.02784 | B122: ='DF raw data'!D127 -> -7.3239016e-06 | C122: ='DF raw data'!E127 -> 8.8453471e-06 | D122: ='DF raw data'!F127 -> -1.9235572e-06 | F122: -7.328588897e-06 | G122: 8.870706601e-06 | H122: -1.924788277e-06 | J122: -1.16443236e-05 | K122: 5.318862018e-06 | L122: 5.713672712e-06 | N122: -0.0003769564149 | O122: -0.01196035944 | P122: -9.24060217e-05 | Q122: -0.001401852775 | R122: 3.126203729e-06
A123: 58.52808 | B123: ='DF raw data'!D128 -> -1.0851008e-05 | C123: ='DF raw data'!E128 -> 2.3591852e-05 | D123: ='DF raw data'!F128 -> 1.3605536e-06 | F123: -1.085795265e-05 | G123: 2.365948955e-05 | H123: 1.361424354e-06 | J123: -1.277277635e-05 | K123: -6.842966615e-06 | L123: 2.238125884e-06 | N123: -0.0003833458685 | O123: -0.01215212437 | P123: -9.582914732e-05 | Q123: -0.001449790348 | R123: 3.204309843e-06
A124: 59.02832 | B124: ='DF raw data'!D129 -> -8.3962977e-06 | C124: ='DF raw data'!E129 -> 1.2643752e-05 | D124: ='DF raw data'!F129 -> 1.0396966e-06 | F124: -8.401671331e-06 | G124: 1.268000148e-05 | H124: 1.040362006e-06 | J124: -6.74278112e-06 | K124: -2.118547085e-06 | L124: 1.779807548e-06 | N124: -0.0003867188773 | O124: -0.01234557662 | P124: -9.688892932e-05 | Q124: -0.001498258066 | R124: 3.283817465e-06
A125: 59.52856 | B125: ='DF raw data'!D130 -> -5.3543258e-06 | C125: ='DF raw data'!E130 -> 3.2803655e-06 | D125: ='DF raw data'!F130 -> -1.3694275e-06 | F125: -5.357752569e-06 | G125: 3.289770267e-06 | H125: -1.370303934e-06 | J125: -1.190817236e-06 | K125: 2.274826655e-06 | L125: -6.401821946e-07 | N125: -0.0003873145718 | O125: -0.01253932686 | P125: -9.575097003e-05 | Q125: -0.001546156531 | R125: 3.363446082e-06
A126: 60.0288 | B126: ='DF raw data'!D131 -> -3.8487924e-06 | C126: ='DF raw data'!E131 -> 1.0108502e-05 | D126: ='DF raw data'!F131 -> -9.2431441e-07 | F126: -3.851255627e-06 | G126: 1.013748295e-05 | H126: -9.249059712e-07 | J126: -9.629224362e-07 | K126: -3.04732256e-06 | L126: -3.805882207e-07 | N126: -0.0003877962641 | O126: -0.01273331807 | P126: -9.727536267e-05 | Q126: -0.001594817558 | R126: 3.443408664e-06
A127: 60.52904 | B127: ='DF raw data'!D132 -> -3.3924064e-07 | C127: ='DF raw data'!E132 -> 4.849071e-06 | D127: ='DF raw data'!F132 -> -1.9934075e-07 | F127: -3.39457754e-07 | G127: 4.862973227e-06 | H127: -1.994683281e-07 | J127: -1.984308245e-06 | K127: -2.345890412e-06 | L127: 1.265281062e-06 | N127: -0.0003887888944 | O127: -0.01292780582 | P127: -9.844887089e-05 | Q127: -0.001644065622 | R127: 3.523871761e-06
A128: 61.02928 | B128: ='DF raw data'!D133 -> 1.9823715e-06 | C128: ='DF raw data'!E133 -> 3.4190097e-07 | D128: ='DF raw data'!F133 -> 4.6460221e-07 | F128: 1.983640218e-06 | G128: 3.428811959e-07 | H128: 4.648995554e-07 | J128: -3.297642241e-06 | K128: -1.456566319e-05 | L128: 4.12507546e-06 | N128: -0.000390438507 | O128: -0.01312311878 | P128: -0.0001057351982 | Q128: -0.001696958597 | R128: 3.60572211e-06
A129: 61.52952 | B129: ='DF raw data'!D134 -> -1.1880264e-06 | C129: ='DF raw data'!E134 -> 4.6626719e-06 | D129: ='DF raw data'!F134 -> -9.0348243e-07 | F129: -1.188786737e-06 | G129: 4.676039723e-06 | H129: -9.040606588e-07 | J129: -1.877641022e-06 | K129: 8.952466235e-07 | L129: 1.038053129e-06 | N129: -0.0003913777781 | O129: -0.0133189016 | P129: -0.0001052873601 | Q129: -0.001749627546 | R129: 3.687892529e-06
A130: 62.02976 | B130: ='DF raw data'!D135 -> -1.8306232e-06 | C130: ='DF raw data'!E135 -> -2.7740243e-06 | D130: ='DF raw data'!F135 -> -1.3927215e-06 | F130: -1.831794799e-06 | G130: -2.781977393e-06 | H130: -1.393612842e-06 | J130: 1.860849482e-06 | K130: -5.261337567e-06 | L130: -6.795712074e-06 | N130: -0.0003904469068 | O130: -0.01351421876 | P130: -0.0001079192916 | Q130: -0.001803613092 | R130: 3.769979593e-06
A131: 62.53 | B131: ='DF raw data'!D136 -> 7.2581332e-07 | C131: ='DF raw data'!E136 -> -4.1017593e-06 | D131: ='DF raw data'!F136 -> 8.4848631e-07 | F131: 7.262778405e-07 | G131: -4.113518993e-06 | H131: 8.490293412e-07 | J131: 3.616326869e-07 | K131: -2.898927128e-06 | L131: -1.048090449e-05 | N131: -0.0003902660037 | O131: -0.01370944543 | P131: -0.0001093694509 | Q131: -0.001858324067 | R131: 3.852153632e-06
A132: 63.03024 | B132: ='DF raw data'!D137 -> 8.7820234e-07 | C132: ='DF raw data'!E137 -> 5.241347e-06 | D132: ='DF raw data'!F137 -> 9.5743553e-07 | F132: 8.787643895e-07 | G132: 5.256373877e-06 | H132: 9.580482887e-07 | J132: -1.270211115e-05 | K132: -2.4877296e-06 | L132: -1.848178878e-06 | N132: -0.0003966201077 | O132: -0.01390785067 | P132: -0.0001106139127 | Q132: -0.00191365757 | R132: 3.936965796e-06
A133: 63.53048 | B133: ='DF raw data'!D138 -> 3.6068523e-06 | C133: ='DF raw data'!E138 -> 4.1401727e-06 | D133: ='DF raw data'!F138 -> 3.8394933e-06 | F133: 3.609160685e-06 | G133: 4.152042524e-06 | H133: 3.841950576e-06 | J133: -2.331378128e-05 | K133: -8.040031374e-06 | L133: 3.646511575e-06 | N133: -0.0004082825937 | O133: -0.01411208996 | P133: -0.000114635858 | Q133: -0.001971003012 | R133: 4.026926985e-06
A134: 64.03072 | B134: ='DF raw data'!D139 -> 8.4764906e-06 | C134: ='DF raw data'!E139 -> 2.3509128e-06 | D134: ='DF raw data'!F139 -> 7.8419216e-06 | F134: 8.481915554e-06 | G134: 2.357652838e-06 | H134: 7.84694043e-06 | J134: -2.087312926e-05 | K134: -2.910032877e-06 | L134: 3.598295736e-06 | N134: -0.0004187241679 | O134: -0.01432155253 | P134: -0.0001160915729 | Q134: -0.00202907666 | R134: 4.12137589e-06
A135: 64.53096 | B135: ='DF raw data'!D140 -> 6.8754384e-06 | C135: ='DF raw data'!E140 -> 2.859404e-06 | D135: ='DF raw data'!F140 -> 6.005961e-06 | F135: 6.879838681e-06 | G135: =(1-$G$1*($B$2-$G$2))*C135*$M$2/$M$1 -> 2.867601876e-06 | H135: 6.009804815e-06 | J135: =-CELL("contents", INDEX($F$6:$F$1203,1204-CELL("row",F135))) -> -1.25530298e-05 | K135: =CELL("contents", INDEX($G$6:$G$1203,1204-CELL("row",G135))) -> -4.383680027e-06 | L135: =-CELL("contents", INDEX($H$6:$H$1203,1204-CELL("row",H135))) -> 2.816517919e-06 | N135: -0.0004250036955 | O135: -0.01453415638 | P135: -0.000118284465 | Q135: -0.002088247281 | R135: 4.218732277e-06
A136: =A135+$B$1 -> 65.0312 | B136: ='DF raw data'!D141 -> 8.6144809e-07 | C136: ='DF raw data'!E141 -> -4.1918211e-06 | D136: ='DF raw data'!F141 -> 1.1979623e-06 | F136: 8.619994168e-07 | G136: -4.203838999e-06 | H136: 1.198728996e-06 | J136: -6.462588511e-06 | K136: -6.34305427e-06 | L136: 2.163537779e-06 | N136: =J136*$B$1+N135 -> -0.0004282365408 | O136: =N136*$B$1+O135 -> -0.01474837743 | P136: =K136*$B$1+P135 -> -0.0001214575144 | Q136: =P136*$B$1+Q135 -> -0.002149005188 | R136: =(N136^2+P136^2)*$B$1+R135 -> 4.317849061e-06
A137: 65.53144 | B137: ='DF raw data'!D142 -> -1.6179596e-06 | C137: ='DF raw data'!E142 -> -1.913686e-06 | D137: ='DF raw data'!F142 -> -5.9254256e-07 | F137: -1.618995094e-06 | G137: -1.919172514e-06 | H137: -5.929217872e-07 | J137: -3.894830998e-06 | K137: -4.157405656e-06 | L137: 8.99998991e-07 | N137: -0.000430184891 | O137: -0.01496357312 | P137: -0.0001235372151 | Q137: -0.002210803445 | R137: 4.41805738e-06
A138: 66.03168 | B138: ='DF raw data'!D143 -> 7.9449859e-07 | C138: ='DF raw data'!E143 -> -4.2820175e-06 | D138: ='DF raw data'!F143 -> -6.3222483e-06 | F138: 7.950070691e-07 | G138: -4.294293991e-06 | H138: -6.326294539e-06 | J138: -7.008814772e-06 | K138: -8.835395454e-06 | L138: -3.06922895e-06 | N138: -0.0004336909805 | O138: -0.0151805227 | P138: -0.0001279570333 | Q138: -0.002274812671 | R138: 4.520336885e-06
A139: 66.53192 | B139: ='DF raw data'!D144 -> 4.5448155e-06 | C139: ='DF raw data'!E144 -> 6.3839323e-08 | D139: ='DF raw data'!F144 -> -4.9326659e-06 | F139: 4.547724182e-06 | G139: 6.402234955e-08 | H139: -4.935822806e-06 | J139: -1.032183875e-05 | K139: -5.19510071e-06 | L139: 7.983051885e-07 | N139: -0.0004388543771 | O139: -0.01540005521 | P139: -0.0001305558305 | Q139: -0.00234012192 | R139: 4.625206193e-06
A140: 67.03216 | B140: ='DF raw data'!D145 -> 3.923712e-06 | C140: ='DF raw data'!E145 -> 1.2092965e-05 | D140: ='DF raw data'!F145 -> -9.1126952e-07 | F140: 3.926223176e-06 | G140: 1.212763538e-05 | H140: -9.118527325e-07 | J140: -9.849484338e-06 | K140: -2.806330514e-06 | L140: 8.440072992e-06 | N140: -0.0004437814832 | O140: -0.01562205246 | P140: -0.0001319596692 | Q140: -0.002406133424 | R140: 4.732435318e-06
A141: 67.5324 | B141: ='DF raw data'!D146 -> 3.3622823e-06 | C141: ='DF raw data'!E146 -> -6.4407359e-06 | D141: ='DF raw data'!F146 -> 3.0317929e-06 | F141: 3.364434161e-06 | G141: -6.45920141e-06 | H141: 3.033733247e-06 | J141: -5.220521697e-06 | K141: -6.462546975e-06 | L141: 4.85530831e-06 | N141: -0.000446392997 | O141: -0.01584535609 | P141: -0.0001351924937 | Q141: -0.002473762118 | R141: 4.841259387e-06
A142: 68.03264 | B142: ='DF raw data'!D147 -> 6.9912489e-06 | C142: ='DF raw data'!E147 -> -5.934915e-06 | D142: ='DF raw data'!F147 -> -7.6984219e-07 | F142: 6.995723299e-06 | G142: -5.951930328e-06 | H142: -7.70334889e-07 | J142: -2.226296218e-06 | K142: -1.363193687e-05 | L142: 5.136611229e-06 | N142: -0.0004475066794 | O142: -0.01606921683 | P142: -0.0001420117338 | Q142: -0.002544802067 | R142: 4.951527071e-06
A143: 68.53288 | B143: ='DF raw data'!D148 -> 8.7439548e-06 | C143: ='DF raw data'!E148 -> 6.7821638e-06 | D143: ='DF raw data'!F148 -> -5.3895596e-06 | F143: 8.749550931e-06 | G143: 6.80160818e-06 | H143: -5.393008918e-06 | J143: -9.318887674e-06 | K143: -2.636098757e-05 | L143: 8.679354034e-06 | N143: -0.0004521683598 | O143: -0.01629540953 | P143: -0.0001551985542 | Q143: -0.002622438592 | R143: 5.065853329e-06
A144: 69.03312 | B144: ='DF raw data'!D149 -> 2.855988e-06 | C144: ='DF raw data'!E149 -> 1.0489704e-05 | D144: ='DF raw data'!F149 -> -6.7313925e-07 | F144: 2.857815832e-06 | G144: 1.051977785e-05 | H144: -6.735700591e-07 | J144: -1.70566913e-05 | K144: -6.862905115e-06 | L144: 1.369714557e-05 | N144: -0.000460700799 | O144: -0.0165258705 | P144: -0.0001586316539 | Q144: -0.002701792491 | R144: 5.184614921e-06
A145: 69.53336 | B145: ='DF raw data'!D150 -> 1.2707092e-07 | C145: ='DF raw data'!E150 -> 3.0779593e-06 | D145: ='DF raw data'!F150 -> 4.583168e-06 | F145: 1.271522454e-07 | G145: 3.086783771e-06 | H145: 4.586101228e-06 | J145: -1.711159442e-05 | K145: -8.627188133e-06 | L145: 1.742436246e-05 | N145: -0.000469260703 | O145: -0.01676061348 | P145: -0.0001629473185 | Q145: -0.002783305257 | R145: 5.308052861e-06
A146: 70.0336 | B146: ='DF raw data'!D151 -> 5.1200623e-06 | C146: ='DF raw data'!E151 -> -3.9181614e-06 | D146: ='DF raw data'!F151 -> 6.0072257e-06 | F146: 5.12333914e-06 | G146: -3.92939472e-06 | H146: 6.011070324e-06 | J146: -1.092483842e-05 | K146: -3.363781851e-06 | L146: 1.331667922e-05 | N146: -0.0004747257442 | O146: -0.01699809028 | P146: -0.0001646300167 | Q146: -0.002865659777 | R146: 5.434347241e-06
A147: 70.53384 | B147: ='DF raw data'!D152 -> 7.9712636e-06 | C147: ='DF raw data'!E152 -> 7.8765333e-06 | D147: ='DF raw data'!F152 -> 5.2067794e-06 | F147: 7.976365209e-06 | G147: 7.899115224e-06 | H147: 5.210111739e-06 | J147: -7.539277652e-06 | K147: -6.114908348e-06 | L147: 1.448258793e-05 | N147: -0.0004784971924 | O147: -0.01723745372 | P147: -0.0001676889385 | Q147: -0.002949544491 | R147: 5.562948511e-06
A148: 71.03408 | B148: ='DF raw data'!D153 -> 4.8839024e-06 | C148: ='DF raw data'!E153 -> 1.1566728e-05 | D148: ='DF raw data'!F153 -> 4.3839714e-06 | F148: 4.887028098e-06 | G148: 1.159988967e-05 | H148: 4.386777142e-06 | J148: -1.086893367e-05 | K148: 2.281514274e-06 | L148: 1.190629516e-05 | N148: -0.0004839342678 | O148: -0.017479537 | P148: -0.0001665476338 | Q148: -0.00303285828 | R148: 5.69397662e-06
A149: 71.53432 | B149: ='DF raw data'!D154 -> 6.9544234e-07 | C149: ='DF raw data'!E154 -> 1.2616148e-06 | D149: ='DF raw data'!F154 -> 3.4337131e-06 | F149: 6.958874231e-07 | G149: 1.265231834e-06 | H149: 3.435910676e-06 | J149: -1.483064254e-05 | K149: 4.011808625e-06 | L149: 5.451213845e-06 | N149: -0.0004913531484 | O149: -0.01772533149 | P149: -0.0001645407666 | Q149: -0.003115168153 | R149: 5.82829185e-06
A150: 72.03456 | B150: ='DF raw data'!D155 -> -2.4767578e-06 | C150: ='DF raw data'!E155 -> 4.6610712e-06 | D150: ='DF raw data'!F155 -> 8.2412731e-07 | F150: -2.478342925e-06 | G150: 4.674434434e-06 | H150: 8.246547515e-07 | J150: -1.610250001e-05 | K150: -6.038102075e-06 | L150: 2.976615015e-06 | N150: -0.000499408263 | O150: -0.01797515548 | P150: -0.0001675612668 | Q150: -0.003198989001 | R150: 5.967101142e-06
A151: 72.5348 | B151: ='DF raw data'!D156 -> -7.1348672e-06 | C151: ='DF raw data'!E156 -> -4.0613304e-06 | D151: ='DF raw data'!F156 -> -1.6583394e-06 | F151: =(1-$G$1*($B$2-$G$2))*B151 -> -7.139433515e-06 | G151: -4.072974184e-06 | H151: -1.659400737e-06 | J151: -1.50044367e-05 | K151: -2.000262032e-06 | L151: -1.106425359e-06 | N151: -0.0005069140825 | O151: -0.01822873418 | P151: -0.0001685618779 | Q151: -0.003283310395 | R151: 6.109857129e-06
A152: 73.03504 | B152: ='DF raw data'!D157 -> -7.2350581e-06 | C152: ='DF raw data'!E157 -> -6.2746185e-06 | D152: ='DF raw data'!F157 -> 4.1874731e-07 | F152: -7.239688537e-06 | G152: -6.292607754e-06 | H152: 4.190153083e-07 | J152: -1.362117097e-05 | K152: -2.386836468e-06 | L152: -3.335815857e-06 | N152: -0.000513727937 | O152: -0.01848572145 | P152: -0.000169755869 | Q152: -0.003368229071 | R152: 6.256294109e-06
A153: 73.53528 | B153: ='DF raw data'!D158 -> -7.7070894e-07 | C153: ='DF raw data'!E158 -> 6.0053499e-06 | D153: ='DF raw data'!F158 -> 3.4632626e-06 | F153: -7.712021937e-07 | G153: 6.022567164e-06 | H153: 3.465479088e-06 | J153: -9.391624695e-06 | K153: -1.398051337e-05 | L153: 3.729625233e-06 | N153: -0.0005184260034 | O153: -0.01874505887 | P153: -0.000176749481 | Q153: -0.003456646231 | R153: 6.406369061e-06
A154: 74.03552 | B154: ='DF raw data'!D159 -> 6.6593901e-07 | C154: ='DF raw data'!E159 -> 5.8464393e-06 | D154: ='DF raw data'!F159 -> 7.1349841e-06 | F154: 6.66365211e-07 | G154: 5.863200969e-06 | H154: 7.13955049e-06 | J154: -6.102912566e-06 | K154: -8.668801797e-06 | L154: 9.10404136e-06 | N154: -0.0005214789243 | O154: -0.01900592349 | P154: -0.0001810859624 | Q154: -0.003547232673 | R154: 6.558808394e-06
A155: 74.53576 | B155: ='DF raw data'!D160 -> -2.0797988e-06 | C155: ='DF raw data'!E160 -> 6.2529907e-06 | D155: ='DF raw data'!F160 -> 4.830616e-06 | F155: -2.081129871e-06 | G155: 6.270917947e-06 | H155: 4.833707594e-06 | J155: -7.111006433e-06 | K155: -2.118280723e-06 | L155: 1.178515668e-05 | N155: -0.0005250361342 | O155: -0.01926856756 | P155: -0.0001821456111 | Q155: -0.003638349193 | R155: 6.713302498e-06
A156: 75.036 | B156: ='DF raw data'!D161 -> -3.5434805e-06 | C156: ='DF raw data'!E161 -> 1.0259829e-06 | D156: ='DF raw data'!F161 -> -1.8526766e-06 | F156: -3.545748328e-06 | G156: 1.02892438e-06 | H156: -1.853862313e-06 | J156: -1.034200965e-05 | K156: 2.437272053e-06 | L156: 7.636051047e-06 | N156: -0.0005302096211 | O156: -0.01953379963 | P156: -0.0001809263902 | Q156: -0.003728855811 | R156: 6.870306124e-06
A157: 75.53624 | B157: ='DF raw data'!D162 -> -3.9702763e-06 | C157: ='DF raw data'!E162 -> 2.6751404e-06 | D157: ='DF raw data'!F162 -> -4.8898723e-06 | F157: -3.972817277e-06 | G157: 2.682809995e-06 | H157: -4.893001818e-06 | J157: -1.1854452e-05 | K157: 7.288809487e-06 | L157: -5.623305814e-07 | N157: -0.0005361396922 | O157: -0.01980199814 | P157: -0.0001772802361 | Q157: -0.003817538476 | R157: 7.02981968e-06
A158: 76.03648 | B158: ='DF raw data'!D163 -> -3.6805839e-06 | C158: ='DF raw data'!E163 -> 7.6474389e-06 | D158: ='DF raw data'!F163 -> -2.7928195e-06 | F158: -3.682939474e-06 | G158: 7.669364013e-06 | H158: -2.794606904e-06 | J158: -1.146598854e-05 | K158: -2.3238139e-06 | L158: -1.525452065e-06 | N158: -0.0005418754383 | O158: -0.02007306591 | P158: -0.0001784427008 | Q158: -0.003906802653 | R158: 7.192633187e-06
A159: 76.53672 | B159: ='DF raw data'!D164 -> 1.9846409e-06 | C159: ='DF raw data'!E164 -> 2.0329571e-06 | D159: ='DF raw data'!F164 -> 7.2143445e-07 | F159: 1.98591107e-06 | G159: 2.038785563e-06 | H159: 7.21896168e-07 | J159: -7.547560249e-06 | K159: 2.192131848e-06 | L159: 3.537691875e-06 | N159: -0.0005456510298 | O159: -0.02034602239 | P159: -0.0001773461087 | Q159: -0.00399551827 | R159: 7.357305536e-06
A160: 77.03696 | B160: ='DF raw data'!D165 -> 7.1538502e-06 | C160: ='DF raw data'!E165 -> -1.0891052e-06 | D160: ='DF raw data'!F165 -> -4.7554327e-06 | F160: 7.158428664e-06 | G160: -1.092227651e-06 | H160: -4.758476177e-06 | J160: -7.201910375e-06 | K160: -3.047990169e-06 | L160: 7.874933534e-06 | N160: -0.0005492537135 | O160: -0.02062078106 | P160: -0.0001788708353 | Q160: -0.004084996617 | R160: 7.524222827e-06
A161: 77.5372 | B161: ='DF raw data'!D166 -> 4.0893842e-06 | C161: ='DF raw data'!E166 -> -9.6595238e-07 | D161: ='DF raw data'!F166 -> -2.9049638e-06 | F161: 4.092001406e-06 | G161: -9.687217536e-07 | H161: -2.906822977e-06 | J161: -1.273824426e-05 | K161: -7.306486021e-06 | L161: 9.403460265e-06 | N161: -0.0005556258928 | O161: -0.02089872736 | P161: -0.0001825258319 | Q161: -0.004176303339 | R161: 7.695322821e-06
A162: 78.03744 | B162: ='DF raw data'!D167 -> -2.4863698e-06 | C162: ='DF raw data'!E167 -> -1.3819771e-06 | D162: ='DF raw data'!F167 -> -6.2927978e-07 | F162: -2.487961077e-06 | G162: -1.385939211e-06 | H162: -6.296825191e-07 | J162: -1.511524357e-05 | K162: 3.267558769e-06 | L162: 8.939015311e-06 | N162: -0.0005631871422 | O162: -0.0211804561 | P162: -0.0001808912683 | Q162: -0.004266792387 | R162: 7.870357502e-06
A163: 78.53768 | B163: ='DF raw data'!D168 -> -3.3308168e-06 | C163: ='DF raw data'!E168 -> 5.7545076e-06 | D163: ='DF raw data'!F168 -> -3.1806298e-06 | F163: -3.332948523e-06 | G163: 5.771005702e-06 | H163: -3.182665403e-06 | J163: -1.259237096e-05 | K163: 1.906180673e-06 | L163: 4.329260254e-06 | N163: -0.0005694863499 | O163: -0.02146533595 | P163: -0.0001799377205 | Q163: -0.004356804432 | R163: 8.048789251e-06
A164: 79.03792 | B164: ='DF raw data'!D169 -> -1.6768325e-06 | C164: ='DF raw data'!E169 -> 2.2217573e-06 | D164: ='DF raw data'!F169 -> 8.3171523e-07 | F164: -1.677905673e-06 | G164: 2.228127051e-06 | H164: 8.322475277e-07 | J164: -1.027274635e-05 | K164: -1.076345949e-05 | L164: 4.55475728e-06 | N164: -0.0005746251885 | O164: -0.02175278645 | P164: -0.0001853220335 | Q164: -0.004449509926 | R164: 8.231145922e-06
A165: 79.53816 | B165: ='DF raw data'!D170 -> -5.8695646e-06 | C165: ='DF raw data'!E170 -> 1.0463285e-05 | D165: ='DF raw data'!F170 -> 2.511872e-06 | F165: -5.873321121e-06 | G165: 1.049328311e-05 | H165: 2.513479598e-06 | J165: -1.090386601e-05 | K165: -1.179780848e-05 | L165: 8.71878035e-06 | N165: -0.0005800797384 | O165: -0.02204296554 | P165: -0.0001912237692 | Q165: -0.004545167705 | R165: 8.417764972e-06
A166: 80.0384 | B166: ='DF raw data'!D171 -> -9.0147314e-06 | C166: ='DF raw data'!E171 -> 1.326619e-05 | D166: ='DF raw data'!F171 -> 1.2504065e-06 | F166: -9.020500828e-06 | G166: 1.3304224e-05 | H166: 1.25120676e-06 | J166: -1.081309495e-05 | K166: -1.091439799e-05 | L166: 1.357014634e-05 | N166: -0.0005854888811 | O166: -0.0223358505 | P166: -0.0001966835876 | Q166: -0.004643556702 | R166: 8.60859736e-06
A167: 80.53864 | B167: ='DF raw data'!D172 -> -6.1812848e-06 | C167: ='DF raw data'!E172 -> 1.0751488e-05 | D167: ='DF raw data'!F172 -> -7.3221109e-08 | F167: -6.185240822e-06 | G167: 1.078231238e-05 | H167: -7.326797051e-08 | J167: -6.659157835e-06 | K167: -2.317417514e-05 | L167: 1.170377563e-05 | N167: -0.0005888200582 | O167: -0.02263040184 | P167: -0.000208276237 | Q167: -0.004747744807 | R167: 8.803735007e-06
A168: 81.03888 | B168: ='DF raw data'!D173 -> -3.0267731e-06 | C168: ='DF raw data'!E173 -> 1.1023547e-05 | D168: ='DF raw data'!F173 -> -4.6699765e-06 | F168: -3.028710235e-06 | G168: 1.105515137e-05 | H168: -4.672965285e-06 | J168: -3.656516474e-06 | K168: -7.661348498e-06 | L168: 1.121468981e-05 | N168: -0.000590649194 | O168: -0.0229258682 | P168: -0.00021210875 | Q168: -0.004853850088 | R168: 9.000757828e-06
A169: 81.53912 | B169: ='DF raw data'!D174 -> 1.7431414e-06 | C169: ='DF raw data'!E174 -> 6.3210615e-07 | D169: ='DF raw data'!F174 -> -3.2810599e-06 | F169: 1.74425701e-06 | G169: 6.339183905e-07 | H169: -3.283159778e-06 | J169: -8.202990656e-06 | K169: -5.569901788e-06 | L169: 1.281061155e-05 | N169: -0.000594752658 | O169: -0.02322338727 | P169: -0.0002148950376 | Q169: -0.004961349182 | R169: 9.200809107e-06
A170: 82.03936 | B170: ='DF raw data'!D175 -> 4.7034123e-06 | C170: ='DF raw data'!E175 -> 4.0986743e-06 | D170: ='DF raw data'!F175 -> 1.6019453e-06 | F170: 4.706422484e-06 | G170: 4.110425149e-06 | H170: 1.602970545e-06 | J170: -1.41424834e-05 | K170: -2.300691397e-05 | L170: 1.108655786e-05 | N170: -0.0006018272939 | O170: -0.02352444535 | P170: -0.0002264040163 | Q170: -0.005074605527 | R170: 9.407635772e-06
A171: 82.5396 | B171: ='DF raw data'!D176 -> 2.593596e-06 | C171: ='DF raw data'!E176 -> 7.0224651e-06 | D171: ='DF raw data'!F176 -> 1.666835e-06 | F171: 2.595255901e-06 | G171: 7.042598421e-06 | H171: 1.667901774e-06 | J171: -1.468670548e-05 | K171: -1.511976927e-05 | L171: -2.203539363e-06 | N171: -0.0006091741715 | O171: -0.02382917864 | P171: -0.0002339675297 | Q171: -0.005191645444 | R171: 9.62065496e-06
A172: 83.03984 | B172: ='DF raw data'!D177 -> 5.6548123e-07 | C172: ='DF raw data'!E177 -> 4.2140891e-06 | D172: ='DF raw data'!F177 -> 5.0076501e-06 | F172: 5.65843138e-07 | G172: 4.226170842e-06 | H172: 5.010854996e-06 | J172: -1.342199658e-05 | K172: -1.048245917e-05 | L172: 6.972784728e-07 | N172: -0.000615888391 | O172: -0.02413727065 | P172: -0.000239211275 | Q172: -0.005311308492 | R172: 9.839030002e-06
A173: 83.54008 | B173: ='DF raw data'!D178 -> 9.4955743e-07 | C173: ='DF raw data'!E178 -> 3.4817094e-06 | D173: ='DF raw data'!F178 -> 9.8169803e-06 | F173: 9.501651468e-07 | G173: 3.491691418e-06 | H173: 9.823263167e-06 | J173: -1.25241093e-05 | K173: -4.052098004e-06 | L173: 1.009506571e-05 | N173: -0.0006221534515 | O173: -0.02444849669 | P173: -0.0002412382965 | Q173: -0.005431985538 | R173: 1.006177228e-05
A174: 84.04032 | B174: ='DF raw data'!D179 -> 4.7809081e-06 | C174: ='DF raw data'!E179 -> 9.0009235e-06 | D174: ='DF raw data'!F179 -> 7.3709848e-06 | F174: 4.783967881e-06 | G174: 9.026729037e-06 | H174: 7.37570223e-06 | J174: -8.909518745e-06 | K174: 7.116586838e-07 | L174: 1.356441868e-05 | N174: -0.0006266103491 | O174: -0.02476195225 | P174: -0.0002408822964 | Q174: -0.005552484498 | R174: 1.028721285e-05
A175: 84.54056 | B175: ='DF raw data'!D180 -> 4.7835783e-06 | C175: ='DF raw data'!E180 -> 9.1071324e-06 | D175: ='DF raw data'!F180 -> 4.4963149e-06 | F175: 4.78663979e-06 | G175: 9.133242436e-06 | H175: 4.499192542e-06 | J175: -6.807035316e-06 | K175: -1.344647667e-05 | L175: 1.608850106e-05 | N175: -0.0006300155005 | O175: -0.02507711121 | P175: -0.0002476087619 | Q175: -0.005676348305 | R175: 1.051643764e-05
A176: 85.0408 | B176: ='DF raw data'!D181 -> 4.2356987e-06 | C176: ='DF raw data'!E181 -> -2.4308501e-06 | D176: ='DF raw data'!F181 -> 2.8100344e-06 | F176: 4.238409547e-06 | G176: -2.437819317e-06 | H176: 2.811832822e-06 | J176: -8.742271275e-06 | K176: -1.687950799e-06 | L176: 1.599959419e-05 | N176: -0.0006343887343 | O176: -0.02539445783 | P176: -0.0002484531424 | Q176: -0.005800634505 | R176: 1.074863806e-05
A177: 85.54104 | B177: ='DF raw data'!D182 -> 2.6516682e-06 | C177: ='DF raw data'!E182 -> 9.7450466e-06 | D177: ='DF raw data'!F182 -> 3.2811045e-06 | F177: 2.653365268e-06 | G177: 9.772985528e-06 | H177: 3.283204407e-06 | J177: -1.294970951e-05 | K177: -3.210169305e-06 | L177: 1.455371242e-05 | N177: -0.0006408666969 | O177: -0.02571504498 | P177: -0.0002500589975 | Q177: -0.005925724018 | R177: 1.098537145e-05
A178: 86.04128 | B178: ='DF raw data'!D183 -> -1.0489206e-06 | C178: ='DF raw data'!E183 -> 1.4568173e-05 | D178: ='DF raw data'!F183 -> 3.546455e-06 | F178: -1.049591909e-06 | G178: 1.460993977e-05 | H178: 3.548724731e-06 | J178: -1.502454056e-05 | K178: -1.257938885e-05 | L178: 8.959060632e-06 | N178: -0.0006483825731 | O178: -0.02603939188 | P178: -0.000256351711 | Q178: -0.006053961397 | R178: 1.122854619e-05
A179: 86.54152 | B179: ='DF raw data'!D184 -> -4.3979403e-06 | C179: ='DF raw data'!E184 -> 1.5516854e-06 | D179: ='DF raw data'!F184 -> 6.3048551e-06 | F179: -4.400754982e-06 | G179: 1.556134063e-06 | H179: 6.308890207e-06 | J179: -1.577515064e-05 | K179: -1.403778209e-05 | L179: 3.78037109e-06 | N179: -0.0006562739345 | O179: -0.02636768635 | P179: -0.0002633739711 | Q179: -0.006185711593 | R179: 1.147869687e-05
A180: 87.04176 | B180: ='DF raw data'!D185 -> -6.3425514e-06 | C180: ='DF raw data'!E185 -> -5.4992773e-07 | D180: ='DF raw data'!F185 -> 1.1065734e-05 | F180: -6.346610633e-06 | G180: -5.51504366e-07 | H180: 1.107281607e-05 | J180: -1.526559273e-05 | K180: -7.58975934e-06 | L180: 5.459739398e-06 | N180: -0.0006639103946 | O180: -0.02669980089 | P180: -0.0002671706723 | Q180: -0.00631936105 | R180: 1.173489838e-05
A181: 87.542 | B181: ='DF raw data'!D186 -> -5.7869956e-06 | C181: ='DF raw data'!E186 -> -4.9829105e-06 | D181: ='DF raw data'!F186 -> 9.5538253e-06 | F181: -5.790699277e-06 | G181: -4.997196443e-06 | H181: 9.559939748e-06 | J181: -1.698322131e-05 | K181: -8.69181599e-06 | L181: 8.851640627e-06 | N181: -0.0006724060812 | O181: -0.02703616531 | P181: -0.0002715186663 | Q181: -0.006455185548 | R181: 1.199795075e-05
A182: 88.04224 | B182: ='DF raw data'!D187 -> -2.3876473e-06 | C182: ='DF raw data'!E187 -> -7.5052194e-06 | D182: ='DF raw data'!F187 -> 6.3057205e-06 | F182: -2.389175394e-06 | G182: -7.526736772e-06 | H182: 6.309756161e-06 | J182: -1.676641364e-05 | K182: -8.674289084e-06 | L182: 8.926494402e-06 | N182: -0.000680793312 | O182: -0.02737672535 | P182: -0.0002758578927 | Q182: -0.0065931807 | R182: 1.22678688e-05
A183: 88.54248 | B183: ='DF raw data'!D188 -> 1.2947855e-06 | C183: ='DF raw data'!E188 -> -2.8865034e-06 | D183: ='DF raw data'!F188 -> -2.5695313e-06 | F183: 1.295614163e-06 | G183: -2.89477897e-06 | H183: -2.5711758e-06 | J183: -1.779648246e-05 | K183: -1.194325929e-05 | L183: 1.38632388e-05 | N183: -0.0006896958244 | O183: -0.02772173879 | P183: -0.0002818323887 | Q183: -0.006734164534 | R183: 1.254555694e-05
A184: 89.04272 | B184: ='DF raw data'!D189 -> 7.0605546e-07 | C184: ='DF raw data'!E189 -> 1.3496085e-05 | D184: ='DF raw data'!F189 -> -6.0942343e-06 | F184: 7.065073355e-07 | G184: 1.353477811e-05 | H184: -6.09813461e-06 | J184: -1.757727026e-05 | K184: -4.889747168e-06 | L184: 1.291257076e-05 | N184: -0.000698488678 | O184: -0.02807115077 | P184: -0.0002842784358 | Q184: -0.006876371979 | R184: 1.283004376e-05
A185: 89.54296 | B185: ='DF raw data'!D190 -> 2.5092913e-06 | C185: ='DF raw data'!E190 -> -2.0148218e-06 | D185: ='DF raw data'!F190 -> 4.0000209e-06 | F185: 2.510897246e-06 | G185: -2.020598269e-06 | H185: 4.002580913e-06 | J185: -1.189873432e-05 | K185: -7.062684744e-06 | L185: 4.414503475e-06 | N185: -0.0007044409009 | O185: -0.02842354029 | P185: -0.0002878114733 | Q185: -0.00702034679 | R185: 1.311971895e-05
A186: 90.0432 | B186: ='DF raw data'!D191 -> 5.9512927e-06 | C186: ='DF raw data'!E191 -> 3.5530938e-06 | D186: ='DF raw data'!F191 -> 1.0000603e-05 | F186: 5.955101527e-06 | G186: 3.563280476e-06 | H186: 1.000700339e-05 | J186: -6.2388343e-06 | K186: -1.832290436e-05 | L186: 1.913431613e-07 | N186: -0.0007075618154 | O186: -0.02877749101 | P186: -0.0002969773229 | Q186: -0.007168906726 | R186: 1.34142799e-05
A187: 90.54344 | B187: ='DF raw data'!D192 -> 4.5149786e-06 | C187: ='DF raw data'!E192 -> 5.8349633e-06 | D187: ='DF raw data'!F192 -> 6.8286358e-06 | F187: 4.517868186e-06 | G187: 5.851692068e-06 | H187: 6.833006127e-06 | J187: -2.065193278e-06 | K187: -1.111658099e-05 | L187: -1.331855042e-06 | N187: -0.0007085949076 | O187: -0.02913195852 | P187: -0.0003025382814 | Q187: -0.007320248476 | R187: 1.371124045e-05
A188: 91.04368 | B188: ='DF raw data'!D193 -> 1.1241073e-06 | C188: ='DF raw data'!E193 -> -5.9418526e-06 | D188: ='DF raw data'!F193 -> -8.0691319e-07 | F188: 1.124826729e-06 | G188: -5.958887818e-06 | H188: -8.074296144e-07 | J188: -4.357900873e-06 | K188: 1.489901418e-07 | L188: 4.019319019e-06 | N188: -0.000710774904 | O188: -0.02948751656 | P188: -0.0003024637506 | Q188: -0.007471552943 | R188: 1.400972629e-05
A189: 91.54392 | B189: ='DF raw data'!D194 -> 3.3787028e-06 | C189: ='DF raw data'!E194 -> 8.1884864e-06 | D189: ='DF raw data'!F194 -> -1.6467588e-06 | F189: 3.38086517e-06 | G189: 8.21196269e-06 | H189: -1.647812726e-06 | J189: -9.536897511e-06 | K189: -7.713400304e-06 | L189: 8.293426798e-06 | N189: -0.0007155456416 | O189: -0.02984546111 | P189: -0.000306322302 | Q189: -0.007624787611 | R189: 1.431279115e-05
A190: 92.04416 | B190: ='DF raw data'!D195 -> 8.7332755e-06 | C190: ='DF raw data'!E195 -> 1.9856292e-05 | D190: ='DF raw data'!F195 -> -3.1189352e-06 | F190: 8.738864796e-06 | G190: 1.991321974e-05 | H190: -3.120931319e-06 | J190: -1.215815524e-05 | K190: -1.505620656e-05 | L190: 9.683632861e-06 | N190: -0.0007216276372 | O190: -0.03020644812 | P190: -0.0003138540187 | Q190: -0.007781789945 | R190: 1.462256517e-05
A191: 92.5444 | B191: ='DF raw data'!D196 -> 9.7449965e-06 | C191: ='DF raw data'!E196 -> 2.5217396e-05 | D191: ='DF raw data'!F196 -> -4.0123573e-06 | F191: 9.751233298e-06 | G191: 2.528969396e-05 | H191: -4.014925209e-06 | J191: -1.20562971e-05 | K191: -2.004463543e-05 | L191: 7.169209459e-06 | N191: -0.0007276586792 | O191: -0.0305704521 | P191: -0.0003238811472 | Q191: -0.00794380825 | R191: 1.49399105e-05
A192: 93.04464 | B192: ='DF raw data'!D197 -> 5.7181369e-06 | C192: ='DF raw data'!E197 -> 1.5005948e-05 | D192: ='DF raw data'!F197 -> -6.389469e-06 | F192: 5.721796508e-06 | G192: 1.504896987e-05 | H192: -6.39355826e-06 | J192: -8.5012183e-06 | K192: -1.074619814e-05 | L192: 4.503610968e-06 | N192: -0.0007319113287 | O192: -0.03093658342 | P192: -0.0003292568253 | Q192: -0.008108515685 | R192: 1.526211721e-05
A193: 93.54488 | B193: ='DF raw data'!D198 -> 8.9849408e-07 | C193: ='DF raw data'!E198 -> 9.1954607e-06 | D193: ='DF raw data'!F198 -> -4.9958267e-06 | F193: 8.990691162e-07 | G193: 9.221823972e-06 | H193: -4.999024029e-06 | J193: -1.007911551e-05 | K193: -6.868392302e-06 | L193: 1.24382694e-05 | N193: -0.0007369533054 | O193: -0.03130523695 | P193: -0.0003326926699 | Q193: -0.008274941866 | R193: 1.558916641e-05
A194: 94.04512 | B194: ='DF raw data'!D199 -> 2.1781475e-06 | C194: ='DF raw data'!E199 -> 9.9163681e-06 | D194: ='DF raw data'!F199 -> -1.3367494e-06 | F194: 2.179541514e-06 | G194: 9.944798205e-06 | H194: -1.33760492e-06 | J194: -1.452172796e-05 | K194: -1.200507802e-05 | L194: 2.219328562e-05 | N194: -0.0007442176546 | O194: -0.03167752439 | P194: -0.0003386980901 | Q194: -0.008444372198 | R194: 1.592361503e-05
A195: 94.54536 | B195: ='DF raw data'!D200 -> 5.4947936e-06 | C195: ='DF raw data'!E200 -> 6.8933077e-06 | D195: ='DF raw data'!F200 -> -1.7300176e-06 | F195: 5.498310268e-06 | G195: 6.913070728e-06 | H195: -1.731124811e-06 | J195: -1.599362938e-05 | K195: -1.512297945e-05 | L195: 2.00665854e-05 | N195: -0.0007522183078 | O195: -0.03205381407 | P195: -0.0003462632093 | Q195: -0.008617586906 | R195: 1.62666449e-05
A196: 95.0456 | B196: ='DF raw data'!D201 -> 1.9727595e-06 | C196: ='DF raw data'!E201 -> 1.0223917e-05 | D196: ='DF raw data'!F201 -> -6.0841977e-08 | F196: 1.974022066e-06 | G196: 1.025322884e-05 | H196: -6.088091587e-08 | J196: -1.240782393e-05 | K196: -1.277073687e-05 | L196: 1.353232015e-05 | N196: -0.0007584251976 | O196: -0.03243320869 | P196: -0.0003526516428 | Q196: -0.008793997364 | R196: 1.661659878e-05
A197: 95.54584 | B197: ='DF raw data'!D202 -> -1.211322e-06 | C197: ='DF raw data'!E202 -> 1.1509355e-05 | D197: ='DF raw data'!F202 -> -6.3653482e-07 | F197: -1.212097246e-06 | G197: 1.154235218e-05 | H197: -6.369422023e-07 | J197: -5.232010045e-06 | K197: -1.506383537e-05 | L197: 4.214581507e-06 | N197: -0.0007610424583 | O197: -0.03281391257 | P197: -0.0003601871758 | Q197: -0.008974177397 | R197: 1.697122913e-05
A198: 96.04608 | B198: ='DF raw data'!D203 -> 2.722823e-06 | C198: ='DF raw data'!E203 -> 1.4412062e-05 | D198: ='DF raw data'!F203 -> -5.6225649e-06 | F198: 2.724565607e-06 | G198: 1.44533812e-05 | H198: -5.626163342e-06 | J198: -2.297496557e-06 | K198: -1.130765824e-06 | L198: 6.320805728e-07 | N198: -0.000762191758 | O198: -0.03319519138 | P198: -0.0003607528301 | Q198: -0.009154640392 | R198: 1.732693923e-05
A199: 96.54632 | B199: ='DF raw data'!D204 -> 8.7057742e-06 | C199: ='DF raw data'!E204 -> 1.4872387e-05 | D199: ='DF raw data'!F204 -> -8.4324774e-06 | F199: 8.711345895e-06 | G199: =(1-$G$1*($B$2-$G$2))*C199*$M$2/$M$1 -> 1.491502595e-05 | H199: -8.437874186e-06 | J199: =-CELL("contents", INDEX($F$6:$F$1203,1204-CELL("row",F199))) -> -7.418851728e-06 | K199: =CELL("contents", INDEX($G$6:$G$1203,1204-CELL("row",G199))) -> -1.373804721e-05 | L199: =-CELL("contents", INDEX($H$6:$H$1203,1204-CELL("row",H199))) -> 7.110669718e-06 | N199: -0.0007659029644 | O199: -0.03357832668 | P199: -0.0003676251508 | Q199: -0.009338541198 | R199: 1.768799025e-05
A200: =A199+$B$1 -> 97.04656 | B200: ='DF raw data'!D205 -> 7.641388e-06 | C200: ='DF raw data'!E205 -> 2.2227559e-05 | D200: ='DF raw data'!F205 -> -2.2591225e-06 | F200: 7.646278488e-06 | G200: 2.229128514e-05 | H200: -2.260568338e-06 | J200: -9.120714824e-06 | K200: -2.015489364e-05 | L200: 1.158103712e-05 | N200: =J200*$B$1+N199 -> -0.0007704655108 | O200: =N200*$B$1+O199 -> -0.03396374434 | P200: =K200*$B$1+P199 -> -0.0003777074348 | Q200: =P200*$B$1+Q199 -> -0.009527485565 | R200: =(N200^2+P200^2)*$B$1+R199 -> 1.805630696e-05
... 1003 more rows

Sheet 10 x=0
A1: dz | B1: ='DF raw data'!H7 -> 0.50021 | C1: mm | F1: T_coeff | G1: -0.0008 | H1: /degC | L1: Hallref | M1: ='PI vs x'!B44 -> 0.50549 | N1: T | P1: IBy total | Q1: =P1203*1000 -> -9.215414258 | R1: muTm
A2: Tref | B2: ='DF raw data'!H8 -> 20.82 | C2: degC | F2: Tcorr | G2: 20 | H2: degC | L2: NMRref | M2: ='PI vs x'!B45 -> 0.506615 | N2: T | P2: JBy total | Q2: =Q1203 -> -7.530793692 | R2: muTm^2
A3: Encoder | B3: ='DF raw data'!H9 -> 390620 | P3: PI total | Q3: =R1203 -> 4522.756413 | R3: T^2mm^3
J4: SXR-rotation
A5: z [mm] | B5: Bx | C5: By | D5: Bz | F5: Bx_corr | G5: By_corr | H5: Bz_corr | J5: Bx_rot | K5: By_rot | L5: Bz_rot | N5: Ix | O5: Jx | P5: Iy | Q5: Jy | R5: PI
A6: 0 | B6: ='DF raw data'!G11 -> -5.3526733e-06 | C6: ='DF raw data'!H11 -> -4.2004335e-06 | D6: ='DF raw data'!I11 -> 5.4798061e-06 | F6: =(1-$G$1*($B$2-$G$2))*B6 -> -5.356184654e-06 | G6: =(1-$G$1*($B$2-$G$2))*C6*$M$2/$M$1 -> -4.212543448e-06 | H6: =(1-$G$1*($B$2-$G$2))*D6 -> 5.483400853e-06 | J6: =-CELL("contents", INDEX($F$6:$F$1203,1204-CELL("row",F6))) -> 2.025072877e-06 | K6: =CELL("contents", INDEX($G$6:$G$1203,1204-CELL("row",G6))) -> -3.080227038e-06 | L6: =-CELL("contents", INDEX($H$6:$H$1203,1204-CELL("row",H6))) -> 1.14634581e-05 | N6: =J6*$B$1 -> 1.012961704e-06 | O6: =N6*$B$1 -> 5.066935738e-07 | P6: =K6*$B$1 -> -1.540760366e-06 | Q6: =P6*$B$1 -> -7.707037429e-07 | R6: =(N6^2+P6)^2*$B$1 -> 1.1874682e-12
A7: =A6+$B$1 -> 0.50021 | B7: ='DF raw data'!G12 -> -5.1060338e-06 | C7: ='DF raw data'!H12 -> -1.0861652e-05 | D7: ='DF raw data'!I12 -> 5.3268645e-06 | F7: =(1-$G$1*($B$2-$G$2))*B7 -> -5.109383358e-06 | G7: =(1-$G$1*($B$2-$G$2))*C7*$M$2/$M$1 -> -1.08929664e-05 | H7: 5.330358923e-06 | J7: =-CELL("contents", INDEX($F$6:$F$1203,1204-CELL("row",F7))) -> -1.690634029e-06 | K7: =CELL("contents", INDEX($G$6:$G$1203,1204-CELL("row",G7))) -> -7.51767974e-07 | L7: =-CELL("contents", INDEX($H$6:$H$1203,1204-CELL("row",H7))) -> 1.155476296e-05 | N7: =J7*$B$1+N6 -> 1.672896562e-07 | O7: =N7*$B$1+O6 -> 5.903735328e-07 | P7: =K7*$B$1+P6 -> -1.916802225e-06 | Q7: =P7*$B$1+Q6 -> -1.729507384e-06 | R7: =(N7^2+P7^2)*$B$1+R6 -> 3.039303943e-12
A8: =A7+$B$1 -> 1.00042 | B8: ='DF raw data'!G13 -> -5.1714483e-06 | C8: ='DF raw data'!H13 -> -1.0242148e-05 | D8: ='DF raw data'!I13 -> -2.4898452e-06 | F8: -5.17484077e-06 | G8: -1.027167635e-05 | H8: -2.491478538e-06 | J8: -1.100327842e-05 | K8: -4.730527314e-06 | L8: 1.165006443e-05 | N8: =J8*$B$1+N7 -> -5.336660242e-06 | O8: =N8*$B$1+O7 -> -2.079077287e-06 | P8: =K8*$B$1+P7 -> -4.283059293e-06 | Q8: =P8*$B$1+Q7 -> -3.871936472e-06 | R8: =(N8^2+P8^2)*$B$1+R7 -> 2.646140682e-11
A9: 1.50063 | B9: ='DF raw data'!G14 -> -5.7881466e-06 | C9: ='DF raw data'!H14 -> 6.8678842e-06 | D9: ='DF raw data'!I14 -> -7.3800834e-07 | F9: -5.791943624e-06 | G9: 6.88768447e-06 | H9: -7.384924735e-07 | J9: -1.394117842e-05 | K9: 3.093594867e-07 | L9: 1.163514665e-05 | N9: -1.23101771e-05 | O9: -8.236750973e-06 | P9: -4.128314584e-06 | Q9: -5.93696071e-06 | R9: 1.107885301e-10
A10: 2.00084 | B10: ='DF raw data'!G15 -> -5.6306176e-06 | C10: ='DF raw data'!H15 -> 2.7668671e-06 | D10: ='DF raw data'!I15 -> 1.1333589e-06 | F10: -5.634311285e-06 | G10: 2.774844042e-06 | H10: 1.134102383e-06 | J10: -7.981954229e-06 | K10: -7.042126751e-06 | L10: 1.14219669e-05 | N10: -1.630283042e-05 | O10: -1.639158978e-05 | P10: -7.650856806e-06 | Q10: -9.763995793e-06 | R10: 2.730155817e-10
A11: 2.50105 | B11: ='DF raw data'!G16 -> -5.4348416e-06 | C11: ='DF raw data'!H16 -> -1.7436373e-06 | D11: ='DF raw data'!I16 -> 6.6755829e-06 | F11: -5.438406856e-06 | G11: -1.748664247e-06 | H11: 6.679962082e-06 | J11: -7.698895965e-07 | K11: 3.103217028e-06 | L11: 1.11698276e-05 | N11: -1.66879369e-05 | O11: -2.473906269e-05 | P11: -6.098596616e-06 | Q11: -1.281457481e-05 | R11: 4.309219338e-10
A12: 3.00126 | B12: ='DF raw data'!G17 -> -5.5690748e-06 | C12: ='DF raw data'!H17 -> 1.8670348e-06 | D12: ='DF raw data'!I17 -> 6.6675298e-06 | F12: -5.572728113e-06 | G12: 1.872417505e-06 | H12: 6.6719037e-06 | J12: 2.610515576e-06 | K12: -5.25881801e-06 | L12: 1.077849906e-05 | N12: -1.53821309e-05 | O12: -3.243335839e-05 | P12: -8.729109973e-06 | Q12: -1.718096291e-05 | R12: 5.873912793e-10
A13: 3.50147 | B13: ='DF raw data'!G18 -> -5.1476854e-06 | C13: ='DF raw data'!H18 -> -1.0272704e-05 | D13: ='DF raw data'!I18 -> 2.4312969e-06 | F13: -5.151062282e-06 | G13: -1.030232044e-05 | H13: 2.432891831e-06 | J13: 1.729112254e-06 | K13: 6.618588089e-06 | L13: 1.089717686e-05 | N13: -1.451721166e-05 | O13: -3.969501284e-05 | P13: -5.418426025e-06 | Q13: -1.989131379e-05 | R13: 7.074960897e-10
A14: 4.00168 | B14: ='DF raw data'!G19 -> -4.9305495e-06 | C14: ='DF raw data'!H19 -> -1.6148571e-05 | D14: ='DF raw data'!I19 -> 1.5282915e-06 | F14: -4.93378394e-06 | G14: -1.619512771e-05 | H14: 1.529294059e-06 | J14: -2.40238263e-06 | K14: 9.415658526e-06 | L14: 1.140658281e-05 | N14: -1.571890748e-05 | O14: -4.755776755e-05 | P14: -7.086194735e-07 | Q14: -2.024577233e-05 | R14: 8.313411797e-10
A15: 4.50189 | B15: ='DF raw data'!G20 -> -5.5202809e-06 | C15: ='DF raw data'!H20 -> 1.975643e-06 | D15: ='DF raw data'!I20 -> 1.3120878e-05 | F15: -5.523902204e-06 | G15: 1.981338825e-06 | H15: 1.31294853e-05 | J15: -4.230513097e-06 | K15: -4.128217533e-07 | L15: 1.164973121e-05 | N15: -1.783505243e-05 | O15: -5.647903912e-05 | P15: -9.151170427e-07 | Q15: -2.070352303e-05 | R15: 9.908714215e-10
A16: 5.0021 | B16: ='DF raw data'!G21 -> -5.9643648e-06 | C16: ='DF raw data'!H21 -> 1.1902092e-05 | D16: ='DF raw data'!I21 -> 1.0102342e-06 | F16: -5.968277423e-06 | G16: 1.193640601e-05 | H16: 1.010896914e-06 | J16: -2.854506028e-06 | K16: 9.982084953e-06 | L16: 1.1984984e-05 | N16: -1.926290489e-05 | O16: -6.611453678e-05 | P16: 4.078021671e-06 | Q16: -1.866365581e-05 | R16: 1.184797719e-09
A17: 5.50231 | B17: ='DF raw data'!G22 -> -5.7258026e-06 | C17: ='DF raw data'!H22 -> 4.4533867e-06 | D17: ='DF raw data'!I22 -> -3.3250979e-06 | F17: -5.729558727e-06 | G17: 4.466225918e-06 | H17: -3.327279164e-06 | J17: -3.624231237e-06 | K17: 5.194295826e-06 | L17: 1.242466123e-05 | N17: -2.10757816e-05 | O17: -7.66568535e-05 | P17: 6.676260386e-06 | Q17: -1.53241236e-05 | R17: 1.42928087e-09
A18: 6.00252 | B18: ='DF raw data'!G23 -> -5.3221688e-06 | C18: ='DF raw data'!H23 -> -5.9970312e-06 | D18: ='DF raw data'!I23 -> 1.0410009e-07 | F18: -5.325660143e-06 | G18: -6.014320781e-06 | H18: 1.041683797e-07 | J18: -6.663455761e-06 | K18: -2.564651193e-06 | L18: 1.21414886e-05 | N18: -2.440890881e-05 | O18: -8.886643377e-05 | P18: 5.393396213e-06 | Q18: -1.262629288e-05 | R18: 1.741853872e-09
A19: 6.50273 | B19: ='DF raw data'!G24 -> -5.0549038e-06 | C19: ='DF raw data'!H24 -> -1.3387959e-05 | D19: ='DF raw data'!I24 -> -1.513097e-06 | F19: -5.058219817e-06 | G19: -1.34265568e-05 | H19: -1.514089592e-06 | J19: -8.72208964e-06 | K19: -1.703437833e-06 | L19: 1.134804344e-05 | N19: -2.877178527e-05 | O19: -0.0001032583685 | P19: 4.541319575e-06 | Q19: -1.035467942e-05 | R19: 2.16625165e-09
A20: 7.00294 | B20: ='DF raw data'!G25 -> -5.4094767e-06 | C20: ='DF raw data'!H25 -> -3.4425661e-06 | D20: ='DF raw data'!I25 -> -5.4919451e-07 | F20: -5.413025317e-06 | G20: -3.452491098e-06 | H20: -5.495547816e-07 | J20: -8.565927064e-06 | K20: 4.188431632e-06 | L20: 1.14729133e-05 | N20: -3.305654764e-05 | O20: -0.0001197935842 | P20: 6.636414961e-06 | Q20: -7.035078291e-06 | R20: 2.734879046e-09
A21: 7.50315 | B21: ='DF raw data'!G26 -> -5.7175257e-06 | C21: ='DF raw data'!H26 -> 3.7430204e-06 | D21: ='DF raw data'!I26 -> -7.4159102e-06 | F21: -5.721276397e-06 | G21: 3.753811615e-06 | H21: -7.420775037e-06 | J21: -6.755162882e-06 | K21: 8.33633255e-06 | L21: 1.242066662e-05 | N21: -3.643554767e-05 | O21: -0.0001380190095 | P21: 1.080633187e-05 | Q21: -1.629643028e-06 | R21: 3.457345325e-09
A22: 8.00336 | B22: ='DF raw data'!G27 -> -8.1585522e-06 | C22: ='DF raw data'!H27 -> 1.1487959e-06 | D22: ='DF raw data'!I27 -> -6.3230923e-06 | F22: -8.16390421e-06 | G22: 1.152107905e-06 | H22: -6.327240249e-06 | J22: -5.680525582e-08 | K22: -7.582727435e-06 | L22: 1.247587581e-05 | N22: -3.646396222e-05 | O22: -0.000156258648 | P22: 7.013375776e-06 | Q22: 1.878517669e-06 | R22: 4.147038865e-09
A23: 8.50357 | B23: ='DF raw data'!G28 -> -1.1970546e-05 | C23: ='DF raw data'!H28 -> -1.3458278e-05 | D23: ='DF raw data'!I28 -> -1.2836188e-06 | F23: =(1-$G$1*($B$2-$G$2))*B23 -> -1.197839868e-05 | G23: -1.349707853e-05 | H23: -1.284460854e-06 | J23: 1.689036081e-06 | K23: -5.836884799e-06 | L23: 1.65623788e-05 | N23: -3.561908949e-05 | O23: -0.0001740756728 | P23: 4.093707631e-06 | Q23: 3.926231163e-06 | R23: 4.790047805e-09
A24: 9.00378 | B24: ='DF raw data'!G29 -> -1.1372805e-05 | C24: ='DF raw data'!H29 -> 8.4067005e-06 | D24: ='DF raw data'!I29 -> 7.1673117e-07 | F24: -1.138026556e-05 | G24: 8.430937213e-06 | H24: 7.172013456e-07 | J24: -6.397819218e-06 | K24: 1.261299302e-06 | L24: 1.4111383e-05 | N24: -3.881934264e-05 | O24: -0.0001934934961 | P24: 4.724622155e-06 | Q24: 6.289534411e-06 | R24: 5.555000659e-09
A25: 9.50399 | B25: ='DF raw data'!G30 -> -5.1091042e-06 | C25: ='DF raw data'!H30 -> -3.2661751e-06 | D25: ='DF raw data'!I30 -> -1.8394508e-07 | F25: -5.112455772e-06 | G25: -3.275591559e-06 | H25: -1.84065748e-07 | J25: -1.292184717e-05 | K25: -3.179516468e-06 | L25: 1.329322864e-05 | N25: -4.528297981e-05 | O25: -0.0002161444955 | P25: 3.134196222e-06 | Q25: 7.857290703e-06 | R25: 6.58561906e-09
A26: 10.0042 | B26: ='DF raw data'!G31 -> 1.6624923e-06 | C26: ='DF raw data'!H31 -> -1.4163438e-05 | D26: ='DF raw data'!I31 -> 6.8385075e-06 | F26: 1.663582895e-06 | G26: -1.420427152e-05 | H26: 6.842993561e-06 | J26: -1.697145398e-05 | K26: -3.158508576e-06 | L26: 1.476097685e-05 | N26: -5.377227081e-05 | O26: -0.0002430419231 | P26: 1.554278647e-06 | Q26: 8.634756425e-06 | R26: 8.033163218e-09
A27: 10.50441 | B27: ='DF raw data'!G32 -> 2.7308834e-06 | C27: ='DF raw data'!H32 -> -1.22106e-05 | D27: ='DF raw data'!I32 -> -3.9738438e-07 | F27: 2.73267486e-06 | G27: -1.224580344e-05 | H27: -3.976450642e-07 | J27: -1.887806589e-05 | K27: -5.390086272e-06 | L27: -2.109426276e-06 | N27: -6.321526815e-05 | O27: -0.0002746628323 | P27: -1.141896407e-06 | Q27: 8.063568423e-06 | R27: 1.003273971e-08
A28: 11.00462 | B28: ='DF raw data'!G33 -> 3.8501385e-06 | C28: ='DF raw data'!H33 -> -2.0051571e-06 | D28: ='DF raw data'!I33 -> 2.618913e-06 | F28: 3.852664191e-06 | G28: -2.010938015e-06 | H28: 2.620631007e-06 | J28: -1.39165983e-05 | K28: 1.052147947e-05 | L28: -8.939156442e-06 | N28: -7.017648978e-05 | O28: -0.0003097658143 | P28: 4.121052838e-06 | Q28: 1.012496026e-05 | R28: 1.250463887e-08
A29: 11.50483 | B29: ='DF raw data'!G34 -> 4.1364929e-06 | C29: ='DF raw data'!H34 -> -4.3051746e-06 | D29: ='DF raw data'!I34 -> 2.5697293e-06 | F29: 4.139206439e-06 | G29: -4.317586519e-06 | H29: 2.571415042e-06 | J29: -6.88474173e-06 | K29: 1.387694555e-05 | L29: 9.188546035e-06 | N29: -7.362030644e-05 | O29: -0.0003465914278 | P29: 1.106243977e-05 | Q29: 1.565850326e-05 | R29: 1.527696631e-08
A30: 12.00504 | B30: ='DF raw data'!G35 -> 1.0284394e-06 | C30: ='DF raw data'!H35 -> -9.7791572e-06 | D30: ='DF raw data'!I35 -> -4.0838145e-06 | F30: 1.029114056e-06 | G30: -9.807350738e-06 | H30: -4.086493482e-06 | J30: -4.877004718e-06 | K30: -1.257778881e-05 | L30: 1.8440436e-05 | N30: -7.605983297e-05 | O30: -0.0003846373168 | P30: 4.770904027e-06 | Q30: 1.804495716e-05 | R30: 1.818211582e-08
A31: 12.50525 | B31: ='DF raw data'!G36 -> 3.9872529e-07 | C31: ='DF raw data'!H36 -> 5.8039456e-07 | D31: ='DF raw data'!I36 -> -2.0766763e-06 | F31: 3.989868538e-07 | G31: 5.82067851e-07 | H31: -2.0780386e-06 | J31: -4.34025374e-06 | K31: 2.423051532e-06 | L31: 9.256808285e-06 | N31: -7.82308713e-05 | O31: -0.000423769181 | P31: 5.982938634e-06 | Q31: 2.10376829e-05 | R31: 2.126134094e-08
A32: 13.00546 | B32: ='DF raw data'!G37 -> 1.6146997e-06 | C32: ='DF raw data'!H37 -> -8.1582812e-06 | D32: ='DF raw data'!I37 -> -3.1635043e-06 | F32: 1.615758943e-06 | G32: -8.181801715e-06 | H32: -3.165579559e-06 | J32: -6.070532158e-06 | K32: -1.206074244e-05 | L32: -2.716464533e-06 | N32: -8.126741219e-05 | O32: -0.0004644199532 | P32: -4.996534347e-08 | Q32: 2.101268973e-05 | R32: 2.456492525e-08
A33: 13.50567 | B33: ='DF raw data'!G38 -> -4.9952212e-07 | C33: ='DF raw data'!H38 -> 1.9691056e-06 | D33: ='DF raw data'!I38 -> -4.0721485e-08 | F33: -4.998498065e-07 | G33: 1.974782577e-06 | H33: -4.074819829e-08 | J33: -6.900104101e-06 | K33: -3.807227973e-06 | L33: 7.780136023e-06 | N33: -8.471891326e-05 | O33: -0.0005067972008 | P33: -1.954378848e-06 | Q33: 2.003508989e-05 | R33: 2.815699022e-08
A34: 14.00588 | B34: ='DF raw data'!G39 -> -4.6327805e-06 | C34: ='DF raw data'!H39 -> 5.326669e-06 | D34: ='DF raw data'!I39 -> 2.2741626e-06 | F34: -4.635819604e-06 | G34: 5.342025911e-06 | H34: 2.275654451e-06 | J34: -6.987670307e-06 | K34: -6.865095834e-06 | L34: 1.736568042e-05 | N34: -8.821421582e-05 | O34: -0.0005509228337 | P34: -5.388368435e-06 | Q34: 1.733977412e-05 | R34: 3.206402168e-08
A35: 14.50609 | B35: ='DF raw data'!G40 -> -9.5129653e-06 | C35: ='DF raw data'!H40 -> -2.7344699e-06 | D35: ='DF raw data'!I40 -> -3.7666848e-06 | F35: -9.519205805e-06 | G35: -2.74235344e-06 | H35: -3.769155745e-06 | J35: -9.535230711e-06 | K35: -3.810573591e-06 | L35: 1.989359764e-05 | N35: -9.298383358e-05 | O35: -0.0005974342771 | P35: -7.294455451e-06 | Q35: 1.369101455e-05 | R35: 3.64154497e-08
A36: 15.0063 | B36: ='DF raw data'!G41 -> -1.0870649e-05 | C36: ='DF raw data'!H41 -> 9.4243505e-06 | D36: ='DF raw data'!I41 -> 5.6239173e-07 | F36: -1.087778015e-05 | G36: 9.451521122e-06 | H36: 5.62760659e-07 | J36: -1.236372228e-05 | K36: -8.196121881e-06 | L36: 1.499753193e-05 | N36: -9.91682911e-05 | O36: -0.000647039248 | P36: -1.139423758e-05 | Q36: 7.991502976e-06 | R36: 4.139963148e-08
A37: 15.50651 | B37: ='DF raw data'!G42 -> -6.9835619e-06 | C37: ='DF raw data'!H42 -> -8.7092021e-06 | D37: ='DF raw data'!I42 -> 5.8678161e-06 | F37: -6.988143117e-06 | G37: -8.734310932e-06 | H37: 5.871665387e-06 | J37: -7.323506771e-06 | K37: -8.966072486e-06 | L37: 9.567952162e-06 | N37: -0.0001028315824 | O37: -0.0006984766338 | P37: -1.587915669e-05 | Q37: 4.859000605e-08 | R37: 4.681514603e-08
A38: 16.00672 | B38: ='DF raw data'!G43 -> -8.5216689e-06 | C38: ='DF raw data'!H43 -> -1.2839043e-05 | D38: ='DF raw data'!I43 -> -6.6014886e-06 | F38: -8.527259115e-06 | G38: -1.287605826e-05 | H38: -6.605819177e-06 | J38: 1.972239541e-06 | K38: -6.441983097e-06 | L38: 2.723970453e-06 | N38: -0.0001018450485 | O38: -0.0007494205455 | P38: -1.910150106e-05 | Q38: -9.506171839e-06 | R38: 5.218604148e-08
A39: 16.50693 | B39: ='DF raw data'!G44 -> -1.2512151e-05 | C39: ='DF raw data'!H44 -> -5.7085613e-06 | D39: ='DF raw data'!I44 -> -2.95732e-06 | F39: -1.252035897e-05 | G39: -5.725019215e-06 | H39: -2.959260002e-06 | J39: 1.64862619e-06 | K39: -1.937873774e-06 | L39: 1.283696953e-05 | N39: -0.0001010203892 | O39: -0.0007999519544 | P39: -2.00708449e-05 | Q39: -1.954580917e-05 | R39: 5.749224807e-08
A40: 17.00714 | B40: ='DF raw data'!G45 -> -1.2802311e-05 | C40: ='DF raw data'!H45 -> 5.1622869e-06 | D40: ='DF raw data'!I45 -> -8.9181481e-07 | F40: -1.281070932e-05 | G40: 5.177169893e-06 | H40: -8.923998405e-07 | J40: -5.443010474e-06 | K40: -2.358447212e-06 | L40: 1.23115791e-05 | N40: -0.0001037430374 | O40: -0.0008518452592 | P40: -2.125056378e-05 | Q40: -3.017555367e-05 | R40: 6.310170519e-08
A41: 17.50735 | B41: ='DF raw data'!G46 -> -5.2960695e-06 | C41: ='DF raw data'!H46 -> 5.8042046e-06 | D41: ='DF raw data'!I46 -> 2.513025e-06 | F41: -5.299543722e-06 | G41: 5.820938257e-06 | H41: 2.514673544e-06 | J41: -8.921668077e-06 | K41: 1.992043498e-06 | L41: 1.186757302e-05 | N41: -0.000108205745 | O41: -0.0009059708549 | P41: -2.02541237e-05 | Q41: -4.030686889e-05 | R41: 6.916360652e-08
A42: 18.00756 | B42: ='DF raw data'!G47 -> 1.7871799e-06 | C42: ='DF raw data'!H47 -> 6.7277856e-06 | D42: ='DF raw data'!I47 -> -1.8658336e-06 | F42: 1.78835229e-06 | G42: 6.747181963e-06 | H42: -1.867057587e-06 | J42: -8.717814937e-06 | K42: -5.575818803e-06 | L42: 9.553967694e-06 | N42: -0.0001125664832 | O42: -0.0009622777355 | P42: -2.304320403e-05 | Q42: -5.183330998e-05 | R42: 7.576748018e-08
A43: 18.50777 | B43: ='DF raw data'!G48 -> 2.4012851e-07 | C43: ='DF raw data'!H48 -> 7.4975273e-06 | D43: ='DF raw data'!I48 -> -3.5815972e-06 | F43: 2.402860343e-07 | G43: 7.519142846e-06 | H43: -3.583946728e-06 | J43: -6.081553384e-06 | K43: -1.502184784e-06 | L43: 1.028268002e-05 | N43: -0.0001156085371 | O43: -0.001020106282 | P43: -2.379461188e-05 | Q43: -6.373561278e-05 | R43: 8.27361645e-08
A44: 19.00798 | B44: ='DF raw data'!G49 -> -5.995003e-06 | C44: ='DF raw data'!H49 -> 5.4802426e-06 | D44: ='DF raw data'!I49 -> -4.8974375e-06 | F44: -5.998935722e-06 | G44: 5.496042267e-06 | H44: -4.900650219e-06 | J44: -1.637800493e-06 | K44: -3.694289605e-06 | L44: 7.033309126e-06 | N44: -0.0001164277812 | O44: -0.001078344622 | P44: -2.564253248e-05 | Q44: -7.656226396e-05 | R44: 8.984563308e-08
A45: 19.50819 | B45: ='DF raw data'!G50 -> -9.8991104e-06 | C45: ='DF raw data'!H50 -> -2.0411803e-06 | D45: ='DF raw data'!I50 -> 4.5328084e-06 | F45: -9.905604216e-06 | G45: -2.04706507e-06 | H45: 4.535781922e-06 | J45: 1.773622934e-08 | K45: -3.639292703e-06 | L45: 1.120852097e-05 | N45: -0.0001164189094 | O45: -0.001136578525 | P45: -2.746294308e-05 | Q45: -9.029950271e-05 | R45: 9.700242552e-08
A46: 20.0084 | B46: ='DF raw data'!G51 -> -8.4384992e-06 | C46: ='DF raw data'!H51 -> -4.6140255e-07 | D46: ='DF raw data'!I51 -> 5.8568571e-07 | F46: -8.444034855e-06 | G46: -4.627327843e-07 | H46: 5.860699198e-07 | J46: 9.121644076e-07 | K46: 7.705543498e-06 | L46: 1.096011112e-05 | N46: -0.0001159626356 | O46: -0.001194584195 | P46: -2.360855317e-05 | Q46: -0.0001021087371 | R46: 1.040077148e-07
A47: 20.50861 | B47: ='DF raw data'!G52 -> -3.3274953e-06 | C47: ='DF raw data'!H52 -> -6.942229e-06 | D47: ='DF raw data'!I52 -> 2.447003e-06 | F47: -3.329678137e-06 | G47: -6.962243608e-06 | H47: 2.448608234e-06 | J47: -5.563516874e-07 | K47: 1.117889737e-05 | L47: 1.679314008e-05 | N47: -0.0001162409283 | O47: -0.00125272907 | P47: -1.801675692e-05 | Q47: -0.0001111208991 | R47: 1.10928899e-07
A48: 21.00882 | B48: ='DF raw data'!G53 -> 3.3644692e-06 | C48: ='DF raw data'!H53 -> -1.9184305e-05 | D48: ='DF raw data'!I53 -> 3.8446392e-06 | F48: 3.366676292e-06 | G48: -1.92396138e-05 | H48: 3.847161283e-06 | J48: -3.037519006e-06 | K48: 4.594684803e-06 | L48: 1.103669933e-05 | N48: -0.0001177603257 | O48: -0.001311633962 | P48: -1.571844963e-05 | Q48: -0.0001189834248 | R48: 1.17989145e-07
A49: 21.50903 | B49: ='DF raw data'!G54 -> 3.4992363e-06 | C49: ='DF raw data'!H54 -> -1.3327252e-05 | D49: ='DF raw data'!I54 -> 7.8196472e-06 | F49: 3.501531799e-06 | G49: -1.336567478e-05 | H49: 7.824776889e-06 | J49: -3.186334365e-06 | K49: 6.383214553e-06 | L49: 8.320111415e-06 | N49: -0.000119354162 | O49: -0.001371336108 | P49: -1.252550188e-05 | Q49: -0.0001252488061 | R49: 1.251933216e-07
A50: 22.00924 | B50: ='DF raw data'!G55 -> -8.6691068e-07 | C50: ='DF raw data'!H55 -> 2.0307511e-06 | D50: ='DF raw data'!I55 -> -8.1600933e-07 | F50: -8.674793734e-07 | G50: 2.036605803e-06 | H50: -8.165446321e-07 | J50: -4.175141397e-06 | K50: 8.660157661e-06 | L50: 1.437777364e-05 | N50: -0.0001214426095 | O50: -0.001432082915 | P50: -8.193604415e-06 | Q50: -0.0001293473289 | R50: 1.326041541e-07
A51: 22.50945 | B51: ='DF raw data'!G56 -> -1.792058e-06 | C51: ='DF raw data'!H56 -> -3.3347583e-06 | D51: ='DF raw data'!I56 -> -9.2677783e-06 | F51: -1.79323359e-06 | G51: -3.344372486e-06 | H51: -9.273857963e-06 | J51: -5.977155844e-06 | K51: -1.76724105e-05 | L51: 8.653299443e-06 | N51: -0.0001244324426 | O51: -0.001494325267 | P51: -1.703352087e-05 | Q51: -0.0001378676664 | R51: 1.404942534e-07
A52: 23.00966 | B52: ='DF raw data'!G57 -> -3.5261417e-06 | C52: ='DF raw data'!H57 -> 1.8618325e-06 | D52: ='DF raw data'!I57 -> -1.2685102e-06 | F52: -3.528454849e-06 | G52: 1.867200206e-06 | H52: -1.269342343e-06 | J52: -5.907423729e-06 | K52: -8.027785258e-06 | L52: 4.353217539e-06 | N52: -0.000127387395 | O52: -0.001558045716 | P52: -2.104909934e-05 | Q52: -0.0001483966364 | R52: 1.488330607e-07
A53: 23.50987 | B53: ='DF raw data'!G58 -> -4.8503171e-06 | C53: ='DF raw data'!H58 -> -3.5547796e-06 | D53: ='DF raw data'!I58 -> 6.8582071e-06 | F53: -4.853498908e-06 | G53: -3.565028112e-06 | H53: 6.862706084e-06 | J53: -4.009895167e-06 | K53: 1.643465228e-06 | L53: 8.587967613e-06 | N53: -0.0001293931847 | O53: -0.001622769481 | P53: -2.02270216e-05 | Q53: -0.0001585143948 | R53: 1.574125269e-07
A54: 24.01008 | B54: ='DF raw data'!G59 -> -3.0725125e-06 | C54: ='DF raw data'!H59 -> -5.5605901e-06 | D54: ='DF raw data'!I59 -> 8.1156795e-06 | F54: -3.074528068e-06 | G54: -5.576621411e-06 | H54: 8.121003386e-06 | J54: -2.511589523e-06 | K54: 5.853854783e-06 | L54: 1.602779834e-05 | N54: -0.0001306495069 | O54: -0.001688121671 | P54: -1.729886489e-05 | Q54: -0.0001671674601 | R54: 1.661004465e-07
A55: 24.51029 | B55: ='DF raw data'!G60 -> 2.2330741e-07 | C55: ='DF raw data'!H60 -> 3.2421362e-06 | D55: ='DF raw data'!I60 -> 2.2338975e-06 | F55: 2.234538997e-07 | G55: 3.251483354e-06 | H55: 2.235362937e-06 | J55: -5.141572761e-06 | K55: -6.266287518e-06 | L55: 1.438343435e-05 | N55: -0.000133221373 | O55: -0.001754760334 | P55: -2.043332457e-05 | Q55: -0.0001773884133 | R55: 1.751869887e-07
A56: 25.0105 | B56: ='DF raw data'!G61 -> 2.9964131e-06 | C56: ='DF raw data'!H61 -> 9.6490412e-06 | D56: ='DF raw data'!I61 -> -7.7161781e-07 | F56: 2.998378747e-06 | G56: 9.67685961e-06 | H56: -7.721239913e-07 | J56: -8.615354067e-06 | K56: -1.301455039e-05 | L56: 7.416379255e-06 | N56: -0.0001375308593 | O56: -0.001823554645 | P56: -2.694333282e-05 | Q56: -0.0001908657379 | R56: 1.850114535e-07
A57: 25.51071 | B57: ='DF raw data'!G62 -> 2.4116875e-06 | C57: ='DF raw data'!H62 -> 1.0499506e-05 | D57: ='DF raw data'!I62 -> -1.003968e-08 | F57: 2.413269567e-06 | G57: 1.052977632e-05 | H57: -1.004626603e-08 | J57: -1.088405226e-05 | K57: -7.243248523e-06 | L57: 3.956759933e-06 | N57: -0.0001429751711 | O57: -0.001895072255 | P57: -3.056647817e-05 | Q57: -0.0002061553959 | R57: 1.957040471e-07
A58: 26.01092 | B58: ='DF raw data'!G63 -> 2.1423539e-06 | C58: ='DF raw data'!H63 -> -3.6723263e-06 | D58: ='DF raw data'!I63 -> 1.3226393e-06 | F58: 2.143759284e-06 | G58: -3.682913702e-06 | H58: 1.323506951e-06 | J58: -1.028171138e-05 | K58: -1.781715761e-06 | L58: 2.578121039e-06 | N58: -0.0001481181859 | O58: -0.001969162453 | P58: -3.145771021e-05 | Q58: -0.0002218908571 | R58: 2.071731543e-07
A59: 26.51113 | B59: ='DF raw data'!G64 -> 1.8570669e-06 | C59: ='DF raw data'!H64 -> 1.9137356e-06 | D59: ='DF raw data'!I64 -> 3.9963156e-06 | F59: 1.858285136e-06 | G59: 1.919252944e-06 | H59: 3.998937183e-06 | J59: -4.463153409e-06 | K59: 4.568860966e-06 | L59: 9.228569973e-06 | N59: -0.0001503506999 | O59: -0.002044369377 | P59: -2.917232026e-05 | Q59: -0.0002364831434 | R59: 2.189062588e-07
A60: 27.01134 | B60: ='DF raw data'!G65 -> -2.875926e-07 | C60: ='DF raw data'!H65 -> -2.2796135e-06 | D60: ='DF raw data'!I65 -> 5.4523193e-06 | F60: -2.877812607e-07 | G60: -2.286185679e-06 | H60: 5.455896021e-06 | J60: 1.441087834e-07 | K60: -3.089994015e-06 | L60: 1.488891172e-05 | N60: -0.0001502786152 | O60: -0.002119540243 | P60: -3.071796617e-05 | Q60: -0.0002518485773 | R60: 2.306748273e-07
A61: 27.51155 | B61: ='DF raw data'!G66 -> -4.8143272e-07 | C61: ='DF raw data'!H66 -> -1.0051482e-05 | D61: ='DF raw data'!I66 -> 5.0656404e-06 | F61: -4.817485399e-07 | G61: -1.008046066e-05 | H61: 5.06896346e-06 | J61: 3.149069335e-06 | K61: 3.155671019e-06 | L61: 9.972733424e-06 | N61: -0.0001487034192 | O61: -0.00219392318 | P61: -2.913946797e-05 | Q61: -0.0002664244306 | R61: 2.42160557e-07
A62: 28.01176 | B62: ='DF raw data'!G67 -> 2.0787415e-06 | C62: ='DF raw data'!H67 -> -1.25419e-05 | D62: ='DF raw data'!I67 -> -6.9487664e-06 | F62: 2.080105154e-06 | G62: -1.257805859e-05 | H62: -6.953324791e-06 | J62: 2.318695867e-06 | K62: 5.753095026e-06 | L62: -3.611538416e-06 | N62: -0.0001475435844 | O62: -0.002267725957 | P62: -2.626171231e-05 | Q62: -0.0002795608017 | R62: 2.533946668e-07
A63: 28.51197 | B63: ='DF raw data'!G68 -> 3.6462852e-06 | C63: ='DF raw data'!H68 -> -2.9011185e-06 | D63: ='DF raw data'!I68 -> -7.8911726e-06 | F63: 3.648677163e-06 | G63: -2.909482492e-06 | H63: -7.896349209e-06 | J63: -2.827321107e-06 | K63: 2.200257859e-06 | L63: 4.830922708e-06 | N63: -0.0001489578387 | O63: -0.002342236157 | P63: -2.516112132e-05 | Q63: -0.0002921466462 | R63: 2.648102192e-07
A64: 29.01218 | B64: ='DF raw data'!G69 -> 1.7797707e-06 | C64: ='DF raw data'!H69 -> -9.517475e-07 | D64: ='DF raw data'!I69 -> -8.9210316e-06 | F64: 1.78093823e-06 | G64: -9.544914102e-07 | H64: -8.926883797e-06 | J64: -2.648649275e-06 | K64: -1.070374042e-06 | L64: 8.350146205e-06 | N64: -0.0001502827195 | O64: -0.002417409076 | P64: -2.569653312e-05 | Q64: -0.000305000309 | R64: 2.764377045e-07
A65: 29.51239 | B65: ='DF raw data'!G70 -> 2.7537117e-06 | C65: ='DF raw data'!H70 -> -3.2965959e-06 | D65: ='DF raw data'!I70 -> -8.3184495e-06 | F65: 2.755518135e-06 | G65: -3.306100063e-06 | H65: -8.323906403e-06 | J65: 1.69324414e-06 | K65: 7.067834052e-07 | L65: 6.235468486e-06 | N65: -0.0001494357419 | O65: -0.002492158329 | P65: -2.5342993e-05 | Q65: -0.0003176771275 | R65: 2.87929183e-07
A66: 30.0126 | B66: ='DF raw data'!G71 -> 5.7862053e-06 | C66: ='DF raw data'!H71 -> -8.9512405e-06 | D66: ='DF raw data'!I71 -> -3.5716801e-06 | F66: 5.790001051e-06 | G66: -8.977047135e-06 | H66: -3.574023122e-06 | J66: -2.858388374e-07 | K66: 1.193640601e-05 | L66: 1.186637324e-05 | N66: -0.0001495787213 | O66: -0.002566979101 | P66: -1.937228335e-05 | Q66: -0.0003273673374 | R66: 2.993084999e-07
A67: 30.51281 | B67: ='DF raw data'!G72 -> 4.6257001e-06 | C67: ='DF raw data'!H72 -> -3.7801378e-06 | D67: ='DF raw data'!I72 -> -7.1518002e-07 | F67: 4.628734559e-06 | G67: -3.791036025e-06 | H67: -7.156491781e-07 | J67: -4.260303127e-06 | K67: 1.49653785e-06 | L67: 1.53675495e-05 | N67: -0.0001517097675 | O67: -0.002642865844 | P67: -1.862370015e-05 | Q67: -0.0003366830984 | R67: 3.10994754e-07
A68: 31.01302 | B68: ='DF raw data'!G73 -> -7.7793391e-07 | C68: ='DF raw data'!H73 -> 2.4199567e-06 | D68: ='DF raw data'!I73 -> -8.148605e-06 | F68: -7.784442346e-07 | G68: 2.426933492e-06 | H68: -8.153950485e-06 | J68: -4.683849591e-07 | K68: 1.371023229e-06 | L68: 1.150854366e-05 | N68: -0.0001519440584 | O68: -0.002718869781 | P68: -1.793790062e-05 | Q68: -0.0003456558157 | R68: 3.227040524e-07
A69: 31.51323 | B69: ='DF raw data'!G74 -> -4.6648111e-07 | C69: ='DF raw data'!H74 -> 4.399883e-06 | D69: ='DF raw data'!I74 -> -8.0522727e-07 | F69: -4.667871216e-07 | G69: 4.412567965e-06 | H69: -8.057554991e-07 | J69: 3.174584262e-06 | K69: -2.21178971e-06 | L69: 3.358580785e-06 | N69: -0.0001503560996 | O69: -0.002794079406 | P69: -1.904425995e-05 | Q69: -0.000355181945 | R69: 3.341936963e-07
A70: 32.01344 | B70: ='DF raw data'!G75 -> 1.303447e-06 | C70: ='DF raw data'!H75 -> -9.4753423e-06 | D70: ='DF raw data'!I75 -> 1.1919931e-06 | F70: 1.304302061e-06 | G70: -9.502659932e-06 | H70: 1.192775047e-06 | J70: 1.850475416e-06 | K70: -5.341915493e-06 | L70: 1.027881748e-05 | N70: -0.0001494304733 | O70: -0.002868826023 | P70: -2.17163395e-05 | Q70: -0.0003660446752 | R70: 3.455990174e-07
A71: 32.51365 | B71: ='DF raw data'!G76 -> -7.9467924e-08 | C71: ='DF raw data'!H76 -> 1.1067664e-06 | D71: ='DF raw data'!I76 -> 6.1927999e-06 | F71: -7.952005496e-08 | G71: =(1-$G$1*($B$2-$G$2))*C71*$M$2/$M$1 -> 1.109957233e-06 | H71: 6.196862377e-06 | J71: =-CELL("contents", INDEX($F$6:$F$1203,1204-CELL("row",F71))) -> 6.791896663e-07 | K71: =CELL("contents", INDEX($G$6:$G$1203,1204-CELL("row",G71))) -> -3.626712739e-06 | L71: =-CELL("contents", INDEX($H$6:$H$1203,1204-CELL("row",H71))) -> 2.299476568e-06 | N71: -0.0001490907358 | O71: -0.0029434027 | P71: -2.353045748e-05 | Q71: -0.0003778148453 | R71: 3.569946665e-07
A72: =A71+$B$1 -> 33.01386 | B72: ='DF raw data'!G77 -> 1.3892201e-06 | C72: ='DF raw data'!H77 -> 2.0410248e-06 | D72: ='DF raw data'!I77 -> -4.0844802e-06 | F72: 1.390131428e-06 | G72: 2.046909122e-06 | H72: -4.087159619e-06 | J72: 1.002802707e-06 | K72: 6.771805449e-06 | L72: 3.115298796e-06 | N72: =J72*$B$1+N71 -> -0.0001485891239 | O72: =N72*$B$1+O71 -> -0.003017728465 | P72: =K72*$B$1+P71 -> -2.014313267e-05 | Q72: =P72*$B$1+Q71 -> -0.0003878906417 | R72: =(N72^2+P72^2)*$B$1+R71 -> 3.68241625e-07
A73: 33.51407 | B73: ='DF raw data'!G78 -> 1.0943322e-07 | C73: ='DF raw data'!H78 -> 2.0420907e-06 | D73: ='DF raw data'!I78 -> -1.1898726e-05 | F73: 1.095050082e-07 | G73: 2.047978095e-06 | H73: -1.190653156e-05 | J73: -4.258377364e-07 | K73: 6.477819316e-06 | L73: 7.349915284e-06 | N73: -0.0001488021322 | O73: -0.00309216078 | P73: -1.690286267e-05 | Q73: -0.0003963456226 | R73: 3.794602255e-07
A74: 34.01428 | B74: ='DF raw data'!G79 -> -2.336333e-06 | C74: ='DF raw data'!H79 -> 2.5835384e-06 | D74: ='DF raw data'!I79 -> -5.5589858e-06 | F74: -2.337865634e-06 | G74: 2.590986801e-06 | H74: -5.562632495e-06 | J74: -4.740278984e-06 | K74: -8.461201315e-06 | L74: 1.156814873e-05 | N74: -0.0001511732671 | O74: -0.00316777916 | P74: -2.113524018e-05 | Q74: -0.0004069176811 | R74: 3.91115146e-07
A75: 34.51449 | B75: ='DF raw data'!G80 -> -1.239306e-06 | C75: ='DF raw data'!H80 -> -2.1856745e-07 | D75: ='DF raw data'!I80 -> 1.6080232e-06 | F75: -1.240118985e-06 | G75: -2.19197585e-07 | H75: 1.609078063e-06 | J75: -8.570735917e-06 | K75: -2.330478008e-06 | L75: 7.458669379e-06 | N75: -0.0001554604349 | O75: -0.003245542024 | P75: -2.230096859e-05 | Q75: -0.0004180728486 | R75: 4.034529658e-07
A76: 35.0147 | B76: ='DF raw data'!G81 -> 2.3257144e-06 | C76: ='DF raw data'!H81 -> -1.4352895e-06 | D76: ='DF raw data'!I81 -> 7.7855952e-07 | F76: 2.327240069e-06 | G76: -1.439427473e-06 | H76: 7.79070255e-07 | J76: -9.627070818e-06 | K76: 1.034524986e-05 | L76: 2.013505894e-06 | N76: -0.000160275992 | O76: -0.003325713678 | P76: -1.712617116e-05 | Q76: -0.0004266395307 | R76: 4.164492716e-07
A77: 35.51491 | B77: ='DF raw data'!G82 -> 3.8342514e-06 | C77: ='DF raw data'!H82 -> -6.6234264e-07 | D77: ='DF raw data'!I82 -> -9.5721953e-06 | F77: 3.836766669e-06 | G77: -6.642521893e-07 | H77: -9.57847466e-06 | J77: -8.675868839e-06 | K77: -2.362194183e-06 | L77: 2.477958175e-06 | N77: -0.0001646157484 | O77: -0.003408056122 | P77: -1.830776431e-05 | Q77: -0.0004357972575 | R77: 4.301717921e-07
A78: 36.01512 | B78: ='DF raw data'!G83 -> 5.8196465e-06 | C78: ='DF raw data'!H83 -> 4.1803964e-06 | D78: ='DF raw data'!I83 -> -6.410944e-06 | F78: 5.823464188e-06 | G78: 4.19244858e-06 | H78: -6.415149579e-06 | J78: -6.437694859e-06 | K78: -5.507307853e-06 | L78: -7.856077608e-06 | N78: -0.0001678359477 | O78: -0.003492009341 | P78: -2.106257477e-05 | Q78: -0.000446332968 | R78: 4.444840694e-07
A79: 36.51533 | B79: ='DF raw data'!G84 -> 7.586571e-06 | C79: ='DF raw data'!H84 -> 5.328971e-07 | D79: ='DF raw data'!I84 -> -2.2392012e-06 | F79: 7.591547791e-06 | G79: 5.344334547e-07 | H79: -2.240670116e-06 | J79: -8.490584172e-06 | K79: -1.686844632e-06 | L79: -1.273922245e-05 | N79: -0.0001720830228 | O79: -0.00357808699 | P79: -2.190635132e-05 | Q79: -0.000457290744 | R79: 4.595366163e-07
A80: 37.01554 | B80: ='DF raw data'!G85 -> 3.990579e-06 | C80: ='DF raw data'!H85 -> -1.1477151e-05 | D80: ='DF raw data'!I85 -> -1.3753295e-06 | F80: 3.99319682e-06 | G80: -1.151023989e-05 | H80: -1.376231716e-06 | J80: -1.38209496e-05 | K80: -1.802055934e-06 | L80: -1.119349012e-05 | N80: -0.0001789964 | O80: -0.003667622779 | P80: -2.280775772e-05 | Q80: -0.0004686994125 | R80: 4.758234064e-07
A81: 37.51575 | B81: ='DF raw data'!G86 -> -1.459579e-06 | C81: ='DF raw data'!H86 -> -7.3255628e-06 | D81: ='DF raw data'!I86 -> 4.7853141e-06 | F81: -1.460536484e-06 | G81: -7.346682568e-06 | H81: 4.788453266e-06 | J81: -1.508113874e-05 | K81: 5.033886491e-07 | L81: 1.295382814e-06 | N81: -0.0001865401364 | O81: -0.003760932021 | P81: -2.255595769e-05 | Q81: -0.0004799821281 | R81: 4.934838175e-07
A82: 38.01596 | B82: ='DF raw data'!G87 -> -2.9415501e-06 | C82: ='DF raw data'!H87 -> -8.8220813e-06 | D82: ='DF raw data'!I87 -> 4.9074411e-06 | F82: -2.943479757e-06 | G82: -8.847515566e-06 | H82: 4.910660381e-06 | J82: -9.528150169e-06 | K82: 7.323377071e-06 | L82: 5.499696035e-06 | N82: -0.0001913062124 | O82: -0.003856625301 | P82: -1.889273124e-05 | Q82: -0.0004894324612 | R82: 5.119690792e-07
A83: 38.51617 | B83: ='DF raw data'!G88 -> 4.1508438e-06 | C83: ='DF raw data'!H88 -> -4.3018385e-06 | D83: ='DF raw data'!I88 -> 1.3002102e-06 | F83: 4.153566754e-06 | G83: -4.314240801e-06 | H83: 1.301063138e-06 | J83: -6.146744121e-06 | K83: -1.074028548e-05 | L83: -1.773307727e-06 | N83: -0.0001943808753 | O83: -0.003953856559 | P83: -2.426512944e-05 | Q83: -0.0005015701216 | R83: 5.311634981e-07
A84: 39.01638 | B84: ='DF raw data'!G89 -> 7.005784e-06 | C84: ='DF raw data'!H89 -> 7.5633056e-06 | D84: ='DF raw data'!I89 -> -1.2662474e-06 | F84: 7.010379794e-06 | G84: 7.585110786e-06 | H84: -1.267078058e-06 | J84: -6.599468113e-06 | K84: -2.165089359e-06 | L84: -2.607910668e-06 | N84: -0.0001976819953 | O84: -0.00405273907 | P84: -2.534812879e-05 | Q84: -0.0005142495091 | R84: 5.510321888e-07
A85: 39.51659 | B85: ='DF raw data'!G90 -> -1.3414993e-06 | C85: ='DF raw data'!H90 -> 6.050645e-06 | D85: ='DF raw data'!I90 -> 6.7429262e-08 | F85: -1.342379324e-06 | G85: 6.06808915e-06 | H85: 6.74734956e-08 | J85: -9.000083384e-06 | K85: 1.152107905e-06 | L85: 7.220782428e-06 | N85: -0.000202183927 | O85: -0.004153873492 | P85: -2.477183289e-05 | Q85: -0.0005266406276 | R85: 5.717868942e-07
A86: 40.0168 | B86: ='DF raw data'!G91 -> -6.5273298e-06 | C86: ='DF raw data'!H91 -> -5.3373674e-06 | D86: ='DF raw data'!I91 -> -4.4846688e-06 | F86: -6.531611728e-06 | G86: -5.352755154e-06 | H86: -4.487610743e-06 | J86: -9.036352361e-06 | K86: 2.747026976e-07 | L86: 1.245303283e-05 | N86: -0.0002067040008 | O86: -0.0042572689 | P86: -2.463442386e-05 | Q86: -0.0005389630128 | R86: 5.934626936e-07
A87: 40.51701 | B87: ='DF raw data'!G92 -> -3.4947693e-06 | C87: ='DF raw data'!H92 -> 2.2054387e-07 | D87: ='DF raw data'!I92 -> -5.4053776e-06 | F87: =(1-$G$1*($B$2-$G$2))*B87 -> -3.497061869e-06 | G87: 2.211797031e-07 | H87: -5.408923528e-06 | J87: -5.202020188e-06 | K87: -3.682782425e-06 | L87: 4.390778863e-06 | N87: -0.0002093061033 | O87: -0.004361965906 | P87: -2.647658845e-05 | Q87: -0.0005522068671 | R87: 6.15727068e-07
A88: 41.01722 | B88: ='DF raw data'!G93 -> 7.9147878e-07 | C88: ='DF raw data'!H93 -> -7.5174233e-07 | D88: ='DF raw data'!I93 -> -7.5643925e-06 | F88: 7.919979901e-07 | G88: -7.539096206e-07 | H88: -7.569354741e-06 | J88: -3.916517951e-06 | K88: -7.215950749e-06 | L88: 7.530927049e-06 | N88: -0.0002112651848 | O88: -0.004467642864 | P88: -3.008607918e-05 | Q88: -0.0005672562247 | R88: 6.385057062e-07
A89: 41.51743 | B89: ='DF raw data'!G94 -> 2.7105916e-06 | C89: ='DF raw data'!H94 -> -5.4421048e-06 | D89: ='DF raw data'!I94 -> -3.2373789e-06 | F89: 2.712369748e-06 | G89: -5.457794515e-06 | H89: -3.239502621e-06 | J89: -5.110780774e-06 | K89: 2.120637371e-06 | L89: 8.509914544e-06 | N89: -0.0002138216484 | O89: -0.004574598591 | P89: -2.902531516e-05 | Q89: -0.0005817749776 | R89: 6.617965674e-07
A90: 42.01764 | B90: ='DF raw data'!G95 -> 4.273129e-06 | C90: ='DF raw data'!H95 -> 1.1402407e-05 | D90: ='DF raw data'!I95 -> 5.5841629e-06 | F90: 4.275932173e-06 | G90: 1.14352804e-05 | H90: 5.587826111e-06 | J90: -3.878780112e-06 | K90: 1.271066179e-06 | L90: 1.230432034e-05 | N90: -0.000215761853 | O90: -0.004682524827 | P90: -2.838951515e-05 | Q90: -0.000595975697 | R90: 6.854860837e-07
A91: 42.51785 | B91: ='DF raw data'!G96 -> 5.0000308e-06 | C91: ='DF raw data'!H96 -> 5.2798337e-06 | D91: ='DF raw data'!I96 -> -7.9610959e-07 | F91: 5.00331082e-06 | G91: 5.295055583e-06 | H91: -7.966318379e-07 | J91: -1.299225533e-06 | K91: 2.949736913e-06 | L91: -1.277155064e-06 | N91: -0.0002164117386 | O91: -0.004790776143 | P91: -2.691402724e-05 | Q91: -0.0006094383626 | R91: 7.092752737e-07
A92: 43.01806 | B92: ='DF raw data'!G97 -> 4.3117107e-06 | C92: ='DF raw data'!H97 -> -7.3088863e-06 | D92: ='DF raw data'!I97 -> -9.7741213e-06 | F92: 4.314539182e-06 | G92: -7.329957989e-06 | H92: -9.780533124e-06 | J92: 8.356193569e-07 | K92: 1.355900956e-05 | L92: -1.293462155e-05 | N92: -0.0002159937534 | O92: -0.004898818379 | P92: -2.013167507e-05 | Q92: -0.0006195084278 | R92: 7.32814449e-07
A93: 43.51827 | B93: ='DF raw data'!G98 -> 3.533879e-06 | C93: ='DF raw data'!H98 -> 1.9784479e-06 | D93: ='DF raw data'!I98 -> -3.2988753e-06 | F93: 3.536197225e-06 | G93: 1.984151811e-06 | H93: -3.301039362e-06 | J93: 1.811802163e-06 | K93: -3.72091986e-06 | L93: -2.105563844e-06 | N93: -0.0002150874719 | O93: -0.005006407283 | P93: -2.199291639e-05 | Q93: -0.0006305095045 | R93: 7.561974202e-07
A94: 44.01848 | B94: ='DF raw data'!G99 -> 2.7563151e-06 | C94: ='DF raw data'!H99 -> -2.3204252e-07 | D94: ='DF raw data'!I99 -> 8.3748409e-06 | F94: 2.758123243e-06 | G94: -2.32711504e-07 | H94: 8.380334796e-06 | J94: -1.269770023e-06 | K94: 6.953254667e-06 | L94: 4.60076062e-06 | N94: -0.0002157226236 | O94: -0.005114313896 | P94: -1.851482888e-05 | Q94: -0.000639770807 | R94: 7.796467894e-07
A95: 44.51869 | B95: ='DF raw data'!G100 -> 3.8973967e-06 | C95: ='DF raw data'!H100 -> 2.6824077e-06 | D95: ='DF raw data'!I100 -> 7.9210758e-06 | F95: 3.899953392e-06 | G95: 2.690141144e-06 | H95: 7.926272026e-06 | J95: -1.013677036e-05 | K95: -5.982874581e-06 | L95: 3.161982901e-06 | N95: -0.0002207931375 | O95: -0.005224756832 | P95: -2.150752257e-05 | Q95: -0.0006505290849 | R95: 8.042632155e-07
A96: 45.0189 | B96: ='DF raw data'!G101 -> 2.3276502e-06 | C96: ='DF raw data'!H101 -> 7.3937213e-06 | D96: ='DF raw data'!I101 -> 2.8432662e-06 | F96: 2.329177139e-06 | G96: 7.415037571e-06 | H96: 2.845131383e-06 | J96: -1.301549157e-05 | K96: -7.470591875e-06 | L96: 1.057371181e-05 | N96: -0.0002273036165 | O96: -0.005338456374 | P96: -2.524438733e-05 | Q96: -0.0006631565799 | R96: 8.304263059e-07
A97: 45.51911 | B97: ='DF raw data'!G102 -> -3.3924425e-06 | C97: ='DF raw data'!H102 -> -2.3595398e-06 | D97: ='DF raw data'!I102 -> -2.8622142e-06 | F97: -3.394667942e-06 | G97: -2.366342408e-06 | H97: -2.864091813e-06 | J97: -9.014911505e-06 | K97: 7.433772428e-06 | L97: 9.354706865e-06 | N97: -0.0002318129654 | O97: -0.005454411537 | P97: -2.152594003e-05 | Q97: -0.0006739240703 | R97: 8.575379966e-07
A98: 46.01932 | B98: ='DF raw data'!G103 -> -7.0722722e-06 | C98: ='DF raw data'!H103 -> -3.9677375e-06 | D98: ='DF raw data'!I103 -> 1.247766e-06 | F98: -7.076911611e-06 | G98: -3.97917658e-06 | H98: 1.248584534e-06 | J98: -6.88915022e-06 | K98: 6.345212106e-06 | L98: 8.872673358e-06 | N98: -0.0002352589872 | O98: -0.005572090435 | P98: -1.835200148e-05 | Q98: -0.000683103925 | R98: 8.853914836e-07
A99: 46.51953 | B99: ='DF raw data'!G104 -> 6.3109013e-08 | C99: ='DF raw data'!H104 -> -4.4562125e-06 | D99: ='DF raw data'!I104 -> 6.5723575e-06 | F99: 6.315041251e-08 | G99: -4.469059864e-06 | H99: 6.576668967e-06 | J99: -6.398019449e-06 | K99: -1.227175204e-07 | L99: 1.82450359e-05 | N99: -0.0002384593405 | O99: -0.005691370182 | P99: -1.841338601e-05 | Q99: -0.0006923144848 | R99: 9.14004451e-07
A100: 47.01974 | B100: ='DF raw data'!G105 -> 9.8794144e-06 | C100: ='DF raw data'!H105 -> 6.5931586e-06 | D100: ='DF raw data'!I105 -> 6.8597383e-06 | F100: 9.885895296e-06 | G100: 6.61216683e-06 | H100: 6.864238288e-06 | J100: -3.40033966e-06 | K100: -2.686553831e-06 | L100: 1.768455046e-05 | N100: -0.0002401602244 | O100: -0.005811500728 | P100: -1.97572271e-05 | Q100: -0.0007021972474 | R100: 9.430502858e-07
A101: 47.51995 | B101: ='DF raw data'!G106 -> 1.3633869e-05 | C101: ='DF raw data'!H106 -> 1.6798353e-06 | D101: ='DF raw data'!I106 -> 2.0269811e-06 | F101: 1.364281282e-05 | G101: 1.684678304e-06 | H101: 2.0283108e-06 | J101: 1.475498192e-06 | K101: -4.459694241e-06 | L101: 6.590167416e-06 | N101: -0.0002394221655 | O101: -0.005931262089 | P101: -2.198801076e-05 | Q101: -0.0007131958702 | R101: 9.719656481e-07
A102: 48.02016 | B102: ='DF raw data'!G107 -> 1.3389433e-05 | C102: ='DF raw data'!H107 -> 1.4719576e-06 | D102: ='DF raw data'!I107 -> -2.7836811e-06 | F102: 1.339821647e-05 | G102: 1.476201288e-06 | H102: -2.785507195e-06 | J102: 4.725311672e-07 | K102: -9.796646065e-06 | L102: 5.561565795e-06 | N102: -0.0002391858007 | O102: -0.006050905218 | P102: -2.688839109e-05 | Q102: -0.0007266457123 | R102: 1.00094423e-06
A103: 48.52037 | B103: ='DF raw data'!G108 -> 1.36591e-05 | C103: ='DF raw data'!H108 -> 6.9123148e-06 | D103: ='DF raw data'!I108 -> -8.0061782e-06 | F103: 1.366806037e-05 | G103: 6.932243165e-06 | H103: -8.011430253e-06 | J103: -5.629429985e-06 | K103: -6.537120592e-06 | L103: 2.906847842e-06 | N103: -0.0002420016978 | O103: -0.006171956888 | P103: -3.015832418e-05 | Q103: -0.0007417312077 | R103: 1.030693893e-06
A104: 49.02058 | B104: ='DF raw data'!G109 -> 1.2167852e-05 | C104: ='DF raw data'!H109 -> 1.1219746e-05 | D104: ='DF raw data'!I109 -> -3.3955127e-06 | F104: 1.217583411e-05 | G104: 1.125209279e-05 | H104: -3.397740156e-06 | J104: -9.903996062e-06 | K104: -2.212723795e-06 | L104: 1.075911936e-05 | N104: -0.0002469557757 | O104: -0.006295486636 | P104: -3.126515075e-05 | Q104: -0.0007573703487 | R104: 1.061689238e-06
A105: 49.52079 | B105: ='DF raw data'!G110 -> 6.9079961e-06 | C105: ='DF raw data'!H110 -> 8.827531e-06 | D105: ='DF raw data'!I110 -> 4.6988603e-06 | F105: 6.912527745e-06 | G105: 8.852980977e-06 | H105: 4.701942752e-06 | J105: -1.128394341e-05 | K105: -4.716970642e-07 | L105: 1.341463723e-05 | N105: -0.000252600117 | O105: -0.006421839741 | P105: -3.150109833e-05 | Q105: -0.0007731275131 | R105: 1.094102415e-06
A106: 50.021 | B106: ='DF raw data'!G111 -> 4.4023564e-06 | C106: ='DF raw data'!H111 -> 1.9819149e-06 | D106: ='DF raw data'!I111 -> 5.5944788e-06 | F106: 4.405244346e-06 | G106: 1.987628807e-06 | H106: 5.598148778e-06 | J106: -6.696718667e-06 | K106: 9.654111415e-06 | L106: 4.670488132e-06 | N106: -0.0002559498827 | O106: -0.006549868432 | P106: -2.667201526e-05 | Q106: -0.0007864691219 | R106: 1.127227191e-06
A107: 50.52121 | B107: ='DF raw data'!G112 -> 8.7405351e-06 | C107: ='DF raw data'!H112 -> 7.6583083e-06 | D107: ='DF raw data'!I112 -> -1.8867311e-06 | F107: 8.746268891e-06 | G107: 7.680387381e-06 | H107: -1.887968796e-06 | J107: -2.9918998e-06 | K107: 6.960478634e-06 | L107: 1.310942014e-05 | N107: -0.0002574464609 | O107: -0.006678645726 | P107: -2.319031425e-05 | Q107: -0.000798069149 | R107: 1.160649458e-06
A108: 51.02142 | B108: ='DF raw data'!G113 -> 9.1609227e-06 | C108: ='DF raw data'!H113 -> -3.3148767e-06 | D108: ='DF raw data'!I113 -> -3.1923898e-06 | F108: 9.166932265e-06 | G108: -3.324433567e-06 | H108: -3.194484008e-06 | J108: -6.09858575e-06 | K108: -5.169164279e-06 | L108: 1.460254099e-05 | N108: -0.0002604970345 | O108: -0.006808948947 | P108: -2.577598191e-05 | Q108: -0.0008109625529 | R108: 1.194925401e-06
A109: 51.52163 | B109: ='DF raw data'!G114 -> 1.8302336e-06 | C109: ='DF raw data'!H114 -> -1.1217901e-05 | D109: ='DF raw data'!I114 -> 2.2436145e-06 | F109: 1.831434233e-06 | G109: -1.125024247e-05 | H109: 2.245086311e-06 | J109: -8.526586474e-06 | K109: -7.282454931e-06 | L109: 2.166080817e-06 | N109: -0.0002647621183 | O109: -0.006941385607 | P109: -2.941873869e-05 | Q109: -0.0008256781002 | R109: 1.230422524e-06
A110: 52.02184 | B110: ='DF raw data'!G115 -> -5.49278e-06 | C110: ='DF raw data'!H115 -> 3.2025077e-06 | D110: ='DF raw data'!I115 -> 2.9986697e-06 | F110: -5.496383264e-06 | G110: 3.211740604e-06 | H110: 3.000636827e-06 | J110: -8.389993628e-06 | K110: 6.861189303e-06 | L110: 5.743443929e-06 | N110: -0.000268958877 | O110: -0.007075921526 | P110: -2.598670319e-05 | Q110: -0.000838676909 | R110: 1.26694495e-06
A111: 52.52205 | B111: ='DF raw data'!G116 -> -6.6209791e-06 | C111: ='DF raw data'!H116 -> 4.6233713e-06 | D111: ='DF raw data'!I116 -> 2.3643436e-06 | F111: -6.625322462e-06 | G111: 4.636700587e-06 | H111: 2.365894609e-06 | J111: -1.163060067e-05 | K111: -6.527087248e-06 | L111: 5.87357614e-06 | N111: -0.0002747766197 | O111: -0.007213367539 | P111: -2.92516175e-05 | Q111: -0.0008533088606 | R111: 1.305139909e-06
A112: 53.02226 | B112: ='DF raw data'!G117 -> -5.9191088e-06 | C112: ='DF raw data'!H117 -> 1.0110699e-05 | D112: ='DF raw data'!I117 -> 6.321116e-06 | F112: -5.922991735e-06 | G112: 1.013984838e-05 | H112: 6.325262652e-06 | J112: -1.550981877e-05 | K112: -8.731235291e-06 | L112: 1.086101315e-05 | N112: -0.0002825347862 | O112: -0.007354694265 | P112: -3.361906871e-05 | Q112: -0.0008701254549 | R112: 1.345634984e-06
A113: 53.52247 | B113: ='DF raw data'!G118 -> -4.3988239e-06 | C113: ='DF raw data'!H118 -> 1.0272147e-05 | D113: ='DF raw data'!I118 -> 4.4040257e-06 | F113: -4.401709528e-06 | G113: 1.030176184e-05 | H113: 4.406914741e-06 | J113: -1.326796908e-05 | K113: -2.839231238e-06 | L113: 1.468871948e-05 | N113: -0.000289171557 | O113: -0.007499340769 | P113: -3.503928056e-05 | Q113: -0.0008876524535 | R113: 1.388076772e-06
A114: 54.02268 | B114: ='DF raw data'!G119 -> 1.3733335e-06 | C114: ='DF raw data'!H119 -> 1.6276667e-06 | D114: ='DF raw data'!I119 -> -3.8666963e-07 | F114: 1.374234407e-06 | G114: 1.632359301e-06 | H114: -3.869232853e-07 | J114: -5.896002142e-06 | K114: -7.967570958e-06 | L114: 6.733885433e-06 | N114: -0.0002921207962 | O114: -0.007645462513 | P114: -3.902473923e-05 | Q114: -0.0009071730183 | R114: 1.431523757e-06
A115: 54.52289 | B115: ='DF raw data'!G120 -> 1.9955719e-06 | C115: ='DF raw data'!H120 -> 1.2121181e-05 | D115: ='DF raw data'!I120 -> -5.0534395e-06 | F115: 1.996880995e-06 | G115: 1.215612665e-05 | H115: -5.056754556e-06 | J115: -1.171917874e-06 | K115: -1.21466494e-05 | L115: 1.077210687e-05 | N115: -0.0002927070013 | O115: -0.007791877482 | P115: -4.510061473e-05 | Q115: -0.0009297327968 | R115: 1.475397904e-06
A116: 55.0231 | B116: ='DF raw data'!G121 -> -3.9920528e-06 | C116: ='DF raw data'!H121 -> 7.3397183e-07 | D116: ='DF raw data'!I121 -> -5.238327e-06 | F116: -3.994671587e-06 | G116: 7.360878879e-07 | H116: -5.241763343e-06 | J116: -5.839428054e-06 | K116: 2.769356668e-06 | L116: 1.535483017e-05 | N116: -0.0002956279416 | O116: -0.007939753535 | P116: -4.371535483e-05 | Q116: -0.0009515996544 | R116: 1.520070114e-06
A117: 55.52331 | B117: ='DF raw data'!G122 -> -9.120211e-06 | C117: ='DF raw data'!H122 -> 6.6127709e-06 | D117: ='DF raw data'!I122 -> 3.0602325e-06 | F117: -9.126193858e-06 | G117: 6.631835672e-06 | H117: 3.062240013e-06 | J117: -1.247827438e-05 | K117: -3.770159511e-06 | L117: 1.666760378e-05 | N117: -0.0003018696992 | O117: -0.008090751777 | P117: -4.560122632e-05 | Q117: -0.0009744098438 | R117: 1.566692081e-06
A118: 56.02352 | B118: ='DF raw data'!G123 -> -9.2795426e-06 | C118: ='DF raw data'!H123 -> 3.8095991e-06 | D118: ='DF raw data'!I123 -> 1.4179421e-05 | F118: -9.28562998e-06 | G118: 3.820582263e-06 | H118: 1.41887227e-05 | J118: -1.328293089e-05 | K118: -8.28336769e-06 | L118: 1.655305569e-05 | N118: -0.0003085139541 | O118: -0.008245073542 | P118: -4.974464967e-05 | Q118: -0.000999292615 | R118: 1.615540283e-06
A119: 56.52373 | B119: ='DF raw data'!G124 -> -9.2872851e-06 | C119: ='DF raw data'!H124 -> 1.0708741e-06 | D119: ='DF raw data'!I124 -> 2.9377063e-06 | F119: -9.293377559e-06 | G119: 1.073961455e-06 | H119: 2.939633435e-06 | J119: -7.717519874e-06 | K119: -8.172837344e-06 | L119: 1.944646252e-05 | N119: -0.0003123743347 | O119: -0.008401326308 | P119: -5.383278464e-05 | Q119: -0.001026220312 | R119: 1.66579923e-06
A120: 57.02394 | B120: ='DF raw data'!G125 -> -6.8527333e-06 | C120: ='DF raw data'!H125 -> 8.6260543e-06 | D120: ='DF raw data'!I125 -> -4.0910686e-06 | F120: -6.857228693e-06 | G120: 8.650923415e-06 | H120: -4.093752341e-06 | J120: 2.780291776e-07 | K120: -1.267373263e-05 | L120: 1.148330311e-05 | N120: -0.0003122352617 | O120: -0.008557509508 | P120: -6.017231244e-05 | Q120: -0.001056319105 | R120: 1.716376246e-06
A121: 57.52415 | B121: ='DF raw data'!G126 -> -8.7271826e-07 | C121: ='DF raw data'!H126 -> 5.4987891e-06 | D121: ='DF raw data'!I126 -> -2.3610626e-06 | F121: -8.732907632e-07 | G121: 5.514642237e-06 | H121: -2.362611457e-06 | J121: 2.75325265e-06 | K121: -8.832797656e-06 | L121: 4.373661841e-06 | N121: -0.0003108580572 | O121: -0.008713003817 | P121: -6.459056615e-05 | Q121: -0.001088627952 | R121: 1.766799752e-06
A122: 58.02436 | B122: ='DF raw data'!G127 -> 2.2364707e-06 | C122: ='DF raw data'!H127 -> 7.2490861e-06 | D122: ='DF raw data'!I127 -> 4.9253445e-06 | F122: 2.237937825e-06 | G122: 7.269985384e-06 | H122: 4.928575526e-06 | J122: -5.044532744e-07 | K122: -1.697684193e-06 | L122: 4.748140738e-06 | N122: -0.0003111103898 | O122: -0.008868624345 | P122: -6.543976476e-05 | Q122: -0.001121361576 | R122: 1.817356996e-06
A123: 58.52457 | B123: ='DF raw data'!G128 -> 1.7054787e-06 | C123: ='DF raw data'!H128 -> 3.5203288e-06 | D123: ='DF raw data'!I128 -> 7.4846807e-06 | F123: 1.706597494e-06 | G123: 3.53047799e-06 | H123: 7.489590651e-06 | J123: -4.702139782e-06 | K123: -3.886578485e-06 | L123: 9.872638005e-06 | N123: -0.0003134624471 | O123: -0.009025421396 | P123: -6.738387019e-05 | Q123: -0.001155067662 | R123: 1.868778229e-06
A124: 59.02478 | B124: ='DF raw data'!G129 -> -3.2243006e-06 | C124: ='DF raw data'!H129 -> 4.6516602e-06 | D124: ='DF raw data'!I129 -> 5.6740773e-06 | F124: -3.226415741e-06 | G124: 4.665071045e-06 | H124: 5.677799495e-06 | J124: -9.717442863e-06 | K124: -3.750089314e-06 | L124: 1.791802152e-06 | N124: -0.0003183232092 | O124: -0.009184649848 | P124: -6.925970236e-05 | Q124: -0.001189712058 | R124: 1.921863802e-06
A125: 59.52499 | B125: ='DF raw data'!G130 -> -1.2519226e-05 | C125: ='DF raw data'!H130 -> 2.42943e-06 | D125: ='DF raw data'!I130 -> 3.3351009e-06 | F125: -1.252743861e-05 | G125: 2.436434103e-06 | H125: 3.337288726e-06 | J125: -1.354536193e-05 | K125: -4.814161139e-06 | L125: -4.471514891e-06 | N125: -0.0003250987347 | O125: -0.009347267486 | P125: -7.166779391e-05 | Q125: -0.001225561005 | R125: 1.977299805e-06
A126: 60.0252 | B126: ='DF raw data'!G131 -> -1.4276005e-05 | C126: ='DF raw data'!H131 -> -1.6854624e-06 | D126: ='DF raw data'!I131 -> 7.6361575e-06 | F126: -1.428537006e-05 | G126: -1.690321627e-06 | H126: 7.641166819e-06 | J126: -1.352672672e-05 | K126: 7.704783413e-07 | L126: 7.16950251e-06 | N126: -0.0003318649387 | O126: -0.009513269647 | P126: -7.128239294e-05 | Q126: -0.001261217171 | R126: 2.034931759e-06
A127: 60.52541 | B127: ='DF raw data'!G132 -> -5.4854377e-06 | C127: ='DF raw data'!H132 -> 1.4408674e-06 | D127: ='DF raw data'!I132 -> 9.4735824e-06 | F127: -5.489036147e-06 | G127: 1.445021454e-06 | H127: 9.47979707e-06 | J127: -1.360193702e-05 | K127: -9.233964905e-06 | L127: 7.699687584e-06 | N127: -0.0003386687636 | O127: -0.009682675149 | P127: -7.590131452e-05 | Q127: -0.001299183767 | R127: 2.095185826e-06
A128: 61.02562 | B128: ='DF raw data'!G133 -> 1.6228429e-06 | C128: ='DF raw data'!H133 -> 2.636642e-06 | D128: ='DF raw data'!I133 -> -9.314806e-07 | F128: 1.623907485e-06 | G128: 2.6442435e-06 | H128: -9.320916513e-07 | J128: -1.537249074e-05 | K128: -7.377727414e-06 | L128: -9.29806253e-08 | N128: -0.0003463582372 | O128: -0.009855927003 | P128: -7.959172755e-05 | Q128: -0.001338996345 | R128: 2.158361784e-06
A129: 61.52583 | B129: ='DF raw data'!G134 -> 2.0844818e-06 | C129: ='DF raw data'!H134 -> 8.3210407e-06 | D129: ='DF raw data'!I134 -> -6.7308697e-06 | F129: 2.08584922e-06 | G129: 8.345030454e-06 | H129: -6.735285151e-06 | J129: -1.708066157e-05 | K129: -4.790596497e-07 | L129: 2.321853938e-06 | N129: -0.0003549021549 | O129: -0.01003345261 | P129: -7.983135798e-05 | Q129: -0.001378928789 | R129: 2.224553866e-06
A130: 62.02604 | B130: ='DF raw data'!G135 -> 9.7084552e-08 | C130: ='DF raw data'!H135 -> 2.9465941e-06 | D130: ='DF raw data'!I135 -> -1.2892758e-06 | F130: 9.714823947e-08 | G130: 2.955089199e-06 | H130: -1.290121565e-06 | J130: -1.395680866e-05 | K130: 2.702451132e-06 | L130: -3.304722076e-06 | N130: -0.0003618834902 | O130: -0.01021447035 | P130: -7.84795649e-05 | Q130: -0.001418185052 | R130: 2.293142012e-06
A131: 62.52625 | B131: ='DF raw data'!G136 -> 2.773746e-07 | C131: ='DF raw data'!H136 -> -1.3221411e-06 | D131: ='DF raw data'!I136 -> 1.4895818e-07 | F131: 2.775565577e-07 | G131: -1.325952864e-06 | H131: 1.490558966e-07 | J131: -7.506052843e-06 | K131: -4.763312463e-06 | L131: 6.086030319e-08 | N131: -0.0003656380929 | O131: -0.01039736618 | P131: -8.086222143e-05 | Q131: -0.001458633144 | R131: 2.363286417e-06
A132: 63.02646 | B132: ='DF raw data'!G137 -> 3.8068847e-06 | C132: ='DF raw data'!H137 -> 6.5209738e-06 | D132: ='DF raw data'!I137 -> 1.3262991e-06 | F132: 3.809382016e-06 | G132: 6.539773919e-06 | H132: 1.327169152e-06 | J132: -5.405339078e-06 | K132: -1.133266341e-06 | L132: 9.459398297e-06 | N132: -0.0003683418975 | O132: -0.01058161448 | P132: -8.142909258e-05 | Q132: -0.00149936479 | R132: 2.434469527e-06
A133: 63.52667 | B133: ='DF raw data'!G138 -> 3.166424e-06 | C133: ='DF raw data'!H138 -> 5.4970537e-06 | D133: ='DF raw data'!I138 -> -1.7269347e-06 | F133: 3.168501174e-06 | G133: 5.512901834e-06 | H133: -1.728067569e-06 | J133: -8.298220064e-06 | K133: -3.097757934e-06 | L133: 7.743974417e-06 | N133: -0.0003724927502 | O133: -0.01076793908 | P133: -8.297862208e-05 | Q133: -0.001540871527 | R133: 2.507318261e-06
A134: 64.02688 | B134: ='DF raw data'!G139 -> 1.1381086e-06 | C134: ='DF raw data'!H139 -> 7.3781107e-06 | D134: ='DF raw data'!I139 -> 3.7790437e-07 | F134: 1.138855199e-06 | G134: 7.399381965e-06 | H134: 3.781522753e-07 | J134: -7.29491893e-06 | K134: 2.594733773e-06 | L134: 2.823667311e-06 | N134: -0.0003761417416 | O134: -0.01095608894 | P134: -8.16807103e-05 | Q134: -0.001581729035 | R134: 2.581426547e-06
A135: 64.52709 | B135: ='DF raw data'!G140 -> 2.0588504e-06 | C135: ='DF raw data'!H140 -> 4.3689274e-06 | D135: ='DF raw data'!I140 -> 4.1745475e-06 | F135: 2.060201006e-06 | G135: =(1-$G$1*($B$2-$G$2))*C135*$M$2/$M$1 -> 4.381523119e-06 | H135: 4.177286003e-06 | J135: =-CELL("contents", INDEX($F$6:$F$1203,1204-CELL("row",F135))) -> -1.455989203e-06 | K135: =CELL("contents", INDEX($G$6:$G$1203,1204-CELL("row",G135))) -> 2.247359564e-06 | L135: =-CELL("contents", INDEX($H$6:$H$1203,1204-CELL("row",H135))) -> 1.205875336e-06 | N135: -0.0003768700419 | O135: -0.0111446031 | P135: -8.055655857e-05 | Q135: -0.001622024231 | R135: 2.65571793e-06
A136: =A135+$B$1 -> 65.0273 | B136: ='DF raw data'!G141 -> 3.7913987e-06 | C136: ='DF raw data'!H141 -> 3.6330771e-06 | D136: ='DF raw data'!I141 -> -9.1331162e-07 | F136: 3.793885858e-06 | G136: 3.643551346e-06 | H136: -9.139107524e-07 | J136: 2.464705887e-06 | K136: 4.362130471e-07 | L136: -2.404281575e-07 | N136: =J136*$B$1+N135 -> -0.0003756371714 | O136: =N136*$B$1+O135 -> -0.01133250057 | P136: =K136*$B$1+P135 -> -8.033836044e-05 | Q136: =P136*$B$1+Q135 -> -0.001662210282 | R136: =(N136^2+P136^2)*$B$1+R135 -> 2.729527686e-06
A137: 65.52751 | B137: ='DF raw data'!G142 -> 3.049011e-06 | C137: ='DF raw data'!H142 -> 4.6573973e-06 | D137: ='DF raw data'!I142 -> -1.4593877e-06 | F137: 3.051011151e-06 | G137: 4.670824685e-06 | H137: -1.460345058e-06 | J137: -2.381476024e-06 | K137: -4.862836067e-07 | L137: 2.215830032e-06 | N137: -0.0003768284095 | O137: -0.01152099391 | P137: -8.058160436e-05 | Q137: -0.001702518007 | R137: 2.803805392e-06
A138: 66.02772 | B138: ='DF raw data'!G143 -> 1.7118201e-06 | C138: ='DF raw data'!H143 -> 3.1019031e-06 | D138: ='DF raw data'!I143 -> 1.1425439e-06 | F138: 1.712943054e-06 | G138: 3.110845959e-06 | H138: 1.143293409e-06 | J138: -5.568047044e-06 | K138: -2.996191959e-06 | L138: -9.39437457e-07 | N138: -0.0003796136023 | O138: -0.01171088043 | P138: -8.208032954e-05 | Q138: -0.001743575408 | R138: 2.879258903e-06
A139: 66.52793 | B139: ='DF raw data'!G144 -> 2.5342397e-06 | C139: ='DF raw data'!H144 -> 2.3043927e-05 | D139: ='DF raw data'!I144 -> -2.0538489e-06 | F139: 2.535902161e-06 | G139: 2.311036318e-05 | H139: -2.055196225e-06 | J139: -3.957222136e-08 | K139: -6.054194808e-06 | L139: -2.515205993e-06 | N139: -0.0003796333968 | O139: -0.01190077685 | P139: -8.510869833e-05 | Q139: -0.00178614763 | R139: 2.954973193e-06
A140: 67.02814 | B140: ='DF raw data'!G145 -> 6.4870073e-06 | C140: ='DF raw data'!H145 -> 1.5334239e-05 | D140: ='DF raw data'!I145 -> -1.566928e-05 | F140: 6.491262777e-06 | G140: 1.537844797e-05 | H140: -1.567955905e-05 | J140: 5.460782825e-06 | K140: -1.101072091e-05 | L140: 7.767549372e-06 | N140: -0.0003769018586 | O140: -0.01208930693 | P140: -9.061637104e-05 | Q140: -0.001831474845 | R140: 3.030137918e-06
A141: 67.52835 | B141: ='DF raw data'!G146 -> 6.9704074e-06 | C141: ='DF raw data'!H146 -> 2.2347972e-07 | D141: ='DF raw data'!I146 -> -1.6696875e-05 | F141: 6.974979987e-06 | G141: 2.241240172e-07 | H141: -1.670782815e-05 | J141: 8.049353714e-06 | K141: 1.30050571e-06 | L141: 1.301678341e-05 | N141: -0.0003728754914 | O141: -0.01227582298 | P141: -8.996584507e-05 | Q141: -0.001876476661 | R141: 3.103733808e-06
A142: 68.02856 | B142: ='DF raw data'!G147 -> 1.2895631e-06 | C142: ='DF raw data'!H147 -> 1.3347243e-05 | D142: ='DF raw data'!I147 -> -5.4978877e-06 | F142: 1.290409053e-06 | G142: 1.338572341e-05 | H142: -5.501494314e-06 | J142: 3.765437107e-06 | K142: -1.548605531e-05 | L142: 8.965442575e-06 | N142: -0.0003709919821 | O142: -0.01246139688 | P142: -9.77121248e-05 | Q142: -0.001925353243 | R142: 3.177356071e-06
A143: 68.52877 | B143: ='DF raw data'!G148 -> -3.8580197e-06 | C143: ='DF raw data'!H148 -> 1.3776077e-05 | D143: ='DF raw data'!I148 -> -2.5702207e-07 | F143: -3.860550561e-06 | G143: 1.381579375e-05 | H143: -2.571906765e-07 | J143: -5.646339671e-07 | K143: -7.187715179e-06 | L143: 1.231914906e-06 | N143: -0.0003712744176 | O143: -0.01264711206 | P143: -0.0001013074918 | Q143: -0.001976028263 | R143: 3.251441124e-06
A144: 69.02898 | B144: ='DF raw data'!G149 -> -5.0169233e-06 | C144: ='DF raw data'!H149 -> 8.5477341e-06 | D144: ='DF raw data'!I149 -> -1.4794e-07 | F144: -5.020214402e-06 | G144: 8.572377416e-06 | H144: -1.480370486e-07 | J144: -7.988109364e-07 | K144: 4.909437333e-07 | L144: 2.627802909e-06 | N144: -0.0003716739908 | O144: -0.01283302711 | P144: -0.0001010619168 | Q144: -0.002026580445 | R144: 3.325649812e-06
A145: 69.52919 | B145: ='DF raw data'!G150 -> -7.1405464e-07 | C145: ='DF raw data'!H150 -> 2.8314448e-06 | D145: ='DF raw data'!I150 -> 1.5808021e-06 | F145: -7.145230598e-07 | G145: 2.839607921e-06 | H145: 1.581839106e-06 | J145: -4.383869933e-06 | K145: -4.669645294e-06 | L145: 1.372718013e-05 | N145: -0.0003738668464 | O145: -0.01302003904 | P145: -0.0001033977201 | Q145: -0.002078301018 | R145: 3.400915164e-06
A146: 70.0294 | B146: ='DF raw data'!G151 -> 2.1685864e-06 | C146: ='DF raw data'!H151 -> 7.6617753e-06 | D146: ='DF raw data'!I151 -> 3.2858702e-07 | F146: 2.170008993e-06 | G146: 7.683864377e-06 | H146: 3.288025731e-07 | J146: -9.210147896e-06 | K146: 8.54909288e-06 | L146: 1.165006443e-05 | N146: -0.0003784738545 | O146: -0.01320935545 | P146: -9.912137837e-05 | Q146: -0.002127882523 | R146: 3.477481061e-06
A147: 70.52961 | B147: ='DF raw data'!G152 -> 8.7838646e-07 | C147: ='DF raw data'!H152 -> -8.1318658e-06 | D147: ='DF raw data'!I152 -> -1.0258543e-06 | F147: 8.789626815e-07 | G147: -8.155310158e-06 | H147: -1.02652726e-06 | J147: -8.686355814e-06 | K147: 9.599917121e-06 | L147: 2.263913854e-06 | N147: -0.0003828188565 | O147: -0.01340084527 | P147: -9.431940383e-05 | Q147: -0.002175062032 | R147: 3.555236918e-06
A148: 71.02982 | B148: ='DF raw data'!G153 -> -1.9864992e-06 | C148: ='DF raw data'!H153 -> 2.5551185e-06 | D148: ='DF raw data'!I153 -> 3.5727248e-07 | F148: -1.987802343e-06 | G148: 2.562484966e-06 | H148: 3.575068507e-07 | J148: -7.397179569e-06 | K148: 3.350502809e-06 | L148: 8.304526998e-06 | N148: -0.0003865189997 | O148: -0.01359418594 | P148: -9.264344882e-05 | Q148: -0.002221403211 | R148: 3.634259967e-06
A149: 71.53003 | B149: ='DF raw data'!G154 -> -4.060671e-06 | C149: ='DF raw data'!H154 -> 1.0374485e-05 | D149: ='DF raw data'!I154 -> 5.4635188e-07 | F149: -4.0633348e-06 | G149: 1.040439488e-05 | H149: 5.467102868e-07 | J149: -8.613551185e-06 | K149: -4.700420164e-06 | L149: 3.673426688e-07 | N149: -0.0003908275842 | O149: -0.0137896818 | P149: -9.499464599e-05 | Q149: -0.002268920483 | R149: 3.71517903e-06
A150: 72.03024 | B150: ='DF raw data'!G155 -> -2.8926227e-06 | C150: ='DF raw data'!H155 -> 9.1409908e-07 | D150: ='DF raw data'!I155 -> -8.445611e-07 | F150: -2.89452026e-06 | G150: 9.167344489e-07 | H150: -8.451151321e-07 | J150: -1.001213365e-05 | K150: 2.070861278e-06 | L150: -4.368222275e-06 | N150: -0.0003958357536 | O150: -0.0139876828 | P150: -9.395878047e-05 | Q150: -0.002315919605 | R150: 3.797970887e-06
A151: 72.53045 | B151: ='DF raw data'!G156 -> 9.1289587e-07 | C151: ='DF raw data'!H156 -> -7.5641306e-06 | D151: ='DF raw data'!I156 -> 2.6953833e-06 | F151: =(1-$G$1*($B$2-$G$2))*B151 -> 9.134947297e-07 | G151: -7.585938165e-06 | H151: 2.697151471e-06 | J151: -1.14964127e-05 | K151: 2.566899657e-06 | L151: 1.42904634e-05 | N151: -0.0004015863742 | O151: -0.01418856032 | P151: -9.267479159e-05 | Q151: -0.002362276462 | R151: 3.882936674e-06
A152: 73.03066 | B152: ='DF raw data'!G157 -> 4.424317e-06 | C152: ='DF raw data'!H157 -> -1.1786299e-05 | D152: ='DF raw data'!I157 -> -1.8813876e-07 | F152: 4.427219352e-06 | G152: -1.182027917e-05 | H152: -1.88262179e-07 | J152: -9.509715384e-06 | K152: -7.31068679e-06 | L152: 1.421181184e-05 | N152: -0.0004063432289 | O152: -0.01439181727 | P152: -9.633167023e-05 | Q152: -0.002410462527 | R152: 3.970170602e-06
A153: 73.53087 | B153: ='DF raw data'!G158 -> 2.9775892e-06 | C153: ='DF raw data'!H158 -> -2.2179715e-06 | D153: ='DF raw data'!I158 -> 1.379942e-06 | F153: 2.979542499e-06 | G153: -2.224365963e-06 | H153: 1.380847242e-06 | J153: -1.970096536e-06 | K153: -1.769542567e-05 | L153: 5.06354751e-06 | N153: -0.0004073286909 | O153: -0.01459556716 | P153: -0.0001051830991 | Q153: -0.002463076165 | R153: 4.058697841e-06
A154: 74.03108 | B154: ='DF raw data'!G159 -> -2.7953688e-06 | C154: ='DF raw data'!H159 -> 8.3289133e-06 | D154: ='DF raw data'!I159 -> 5.9775864e-08 | F154: -2.797202562e-06 | G154: 8.352925751e-06 | H154: 5.981507697e-08 | J154: 2.733882751e-06 | K154: -1.919675258e-06 | L154: 7.863849804e-06 | N154: -0.0004059611754 | O154: -0.014798633 | P154: -0.0001061433399 | Q154: -0.002516170125 | R154: 4.146770258e-06
A155: 74.53129 | B155: ='DF raw data'!G160 -> -7.2894081e-06 | C155: ='DF raw data'!H160 -> 9.7310995e-06 | D155: ='DF raw data'!I160 -> -5.1942693e-06 | F155: -7.294189952e-06 | G155: 9.759154486e-06 | H155: -5.197676741e-06 | J155: -1.322870634e-06 | K155: -2.275615994e-06 | L155: 1.525892829e-05 | N155: -0.0004066228885 | O155: -0.01500202983 | P155: -0.0001072816257 | Q155: -0.002569833467 | R155: 4.235233157e-06
A156: 75.0315 | B156: ='DF raw data'!G161 -> -6.6508828e-06 | C156: ='DF raw data'!H161 -> 7.8222902e-06 | D156: ='DF raw data'!I161 -> 3.3054841e-06 | F156: -6.655245779e-06 | G156: 7.844842045e-06 | H156: 3.307652498e-06 | J156: -4.881479651e-06 | K156: -1.066655352e-05 | L156: 1.61779768e-05 | N156: -0.0004090646534 | O156: -0.01520664806 | P156: -0.0001126171425 | Q156: -0.002626165688 | R156: 4.325279216e-06
A157: 75.53171 | B157: ='DF raw data'!G162 -> -6.66203e-06 | C157: ='DF raw data'!H162 -> 1.3100403e-05 | D157: ='DF raw data'!I162 -> 2.7371791e-06 | F157: -6.666400292e-06 | G157: 1.313817177e-05 | H157: 2.738974689e-06 | J157: -6.775001087e-06 | K157: -1.119912753e-05 | L157: 8.932409919e-06 | N157: -0.0004124535767 | O157: -0.01541296146 | P157: -0.0001182190581 | Q157: -0.002685300043 | R157: 4.417364725e-06
A158: 76.03192 | B158: ='DF raw data'!G163 -> -4.1287553e-06 | C158: ='DF raw data'!H163 -> 3.1421973e-06 | D158: ='DF raw data'!I163 -> -3.6187337e-06 | F158: -4.131463763e-06 | G158: 3.151256328e-06 | H158: -3.621107589e-06 | J158: -8.086084994e-06 | K158: -6.624501388e-06 | L158: 5.848202706e-06 | N158: -0.0004164983173 | O158: -0.01562129809 | P158: -0.0001215326999 | Q158: -0.002746091915 | R158: 4.511524779e-06
A159: 76.53213 | B159: ='DF raw data'!G164 -> 7.3854665e-07 | C159: ='DF raw data'!H164 -> 6.3415159e-06 | D159: ='DF raw data'!I164 -> -9.8168493e-06 | F159: 7.390311366e-07 | G159: 6.359798638e-06 | H159: -9.823289153e-06 | J159: -1.014565319e-05 | K159: -1.076958972e-05 | L159: 2.120374054e-07 | N159: -0.0004215732745 | O159: -0.01583217325 | P159: -0.0001269197564 | Q159: -0.002809578446 | R159: 4.608481809e-06
A160: 77.03234 | B160: ='DF raw data'!G165 -> 4.4313256e-06 | C160: ='DF raw data'!H165 -> 1.0467617e-05 | D160: ='DF raw data'!I165 -> -8.7193712e-06 | F160: 4.43423255e-06 | G160: 1.049779538e-05 | H160: -8.725091108e-06 | J160: -1.045844624e-05 | K160: -9.12410589e-06 | L160: -3.979977253e-07 | N160: -0.0004268046939 | O160: -0.01604566523 | P160: -0.0001314837254 | Q160: -0.00287534792 | R160: 4.708248802e-06
A161: 77.53255 | B161: ='DF raw data'!G166 -> 4.8464399e-06 | C161: ='DF raw data'!H166 -> 1.7247185e-05 | D161: ='DF raw data'!I166 -> -3.9683432e-06 | F161: 4.849619165e-06 | G161: 1.729690904e-05 | H161: -3.970946433e-06 | J161: -7.589744008e-06 | K161: -6.373738511e-06 | L161: 4.109402301e-06 | N161: -0.0004306011597 | O161: -0.01626105624 | P161: -0.0001346719331 | Q161: -0.002942712168 | R161: 4.810068492e-06
A162: 78.03276 | B162: ='DF raw data'!G167 -> -3.0181027e-07 | C162: ='DF raw data'!H167 -> 1.9430587e-05 | D162: ='DF raw data'!I167 -> -7.3787064e-06 | F162: -3.020082575e-07 | G162: 1.948660583e-05 | H162: -7.383546831e-06 | J162: -5.125208433e-06 | K162: -1.822396107e-06 | L162: 9.272325358e-06 | N162: -0.0004331648402 | O162: -0.01647772962 | P162: -0.0001355835139 | Q162: -0.003010532398 | R162: 4.913119089e-06
A163: 78.53297 | B163: ='DF raw data'!G168 -> -5.9537422e-07 | C163: ='DF raw data'!H168 -> -1.0977178e-06 | D163: ='DF raw data'!I168 -> -2.9800156e-06 | F163: -5.957647855e-07 | G163: -1.100882546e-06 | H163: -2.98197049e-06 | J163: -5.79915205e-06 | K163: 8.534239981e-06 | L163: 4.290614198e-06 | N163: -0.0004360656341 | O163: -0.01669585401 | P163: -0.0001313146017 | Q163: -0.003076217274 | R163: 5.016861023e-06
A164: 79.03318 | B164: ='DF raw data'!G169 -> 5.4542606e-06 | C164: ='DF raw data'!H169 -> 2.7898434e-07 | D164: ='DF raw data'!I169 -> -6.1708829e-06 | F164: 5.457838595e-06 | G164: 2.797886583e-07 | H164: -6.174930999e-06 | J164: -9.262379838e-06 | K164: -4.467319561e-06 | L164: 5.825026412e-06 | N164: -0.0004406987691 | O164: -0.01691629594 | P164: -0.0001335491996 | Q164: -0.00314301992 | R164: 5.122930951e-06
A165: 79.53339 | B165: ='DF raw data'!G170 -> 6.2688705e-06 | C165: ='DF raw data'!H170 -> 9.6686554e-06 | D165: ='DF raw data'!I170 -> -8.9499827e-06 | F165: 6.272982879e-06 | G165: 9.696530359e-06 | H165: -8.955853889e-06 | J165: -1.148732875e-05 | K165: -1.716312143e-05 | L165: 1.183993491e-05 | N165: -0.0004464448458 | O165: -0.01713961212 | P165: -0.0001421343646 | Q165: -0.00321411695 | R165: 5.232734638e-06
A166: 80.0336 | B166: ='DF raw data'!G171 -> 2.8790673e-06 | C166: ='DF raw data'!H171 -> 3.8034618e-06 | D166: ='DF raw data'!I171 -> -6.9807788e-06 | F166: 2.880955968e-06 | G166: 3.814427269e-06 | H166: -6.985358191e-06 | J166: -1.108136061e-05 | K166: -1.032198899e-05 | L166: 1.126739256e-05 | N166: -0.0004519878532 | O166: -0.01736570096 | P166: -0.0001472975267 | Q166: -0.003287796646 | R166: 5.345776886e-06
A167: 80.53381 | B167: ='DF raw data'!G172 -> 2.116522e-06 | C167: ='DF raw data'!H172 -> 7.9962783e-06 | D167: ='DF raw data'!I172 -> -7.0353303e-07 | F167: 2.117910438e-06 | G167: 8.019331757e-06 | H167: -7.039945477e-07 | J167: -7.261121773e-06 | K167: -4.60969736e-06 | L167: 1.497455587e-05 | N167: -0.0004556199389 | O167: -0.01759360661 | P167: -0.0001496033434 | Q167: -0.003362629734 | R167: 5.460810525e-06
A168: 81.03402 | B168: ='DF raw data'!G173 -> 1.6536147e-06 | C168: ='DF raw data'!H173 -> 9.7457769e-06 | D168: ='DF raw data'!I173 -> -2.3167374e-06 | F168: 1.654699471e-06 | G168: 9.773874202e-06 | H168: -2.31825718e-06 | J168: -4.982270427e-06 | K168: 2.389467386e-06 | L168: 1.376853924e-05 | N168: -0.0004581121204 | O168: -0.01782275888 | P168: -0.0001484081079 | Q168: -0.003436864954 | R168: 5.576805063e-06
A169: 81.53423 | B169: ='DF raw data'!G174 -> -2.412294e-06 | C169: ='DF raw data'!H174 -> 1.3225167e-06 | D169: ='DF raw data'!I174 -> -6.4559349e-06 | F169: -2.413876465e-06 | G169: 1.326329546e-06 | H169: -6.460169993e-06 | J169: -8.271168429e-06 | K169: -3.202396041e-06 | L169: 3.204340369e-06 | N169: -0.0004622494416 | O169: -0.01805398067 | P169: -0.0001500099784 | Q169: -0.003511901445 | R169: 5.69494343e-06
A170: 82.03444 | B170: ='DF raw data'!G175 -> -8.1771086e-06 | C170: ='DF raw data'!H175 -> 7.5518315e-06 | D170: ='DF raw data'!I175 -> -1.1165673e-06 | F170: -8.182472783e-06 | G170: 7.573603606e-06 | H170: -1.117299768e-06 | J170: -1.10018765e-05 | K170: -2.087610528e-06 | L170: 1.844214311e-06 | N170: -0.0004677526902 | O170: -0.01828795524 | P170: -0.0001510542221 | Q170: -0.003587460278 | R170: 5.815799147e-06
A171: 82.53465 | B171: ='DF raw data'!G176 -> -1.0274309e-05 | C171: ='DF raw data'!H176 -> 1.7139642e-05 | D171: ='DF raw data'!I176 -> 1.2011117e-06 | F171: -1.028104895e-05 | G171: 1.718905599e-05 | H171: 1.201899629e-06 | J171: -1.122529897e-05 | K171: -7.555149455e-07 | L171: 8.665885994e-06 | N171: -0.000473367697 | O171: -0.0185247385 | P171: -0.0001514321382 | Q171: -0.003663208148 | R171: 5.939355353e-06
A172: 83.03486 | B172: ='DF raw data'!G177 -> -6.2897016e-06 | C172: ='DF raw data'!H177 -> 8.86609e-06 | D172: ='DF raw data'!I177 -> -3.1726229e-06 | F172: -6.293827644e-06 | G172: 8.891651144e-06 | H172: -3.174704141e-06 | J172: -1.316156833e-05 | K172: -4.548410376e-06 | L172: 6.172268053e-06 | N172: -0.0004799512451 | O172: -0.01876481491 | P172: -0.0001537072986 | Q172: -0.003740094075 | R172: 6.066398254e-06
A173: 83.53507 | B173: ='DF raw data'!G178 -> -5.4704776e-07 | C173: ='DF raw data'!H178 -> 1.0448553e-06 | D173: ='DF raw data'!I178 -> -3.6788986e-06 | F173: -5.474066233e-07 | G173: 1.047867642e-06 | H173: -3.681311957e-06 | J173: -1.220168306e-05 | K173: -3.709142603e-06 | L173: 6.337429628e-06 | N173: -0.000486054649 | O173: -0.01900794431 | P173: -0.0001555626488 | Q173: -0.003817908068 | R173: 6.196677378e-06
A174: 84.03528 | B174: ='DF raw data'!G179 -> 7.7659354e-07 | C174: ='DF raw data'!H179 -> 3.1317891e-06 | D174: ='DF raw data'!I179 -> 8.7506328e-07 | F174: 7.771029854e-07 | G174: 3.140818121e-06 | H174: 8.756373215e-07 | J174: -8.508284576e-06 | K174: -6.899752663e-06 | L174: 1.748513673e-06 | N174: -0.000490310578 | O174: -0.01925320256 | P174: -0.0001590139741 | Q174: -0.003897448448 | R174: 6.329578127e-06
A175: 84.53549 | B175: ='DF raw data'!G180 -> -2.8635868e-06 | C175: ='DF raw data'!H180 -> 1.6879592e-05 | D175: ='DF raw data'!I180 -> -6.4496521e-07 | F175: -2.865465313e-06 | G175: 1.692825626e-05 | H175: -6.453883072e-07 | J175: -6.248335821e-06 | K175: -1.594717491e-05 | L175: 3.486115493e-06 | N175: -0.0004934360581 | O175: -0.01950002421 | P175: -0.0001669909105 | Q175: -0.003980978971 | R175: 6.465317667e-06
A176: 85.0357 | B176: ='DF raw data'!G181 -> -6.9323651e-06 | C176: ='DF raw data'!H181 -> -9.0474224e-08 | D176: ='DF raw data'!I181 -> -1.4214518e-06 | F176: -6.936912732e-06 | G176: -9.073506329e-08 | H176: -1.422384272e-06 | J176: -6.945323746e-06 | K176: -1.120501245e-05 | L176: 8.831114914e-06 | N176: -0.0004969101785 | O176: -0.01974858365 | P176: -0.0001725957697 | Q176: -0.004067313101 | R176: 6.603730289e-06
A177: 85.53591 | B177: ='DF raw data'!G182 -> -1.0194143e-05 | C177: ='DF raw data'!H182 -> -2.4593405e-06 | D177: ='DF raw data'!I182 -> 3.6801168e-06 | F177: -1.020083036e-05 | G177: -2.466430836e-06 | H177: 3.682530957e-06 | J177: -1.022720865e-05 | K177: -4.667233662e-06 | L177: 3.086394347e-06 | N177: -0.0005020259305 | O177: -0.01999970204 | P177: -0.0001749303667 | Q177: -0.00415481502 | R177: 6.745104975e-06
A178: 86.03612 | B178: ='DF raw data'!G183 -> -1.1326814e-05 | C178: ='DF raw data'!H183 -> 9.0710355e-06 | D178: ='DF raw data'!I183 -> -5.7388547e-07 | F178: -1.133424439e-05 | G178: 9.097187507e-06 | H178: -5.742619389e-07 | J178: -1.312002309e-05 | K178: -5.420864752e-06 | L178: 2.051732454e-06 | N178: -0.0005085886973 | O178: -0.0202541032 | P178: -0.0001776419374 | Q178: -0.004243673294 | R178: 6.890275482e-06
A179: 86.53633 | B179: ='DF raw data'!G184 -> -1.0121119e-05 | C179: ='DF raw data'!H184 -> 1.3710297e-05 | D179: ='DF raw data'!I184 -> 3.9932543e-06 | F179: -1.012775845e-05 | G179: 1.374982411e-05 | H179: 3.995873875e-06 | J179: -1.402159814e-05 | K179: -6.223465516e-06 | L179: 5.278725874e-06 | N179: -0.0005156024409 | O179: -0.02051201269 | P179: -0.0001807549771 | Q179: -0.004334088741 | R179: 7.03959729e-06
A180: 87.03654 | B180: ='DF raw data'!G185 -> -6.4551737e-06 | C180: ='DF raw data'!H185 -> 2.3673971e-05 | D180: ='DF raw data'!I185 -> 7.1497143e-06 | F180: -6.459408294e-06 | G180: 2.374222361e-05 | H180: 7.154404513e-06 | J180: -1.305356252e-05 | K180: -1.462818717e-05 | L180: 2.533233512e-06 | N180: -0.0005221319634 | O180: -0.02077318832 | P180: -0.0001880721426 | Q180: -0.004428164307 | R180: 7.193658427e-06
A181: 87.53675 | B181: ='DF raw data'!G186 -> -2.3408052e-06 | C181: ='DF raw data'!H186 -> 1.4040664e-05 | D181: ='DF raw data'!I186 -> 1.9033898e-06 | F181: -2.342340768e-06 | G181: 1.408114356e-05 | H181: 1.904638424e-06 | J181: -9.317951869e-06 | K181: -6.02970631e-06 | L181: 1.924598109e-06 | N181: -0.0005267928961 | O181: -0.0210366954 | P181: -0.000191088262 | Q181: -0.004523748567 | R181: 7.350737112e-06
A182: 88.03696 | B182: ='DF raw data'!G187 -> -4.5353173e-07 | C182: ='DF raw data'!H187 -> 5.5013247e-06 | D182: ='DF raw data'!I187 -> -7.6292158e-06 | F182: -4.538292468e-07 | G182: 5.517185147e-06 | H182: -7.634220566e-06 | J182: -3.260474969e-06 | K182: 2.709408733e-06 | L182: 7.202668053e-06 | N182: -0.0005284238183 | O182: -0.02130101828 | P182: -0.0001897329887 | Q182: -0.004618654905 | R182: 7.50841848e-06
A183: 88.53717 | B183: ='DF raw data'!G188 -> 5.5178145e-07 | C183: ='DF raw data'!H188 -> 1.3902833e-05 | D183: ='DF raw data'!I188 -> -3.5731443e-06 | F183: 5.521434186e-07 | G183: 1.394291519e-05 | H183: -3.575488283e-06 | J183: -1.439090725e-06 | K183: -1.497529501e-05 | L183: 1.699599706e-05 | N183: -0.0005291436658 | O183: -0.02156570123 | P183: -0.000197223781 | Q183: -0.004717308212 | R183: 7.667930566e-06
A184: 89.03738 | B184: ='DF raw data'!G189 -> -3.2744211e-07 | C184: ='DF raw data'!H189 -> 1.3900965e-05 | D184: ='DF raw data'!I189 -> -2.2202337e-06 | F184: -3.27656912e-07 | G184: 1.394104181e-05 | H184: -2.221690173e-06 | J184: -2.22411126e-06 | K184: -5.70159969e-06 | L184: 1.957572826e-05 | N184: -0.0005302561885 | O184: -0.02183094068 | P184: -0.0002000757782 | Q184: -0.004817388117 | R184: 7.82859899e-06
A185: 89.53759 | B185: ='DF raw data'!G190 -> -2.2164511e-06 | C185: ='DF raw data'!H190 -> 1.3422362e-05 | D185: ='DF raw data'!I190 -> -1.4080749e-06 | F185: -2.217905092e-06 | G185: 1.346105898e-05 | H185: -1.408998597e-06 | J185: -6.04762244e-06 | K185: -6.623698681e-06 | L185: 1.88405563e-05 | N185: -0.0005332812698 | O185: -0.0220976933 | P185: -0.0002033890185 | Q185: -0.004919125338 | R185: 7.991545402e-06
A186: 90.0378 | B186: ='DF raw data'!G191 -> -8.1411224e-07 | C186: ='DF raw data'!H191 -> 1.3151905e-05 | D186: ='DF raw data'!I191 -> 9.5559358e-07 | F186: -8.146462976e-07 | G186: 1.318982225e-05 | H186: 9.562204494e-07 | J186: -1.001781138e-05 | K186: -8.845910251e-06 | L186: 4.345357986e-06 | N186: -0.0005382922792 | O186: -0.02236695248 | P186: -0.0002078138313 | Q186: -0.005023075895 | R186: 8.158087903e-06
A187: 90.53801 | B187: ='DF raw data'!G192 -> 4.7163458e-06 | C187: ='DF raw data'!H192 -> 1.1868736e-05 | D187: ='DF raw data'!I192 -> -4.4481981e-06 | F187: 4.719439723e-06 | G187: 1.190295384e-05 | H187: -4.451116118e-06 | J187: -1.172992278e-05 | K187: -9.577595753e-06 | L187: 1.329589339e-05 | N187: -0.0005441597039 | O187: -0.02263914661 | P187: -0.0002126046404 | Q187: -0.005129422862 | R187: 8.328814837e-06
A188: 91.03822 | B188: ='DF raw data'!G193 -> 9.9160598e-06 | C188: ='DF raw data'!H193 -> 8.2611323e-06 | D188: ='DF raw data'!I193 -> -5.4755269e-06 | F188: 9.922564735e-06 | G188: 8.284949337e-06 | H188: -5.479118846e-06 | J188: -1.133383812e-05 | K188: -9.343692543e-06 | L188: 1.530621229e-05 | N188: -0.000549829003 | O188: -0.02291417657 | P188: -0.0002172784489 | Q188: -0.005238107715 | R188: 8.503649165e-06
A189: 91.53843 | B189: ='DF raw data'!G194 -> 8.6896725e-06 | C189: ='DF raw data'!H194 -> 9.3420249e-06 | D189: ='DF raw data'!I194 -> -3.0667138e-07 | F189: 8.695372925e-06 | G189: 9.368958175e-06 | H189: -3.068725564e-07 | J189: -9.957430292e-06 | K189: -1.281930411e-06 | L189: 1.193536947e-05 | N189: -0.0005548098092 | O189: -0.02319169799 | P189: -0.0002179196833 | Q189: -0.00534711332 | R189: 8.681375235e-06
A190: 92.03864 | B190: ='DF raw data'!G195 -> 2.0173989e-06 | C190: ='DF raw data'!H195 -> 1.4649892e-05 | D190: ='DF raw data'!I195 -> -5.4974221e-06 | F190: 2.018722314e-06 | G190: 1.469212798e-05 | H190: -5.501028409e-06 | J190: -8.934625972e-06 | K190: -1.269005956e-05 | L190: 1.206363556e-05 | N190: -0.0005592789985 | O190: -0.02347145493 | P190: -0.000224267378 | Q190: -0.005459294105 | R190: 8.862995911e-06
A191: 92.53885 | B191: ='DF raw data'!G196 -> -4.1063277e-06 | C191: ='DF raw data'!H196 -> 1.2521595e-05 | D191: ='DF raw data'!I196 -> -1.0098573e-05 | F191: -4.109021451e-06 | G191: 1.255769505e-05 | H191: -1.010519766e-05 | J191: -7.5194112e-06 | K191: -1.594730629e-05 | L191: 1.034228509e-05 | N191: -0.0005630402832 | O191: -0.02375309331 | P191: -0.0002322443801 | Q191: -0.005575465066 | R191: 9.048549717e-06
A192: 93.03906 | B192: ='DF raw data'!G197 -> -5.7733282e-06 | C192: ='DF raw data'!H197 -> 7.7762588e-06 | D192: ='DF raw data'!I197 -> -4.7032986e-06 | F192: -5.777115503e-06 | G192: 7.798677935e-06 | H192: -4.706383964e-06 | J192: -8.955265003e-06 | K192: -3.321087949e-06 | L192: 6.180458923e-06 | N192: -0.0005675197963 | O192: -0.02403697239 | P192: -0.0002339056215 | Q192: -0.005692466997 | R192: 9.237024123e-06
A193: 93.53927 | B193: ='DF raw data'!G198 -> -1.7596846e-06 | C193: ='DF raw data'!H198 -> 1.1154901e-05 | D193: ='DF raw data'!I198 -> 1.660201e-06 | F193: -1.760838953e-06 | G193: 1.118706084e-05 | H193: 1.661290092e-06 | J193: -9.466299521e-06 | K193: -1.211945523e-06 | L193: 1.496323345e-05 | N193: -0.000572254934 | O193: -0.02432322003 | P193: -0.0002345118487 | Q193: -0.005809772169 | R193: 9.4283402e-06
A194: 94.03948 | B194: ='DF raw data'!G199 -> 1.8130123e-06 | C194: ='DF raw data'!H199 -> 2.1667627e-05 | D194: ='DF raw data'!I199 -> -1.0264537e-06 | F194: 1.814201636e-06 | G194: 2.173009527e-05 | H194: -1.027127054e-06 | J194: -7.841888406e-06 | K194: -1.34798139e-05 | L194: 1.233581999e-05 | N194: -0.000576177525 | O194: -0.02461142979 | P194: -0.0002412545864 | Q194: -0.005930450126 | R194: 9.623514296e-06
A195: 94.53969 | B195: ='DF raw data'!G200 -> 8.7037654e-07 | C195: ='DF raw data'!H200 -> 1.9439925e-05 | D195: ='DF raw data'!I200 -> 1.7134446e-06 | F195: 8.70947507e-07 | G195: 1.949597076e-05 | H195: 1.71456862e-06 | J195: -8.849798162e-06 | K195: -5.29788953e-06 | L195: 1.581501885e-05 | N195: -0.0005806042825 | O195: -0.02490185386 | P195: -0.0002439046438 | Q195: -0.006052453668 | R195: 9.821892985e-06
A196: 95.0399 | B196: ='DF raw data'!G201 -> -2.5819709e-06 | C196: ='DF raw data'!H201 -> 2.2480197e-05 | D196: ='DF raw data'!I201 -> 4.2605357e-06 | F196: -2.583664673e-06 | G196: 2.254500793e-05 | H196: 4.263330611e-06 | J196: -1.457651493e-05 | K196: 8.596997192e-06 | L196: 1.811197667e-05 | N196: -0.000587895601 | O196: -0.02519592512 | P196: -0.0002396043398 | Q196: -0.006172306154 | R196: 1.002349336e-05
A197: 95.54011 | B197: ='DF raw data'!G202 -> -4.3099135e-06 | C197: ='DF raw data'!H202 -> 1.0864295e-05 | D197: ='DF raw data'!I202 -> -1.5426465e-06 | F197: -4.312740803e-06 | G197: 1.089561702e-05 | H197: -1.543658476e-06 | J197: -1.757419712e-05 | K197: -5.909544075e-06 | L197: 1.805469912e-05 | N197: -0.0005966863902 | O197: -0.02549439362 | P197: -0.0002425603528 | Q197: -0.006293637268 | R197: 1.023101557e-05
A198: 96.04032 | B198: ='DF raw data'!G203 -> -1.147659e-06 | C198: ='DF raw data'!H203 -> 7.3164688e-06 | D198: ='DF raw data'!I203 -> -1.8335547e-06 | F198: -1.148411864e-06 | G198: 7.33756235e-06 | H198: -1.834757512e-06 | J198: -1.379463335e-05 | K198: -7.182629258e-06 | L198: 1.604964266e-05 | N198: -0.0006035866037 | O198: -0.02579631367 | P198: -0.0002461531758 | Q198: -0.006416765549 | R198: 1.044355889e-05
A199: 96.54053 | B199: ='DF raw data'!G204 -> 1.1696812e-06 | C199: ='DF raw data'!H204 -> 1.1449508e-05 | D199: ='DF raw data'!I204 -> 8.3552936e-07 | F199: 1.170448511e-06 | G199: =(1-$G$1*($B$2-$G$2))*C199*$M$2/$M$1 -> 1.14825172e-05 | H199: 8.360774673e-07 | J199: =-CELL("contents", INDEX($F$6:$F$1203,1204-CELL("row",F199))) -> -1.290735267e-05 | K199: =CELL("contents", INDEX($G$6:$G$1203,1204-CELL("row",G199))) -> -8.995245651e-06 | L199: =-CELL("contents", INDEX($H$6:$H$1203,1204-CELL("row",H199))) -> 6.439057753e-06 | N199: -0.0006100429906 | O199: -0.02610146328 | P199: -0.0002506526877 | Q199: -0.006542144529 | R199: 1.066113984e-05
A200: =A199+$B$1 -> 97.04074 | B200: ='DF raw data'!G205 -> -2.3804544e-06 | C200: ='DF raw data'!H205 -> 1.0798382e-05 | D200: ='DF raw data'!I205 -> 8.3193595e-07 | F200: -2.382015978e-06 | G200: 1.082951399e-05 | H200: 8.324817e-07 | J200: -1.597336266e-05 | K200: 6.220766558e-06 | L200: 1.189960602e-05 | N200: =J200*$B$1+N199 -> -0.0006180330263 | O200: =N200*$B$1+O199 -> -0.02641060958 | P200: =K200*$B$1+P199 -> -0.000247540998 | Q200: =P200*$B$1+Q199 -> -0.006665967012 | R200: =(N200^2+P200^2)*$B$1+R199 -> 1.088285361e-05
... 1003 more rows

Sheet 10 x=1
A1: dz | B1: ='DF raw data'!K7 -> 0.50021 | C1: mm | F1: T_coeff | G1: -0.0008 | H1: /degC | L1: Hallref | M1: ='PI vs x'!B44 -> 0.50549 | N1: T | P1: IBy total | Q1: =P1203*1000 -> -12.71557061 | R1: muTm
A2: Tref | B2: ='DF raw data'!K8 -> 20.79 | C2: degC | F2: Tcorr | G2: 20 | H2: degC | L2: NMRref | M2: ='PI vs x'!B45 -> 0.506615 | N2: T | P2: JBy total | Q2: =Q1203 -> -8.471884212 | R2: muTm^2
A3: Encoder | B3: ='DF raw data'!K9 -> 390620 | P3: PI total | Q3: =R1203 -> 4522.379378 | R3: T^2mm^3
J4: SXR-rotation
A5: z [mm] | B5: Bx | C5: By | D5: Bz | F5: Bx_corr | G5: By_corr | H5: Bz_corr | J5: Bx_rot | K5: By_rot | L5: Bz_rot | N5: Ix | O5: Jx | P5: Iy | Q5: Jy | R5: PI
A6: 0 | B6: ='DF raw data'!J11 -> 3.902202e-06 | C6: ='DF raw data'!K11 -> -4.3194203e-07 | D6: ='DF raw data'!L11 -> -2.5297111e-06 | F6: =(1-$G$1*($B$2-$G$2))*B6 -> 3.904668192e-06 | G6: =(1-$G$1*($B$2-$G$2))*C6*$M$2/$M$1 -> -4.331769392e-07 | H6: =(1-$G$1*($B$2-$G$2))*D6 -> -2.531309877e-06 | J6: =-CELL("contents", INDEX($F$6:$F$1203,1204-CELL("row",F6))) -> -1.090857086e-05 | K6: =CELL("contents", INDEX($G$6:$G$1203,1204-CELL("row",G6))) -> 5.237495755e-06 | L6: =-CELL("contents", INDEX($H$6:$H$1203,1204-CELL("row",H6))) -> 9.070583588e-06 | N6: =J6*$B$1 -> -5.456576231e-06 | O6: =N6*$B$1 -> -2.729433997e-06 | P6: =K6*$B$1 -> 2.619847752e-06 | Q6: =P6*$B$1 -> 1.310474044e-06 | R6: =(N6^2+P6)^2*$B$1 -> 3.433320514e-12
A7: =A6+$B$1 -> 0.50021 | B7: ='DF raw data'!J12 -> 3.7312561e-06 | C7: ='DF raw data'!K12 -> 4.3731693e-06 | D7: ='DF raw data'!L12 -> -1.4852783e-06 | F7: =(1-$G$1*($B$2-$G$2))*B7 -> 3.733614254e-06 | G7: =(1-$G$1*($B$2-$G$2))*C7*$M$2/$M$1 -> 4.385672059e-06 | H7: -1.486216996e-06 | J7: =-CELL("contents", INDEX($F$6:$F$1203,1204-CELL("row",F7))) -> -1.02757872e-05 | K7: =CELL("contents", INDEX($G$6:$G$1203,1204-CELL("row",G7))) -> -2.278133347e-06 | L7: =-CELL("contents", INDEX($H$6:$H$1203,1204-CELL("row",H7))) -> 8.837829681e-06 | N7: =J7*$B$1+N6 -> -1.059662774e-05 | O7: =N7*$B$1+O6 -> -8.02997316e-06 | P7: =K7*$B$1+P6 -> 1.48030267e-06 | Q7: =P7*$B$1+Q6 -> 2.050936242e-06 | R7: =(N7^2+P7^2)*$B$1+R6 -> 6.069726905e-11
A8: =A7+$B$1 -> 1.00042 | B8: ='DF raw data'!J13 -> 4.0991131e-06 | C8: ='DF raw data'!K13 -> -7.286098e-06 | D8: ='DF raw data'!L13 -> -1.1072524e-05 | F8: 4.101703739e-06 | G8: -7.306928735e-06 | H8: -1.107952184e-05 | J8: -1.112577705e-05 | K8: -8.985288736e-06 | L8: 7.818710104e-06 | N8: =J8*$B$1+N7 -> -1.616185268e-05 | O8: =N8*$B$1+O7 -> -1.611429349e-05 | P8: =K8*$B$1+P7 -> -3.014228609e-06 | Q8: =P8*$B$1+Q7 -> 5.431889501e-07 | R8: =(N8^2+P8^2)*$B$1+R7 -> 1.958995583e-10
A9: 1.50063 | B9: ='DF raw data'!J14 -> 4.0334976e-06 | C9: ='DF raw data'!K14 -> -5.1859547e-06 | D9: ='DF raw data'!L14 -> -9.5366568e-06 | F9: 4.03604677e-06 | G9: -5.200781188e-06 | H9: -9.542683967e-06 | J9: -9.913509981e-06 | K9: -1.789922245e-05 | L9: 6.192166578e-06 | N9: -2.112068951e-05 | O9: -2.667907359e-05 | P9: -1.196759867e-05 | Q9: -5.443123581e-06 | R9: 4.906767844e-10
A10: 2.00084 | B10: ='DF raw data'!J15 -> 4.0403734e-06 | C10: ='DF raw data'!K15 -> -4.2951956e-06 | D10: ='DF raw data'!L15 -> -3.4918164e-06 | F10: 4.042926916e-06 | G10: -4.307475435e-06 | H10: -3.494023228e-06 | J10: -8.058305933e-06 | K10: -2.632456659e-06 | L10: 5.705614271e-06 | N10: -2.515153472e-05 | O10: -3.926012277e-05 | P10: -1.328437982e-05 | Q10: -1.208810321e-05 | R10: 8.95383913e-10
A11: 2.50105 | B11: ='DF raw data'!J16 -> 4.0493173e-06 | C11: ='DF raw data'!K16 -> -4.0203354e-06 | D11: ='DF raw data'!L16 -> -6.395756e-07 | F11: 4.051876469e-06 | G11: -4.031829418e-06 | H11: -6.399798118e-07 | J11: -9.113679908e-06 | K11: 2.912438336e-06 | L11: 6.447561185e-06 | N11: -2.971028855e-05 | O11: -5.412150621e-05 | P11: -1.182754904e-05 | Q11: -1.800436151e-05 | R11: 1.406894738e-09
A12: 3.00126 | B12: ='DF raw data'!J17 -> 3.812424e-06 | C12: ='DF raw data'!K17 -> 2.3867058e-06 | D12: ='DF raw data'!L17 -> -9.3534146e-07 | F12: 3.814833452e-06 | G12: 2.39352932e-06 | H12: -9.359325958e-07 | J12: -1.02091301e-05 | K12: -1.21965632e-05 | L12: 6.492580519e-06 | N12: -3.481699751e-05 | O12: -7.153731653e-05 | P12: -1.792839191e-05 | Q12: -2.697232243e-05 | R12: 2.174042081e-09
A13: 3.50147 | B13: ='DF raw data'!J18 -> 3.8013436e-06 | C13: ='DF raw data'!K18 -> 2.5452161e-06 | D13: ='DF raw data'!L18 -> -1.2498756e-06 | F13: 3.803746049e-06 | G13: 2.552492796e-06 | H13: -1.250665521e-06 | J13: -7.580945832e-06 | K13: -4.330890687e-06 | L13: 5.780534891e-06 | N13: -3.860906243e-05 | O13: -9.084995565e-05 | P13: -2.009474675e-05 | Q13: -3.70239157e-05 | R13: 3.121669191e-09
A14: 4.00168 | B14: ='DF raw data'!J19 -> 3.5974904e-06 | C14: ='DF raw data'!K19 -> 7.7807663e-06 | D14: ='DF raw data'!L19 -> -2.4782646e-06 | F14: 3.599764014e-06 | G14: 7.803011276e-06 | H14: -2.479830863e-06 | J14: -3.477936668e-06 | K14: 3.815244473e-06 | L14: 5.453281197e-06 | N14: -4.034876113e-05 | O14: -0.0001110328095 | P14: -1.818632331e-05 | Q14: -4.612089648e-05 | R14: 4.101462972e-09
A15: 4.50189 | B15: ='DF raw data'!J20 -> 4.3647756e-06 | C15: ='DF raw data'!K20 -> -1.2257596e-05 | D15: ='DF raw data'!L20 -> 3.0047925e-06 | F15: 4.367534138e-06 | G15: -1.22926401e-05 | H15: 3.006691529e-06 | J15: -9.997000814e-07 | K15: 7.26807166e-07 | L15: 5.414322891e-06 | N15: -4.08488211e-05 | O15: -0.0001314657983 | P15: -1.782276709e-05 | Q15: -5.503602281e-05 | R15: 5.095018697e-09
A16: 5.0021 | B16: ='DF raw data'!J21 -> 4.0490509e-06 | C16: ='DF raw data'!K21 -> -3.6228532e-06 | D16: ='DF raw data'!L21 -> 2.5751863e-06 | F16: 4.0516099e-06 | G16: -3.633210828e-06 | H16: 2.576813818e-06 | J16: 1.022416059e-06 | K16: 7.162869748e-06 | L16: 5.709210942e-06 | N16: -4.033739837e-05 | O16: -0.0001516429683 | P16: -1.423982802e-05 | Q16: -6.215892718e-05 | R16: 6.010342176e-09
A17: 5.50231 | B17: ='DF raw data'!J22 -> 4.4938693e-06 | C17: ='DF raw data'!K22 -> -1.6077347e-05 | D17: ='DF raw data'!L22 -> 8.4799645e-08 | F17: 4.496709425e-06 | G17: -1.612331165e-05 | H17: 8.485323838e-08 | J17: -3.234414359e-06 | K17: 1.677033018e-05 | L17: 6.676520096e-06 | N17: -4.195528477e-05 | O17: -0.0001726294213 | P17: -5.851141157e-06 | Q17: -6.50857265e-05 | R17: 6.907959903e-09
A18: 6.00252 | B18: ='DF raw data'!J23 -> 3.8170297e-06 | C18: ='DF raw data'!K23 -> 2.5983197e-06 | D18: ='DF raw data'!L23 -> 1.2235398e-06 | F18: 3.819442063e-06 | G18: 2.605748218e-06 | H18: 1.224313077e-06 | J18: -1.127746185e-05 | K18: 5.591020089e-06 | L18: 7.22147519e-06 | N18: -4.759638397e-05 | O18: -0.0001964376085 | P18: -3.054456998e-06 | Q18: -6.661359644e-05 | R18: 8.045810337e-09
A19: 6.50273 | B19: ='DF raw data'!J24 -> 4.2183942e-06 | C19: ='DF raw data'!K24 -> -8.8040988e-06 | D19: ='DF raw data'!L24 -> -1.4084751e-06 | F19: 4.221060225e-06 | G19: -8.829269453e-06 | H19: -1.409365256e-06 | J19: -1.514710092e-05 | K19: 1.321452924e-06 | L19: 6.925589808e-06 | N19: -5.517311532e-05 | O19: -0.0002240357525 | P19: -2.393453031e-06 | Q19: -6.781082558e-05 | R19: 9.571351431e-09
A20: 7.00294 | B20: ='DF raw data'!J25 -> 4.0203481e-06 | C20: ='DF raw data'!K25 -> -3.5809583e-06 | D20: ='DF raw data'!L25 -> -2.363792e-06 | F20: 4.02288896e-06 | G20: -3.591196152e-06 | H20: -2.365285917e-06 | J20: -1.110667499e-05 | K20: 1.225937426e-05 | L20: 6.889693036e-06 | N20: -6.072878521e-05 | O20: -0.0002544128982 | P20: 3.738808569e-06 | Q20: -6.594063614e-05 | R20: 1.142311087e-08
A21: 7.50315 | B21: ='DF raw data'!J26 -> 3.7935338e-06 | C21: ='DF raw data'!K26 -> 3.1540465e-06 | D21: ='DF raw data'!L26 -> 1.2362509e-06 | F21: 3.795931313e-06 | G21: 3.163063824e-06 | H21: 1.237032211e-06 | J21: -8.285664032e-06 | K21: 2.538577927e-06 | L21: 7.091479084e-06 | N21: -6.487335722e-05 | O21: -0.0002868632002 | P21: 5.008630634e-06 | Q21: -6.343526901e-05 | R21: 1.354081936e-08
A22: 8.00336 | B22: ='DF raw data'!J27 -> 2.9880016e-06 | C22: ='DF raw data'!K27 -> -8.833319e-06 | D22: ='DF raw data'!L27 -> 4.8366264e-06 | F22: 2.989890017e-06 | G22: -8.858573193e-06 | H22: 4.839683148e-06 | J22: -6.172844474e-06 | K22: 2.689646396e-06 | L22: 7.007568886e-06 | N22: -6.796107575e-05 | O22: -0.0003208580099 | P22: 6.354018658e-06 | Q22: -6.025692534e-05 | R22: 1.587133845e-08
A23: 8.50357 | B23: ='DF raw data'!J28 -> -5.5913e-07 | C23: ='DF raw data'!K28 -> -5.6871081e-06 | D23: ='DF raw data'!L28 -> 4.2840284e-06 | F23: =(1-$G$1*($B$2-$G$2))*B23 -> -5.594833702e-07 | G23: -5.703367371e-06 | H23: 4.286735906e-06 | J23: -4.298404376e-06 | K23: 2.622476106e-06 | L23: 2.666831973e-06 | N23: -7.011118061e-05 | O23: -0.0003559283236 | P23: 7.665807431e-06 | Q23: -5.642241181e-05 | R23: 1.835955419e-08
A24: 9.00378 | B24: ='DF raw data'!J29 -> -8.9060762e-07 | C24: ='DF raw data'!K29 -> -7.5082548e-06 | D24: ='DF raw data'!L29 -> 5.2277646e-06 | F24: -8.91170484e-07 | G24: -7.529720674e-06 | H24: 5.231068547e-06 | J24: -3.622540299e-06 | K24: 4.729827384e-06 | L24: 2.707655858e-06 | N24: -7.192321149e-05 | O24: -0.0003919050332 | P24: 1.003171439e-05 | Q24: -5.140444795e-05 | R24: 2.099745346e-08
A25: 9.50399 | B25: ='DF raw data'!J30 -> -6.1172858e-07 | C25: ='DF raw data'!K30 -> 5.7497368e-06 | D25: ='DF raw data'!L30 -> 1.2994772e-06 | F25: -6.121151925e-07 | G25: 5.766175124e-06 | H25: 1.30029847e-06 | J25: -7.926192089e-06 | K25: -4.115858871e-06 | L25: 9.593030766e-06 | N25: -7.588797204e-05 | O25: -0.0004298649557 | P25: 7.972920621e-06 | Q25: -4.741631333e-05 | R25: 2.390995208e-08
A26: 10.0042 | B26: ='DF raw data'!J31 -> -5.9724425e-06 | C26: ='DF raw data'!K31 -> -1.4040936e-06 | D26: ='DF raw data'!L31 -> -5.704249e-07 | F26: -5.976217084e-06 | G26: -1.408107861e-06 | H26: -5.707854085e-07 | J26: -1.10124985e-05 | K26: -2.113412658e-06 | L26: 3.955667103e-06 | N26: -8.139653391e-05 | O26: -0.0004705803159 | P26: 6.915770475e-06 | Q26: -4.395697578e-05 | R26: 2.724796526e-08
A27: 10.50441 | B27: ='DF raw data'!J32 -> -6.7063525e-06 | C27: ='DF raw data'!K32 -> 5.6507329e-06 | D27: ='DF raw data'!L32 -> 1.4659292e-06 | F27: -6.710590915e-06 | G27: 5.666888175e-06 | H27: 1.466855667e-06 | J27: -9.234372437e-06 | K27: 1.013368932e-05 | L27: 1.034094435e-06 | N27: -8.601565935e-05 | O27: -0.0005136062089 | P27: 1.198474321e-05 | Q27: -3.796208738e-05 | R27: 3.102071301e-08
A28: 11.00462 | B28: ='DF raw data'!J33 -> -3.0094307e-07 | C28: ='DF raw data'!K33 -> -1.5724811e-06 | D28: ='DF raw data'!L33 -> 1.034138e-05 | F28: -3.01133266e-07 | G28: -1.576976776e-06 | H28: 1.034791575e-05 | J28: -1.378268115e-05 | K28: -1.393120335e-06 | L28: 1.203304508e-05 | N28: -9.290989429e-05 | O28: -0.0005600806671 | P28: 1.128789049e-05 | Q28: -3.231577168e-05 | R28: 3.540238501e-08
A29: 11.50483 | B29: ='DF raw data'!J34 -> 1.5125721e-06 | C29: ='DF raw data'!K34 -> -3.3347872e-06 | D29: ='DF raw data'!L34 -> 1.7231723e-05 | F29: 1.513528046e-06 | G29: -3.344321256e-06 | H29: 1.724261345e-05 | J29: -1.671236154e-05 | K29: -2.788078308e-06 | L29: 8.328103337e-06 | N29: -0.0001012695847 | O29: -0.000610736726 | P29: 9.893265836e-06 | Q29: -2.736706118e-05 | R29: 4.058126197e-08
A30: 12.00504 | B30: ='DF raw data'!J35 -> -1.0952614e-06 | C30: ='DF raw data'!K35 -> -2.9164923e-06 | D30: ='DF raw data'!L35 -> 1.3677336e-05 | F30: -1.095953605e-06 | G30: -2.924830464e-06 | H30: 1.368598008e-05 | J30: -1.359299335e-05 | K30: -4.653772365e-06 | L30: 3.352372761e-06 | N30: -0.0001080689359 | O30: -0.0006647938884 | P30: 7.565402362e-06 | Q30: -2.358277126e-05 | R30: 4.645179166e-08
A31: 12.50525 | B31: ='DF raw data'!J36 -> -4.9671289e-06 | C31: ='DF raw data'!K36 -> -3.7271941e-06 | D31: ='DF raw data'!L36 -> 3.006656e-06 | F31: -4.970268125e-06 | G31: -3.737850036e-06 | H31: 3.008556207e-06 | J31: -5.713318537e-06 | K31: 8.467103885e-06 | L31: 5.983387513e-06 | N31: -0.0001109267949 | O31: -0.0007202805805 | P31: 1.18007324e-05 | Q31: -1.767992691e-05 | R31: 5.267641046e-08
A32: 13.00546 | B32: ='DF raw data'!J37 -> -6.9571302e-06 | C32: ='DF raw data'!K37 -> -5.4653515e-06 | D32: ='DF raw data'!L37 -> -4.0287077e-06 | F32: -6.961527106e-06 | G32: -5.480976775e-06 | H32: -4.031253843e-06 | J32: -7.402146402e-07 | K32: -7.570130174e-06 | L32: 7.263363847e-06 | N32: -0.0001112970577 | O32: -0.0007759524817 | P32: 8.014077581e-06 | Q32: -1.367120516e-05 | R32: 5.890465547e-08
A33: 13.50567 | B33: ='DF raw data'!J38 -> -1.973684e-06 | C33: ='DF raw data'!K38 -> 9.64421e-06 | D33: ='DF raw data'!L38 -> -2.570642e-06 | F33: -1.974931368e-06 | G33: 9.671782506e-06 | H33: -2.572266646e-06 | J33: 2.017010045e-06 | K33: -8.766780007e-06 | L33: 6.493179397e-06 | N33: -0.0001102881291 | O33: -0.0008311197068 | P33: 3.628846554e-06 | Q33: -1.185601983e-05 | R33: 6.499553254e-08
A34: 14.00588 | B34: ='DF raw data'!J39 -> 3.5110502e-06 | C34: ='DF raw data'!K39 -> 3.9731553e-06 | D34: ='DF raw data'!L39 -> 9.9066642e-07 | F34: 3.513269184e-06 | G34: 3.984514431e-06 | H34: 9.912925212e-07 | J34: -2.583930713e-06 | K34: -1.855563376e-06 | L34: 1.698725516e-06 | N34: -0.0001115806371 | O34: -0.0008869334573 | P34: 2.700675198e-06 | Q34: -1.050511509e-05 | R34: 7.122691473e-08
A35: 14.50609 | B35: ='DF raw data'!J40 -> 5.9446006e-06 | C35: ='DF raw data'!K40 -> 1.6046895e-06 | D35: ='DF raw data'!L40 -> -2.198404e-06 | F35: 5.948357588e-06 | G35: 1.609277259e-06 | H35: -2.199793391e-06 | J35: -8.070395368e-06 | K35: 6.305157566e-06 | L35: 6.76968764e-06 | N35: -0.0001156175295 | O35: -0.0009447665017 | P35: 5.854578064e-06 | Q35: -7.576596593e-06 | R35: 7.793057369e-08
A36: 15.0063 | B36: ='DF raw data'!J41 -> -3.7536884e-07 | C36: ='DF raw data'!K41 -> 3.0335602e-06 | D36: ='DF raw data'!L41 -> -2.4123099e-06 | F36: -3.756060731e-07 | G36: 3.042233057e-06 | H36: -2.41383448e-06 | J36: -1.118194853e-05 | K36: 2.616853878e-06 | L36: 7.441109611e-06 | N36: -0.000121210852 | O36: -0.001005397382 | P36: 7.163554542e-06 | Q36: -3.993314976e-06 | R36: 8.530536338e-08
A37: 15.50651 | B37: ='DF raw data'!J42 -> -5.5465812e-06 | C37: ='DF raw data'!K42 -> -1.6446622e-06 | D37: ='DF raw data'!L42 -> 2.2183411e-07 | F37: -5.550086639e-06 | G37: -1.64936424e-06 | H37: 2.219743092e-07 | J37: -1.181834047e-05 | K37: 5.883625053e-08 | L37: 4.397200075e-06 | N37: -0.0001271225041 | O37: -0.00106898533 | P37: 7.192985023e-06 | Q37: -3.953119376e-07 | R37: 9.341470292e-08
A38: 16.00672 | B38: ='DF raw data'!J43 -> -3.9094843e-06 | C38: ='DF raw data'!K43 -> -4.9280402e-06 | D38: ='DF raw data'!L43 -> -4.1745943e-06 | F38: -3.911955094e-06 | G38: -4.942129318e-06 | H38: -4.177232644e-06 | J38: -4.767682572e-06 | K38: 4.658238898e-06 | L38: -2.072347697e-06 | N38: -0.0001295073466 | O38: -0.0011337662 | P38: 9.523082702e-06 | Q38: 4.368229261e-06 | R38: 1.018496651e-07
A39: 16.50693 | B39: ='DF raw data'!J44 -> -3.0808533e-07 | C39: ='DF raw data'!K44 -> 1.7176997e-06 | D39: ='DF raw data'!L44 -> -5.9879267e-06 | F39: -3.082800399e-07 | G39: 1.722610552e-06 | H39: -5.99171107e-06 | J39: -1.420888434e-06 | K39: 9.062454221e-07 | L39: 2.592577574e-06 | N39: -0.0001302180892 | O39: -0.00119890259 | P39: 9.976395725e-06 | Q39: 9.358522166e-06 | R39: 1.103813865e-07
A40: 17.00714 | B40: ='DF raw data'!J45 -> -2.2997551e-06 | C40: ='DF raw data'!K45 -> -6.7638143e-07 | D40: ='DF raw data'!L45 -> 2.8685753e-07 | F40: -2.301208545e-06 | G40: -6.783151841e-07 | H40: 2.87038824e-07 | J40: -5.231216441e-06 | K40: 1.266387743e-05 | L40: 7.489858401e-06 | N40: -0.000132834796 | O40: -0.001265347883 | P40: 1.631099385e-05 | Q40: 1.75174444e-05 | R40: 1.193407136e-07
A41: 17.50735 | B41: ='DF raw data'!J46 -> -4.0067384e-06 | C41: ='DF raw data'!K46 -> -3.417111e-06 | D41: ='DF raw data'!L46 -> 3.4845809e-06 | F41: -4.009270659e-06 | G41: -3.426880417e-06 | H41: 3.486783155e-06 | J41: -9.901820998e-06 | K41: 9.265004555e-06 | L41: 9.821389097e-06 | N41: -0.0001377877859 | O41: -0.001334270712 | P41: 2.094544178e-05 | Q41: 2.799456383e-05 | R41: 1.290568854e-07
A42: 18.00756 | B42: ='DF raw data'!J47 -> -2.3201803e-06 | C42: ='DF raw data'!K47 -> 3.794629e-06 | D42: ='DF raw data'!L47 -> -2.6281439e-06 | F42: -2.321646654e-06 | G42: 3.80547773e-06 | H42: -2.629804887e-06 | J42: -9.986045194e-06 | K42: 7.302967542e-06 | L42: 7.62098482e-06 | N42: -0.0001427829055 | O42: -0.001405692149 | P42: 2.459845918e-05 | Q42: 4.02989591e-05 | R42: 1.395573149e-07
A43: 18.50777 | B43: ='DF raw data'!J48 -> -1.4596466e-06 | C43: ='DF raw data'!K48 -> 2.1218536e-06 | D43: ='DF raw data'!L48 -> -5.9511768e-07 | F43: -1.460569097e-06 | G43: 2.127919916e-06 | H43: -5.954937944e-07 | J43: -1.001109201e-05 | K43: 1.583955672e-05 | L43: 1.181467816e-05 | N43: -0.0001477905539 | O43: -0.001479618462 | P43: 3.252156384e-05 | Q43: 5.656657055e-05 | R43: 1.510119738e-07
A44: 19.00798 | B44: ='DF raw data'!J49 -> -7.1201989e-06 | C44: ='DF raw data'!K49 -> -2.4780504e-06 | D44: ='DF raw data'!L49 -> -3.4787724e-06 | F44: -7.124698866e-06 | G44: -2.485135071e-06 | H44: -3.480970984e-06 | J44: -1.108970927e-05 | K44: -2.475233343e-06 | L44: 1.2560154e-05 | N44: -0.0001533377373 | O44: -0.001556319531 | P44: 3.128342737e-05 | Q44: 7.221485375e-05 | R44: 1.632626742e-07
A45: 19.50819 | B45: ='DF raw data'!J50 -> -9.6467984e-06 | C45: ='DF raw data'!K50 -> 7.5208504e-06 | D45: ='DF raw data'!L50 -> -3.3232343e-06 | F45: -9.652895177e-06 | G45: 7.542352285e-06 | H45: -3.325334584e-06 | J45: -9.668451002e-06 | K45: -7.54269797e-06 | L45: 1.079102762e-05 | N45: -0.0001581739932 | O45: -0.001635439745 | P45: 2.751049442e-05 | Q45: 8.597587817e-05 | R45: 1.761560068e-07
A46: 20.0084 | B46: ='DF raw data'!J51 -> -2.959373e-06 | C46: ='DF raw data'!K51 -> 7.2714743e-06 | D46: ='DF raw data'!L51 -> -3.4760234e-07 | F46: -2.961243324e-06 | G46: 7.292263226e-06 | H46: -3.478220247e-07 | J46: -5.690675936e-06 | K46: 6.96001615e-06 | L46: 9.643976444e-06 | N46: -0.0001610205262 | O46: -0.001715983822 | P46: 3.09919641e-05 | Q46: 0.0001014783685 | R46: 1.896057092e-07
A47: 20.50861 | B47: ='DF raw data'!J52 -> 9.3078421e-07 | C47: ='DF raw data'!K52 -> 3.2075502e-06 | D47: ='DF raw data'!L52 -> -5.3156646e-06 | F47: 9.313724656e-07 | G47: 3.216720489e-06 | H47: -5.3190241e-06 | J47: -8.953112693e-06 | K47: 3.636076197e-06 | L47: 7.225071861e-06 | N47: -0.0001654989627 | O47: -0.001798768058 | P47: 3.281076577e-05 | Q47: 0.0001178906417 | R47: 2.038449137e-07
A48: 21.00882 | B48: ='DF raw data'!J53 -> 2.6429106e-07 | C48: ='DF raw data'!K53 -> -7.1015688e-06 | D48: ='DF raw data'!L53 -> -4.4040726e-06 | F48: 2.644580919e-07 | G48: -7.121871971e-06 | H48: -4.406855974e-06 | J48: -1.710629835e-05 | K48: -3.916620879e-06 | L48: 5.147472348e-06 | N48: -0.0001740557042 | O48: -0.001885832462 | P48: 3.085163284e-05 | Q48: 0.0001333229369 | R48: 2.194750813e-07
A49: 21.50903 | B49: ='DF raw data'!J54 -> -8.8326527e-07 | C49: ='DF raw data'!K54 -> -8.1624466e-06 | D49: ='DF raw data'!L54 -> 4.1217862e-07 | F49: -8.838234937e-07 | G49: -8.185782789e-06 | H49: 4.124391169e-07 | J49: -1.670508094e-05 | K49: 2.760698553e-06 | L49: 7.896561175e-06 | N49: -0.0001824117528 | O49: -0.001977076645 | P49: 3.223256186e-05 | Q49: 0.0001494459867 | R49: 2.366387798e-07
A50: 22.00924 | B50: ='DF raw data'!J55 -> -4.7669478e-06 | C50: ='DF raw data'!K55 -> -7.2628804e-06 | D50: ='DF raw data'!L55 -> 3.2439877e-06 | F50: -4.769960511e-06 | G50: -7.283644756e-06 | H50: 3.2460379e-06 | J50: -1.286356164e-05 | K50: -4.806311125e-06 | L50: 7.38357137e-06 | N50: -0.0001888462349 | O50: -0.00207153942 | P50: 2.982839698e-05 | Q50: 0.0001643664492 | R50: 2.549227727e-07
A51: 22.50945 | B51: ='DF raw data'!J56 -> -8.9361838e-06 | C51: ='DF raw data'!K56 -> 3.120286e-06 | D51: ='DF raw data'!L56 -> 6.6941502e-06 | F51: -8.941831468e-06 | G51: 3.129206804e-06 | H51: 6.698380903e-06 | J51: -8.746393129e-06 | K51: -2.476703735e-06 | L51: 1.054274381e-06 | N51: -0.0001932212682 | O51: -0.002168190631 | P51: 2.8589525e-05 | Q51: 0.0001786672155 | R51: 2.740066943e-07
A52: 23.00966 | B52: ='DF raw data'!J57 -> -5.0629146e-06 | C52: ='DF raw data'!K57 -> 1.070445e-06 | D52: ='DF raw data'!L57 -> -5.5611673e-07 | F52: -5.066114362e-06 | G52: 1.07350537e-06 | H52: -5.564681958e-07 | J52: -7.175854776e-06 | K52: 1.666860017e-07 | L52: 2.580923213e-06 | N52: -0.0001968107026 | O52: -0.002266637312 | P52: 2.867290301e-05 | Q52: 0.0001930096883 | R52: 2.937932952e-07
A53: 23.50987 | B53: ='DF raw data'!J58 -> 3.6481569e-07 | C53: ='DF raw data'!K58 -> 5.8554128e-06 | D53: ='DF raw data'!L58 -> -6.1532473e-06 | F53: 3.650462535e-07 | G53: 5.872153249e-06 | H53: -6.157136152e-06 | J53: -1.274767744e-05 | K53: 1.179749854e-06 | L53: 1.153930223e-05 | N53: -0.0002031872183 | O53: -0.002368273591 | P53: 2.926302568e-05 | Q53: 0.0002076473463 | R53: 3.148728301e-07
A54: 24.01008 | B54: ='DF raw data'!J59 -> 8.5936406e-08 | C54: ='DF raw data'!K59 -> 6.2805107e-06 | D54: ='DF raw data'!L59 -> 2.2596049e-07 | F54: 8.599071781e-08 | G54: 6.298466491e-06 | H54: 2.26103297e-07 | J54: -1.766661325e-05 | K54: -6.170761326e-06 | L54: 9.11586859e-06 | N54: -0.0002120242349 | O54: -0.002474330233 | P54: 2.617634916e-05 | Q54: 0.000220741018 | R54: 3.377021531e-07
A55: 24.51029 | B55: ='DF raw data'!J60 -> 2.0081197e-06 | C55: ='DF raw data'!K60 -> 2.8891907e-06 | D55: ='DF raw data'!L60 -> 8.5450856e-06 | F55: 2.009388832e-06 | G55: 2.897450809e-06 | H55: 8.550486094e-06 | J55: -1.228314304e-05 | K55: -9.90091121e-07 | L55: 5.307169513e-06 | N55: -0.0002181683859 | O55: -0.002583460241 | P55: 2.568109568e-05 | Q55: 0.0002335869588 | R55: 3.618407687e-07
A56: 25.0105 | B56: ='DF raw data'!J61 -> 4.2936203e-06 | C56: ='DF raw data'!K61 -> 2.777381e-06 | D56: ='DF raw data'!L61 -> 4.0942823e-06 | F56: 4.296333868e-06 | G56: 2.785321449e-06 | H56: 4.096869886e-06 | J56: -6.180659209e-06 | K56: -8.415933607e-06 | L56: 6.230791773e-06 | N56: -0.0002212600134 | O56: -0.002694136713 | P56: 2.147136153e-05 | Q56: 0.0002443271486 | R56: 3.865596527e-07
A57: 25.51071 | B57: ='DF raw data'!J62 -> 2.8143863e-06 | C57: ='DF raw data'!K62 -> 5.5072983e-06 | D57: ='DF raw data'!L62 -> 4.8671081e-06 | F57: 2.816164992e-06 | G57: 5.5230435e-06 | H57: 4.870184112e-06 | J57: -9.498399897e-06 | K57: -7.623385596e-06 | L57: 9.874997657e-06 | N57: -0.000226011208 | O57: -0.002807189779 | P57: 1.765806782e-05 | Q57: 0.0002531598907 | R57: 4.12266882e-07
A58: 26.01092 | B58: ='DF raw data'!J63 -> 5.4390426e-07 | C58: ='DF raw data'!K63 -> -2.8495099e-06 | D58: ='DF raw data'!L63 -> 5.8652195e-06 | F58: 5.442480075e-07 | G58: -2.857656563e-06 | H58: 5.868926319e-06 | J58: -1.265744245e-05 | K58: -8.232324772e-07 | L58: 1.268029388e-05 | N58: -0.0002323425873 | O58: -0.002923409865 | P58: 1.72462787e-05 | Q58: 0.0002617866518 | R58: 4.394185369e-07
A59: 26.51113 | B59: ='DF raw data'!J64 -> -2.4493404e-06 | C59: ='DF raw data'!K64 -> -5.6183903e-06 | D59: ='DF raw data'!L64 -> -4.2557249e-06 | F59: -2.450888383e-06 | G59: -5.634453109e-06 | H59: -4.258414518e-06 | J59: -8.998865491e-06 | K59: -6.572987902e-06 | L59: 7.452165094e-06 | N59: -0.0002368439098 | O59: -0.003041881557 | P59: 1.395840442e-05 | Q59: 0.0002687687852 | R59: 4.675752951e-07
A60: 27.01134 | B60: ='DF raw data'!J65 -> -1.9681438e-06 | C60: ='DF raw data'!K65 -> 8.5643833e-06 | D60: ='DF raw data'!L65 -> -2.3205982e-06 | F60: -1.969387667e-06 | G60: 8.588868614e-06 | H60: -2.322064818e-06 | J60: -3.996639881e-06 | K60: -3.75818972e-06 | L60: 1.771847801e-06 | N60: -0.0002388430691 | O60: -0.003161353248 | P60: 1.207852034e-05 | Q60: 0.0002748105819 | R60: 4.961832565e-07
A61: 27.51155 | B61: ='DF raw data'!J66 -> -9.7818281e-07 | C61: ='DF raw data'!K66 -> 1.4005443e-06 | D61: ='DF raw data'!L66 -> 5.9311078e-06 | F61: -9.788010215e-07 | G61: 1.404548414e-06 | H61: 5.93485626e-06 | J61: -5.572655394e-06 | K61: -1.733663762e-06 | L61: 7.011498568e-06 | N61: -0.000241630567 | O61: -0.003282219274 | P61: 1.121132439e-05 | Q61: 0.0002804185985 | R61: 5.254510562e-07
A62: 28.01176 | B62: ='DF raw data'!J67 -> -1.9252238e-06 | C62: ='DF raw data'!K67 -> -5.038612e-07 | D62: ='DF raw data'!L67 -> 5.03722e-06 | F62: -1.926440541e-06 | G62: -5.05301724e-07 | H62: 5.040403523e-06 | J62: -8.546419025e-06 | K62: -4.703817133e-06 | L62: 1.627928101e-05 | N62: -0.0002459055713 | O62: -0.0034052237 | P62: 8.858428024e-06 | Q62: 0.0002848496727 | R62: 5.557377822e-07
A63: 28.51197 | B63: ='DF raw data'!J68 -> 1.5626343e-06 | C63: ='DF raw data'!K68 -> 7.1213676e-06 | D63: ='DF raw data'!L68 -> 2.9717302e-07 | F63: 1.563621885e-06 | G63: 7.141727375e-06 | H63: 2.973608333e-07 | J63: -1.064434398e-05 | K63: -1.043350203e-05 | L63: 1.601123271e-05 | N63: -0.0002512299786 | O63: -0.003530891448 | P63: 3.639485973e-06 | Q63: 0.00028667018 | R63: 5.873159134e-07
A64: 29.01218 | B64: ='DF raw data'!J69 -> 3.1867817e-06 | C64: ='DF raw data'!K69 -> -1.4218841e-05 | D64: ='DF raw data'!L69 -> 4.3886683e-07 | F64: 3.188795746e-06 | G64: -1.425949224e-05 | H64: 4.391441938e-07 | J64: -1.170178886e-05 | K64: -2.862742362e-06 | L64: 7.857535526e-06 | N64: -0.0002570833304 | O64: -0.0036594871 | P64: 2.207513617e-06 | Q64: 0.0002877744004 | R64: 6.203781497e-07
A65: 29.51239 | B65: ='DF raw data'!J70 -> -1.8739603e-06 | C65: ='DF raw data'!K70 -> -9.0476033e-06 | D65: ='DF raw data'!L70 -> 3.4326024e-06 | F65: -1.875144643e-06 | G65: -9.073470125e-06 | H65: 3.434771805e-06 | J65: -1.352680254e-05 | K65: 5.078667163e-06 | L65: 6.89926248e-07 | N65: -0.0002638495723 | O65: -0.003791467295 | P65: 4.747913718e-06 | Q65: 0.0002901493543 | R65: 6.552123436e-07
A66: 30.0126 | B66: ='DF raw data'!J71 -> -4.1857602e-06 | C66: ='DF raw data'!K71 -> 1.8678063e-06 | D66: ='DF raw data'!L71 -> 1.3919209e-06 | F66: -4.1884056e-06 | G66: 1.873146302e-06 | H66: 1.392800594e-06 | J66: -1.58677811e-05 | K66: 9.880121342e-06 | L66: 3.786313939e-06 | N66: -0.0002717867951 | O66: -0.003927417768 | P66: 9.690049215e-06 | Q66: 0.0002949964138 | R66: 6.922088552e-07
A67: 30.51281 | B67: ='DF raw data'!J72 -> -1.3838859e-06 | C67: ='DF raw data'!K72 -> -8.8913594e-06 | D67: ='DF raw data'!L72 -> -5.5551254e-06 | F67: -1.384760516e-06 | G67: -8.916779529e-06 | H67: -5.558636239e-06 | J67: -1.483498379e-05 | K67: -1.629962228e-06 | L67: 7.301856158e-06 | N67: -0.0002792074023 | O67: -0.004067080102 | P67: 8.874725809e-06 | Q67: 0.0002994356404 | R67: 7.312430097e-07
A68: 31.01302 | B68: ='DF raw data'!J73 -> -1.372736e-07 | C68: ='DF raw data'!K73 -> -1.235175e-06 | D68: ='DF raw data'!L73 -> -1.3174834e-05 | F68: -1.373603569e-07 | G68: -1.238706328e-06 | H68: -1.31831605e-05 | J68: -1.033890506e-05 | K68: 8.418398033e-06 | L68: 6.528475491e-06 | N68: -0.000284379026 | O68: -0.004209329335 | P68: 1.308569269e-05 | Q68: 0.0003059812348 | R68: 7.717813616e-07
A69: 31.51323 | B69: ='DF raw data'!J74 -> 9.9840156e-07 | C69: ='DF raw data'!K74 -> 7.283214e-06 | D69: ='DF raw data'!L74 -> -8.9364048e-06 | F69: 9.990325498e-07 | G69: 7.304036489e-06 | H69: -8.942052608e-06 | J69: -8.80997879e-06 | K69: -9.018339458e-06 | L69: 4.42090925e-06 | N69: -0.0002887858655 | O69: -0.004353782913 | P69: 8.574629109e-06 | Q69: 0.00031027035 | R69: 8.135342907e-07
A70: 32.01344 | B70: ='DF raw data'!J75 -> 1.8026655e-06 | C70: ='DF raw data'!K75 -> 9.928809e-06 | D70: ='DF raw data'!L75 -> -9.536307e-08 | F70: 1.803804785e-06 | G70: 9.957195166e-06 | H70: -9.542333946e-08 | J70: -8.129839213e-06 | K70: 5.325410785e-06 | L70: 4.783857688e-06 | N70: -0.0002928524924 | O70: -0.004500270658 | P70: 1.123845284e-05 | Q70: 0.0003158919365 | R70: 8.564967699e-07
A71: 32.51365 | B71: ='DF raw data'!J76 -> 5.6706637e-07 | C71: ='DF raw data'!K76 -> -5.1360007e-07 | D71: ='DF raw data'!L76 -> 4.2130814e-06 | F71: 5.674247559e-07 | G71: =(1-$G$1*($B$2-$G$2))*C71*$M$2/$M$1 -> -5.150684371e-07 | H71: 4.215744067e-06 | J71: =-CELL("contents", INDEX($F$6:$F$1203,1204-CELL("row",F71))) -> -1.212571461e-05 | K71: =CELL("contents", INDEX($G$6:$G$1203,1204-CELL("row",G71))) -> -2.404447546e-06 | L71: =-CELL("contents", INDEX($H$6:$H$1203,1204-CELL("row",H71))) -> 6.383961916e-06 | N71: -0.0002989178961 | O71: -0.004649792379 | P71: 1.003572413e-05 | Q71: 0.0003209119061 | R71: 9.012418671e-07
A72: =A71+$B$1 -> 33.01386 | B72: ='DF raw data'!J77 -> 1.2314237e-06 | C72: ='DF raw data'!K77 -> -6.2241502e-06 | D72: ='DF raw data'!L77 -> 2.8922498e-06 | F72: 1.23220196e-06 | G72: -6.241944858e-06 | H72: 2.894077702e-06 | J72: -1.677881852e-05 | K72: 4.429427097e-06 | L72: 4.658124275e-06 | N72: =J72*$B$1+N71 -> -0.0003073108289 | O72: =N72*$B$1+O71 -> -0.004803512329 | P72: =K72*$B$1+P71 -> 1.225136786e-05 | Q72: =P72*$B$1+Q71 -> 0.0003270401628 | R72: =(N72^2+P72^2)*$B$1+R71 -> 9.485567518e-07
A73: 33.51407 | B73: ='DF raw data'!J78 -> -1.2752845e-06 | C73: ='DF raw data'!K78 -> -1.9503434e-06 | D73: ='DF raw data'!L78 -> 5.7993975e-06 | F73: -1.27609048e-06 | G73: -1.955919373e-06 | H73: 5.803062719e-06 | J73: -2.193038925e-05 | K73: 1.307136711e-06 | L73: 7.780217892e-06 | N73: -0.0003182806289 | O73: -0.004962719482 | P73: 1.290521071e-05 | Q73: 0.0003334954782 | R73: 9.993126119e-07
A74: 34.01428 | B74: ='DF raw data'!J79 -> -4.686915e-06 | C74: ='DF raw data'!K79 -> -6.9806824e-06 | D74: ='DF raw data'!L79 -> 8.7287754e-06 | F74: -4.68987713e-06 | G74: -7.000639961e-06 | H74: 8.734291986e-06 | J74: -2.66741314e-05 | K74: -1.59569895e-05 | L74: 9.193186324e-06 | N74: -0.0003316232962 | O74: -0.005128600771 | P74: 4.923364997e-06 | Q74: 0.0003359581946 | R74: 1.054334837e-06
A75: 34.51449 | B75: ='DF raw data'!J80 -> -9.7751547e-07 | C75: ='DF raw data'!K80 -> -1.2836402e-05 | D75: ='DF raw data'!L80 -> 1.4176114e-06 | F75: -9.781332598e-07 | G75: -1.287310089e-05 | H75: 1.41850733e-06 | J75: -2.051861457e-05 | K75: -1.670885794e-05 | L75: 8.416330161e-07 | N75: -0.0003418869124 | O75: -0.005299616023 | P75: -3.434572832e-06 | Q75: 0.000334240187 | R75: 1.112808614e-06
A76: 35.0147 | B76: ='DF raw data'!J81 -> 3.5523685e-06 | C76: ='DF raw data'!K81 -> -1.4642694e-06 | D76: ='DF raw data'!L81 -> 1.3286283e-06 | F76: 3.554613597e-06 | G76: -1.468455702e-06 | H76: 1.329467993e-06 | J76: -1.681167927e-05 | K76: -1.294639584e-06 | L76: -1.407318964e-06 | N76: -0.0003502962825 | O76: -0.005474837727 | P76: -4.082164498e-06 | Q76: 0.0003321982475 | R76: 1.174196461e-06
A77: 35.51491 | B77: ='DF raw data'!J82 -> 6.0596772e-06 | C77: ='DF raw data'!K82 -> -1.0160886e-06 | D77: ='DF raw data'!L82 -> 4.8788879e-06 | F77: 6.063506916e-06 | G77: -1.018993567e-06 | H77: 4.881971357e-06 | J77: -1.494605794e-05 | K77: 1.348618769e-06 | L77: -2.443088157e-06 | N77: -0.0003577724501 | O77: -0.005653799084 | P77: -3.407571904e-06 | Q77: 0.0003304937459 | R77: 1.238229712e-06
A78: 36.01512 | B78: ='DF raw data'!J83 -> 1.4639119e-06 | C78: ='DF raw data'!K83 -> -1.0252451e-05 | D78: ='DF raw data'!L83 -> 6.9283686e-07 | F78: 1.464837092e-06 | G78: -1.028176245e-05 | H78: 6.932747329e-07 | J78: -8.853058699e-06 | K78: -6.452427205e-06 | L78: -2.944756711e-06 | N78: -0.0003622008386 | O78: -0.005834975566 | P78: -6.635140516e-06 | Q78: 0.0003271747823 | R78: 1.303874007e-06
A79: 36.51533 | B79: ='DF raw data'!J84 -> -5.7613806e-06 | C79: ='DF raw data'!K84 -> -1.7325025e-05 | D79: ='DF raw data'!L84 -> -4.0925343e-06 | F79: -5.765021793e-06 | G79: -1.737455672e-05 | H79: -4.095120782e-06 | J79: -8.015158681e-06 | K79: -1.005656244e-05 | L79: 2.780111921e-06 | N79: -0.0003662101011 | O79: -0.00601815752 | P79: -1.166553362e-05 | Q79: 0.0003213395657 | R79: 1.371025161e-06
A80: 37.01554 | B80: ='DF raw data'!J85 -> -2.4095577e-06 | C80: ='DF raw data'!K85 -> -3.8228623e-06 | D80: ='DF raw data'!L85 -> -1.1685468e-06 | F80: -2.41108054e-06 | G80: -3.833791748e-06 | H80: -1.169285322e-06 | J80: -7.060705547e-06 | K80: 7.903502258e-06 | L80: 3.687751587e-06 | N80: -0.0003697419366 | O80: -0.006203106134 | P80: -7.712122752e-06 | Q80: 0.0003174818848 | R80: 1.43943817e-06
A81: 37.51575 | B81: ='DF raw data'!J86 -> 1.5469483e-06 | C81: ='DF raw data'!K86 -> 3.931526e-06 | D81: ='DF raw data'!L86 -> 9.5339618e-07 | F81: 1.547925971e-06 | G81: 3.942766114e-06 | H81: 9.539987264e-07 | J81: -8.439752455e-06 | K81: -2.315999898e-06 | L81: 8.883049141e-06 | N81: -0.0003739635852 | O81: -0.006390166459 | P81: -8.87060906e-06 | Q81: 0.0003130447174 | R81: 1.50943128e-06
A82: 38.01596 | B82: ='DF raw data'!J87 -> -1.3451712e-06 | C82: ='DF raw data'!K87 -> 4.0514774e-06 | D82: ='DF raw data'!L87 -> 2.9971391e-06 | F82: -1.346021348e-06 | G82: 4.063060452e-06 | H82: 2.999033292e-06 | J82: -1.138933651e-05 | K82: -5.272234689e-06 | L82: 7.948771851e-06 | N82: -0.0003796606452 | O82: -0.006580076511 | P82: -1.150783357e-05 | Q82: 0.000307288384 | R82: 1.581598896e-06
A83: 38.51617 | B83: ='DF raw data'!J88 -> -1.1349772e-06 | C83: ='DF raw data'!K88 -> 2.4387434e-06 | D83: ='DF raw data'!L88 -> -9.6682083e-07 | F83: -1.135694506e-06 | G83: 2.445715694e-06 | H83: -9.674318608e-07 | J83: -1.07813335e-05 | K83: -3.465013227e-06 | L83: 6.318298543e-06 | N83: -0.0003850535761 | O83: -0.00677268416 | P83: -1.324106784e-05 | Q83: 0.0003006650695 | R83: 1.65585086e-06
A84: 39.01638 | B84: ='DF raw data'!J89 -> 6.0604822e-07 | C84: ='DF raw data'!K89 -> -3.551738e-06 | D84: ='DF raw data'!L89 -> -2.1068925e-06 | F84: 6.064312425e-07 | G84: -3.561892312e-06 | H84: -2.108224056e-06 | J84: -1.020899601e-05 | K84: 6.273577236e-06 | L84: 4.551304007e-06 | N84: -0.000390160218 | O84: -0.006967846203 | P84: -1.010296177e-05 | Q84: 0.000295611467 | R84: 1.732046381e-06
A85: 39.51659 | B85: ='DF raw data'!J90 -> -7.7159342e-07 | C85: ='DF raw data'!K90 -> -9.0213189e-06 | D85: ='DF raw data'!L90 -> -6.5537688e-06 | F85: -7.72081067e-07 | G85: -9.047110579e-06 | H85: -6.557910782e-06 | J85: -9.691361072e-06 | K85: 1.001339488e-05 | L85: 1.232152929e-06 | N85: -0.0003950079337 | O85: -0.007165433121 | P85: -5.094161518e-06 | Q85: 0.0002930633164 | R85: 1.810107762e-06
A86: 40.0168 | B86: ='DF raw data'!J91 -> 1.4225271e-06 | C86: ='DF raw data'!K91 -> -8.3557834e-06 | D86: ='DF raw data'!L91 -> -1.2812715e-05 | F86: 1.423426137e-06 | G86: -8.379672333e-06 | H86: -1.282081264e-05 | J86: -6.752061808e-06 | K86: 8.675977345e-06 | L86: 6.567435598e-06 | N86: -0.0003983853825 | O86: -0.007364709473 | P86: -7.543508902e-07 | Q86: 0.0002926859826 | R86: 1.889496833e-06
A87: 40.51701 | B87: ='DF raw data'!J92 -> 9.7838956e-06 | C87: ='DF raw data'!K92 -> 3.8544044e-06 | D87: ='DF raw data'!L92 -> -3.2160158e-06 | F87: =(1-$G$1*($B$2-$G$2))*B87 -> 9.790079022e-06 | G87: 3.865424026e-06 | H87: -3.218048322e-06 | J87: -4.79787234e-06 | K87: -5.494089056e-06 | L87: 1.285237757e-05 | N87: -0.0004007853262 | O87: -0.007565186301 | P87: -3.502549177e-06 | Q87: 0.0002909339724 | R87: 1.96985114e-06
A88: 41.01722 | B88: ='DF raw data'!J93 -> 1.4498809e-05 | C88: ='DF raw data'!K93 -> 3.773547e-06 | D88: ='DF raw data'!L93 -> 7.9988768e-06 | F88: 1.450797225e-05 | G88: 3.784335457e-06 | H88: 8.00393209e-06 | J88: -5.987030113e-06 | K88: 7.589854204e-06 | L88: 1.318489359e-05 | N88: -0.0004037800986 | O88: -0.007767161144 | P88: 2.939717945e-07 | Q88: 0.0002910810201 | R88: 2.051404605e-06
A89: 41.51743 | B89: ='DF raw data'!J94 -> 8.5267366e-06 | C89: ='DF raw data'!K94 -> 5.1096854e-06 | D89: ='DF raw data'!L94 -> 4.4360377e-06 | F89: 8.532125498e-06 | G89: 5.124293837e-06 | H89: 4.438841276e-06 | J89: -1.089194036e-05 | K89: -6.627949788e-07 | L89: 1.708129656e-05 | N89: -0.0004092283561 | O89: -0.00797186126 | P89: -3.756488186e-08 | Q89: 0.0002910622297 | R89: 2.135173698e-06
A90: 42.01764 | B90: ='DF raw data'!J95 -> -2.5570741e-06 | C90: ='DF raw data'!K95 -> -7.7485061e-07 | D90: ='DF raw data'!L95 -> -1.4022851e-06 | F90: -2.558690171e-06 | G90: -7.770658845e-07 | H90: -1.403171344e-06 | J90: -1.422918316e-05 | K90: 5.848603011e-06 | L90: 1.870630892e-05 | N90: -0.0004163459358 | O90: -0.008180121661 | P90: 2.88796483e-06 | Q90: 0.0002925068186 | R90: 2.221886241e-06
A91: 42.51785 | B91: ='DF raw data'!J96 -> -7.2207235e-06 | C91: ='DF raw data'!K96 -> 5.6506019e-06 | D91: ='DF raw data'!L96 -> -2.9677692e-06 | F91: -7.225286997e-06 | G91: 5.666756801e-06 | H91: -2.96964483e-06 | J91: -1.482516459e-05 | K91: -2.768541211e-06 | L91: 2.156002133e-05 | N91: -0.0004237616313 | O91: -0.008392091466 | P91: 1.503112831e-06 | Q91: 0.0002932586907 | R91: 2.311712042e-06
A92: 43.01806 | B92: ='DF raw data'!J97 -> -1.6590904e-07 | C92: ='DF raw data'!K97 -> -1.9352676e-06 | D92: ='DF raw data'!L97 -> -3.0353883e-06 | F92: -1.660138945e-07 | G92: -1.940800472e-06 | H92: -3.037306665e-06 | J92: -1.285073754e-05 | K92: -1.259919503e-05 | L92: 1.215917975e-05 | N92: -0.0004301896988 | O92: -0.008607276656 | P92: -4.799130515e-06 | Q92: 0.0002908581176 | R92: 2.404294015e-06
A93: 43.51827 | B93: ='DF raw data'!J98 -> 2.6421726e-06 | C93: ='DF raw data'!K98 -> -7.4064496e-06 | D93: ='DF raw data'!L98 -> -4.2103338e-06 | F93: 2.643842453e-06 | G93: -7.427624416e-06 | H93: -4.212994731e-06 | J93: -1.175482035e-05 | K93: 6.801318932e-06 | L93: -4.183152282e-08 | N93: -0.0004360695775 | O93: -0.008825403019 | P93: -1.397042772e-06 | Q93: 0.0002901593029 | R93: 2.499413262e-06
A94: 44.01848 | B94: ='DF raw data'!J99 -> -5.7060452e-06 | C94: ='DF raw data'!K99 -> 3.8183018e-07 | D94: ='DF raw data'!L99 -> -6.1708016e-07 | F94: -5.709651421e-06 | G94: 3.82921821e-07 | H94: -6.174701547e-07 | J94: -1.544432165e-05 | K94: 1.09596901e-05 | L94: -6.695118342e-06 | N94: -0.0004437949816 | O94: -0.009047393707 | P94: 4.085103812e-06 | Q94: 0.0002922027126 | R94: 2.597939963e-06
A95: 44.51869 | B95: ='DF raw data'!J100 -> -6.3503776e-06 | C95: ='DF raw data'!K100 -> 8.2713768e-06 | D95: ='DF raw data'!L100 -> 2.7606723e-06 | F95: -6.354391039e-06 | G95: 8.295024417e-06 | H95: 2.762417045e-06 | J95: -1.502079815e-05 | K95: -1.304139968e-06 | L95: -3.678979847e-06 | N95: -0.000451308535 | O95: -0.009273142749 | P95: 3.432759959e-06 | Q95: 0.0002939198135 | R95: 2.699828327e-06
A96: 45.0189 | B96: ='DF raw data'!J101 -> 2.3076914e-06 | C96: ='DF raw data'!K101 -> 2.2295269e-06 | D96: ='DF raw data'!L101 -> -1.9809729e-06 | F96: 2.309149861e-06 | G96: 2.23590105e-06 | H96: -1.982224875e-06 | J96: -9.425863783e-06 | K96: 7.779997268e-06 | L96: -2.411055525e-06 | N96: -0.0004560234464 | O96: -0.009501250237 | P96: 7.324392392e-06 | Q96: 0.0002975835478 | R96: 2.803877524e-06
A97: 45.51911 | B97: ='DF raw data'!J102 -> 7.4128216e-06 | C97: ='DF raw data'!K102 -> -3.9021193e-06 | D97: ='DF raw data'!L102 -> -4.6863961e-06 | F97: 7.417506503e-06 | G97: -3.913275342e-06 | H97: -4.689357902e-06 | J97: -1.414796487e-05 | K97: -6.235253683e-06 | L97: 1.426079613e-06 | N97: -0.0004631003999 | O97: -0.009732897688 | P97: 4.205456148e-06 | Q97: 0.000299687159 | R97: 2.911162398e-06
A98: 46.01932 | B98: ='DF raw data'!J103 -> 7.0767378e-06 | C98: ='DF raw data'!K103 -> 1.3294291e-06 | D98: ='DF raw data'!L103 -> -1.127283e-06 | F98: 7.081210298e-06 | G98: 1.333229898e-06 | H98: -1.127995443e-06 | J98: -2.118238981e-05 | K98: -1.131623454e-05 | L98: 3.13991097e-07 | N98: -0.0004736960431 | O98: -0.009969845186 | P98: -1.455037533e-06 | Q98: 0.0002989593347 | R98: 3.023404549e-06
A99: 46.51953 | B99: ='DF raw data'!J104 -> 5.3315767e-07 | C99: ='DF raw data'!K104 -> 4.3205969e-06 | D99: ='DF raw data'!L104 -> -1.7047739e-06 | F99: 5.334946256e-07 | G99: 4.332949356e-06 | H99: -1.705851317e-06 | J99: -1.793972274e-05 | K99: -4.088160407e-06 | L99: 6.812841296e-06 | N99: -0.0004826696718 | O99: -0.01021128138 | P99: -3.49997625e-06 | Q99: 0.0002972086116 | R99: 3.139944606e-06
A100: 47.01974 | B100: ='DF raw data'!J105 -> -2.9199907e-06 | C100: ='DF raw data'!K105 -> 5.8927712e-06 | D100: ='DF raw data'!L105 -> 2.6320233e-06 | F100: -2.921836134e-06 | G100: 5.909618455e-06 | H100: 2.633686739e-06 | J100: -1.079696237e-05 | K100: -2.581744187e-06 | L100: 1.150886701e-05 | N100: -0.0004880704203 | O100: -0.01045541909 | P100: -4.791390509e-06 | Q100: 0.0002948119101 | R100: 3.259112482e-06
A101: 47.51995 | B101: ='DF raw data'!J106 -> -3.4850248e-06 | C101: ='DF raw data'!K106 -> -2.1749013e-06 | D101: ='DF raw data'!L106 -> 4.7833164e-06 | F101: -3.487227336e-06 | G101: -2.181119277e-06 | H101: 4.786339456e-06 | J101: -8.134047371e-06 | K101: -7.359246483e-06 | L101: 1.173935659e-05 | N101: -0.0004921391522 | O101: -0.01070159201 | P101: -8.472559193e-06 | Q101: 0.0002905738513 | R101: 3.380299724e-06
A102: 48.02016 | B102: ='DF raw data'!J107 -> -4.6211667e-06 | C102: ='DF raw data'!K107 -> -9.5699697e-06 | D102: ='DF raw data'!L107 -> 1.0779188e-06 | F102: -4.624087277e-06 | G102: -9.597329955e-06 | H102: 1.078600045e-06 | J102: -1.039768218e-05 | K102: -7.370622213e-06 | L102: 1.03839265e-05 | N102: -0.0004973401768 | O102: -0.01095036654 | P102: -1.215941813e-05 | Q102: 0.0002844915888 | R102: 3.504099249e-06
A103: 48.52037 | B103: ='DF raw data'!J108 -> -1.4703932e-06 | C103: ='DF raw data'!K108 -> 5.7809916e-07 | D103: ='DF raw data'!L108 -> -2.9398841e-06 | F103: -1.471322489e-06 | G103: 5.797519281e-07 | H103: -2.941742107e-06 | J103: -1.460809248e-05 | K103: -7.527444084e-06 | L103: 7.083688864e-06 | N103: -0.0005046472907 | O103: -0.01120279616 | P103: -1.592472094e-05 | Q103: 0.0002765258841 | R103: 3.631614026e-06
A104: 49.02058 | B104: ='DF raw data'!J109 -> 1.7989274e-06 | C104: ='DF raw data'!K109 -> 2.0659452e-06 | D104: ='DF raw data'!L109 -> -1.2042208e-06 | F104: 1.800064322e-06 | G104: 2.071851675e-06 | H104: -1.204981868e-06 | J104: -1.486931347e-05 | K104: 1.223238532e-06 | L104: 8.102941224e-06 | N104: -0.00051208507 | O104: -0.01145894624 | P104: -1.531284479e-05 | Q104: 0.000268866246 | R104: 3.762901944e-06
A105: 49.52079 | B105: ='DF raw data'!J110 -> 5.2981327e-06 | C105: ='DF raw data'!K110 -> 1.2165499e-06 | D105: ='DF raw data'!L110 -> -2.1360436e-06 | F105: 5.30148112e-06 | G105: 1.22002798e-06 | H105: -2.13739358e-06 | J105: -8.316521822e-06 | K105: 9.553526178e-07 | L105: 1.120658809e-05 | N105: -0.0005162450774 | O105: -0.01171717719 | P105: -1.483496786e-05 | Q105: 0.0002614456467 | R105: 3.896322486e-06
A106: 50.021 | B106: ='DF raw data'!J111 -> 9.8778783e-06 | C106: ='DF raw data'!K111 -> -4.8227644e-06 | D106: ='DF raw data'!L111 -> -4.0813529e-06 | F106: 9.884121119e-06 | G106: -4.836552538e-06 | H106: -4.083932315e-06 | J106: -2.283969557e-06 | K106: 3.887369087e-06 | L106: 1.102271496e-05 | N106: -0.0005173875418 | O106: -0.01197597961 | P106: -1.289046696e-05 | Q106: 0.0002549977063 | R106: 4.030306752e-06
A107: 50.52121 | B107: ='DF raw data'!J112 -> 8.0717728e-06 | C107: ='DF raw data'!K112 -> -7.1684167e-06 | D107: ='DF raw data'!L112 -> -1.5246661e-07 | F107: 8.07687416e-06 | G107: -7.188910987e-06 | H107: -1.525629689e-07 | J107: -2.966518055e-07 | K107: -1.054185894e-06 | L107: 1.22610711e-05 | N107: -0.00051753593 | O107: -0.01223485626 | P107: -1.341778129e-05 | Q107: 0.0002482859979 | R107: 4.164374774e-06
A108: 51.02142 | B108: ='DF raw data'!J113 -> 4.5528755e-06 | C108: ='DF raw data'!K113 -> -1.3279071e-06 | D108: ='DF raw data'!L113 -> 4.8225838e-06 | F108: 4.555752917e-06 | G108: -1.331703546e-06 | H108: 4.825631673e-06 | J108: -3.887569792e-06 | K108: -1.053747043e-05 | L108: 1.800338996e-05 | N108: -0.0005194805313 | O108: -0.01249470561 | P108: -1.868872937e-05 | Q108: 0.0002389377086 | R108: 4.299536164e-06
A109: 51.52163 | B109: ='DF raw data'!J114 -> 6.0490643e-06 | C109: ='DF raw data'!K114 -> -2.1770368e-06 | D109: ='DF raw data'!L114 -> 4.2178735e-06 | F109: 6.052887309e-06 | G109: -2.183260883e-06 | H109: 4.220539196e-06 | J109: -1.088051914e-05 | K109: -6.444933341e-06 | L109: 1.858224156e-05 | N109: -0.0005249230758 | O109: -0.01275727738 | P109: -2.191254948e-05 | Q109: 0.0002279768322 | R109: 4.437606327e-06
A110: 52.02184 | B110: ='DF raw data'!J115 -> 5.3624794e-06 | C110: ='DF raw data'!K115 -> -4.042618e-06 | D110: ='DF raw data'!L115 -> 7.8210356e-08 | F110: 5.365868487e-06 | G110: -4.054175723e-06 | H110: 7.825978494e-08 | J110: -1.289528667e-05 | K110: 3.814978114e-06 | L110: 9.917752661e-06 | N110: -0.0005313734271 | O110: -0.01302307569 | P110: -2.000425928e-05 | Q110: 0.0002179705017 | R110: 4.57904465e-06
A111: 52.52205 | B111: ='DF raw data'!J116 -> -4.6661526e-07 | C111: ='DF raw data'!K116 -> -1.0346118e-05 | D111: ='DF raw data'!L116 -> -1.8748858e-06 | F111: -4.669101608e-07 | G111: -1.037569724e-05 | H111: -1.876070728e-06 | J111: -5.294067638e-06 | K111: 7.311931597e-06 | L111: 3.986169068e-06 | N111: -0.0005340215727 | O111: -0.01329019862 | P111: -1.634675797e-05 | Q111: 0.0002097936898 | R111: 4.721827722e-06
A112: 53.02226 | B112: ='DF raw data'!J117 -> -8.5489677e-07 | C112: ='DF raw data'!K117 -> -8.4613248e-06 | D112: ='DF raw data'!L117 -> 3.4919015e-06 | F112: -8.554370648e-07 | G112: -8.485515473e-06 | H112: 3.494108382e-06 | J112: 2.627619106e-06 | K112: 1.289876204e-06 | L112: 9.972828247e-06 | N112: -0.0005327072113 | O112: -0.01355666409 | P112: -1.5701549e-05 | Q112: 0.000201939618 | R112: 4.863899123e-06
A113: 53.52247 | B113: ='DF raw data'!J118 -> 5.9465369e-06 | C113: ='DF raw data'!K118 -> 4.7144772e-06 | D113: ='DF raw data'!L118 -> 3.0550411e-06 | F113: 5.950295111e-06 | G113: 4.727955748e-06 | H113: 3.056971886e-06 | J113: 2.382159974e-06 | K113: 6.173221239e-06 | L113: 1.447992053e-05 | N113: -0.0005315156311 | O113: -0.01382253353 | P113: -1.2613642e-05 | Q113: 0.0001956301482 | R113: 5.005292468e-06
A114: 54.02268 | B114: ='DF raw data'!J119 -> 1.2909705e-05 | C114: ='DF raw data'!K119 -> 9.4752913e-06 | D114: ='DF raw data'!L119 -> 3.6059936e-07 | F114: 1.291786393e-05 | G114: 9.502380872e-06 | H114: 3.608272588e-07 | J114: -3.173233117e-06 | K114: -1.132720883e-05 | L114: 1.073235757e-05 | N114: -0.000533102914 | O114: -0.01408919693 | P114: -1.827962513e-05 | Q114: 0.0001864864969 | R114: 5.147618651e-06
A115: 54.52289 | B115: ='DF raw data'!J120 -> 1.11319e-05 | C115: ='DF raw data'!K120 -> 9.7217317e-06 | D115: ='DF raw data'!L120 -> -4.3427108e-06 | F115: 1.113893536e-05 | G115: 9.749525838e-06 | H115: -4.345455393e-06 | J115: -6.16629924e-06 | K115: -6.264962477e-06 | L115: 4.768674099e-06 | N115: -0.0005361873586 | O115: -0.01435740321 | P115: -2.141342201e-05 | Q115: 0.0001757752891 | R115: 5.291656831e-06
A116: 55.0231 | B116: ='DF raw data'!J121 -> 1.4163862e-06 | C116: ='DF raw data'!K121 -> 1.0344303e-05 | D116: ='DF raw data'!L121 -> -3.310123e-06 | F116: 1.417281356e-06 | G116: 1.037387705e-05 | H116: -3.312214998e-06 | J116: -6.82059009e-06 | K116: -6.298756518e-07 | L116: 4.613836703e-06 | N116: -0.0005395990859 | O116: -0.01462731607 | P116: -2.172849211e-05 | Q116: 0.00016490648 | R116: 5.437537726e-06
A117: 55.52331 | B117: ='DF raw data'!J122 -> -2.4919934e-06 | C117: ='DF raw data'!K122 -> 4.5617003e-06 | D117: ='DF raw data'!L122 -> -3.0548897e-06 | F117: -2.49356834e-06 | G117: 4.574742064e-06 | H117: -3.05682039e-06 | J117: -3.379151275e-06 | K117: -1.009335935e-07 | L117: 4.116631168e-06 | N117: -0.0005412893712 | O117: -0.01489807443 | P117: -2.17789801e-05 | Q117: 0.0001540124164 | R117: 5.584333608e-06
A118: 56.02352 | B118: ='DF raw data'!J123 -> -5.2288505e-07 | C118: ='DF raw data'!K123 -> 1.609357e-06 | D118: ='DF raw data'!L123 -> -7.1249369e-06 | F118: -5.232155134e-07 | G118: 1.613958103e-06 | H118: -7.12943986e-06 | J118: -2.885361297e-06 | K118: -2.358550903e-06 | L118: 7.690422277e-07 | N118: -0.0005427326578 | O118: -0.01516955473 | P118: -2.295875085e-05 | Q118: 0.0001425282196 | R118: 5.731938497e-06
A119: 56.52373 | B119: ='DF raw data'!J124 -> 2.4922538e-06 | C119: ='DF raw data'!K124 -> -5.8013188e-06 | D119: ='DF raw data'!L124 -> -1.0695629e-05 | F119: 2.493828904e-06 | G119: -5.817904596e-06 | H119: -1.070238864e-05 | J119: -6.870884156e-06 | K119: -7.070863054e-07 | L119: 4.179298548e-06 | N119: -0.0005461695427 | O119: -0.0154427542 | P119: -2.331244249e-05 | Q119: 0.0001308671028 | R119: 5.881423574e-06
A120: 57.02394 | B120: ='DF raw data'!J125 -> 3.9318419e-07 | C120: ='DF raw data'!K125 -> 6.7804635e-06 | D120: ='DF raw data'!L125 -> -6.5220238e-06 | F120: 3.934326824e-07 | G120: 6.799848641e-06 | H120: -6.526145719e-06 | J120: -8.657158969e-06 | K120: -8.489930058e-06 | L120: 4.27013442e-06 | N120: -0.0005504999402 | O120: -0.01571811977 | P120: -2.75591904e-05 | Q120: 0.0001170817201 | R120: 6.03339222e-06
A121: 57.52415 | B121: ='DF raw data'!J126 -> -6.4638516e-06 | C121: ='DF raw data'!K126 -> 2.9663122e-06 | D121: ='DF raw data'!L126 -> 1.0565557e-06 | F121: -6.467936754e-06 | G121: 2.974792797e-06 | H121: 1.057223443e-06 | J121: -8.246390927e-06 | K121: 3.773496056e-06 | L121: 7.211020386e-06 | N121: -0.0005546248674 | O121: -0.01599554868 | P121: -2.567164994e-05 | Q121: 0.0001042405041 | R121: 6.187590845e-06
A122: 58.02436 | B122: ='DF raw data'!J127 -> -9.1302909e-06 | C122: ='DF raw data'!K127 -> 6.3835164e-06 | D122: ='DF raw data'!L127 -> -3.3602265e-07 | F122: -9.136061244e-06 | G122: 6.401766681e-06 | H122: -3.362350163e-07 | J122: -1.007654836e-05 | K122: 8.255151346e-06 | L122: 7.317973538e-06 | N122: -0.0005596652577 | O122: -0.01627549884 | P122: -2.154234069e-05 | Q122: 9.346480987e-05 | R122: 6.344501357e-06
A123: 58.52457 | B123: ='DF raw data'!J128 -> -4.0773593e-06 | C123: ='DF raw data'!K128 -> 1.1834684e-05 | D123: ='DF raw data'!L128 -> 4.7007234e-06 | F123: -4.079936191e-06 | G123: 1.1868519e-05 | H123: 4.703694257e-06 | J123: -8.345242662e-06 | K123: -4.147124904e-07 | L123: 4.297355613e-07 | N123: -0.0005638396315 | O123: -0.01655753706 | P123: -2.174978402e-05 | Q123: 8.258535041e-05 | R123: 6.50376231e-06
A124: 59.02478 | B124: ='DF raw data'!J129 -> 1.2266179e-06 | C124: ='DF raw data'!K129 -> 8.9665327e-06 | D124: ='DF raw data'!L129 -> 6.8664594e-06 | F124: 1.227393123e-06 | G124: 8.992167747e-06 | H124: 6.870799002e-06 | J124: -6.510008827e-06 | K124: 5.816219993e-06 | L124: -2.314757503e-06 | N124: -0.000567096003 | O124: -0.01684120415 | P124: -1.884045262e-05 | Q124: 7.31611676e-05 | R124: 6.664806339e-06
A125: 59.52499 | B125: ='DF raw data'!J130 -> 3.7589575e-06 | C125: ='DF raw data'!K130 -> 4.0205218e-06 | D125: ='DF raw data'!L130 -> -3.9168308e-06 | F125: 3.761333161e-06 | G125: 4.032016351e-06 | H125: -3.919306237e-06 | J125: -1.006819908e-05 | K125: 6.114636425e-07 | L125: -2.176304055e-06 | N125: -0.0005721322169 | O125: -0.01712739041 | P125: -1.853459239e-05 | Q125: 6.388997914e-05 | R125: 6.828714554e-06
A126: 60.0252 | B126: ='DF raw data'!J131 -> 4.0699429e-06 | C126: ='DF raw data'!K131 -> -8.7444578e-06 | D126: ='DF raw data'!L131 -> -9.4484067e-06 | F126: 4.072515104e-06 | G126: -8.769457941e-06 | H126: -9.454378093e-06 | J126: -1.212624895e-05 | K126: 2.462304887e-06 | L126: 2.061806839e-06 | N126: -0.0005781978879 | O126: -0.01741661077 | P126: -1.730292286e-05 | Q126: 5.52348841e-05 | R126: 6.996090917e-06
